Workbook

Sheet Planilha Orçamentária
A1: Ministério da Integração e do Desenvolvimento Regional
A2: Companhia de Desenvolvimento dos Vales do São Francisco e do Parnaíba
A3: PLANILHA ORÇAMENTÁRIA - ORÇAMENTO NÃO DESONERADO
A4: OBRA: | B4: =UPPER("SERVIÇOS DE MANUTENÇÃO E OBRAS CIVIS NA BARRAGEM JUÁ I") -> SERVIÇOS DE MANUTENÇÃO E OBRAS CIVIS NA BARRAGEM JUÁ I | F4: BDI (serv.): | H4: ='BDI serv'!D22 -> 0.2388 | I4: Bancos
A5: LOCAL: | B5: BARRAGEM JUÁ I, CABROBÓ/PE | F5: BDI (forn.): | H5: ='BDI forn'!E6 -> 0.136 | I5: 03/2024 - SINAPI/PE
A6: DATA BASE: | B6: 2024-05-01 | E6: Encargos sociais Horistas: | H6: ='Encargos Sociais'!E47 -> 1.1398 | I6: 01/2024 - SICRO/PE
A7: PRAZO: | B7: 90 DIAS | E7: Encargos sociais - Mensalista: | H7: ='Encargos Sociais'!F47 -> 0.7
A8: ITEM | B8: REFERÊNCIA | D8: DESCRIÇÃO | E8: UNID. | F8: QUANT. | G8: CUSTO UNITÁRIO | H8: PREÇO UNITÁRIO | I8: PREÇO TOTAL | J8: TIPO de BDI | K8: CLASSIF
B9: FONTE | C9: CÓDIGO | L9: S | M9: A
A10: 1 | D10: ADMINISTRAÇÃO DA OBRA | I10: =SUM(I11:I11) -> 107405.2236 | K10: ss | L10: COMENTÁRIOS
A11: 1.1 | B11: PRÓPRIA | C11: CPU.01 | D11: Administração Local | E11: mês | F11: =VLOOKUP(A11,'Memorial de cálculo'!A11:H552,8,0) -> 3 | G11: =SUMIFS(CPU!$H:$H,CPU!$B:$B,'Planilha Orçamentária'!$A11,CPU!$I:$I,"ss")+SUMIFS(CPU!$H:$H,CPU!$B:$B,'Planilha Orçamentária'!$A11,CPU!$I:$I,"mdo")+SUMIF('Comp SINAPI PE 12-2023 Onerado'!G:G,'Planilha Orçamentária'!C11,'Comp SINAPI PE 12-2023 Onerado'!K:K)+SUMIF('Ins SINAPI PE 12-2023 Onerado'!A:A,'Planilha Orçamentária'!C11,'Ins SINAPI PE 12-2023 Onerado'!E:E) -> 28900.34 | H11: =IF(J11="SERV",G11*(1+$H$4),G11*(1+$H$5)) -> 35801.74119 | I11: =IF(J11="SERV",G11*F11*(1+$H$4),G11*F11*(1+$H$5)) -> 107405.2236 | J11: serv | K11: s
A13: 2 | D13: SERVIÇOS PRELIMINARES | I13: =SUM(I14:I16) -> 36119.7907 | K13: ss
A14: 2.1 | B14: PRÓPRIA | C14: CPU.02 | D14: Mobilização e desmobilização de instalação do canteiro | E14: un | F14: =VLOOKUP(A14,'Memorial de cálculo'!A17:H557,8,0) -> 1 | G14: =SUMIFS(CPU!$H:$H,CPU!$B:$B,'Planilha Orçamentária'!$A14,CPU!$I:$I,"ss")+SUMIFS(CPU!$H:$H,CPU!$B:$B,'Planilha Orçamentária'!$A14,CPU!$I:$I,"mdo")+SUMIF('Comp SINAPI PE 12-2023 Onerado'!G:G,'Planilha Orçamentária'!C14,'Comp SINAPI PE 12-2023 Onerado'!K:K)+SUMIF('Ins SINAPI PE 12-2023 Onerado'!A:A,'Planilha Orçamentária'!C14,'Ins SINAPI PE 12-2023 Onerado'!E:E) -> 6853.42 | H14: =IF(J14="SERV",G14*(1+$H$4),G14*(1+$H$5)) -> 8490.016696 | I14: =IF(J14="SERV",G14*F14*(1+$H$4),G14*F14*(1+$H$5)) -> 8490.016696 | J14: serv | K14: s
A15: 2.2 | B15: PRÓPRIA | C15: CPU.03 | D15: Canteiro de obras | E15: m² | F15: =VLOOKUP(A15,'Memorial de cálculo'!A21:H469,8,0) -> 28.5 | G15: =SUMIFS(CPU!$H:$H,CPU!$B:$B,'Planilha Orçamentária'!$A15,CPU!$I:$I,"ss")+SUMIFS(CPU!$H:$H,CPU!$B:$B,'Planilha Orçamentária'!$A15,CPU!$I:$I,"mdo")+SUMIF('Comp SINAPI PE 12-2023 Onerado'!G:G,'Planilha Orçamentária'!C15,'Comp SINAPI PE 12-2023 Onerado'!K:K)+SUMIF('Ins SINAPI PE 12-2023 Onerado'!A:A,'Planilha Orçamentária'!C15,'Ins SINAPI PE 12-2023 Onerado'!E:E) -> 746.64 | H15: =IF(J15="SERV",G15*(1+$H$4),G15*(1+$H$5)) -> 924.937632 | I15: =IF(J15="SERV",G15*F15*(1+$H$4),G15*F15*(1+$H$5)) -> 26360.72251 | J15: serv | K15: s
A16: 2.3 | B16: PRÓPRIA | C16: CPU.04 | D16: Placa de obra em chapa de aço galvanizado | E16: m² | F16: =VLOOKUP(A16,'Memorial de cálculo'!A22:H470,8,0) -> 2 | G16: =SUMIFS(CPU!$H:$H,CPU!$B:$B,'Planilha Orçamentária'!$A16,CPU!$I:$I,"ss")+SUMIFS(CPU!$H:$H,CPU!$B:$B,'Planilha Orçamentária'!$A16,CPU!$I:$I,"mdo")+SUMIF('Comp SINAPI PE 12-2023 Onerado'!G:G,'Planilha Orçamentária'!C16,'Comp SINAPI PE 12-2023 Onerado'!K:K)+SUMIF('Ins SINAPI PE 12-2023 Onerado'!A:A,'Planilha Orçamentária'!C16,'Ins SINAPI PE 12-2023 Onerado'!E:E) -> 512.21 | H16: =IF(J16="SERV",G16*(1+$H$4),G16*(1+$H$5)) -> 634.525748 | I16: =IF(J16="SERV",G16*F16*(1+$H$4),G16*F16*(1+$H$5)) -> 1269.051496 | J16: serv | K16: s
A18: 3 | D18: CORTE DA VEGETAÇÃO E REMOÇÃO DAS RAIZES | I18: =SUM(I19:I21) -> 128666.5993 | K18: ss
A19: 3.1 | B19: PRÓPRIA | C19: CPU.05 | D19: Limpeza de Vegetação | E19: m² | F19: =VLOOKUP(A19,'Memorial de cálculo'!$A$10:$H$572,8,0) -> 11670 | G19: =SUMIFS(CPU!$H:$H,CPU!$B:$B,'Planilha Orçamentária'!$A19,CPU!$I:$I,"ss")+SUMIFS(CPU!$H:$H,CPU!$B:$B,'Planilha Orçamentária'!$A19,CPU!$I:$I,"mdo")+SUMIF('Comp SINAPI PE 12-2023 Onerado'!G:G,'Planilha Orçamentária'!C19,'Comp SINAPI PE 12-2023 Onerado'!K:K)+SUMIF('Ins SINAPI PE 12-2023 Onerado'!A:A,'Planilha Orçamentária'!C19,'Ins SINAPI PE 12-2023 Onerado'!E:E) -> 8.31 | H19: =IF(J19="SERV",G19*(1+$H$4),G19*(1+$H$5)) -> 10.294428 | I19: =IF(J19="SERV",G19*F19*(1+$H$4),G19*F19*(1+$H$5)) -> 120135.9748 | J19: serv | K19: s
A20: 3.2 | B20: PRÓPRIA | C20: CPU.06 | D20: Corte raso de árvores | E20: un | F20: =VLOOKUP(A20,'Memorial de cálculo'!$A$10:$H$572,8,0) -> 15 | G20: =SUMIFS(CPU!$H:$H,CPU!$B:$B,'Planilha Orçamentária'!$A20,CPU!$I:$I,"ss")+SUMIFS(CPU!$H:$H,CPU!$B:$B,'Planilha Orçamentária'!$A20,CPU!$I:$I,"mdo")+SUMIF('Comp SINAPI PE 12-2023 Onerado'!G:G,'Planilha Orçamentária'!C20,'Comp SINAPI PE 12-2023 Onerado'!K:K)+SUMIF('Ins SINAPI PE 12-2023 Onerado'!A:A,'Planilha Orçamentária'!C20,'Ins SINAPI PE 12-2023 Onerado'!E:E) -> 246.19 | H20: =IF(J20="SERV",G20*(1+$H$4),G20*(1+$H$5)) -> 304.980172 | I20: =IF(J20="SERV",G20*F20*(1+$H$4),G20*F20*(1+$H$5)) -> 4574.70258 | J20: serv | K20: s
A21: 3.3 | B21: PRÓPRIA | C21: CPU.07 | D21: Remoção de raízes | E21: un | F21: =VLOOKUP(A21,'Memorial de cálculo'!$A$10:$H$572,8,0) -> 15 | G21: =SUMIFS(CPU!$H:$H,CPU!$B:$B,'Planilha Orçamentária'!$A21,CPU!$I:$I,"ss")+SUMIFS(CPU!$H:$H,CPU!$B:$B,'Planilha Orçamentária'!$A21,CPU!$I:$I,"mdo")+SUMIF('Comp SINAPI PE 12-2023 Onerado'!G:G,'Planilha Orçamentária'!C21,'Comp SINAPI PE 12-2023 Onerado'!K:K)+SUMIF('Ins SINAPI PE 12-2023 Onerado'!A:A,'Planilha Orçamentária'!C21,'Ins SINAPI PE 12-2023 Onerado'!E:E) -> 212.89 | H21: =IF(J21="SERV",G21*(1+$H$4),G21*(1+$H$5)) -> 263.728132 | I21: =IF(J21="SERV",G21*F21*(1+$H$4),G21*F21*(1+$H$5)) -> 3955.92198 | J21: serv | K21: s
A23: 4 | D23: RECUPERAÇÃO DA EROSÃO TALUDES MONTANTE E JUSANTE | I23: =I24 -> 40752.43196 | K23: ss
A24: 4.1 | B24: PROPRIA | C24: CPU.08 | D24: Aterro de valas | E24: M3 | F24: =VLOOKUP(A24,'Memorial de cálculo'!A7:H576,8,0) -> 170 | G24: =SUMIFS(CPU!$H:$H,CPU!$B:$B,'Planilha Orçamentária'!$A24,CPU!$I:$I,"ss")+SUMIFS(CPU!$H:$H,CPU!$B:$B,'Planilha Orçamentária'!$A24,CPU!$I:$I,"mdo")+SUMIF('Comp SINAPI PE 12-2023 Onerado'!G:G,'Planilha Orçamentária'!C24,'Comp SINAPI PE 12-2023 Onerado'!K:K)+SUMIF('Ins SINAPI PE 12-2023 Onerado'!A:A,'Planilha Orçamentária'!C24,'Ins SINAPI PE 12-2023 Onerado'!E:E) -> 193.51 | H24: =IF(J24="SERV",G24*(1+$H$4),G24*(1+$H$5)) -> 239.720188 | I24: =IF(J24="SERV",G24*F24*(1+$H$4),G24*F24*(1+$H$5)) -> 40752.43196 | J24: serv | K24: s
L25: =1752.69*0.95 -> 1665.0555
A26: 5 | D26: REGULARIZAÇÃO E PAVIMENTAÇÃO DA CRISTA | I26: =SUM(I27:I31) -> 119862.1504 | K26: ss
A27: 5.1 | B27: PROPRIA | C27: CPU.9 | D27: Remoção de guias pré-fabricadas sem reaproveitamento | E27: M | F27: =VLOOKUP(A27,'Memorial de cálculo'!A9:H578,8,0) -> 296 | G27: =SUMIFS(CPU!$H:$H,CPU!$B:$B,'Planilha Orçamentária'!$A27,CPU!$I:$I,"ss")+SUMIFS(CPU!$H:$H,CPU!$B:$B,'Planilha Orçamentária'!$A27,CPU!$I:$I,"mdo")+SUMIF('Comp SINAPI PE 12-2023 Onerado'!G:G,'Planilha Orçamentária'!C27,'Comp SINAPI PE 12-2023 Onerado'!K:K)+SUMIF('Ins SINAPI PE 12-2023 Onerado'!A:A,'Planilha Orçamentária'!C27,'Ins SINAPI PE 12-2023 Onerado'!E:E) -> 38.08 | H27: =IF(J27="SERV",G27*(1+$H$4),G27*(1+$H$5)) -> 47.173504 | I27: =IF(J27="SERV",G27*F27*(1+$H$4),G27*F27*(1+$H$5)) -> 13963.35718 | J27: serv | K27: s
A28: 5.2 | B28: PROPRIA | C28: CPU.10 | D28: Regularização e compactação da crista | E28: M2 | F28: =VLOOKUP(A28,'Memorial de cálculo'!A10:H579,8,0) -> 690 | G28: =SUMIFS(CPU!$H:$H,CPU!$B:$B,'Planilha Orçamentária'!$A28,CPU!$I:$I,"ss")+SUMIFS(CPU!$H:$H,CPU!$B:$B,'Planilha Orçamentária'!$A28,CPU!$I:$I,"mdo")+SUMIF('Comp SINAPI PE 12-2023 Onerado'!G:G,'Planilha Orçamentária'!C28,'Comp SINAPI PE 12-2023 Onerado'!K:K)+SUMIF('Ins SINAPI PE 12-2023 Onerado'!A:A,'Planilha Orçamentária'!C28,'Ins SINAPI PE 12-2023 Onerado'!E:E) -> 3.48 | H28: =IF(J28="SERV",G28*(1+$H$4),G28*(1+$H$5)) -> 4.311024 | I28: =IF(J28="SERV",G28*F28*(1+$H$4),G28*F28*(1+$H$5)) -> 2974.60656 | J28: serv | K28: s
A29: 5.3 | B29: PROPRIA | C29: CPU.11 | D29: Drenagem - Trecho reto | E29: M | F29: =VLOOKUP(A29,'Memorial de cálculo'!A68:H581,8,0) -> 370 | G29: =SUMIFS(CPU!$H:$H,CPU!$B:$B,'Planilha Orçamentária'!$A29,CPU!$I:$I,"ss")+SUMIFS(CPU!$H:$H,CPU!$B:$B,'Planilha Orçamentária'!$A29,CPU!$I:$I,"mdo")+SUMIF('Comp SINAPI PE 12-2023 Onerado'!G:G,'Planilha Orçamentária'!C29,'Comp SINAPI PE 12-2023 Onerado'!K:K)+SUMIF('Ins SINAPI PE 12-2023 Onerado'!A:A,'Planilha Orçamentária'!C29,'Ins SINAPI PE 12-2023 Onerado'!E:E) -> 77.47 | H29: =IF(J29="SERV",G29*(1+$H$4),G29*(1+$H$5)) -> 95.969836 | I29: =IF(J29="SERV",G29*F29*(1+$H$4),G29*F29*(1+$H$5)) -> 35508.83932 | J29: serv | K29: s
A30: 5.4 | B30: PROPRIA | C30: CPU.12 | D30: Drenagem - Trecho curvo | E30: M | F30: =VLOOKUP(A30,'Memorial de cálculo'!A69:H582,8,0) -> 90 | G30: =SUMIFS(CPU!$H:$H,CPU!$B:$B,'Planilha Orçamentária'!$A30,CPU!$I:$I,"ss")+SUMIFS(CPU!$H:$H,CPU!$B:$B,'Planilha Orçamentária'!$A30,CPU!$I:$I,"mdo")+SUMIF('Comp SINAPI PE 12-2023 Onerado'!G:G,'Planilha Orçamentária'!C30,'Comp SINAPI PE 12-2023 Onerado'!K:K)+SUMIF('Ins SINAPI PE 12-2023 Onerado'!A:A,'Planilha Orçamentária'!C30,'Ins SINAPI PE 12-2023 Onerado'!E:E) -> 85.77 | H30: =IF(J30="SERV",G30*(1+$H$4),G30*(1+$H$5)) -> 106.251876 | I30: =IF(J30="SERV",G30*F30*(1+$H$4),G30*F30*(1+$H$5)) -> 9562.66884 | J30: serv | K30: s
A31: 5.5 | B31: PROPRIA | C31: CPU.13 | D31: Revestimento com BGTC | E31: M3 | F31: =VLOOKUP(A31,'Memorial de cálculo'!A69:H582,8,0) -> 69 | G31: =SUMIFS(CPU!$H:$H,CPU!$B:$B,'Planilha Orçamentária'!$A31,CPU!$I:$I,"ss")+SUMIFS(CPU!$H:$H,CPU!$B:$B,'Planilha Orçamentária'!$A31,CPU!$I:$I,"mdo")+SUMIF('Comp SINAPI PE 12-2023 Onerado'!G:G,'Planilha Orçamentária'!C31,'Comp SINAPI PE 12-2023 Onerado'!K:K)+SUMIF('Ins SINAPI PE 12-2023 Onerado'!A:A,'Planilha Orçamentária'!C31,'Ins SINAPI PE 12-2023 Onerado'!E:E) -> 676.82 | H31: =IF(J31="SERV",G31*(1+$H$4),G31*(1+$H$5)) -> 838.444616 | I31: =IF(J31="SERV",G31*F31*(1+$H$4),G31*F31*(1+$H$5)) -> 57852.6785 | J31: serv | K31: s
A33: 6 | D33: =UPPER("Manutenção no talude de montante") -> MANUTENÇÃO NO TALUDE DE MONTANTE | I33: =I34 -> 78160.66138 | K33: ss
A34: 6.1 | B34: PROPRIA | C34: CPU.14 | D34: Enrocamento c/ pedra de mão para proteção do talude | E34: m³ | F34: =VLOOKUP(A34,'Memorial de cálculo'!A139:H601,8,0) -> 145 | G34: =SUMIFS(CPU!$H:$H,CPU!$B:$B,'Planilha Orçamentária'!$A34,CPU!$I:$I,"ss")+SUMIFS(CPU!$H:$H,CPU!$B:$B,'Planilha Orçamentária'!$A34,CPU!$I:$I,"mdo")+SUMIF('Comp SINAPI PE 12-2023 Onerado'!G:G,'Planilha Orçamentária'!C34,'Comp SINAPI PE 12-2023 Onerado'!K:K)+SUMIF('Ins SINAPI PE 12-2023 Onerado'!A:A,'Planilha Orçamentária'!C34,'Ins SINAPI PE 12-2023 Onerado'!E:E) -> 435.13 | H34: =IF(J34="SERV",G34*(1+$H$4),G34*(1+$H$5)) -> 539.039044 | I34: =IF(J34="SERV",G34*F34*(1+$H$4),G34*F34*(1+$H$5)) -> 78160.66138 | J34: serv | K34: s
A36: 7 | D36: =UPPER("Drenagem superficial do talude jusante") -> DRENAGEM SUPERFICIAL DO TALUDE JUSANTE | I36: =I37+I38 -> 6464.470301 | K36: ss
A37: 7.1 | B37: PROPRIA | C37: CPU.15 | D37: Canaleta para descida d'água | E37: M | F37: =VLOOKUP(A37,'Memorial de cálculo'!A175:H609,8,0) -> 58.75 | G37: =SUMIFS(CPU!$H:$H,CPU!$B:$B,'Planilha Orçamentária'!$A37,CPU!$I:$I,"ss")+SUMIFS(CPU!$H:$H,CPU!$B:$B,'Planilha Orçamentária'!$A37,CPU!$I:$I,"mdo")+SUMIF('Comp SINAPI PE 12-2023 Onerado'!G:G,'Planilha Orçamentária'!C37,'Comp SINAPI PE 12-2023 Onerado'!K:K)+SUMIF('Ins SINAPI PE 12-2023 Onerado'!A:A,'Planilha Orçamentária'!C37,'Ins SINAPI PE 12-2023 Onerado'!E:E) -> 71.35 | H37: =IF(J37="SERV",G37*(1+$H$4),G37*(1+$H$5)) -> 88.38838 | I37: =IF(J37="SERV",G37*F37*(1+$H$4),G37*F37*(1+$H$5)) -> 5192.817325 | J37: serv | K37: S
A38: 7.2 | B38: PROPRIA | C38: CPU.16 | D38: Entrada para descida d'água | E38: UN | F38: =VLOOKUP(A38,'Memorial de cálculo'!A191:H610,8,0) -> 11 | G38: =SUMIFS(CPU!$H:$H,CPU!$B:$B,'Planilha Orçamentária'!$A38,CPU!$I:$I,"ss")+SUMIFS(CPU!$H:$H,CPU!$B:$B,'Planilha Orçamentária'!$A38,CPU!$I:$I,"mdo")+SUMIF('Comp SINAPI PE 12-2023 Onerado'!G:G,'Planilha Orçamentária'!C38,'Comp SINAPI PE 12-2023 Onerado'!K:K)+SUMIF('Ins SINAPI PE 12-2023 Onerado'!A:A,'Planilha Orçamentária'!C38,'Ins SINAPI PE 12-2023 Onerado'!E:E) -> 93.32 | H38: =IF(J38="SERV",G38*(1+$H$4),G38*(1+$H$5)) -> 115.604816 | I38: =IF(J38="SERV",G38*F38*(1+$H$4),G38*F38*(1+$H$5)) -> 1271.652976 | J38: serv | K38: s
A40: 8 | D40: =UPPER("Proteção superficial do talude de jusante") -> PROTEÇÃO SUPERFICIAL DO TALUDE DE JUSANTE | I40: =I41+I42 -> 62734.6902 | K40: ss
A41: 8.1 | B41: PROPRIA | C41: CPU.17 | D41: Aplicação de Adubo | E41: M2 | F41: =VLOOKUP(A41,'Memorial de cálculo'!A194:H613,8,0) -> 1950 | G41: =SUMIFS(CPU!$H:$H,CPU!$B:$B,'Planilha Orçamentária'!$A41,CPU!$I:$I,"ss")+SUMIFS(CPU!$H:$H,CPU!$B:$B,'Planilha Orçamentária'!$A41,CPU!$I:$I,"mdo")+SUMIF('Comp SINAPI PE 12-2023 Onerado'!G:G,'Planilha Orçamentária'!C41,'Comp SINAPI PE 12-2023 Onerado'!K:K)+SUMIF('Ins SINAPI PE 12-2023 Onerado'!A:A,'Planilha Orçamentária'!C41,'Ins SINAPI PE 12-2023 Onerado'!E:E) -> 5.21 | H41: =IF(J41="SERV",G41*(1+$H$4),G41*(1+$H$5)) -> 6.454148 | I41: =IF(J41="SERV",G41*F41*(1+$H$4),G41*F41*(1+$H$5)) -> 12585.5886 | J41: serv | K41: s
A42: 8.2 | B42: PROPRIA | C42: CPU.18 | D42: Plantio de Grama | E42: M2 | F42: =VLOOKUP(A42,'Memorial de cálculo'!A195:H614,8,0) -> 1950 | G42: =SUMIFS(CPU!$H:$H,CPU!$B:$B,'Planilha Orçamentária'!$A42,CPU!$I:$I,"ss")+SUMIFS(CPU!$H:$H,CPU!$B:$B,'Planilha Orçamentária'!$A42,CPU!$I:$I,"mdo")+SUMIF('Comp SINAPI PE 12-2023 Onerado'!G:G,'Planilha Orçamentária'!C42,'Comp SINAPI PE 12-2023 Onerado'!K:K)+SUMIF('Ins SINAPI PE 12-2023 Onerado'!A:A,'Planilha Orçamentária'!C42,'Ins SINAPI PE 12-2023 Onerado'!E:E) -> 20.76 | H42: =IF(J42="SERV",G42*(1+$H$4),G42*(1+$H$5)) -> 25.717488 | I42: =IF(J42="SERV",G42*F42*(1+$H$4),G42*F42*(1+$H$5)) -> 50149.1016 | J42: serv | K42: s | L42: Confirmar se deixa essa ou da SICRO - DA SICRO ESTÁ BEM MAIS BARATA
A44: 9 | D44: RESTAURAÇÃO SUPERFICIAL - MURO LATERAL | I44: =I45 -> 12911.02136 | K44: ss
A45: 9.1 | B45: PROPRIA | C45: CPU.19 | D45: Restauração do muro lateral | E45: M2 | F45: =VLOOKUP(A45,'Memorial de cálculo'!A207:H625,8,0) -> 82 | G45: =SUMIFS(CPU!$H:$H,CPU!$B:$B,'Planilha Orçamentária'!$A45,CPU!$I:$I,"ss")+SUMIFS(CPU!$H:$H,CPU!$B:$B,'Planilha Orçamentária'!$A45,CPU!$I:$I,"mdo")+SUMIF('Comp SINAPI PE 12-2023 Onerado'!G:G,'Planilha Orçamentária'!C45,'Comp SINAPI PE 12-2023 Onerado'!K:K)+SUMIF('Ins SINAPI PE 12-2023 Onerado'!A:A,'Planilha Orçamentária'!C45,'Ins SINAPI PE 12-2023 Onerado'!E:E) -> 127.1 | H45: =IF(J45="SERV",G45*(1+$H$4),G45*(1+$H$5)) -> 157.45148 | I45: =IF(J45="SERV",G45*F45*(1+$H$4),G45*F45*(1+$H$5)) -> 12911.02136 | J45: serv
A47: 10 | D47: CONTENÇÃO PROCESSO EROSIVO CANAL DE RESTITUIÇÃO | I47: =I48 -> 52849.0662 | K47: ss
A48: 10.1 | B48: PROPRIA | C48: CPU.20 | D48: Enrocamento ARCO tipo rachão reciclado cinza classe jogado com fornecimento | E48: M2 | F48: =VLOOKUP(A48,'Memorial de cálculo'!A210:H628,8,0) -> 170 | G48: =SUMIFS(CPU!$H:$H,CPU!$B:$B,'Planilha Orçamentária'!$A48,CPU!$I:$I,"ss")+SUMIFS(CPU!$H:$H,CPU!$B:$B,'Planilha Orçamentária'!$A48,CPU!$I:$I,"mdo")+SUMIF('Comp SINAPI PE 12-2023 Onerado'!G:G,'Planilha Orçamentária'!C48,'Comp SINAPI PE 12-2023 Onerado'!K:K)+SUMIF('Ins SINAPI PE 12-2023 Onerado'!A:A,'Planilha Orçamentária'!C48,'Ins SINAPI PE 12-2023 Onerado'!E:E) -> 250.95 | H48: =IF(J48="SERV",G48*(1+$H$4),G48*(1+$H$5)) -> 310.87686 | I48: =IF(J48="SERV",G48*F48*(1+$H$4),G48*F48*(1+$H$5)) -> 52849.0662 | J48: serv | K48: s
A50: 11 | D50: LIMPEZA ENTULHOS E RESÍDUOS DOMÉSTICOS | I50: =I51 -> 4191.1701 | K50: ss
A51: 11.1 | B51: PROPRIA | C51: CPU.21 | D51: Limpeza Entulhos E Resíduos Domésticos | E51: M2 | F51: =VLOOKUP(A51,'Memorial de cálculo'!A214:H632,8,0) -> 1735 | G51: =SUMIFS(CPU!$H:$H,CPU!$B:$B,'Planilha Orçamentária'!$A51,CPU!$I:$I,"ss")+SUMIFS(CPU!$H:$H,CPU!$B:$B,'Planilha Orçamentária'!$A51,CPU!$I:$I,"mdo")+SUMIF('Comp SINAPI PE 12-2023 Onerado'!G:G,'Planilha Orçamentária'!C51,'Comp SINAPI PE 12-2023 Onerado'!K:K)+SUMIF('Ins SINAPI PE 12-2023 Onerado'!A:A,'Planilha Orçamentária'!C51,'Ins SINAPI PE 12-2023 Onerado'!E:E) -> 1.95 | H51: =IF(J51="SERV",G51*(1+$H$4),G51*(1+$H$5)) -> 2.41566 | I51: =IF(J51="SERV",G51*F51*(1+$H$4),G51*F51*(1+$H$5)) -> 4191.1701 | J51: serv | K51: s
A53: 12 | D53: SERVIÇOS COMPLEMENTARES | I53: =SUM(I54:I57) -> 113301.317 | K53: ss
A54: 12.1 | B54: PRÓPRIA | C54: CPU.22 | D54: Instalação de placas de aviso | E54: M2 | F54: =VLOOKUP(A54,'Memorial de cálculo'!A218:H634,8,0) -> 4 | G54: =SUMIFS(CPU!$H:$H,CPU!$B:$B,'Planilha Orçamentária'!$A54,CPU!$I:$I,"ss")+SUMIFS(CPU!$H:$H,CPU!$B:$B,'Planilha Orçamentária'!$A54,CPU!$I:$I,"mdo")+SUMIF('Comp SINAPI PE 12-2023 Onerado'!G:G,'Planilha Orçamentária'!C54,'Comp SINAPI PE 12-2023 Onerado'!K:K)+SUMIF('Ins SINAPI PE 12-2023 Onerado'!A:A,'Planilha Orçamentária'!C54,'Ins SINAPI PE 12-2023 Onerado'!E:E) -> 512.21 | H54: =IF(J54="SERV",G54*(1+$H$4),G54*(1+$H$5)) -> 634.525748 | I54: =IF(J54="SERV",G54*F54*(1+$H$4),G54*F54*(1+$H$5)) -> 2538.102992 | J54: serv | K54: s | L54: 4 placas de 1 m²
A55: 12.2 | B55: PRÓPRIA | C55: CPU.23 | D55: Instalação de mourões para medida de cota d’água | E55: UN | F55: =VLOOKUP(A55,'Memorial de cálculo'!A222:H638,8,0) -> 10 | G55: =CPU!H287 -> 454.76 | H55: =IF(J55="SERV",G55*(1+$H$4),G55*(1+$H$5)) -> 563.356688 | I55: =IF(J55="SERV",G55*F55*(1+$H$4),G55*F55*(1+$H$5)) -> 5633.56688 | J55: serv | K55: s
A56: 12.3 | B56: PRÓPRIA | C56: CPU.24 | D56: Cercas de proteção | E56: M | F56: =VLOOKUP(A56,'Memorial de cálculo'!A263:H640,8,0) -> 770 | G56: =SUMIFS(CPU!$H:$H,CPU!$B:$B,'Planilha Orçamentária'!$A56,CPU!$I:$I,"ss")+SUMIFS(CPU!$H:$H,CPU!$B:$B,'Planilha Orçamentária'!$A56,CPU!$I:$I,"mdo")+SUMIF('Comp SINAPI PE 12-2023 Onerado'!G:G,'Planilha Orçamentária'!C56,'Comp SINAPI PE 12-2023 Onerado'!K:K)+SUMIF('Ins SINAPI PE 12-2023 Onerado'!A:A,'Planilha Orçamentária'!C56,'Ins SINAPI PE 12-2023 Onerado'!E:E) -> 91.33 | H56: =IF(J56="SERV",G56*(1+$H$4),G56*(1+$H$5)) -> 113.139604 | I56: =IF(J56="SERV",G56*F56*(1+$H$4),G56*F56*(1+$H$5)) -> 87117.49508 | J56: serv | K56: s | L56: Peso do mourao https://crepan.com.br/mourao-de-concreto/
A57: 12.4 | B57: PRÓPRIA | C57: CPU.25 | D57: Limpeza das margens do reservatório | E57: M2 | F57: =VLOOKUP(A57,'Memorial de cálculo'!A271:H644,8,0) -> 2000 | G57: =SUMIFS(CPU!$H:$H,CPU!$B:$B,'Planilha Orçamentária'!$A57,CPU!$I:$I,"ss")+SUMIFS(CPU!$H:$H,CPU!$B:$B,'Planilha Orçamentária'!$A57,CPU!$I:$I,"mdo")+SUMIF('Comp SINAPI PE 12-2023 Onerado'!G:G,'Planilha Orçamentária'!C57,'Comp SINAPI PE 12-2023 Onerado'!K:K)+SUMIF('Ins SINAPI PE 12-2023 Onerado'!A:A,'Planilha Orçamentária'!C57,'Ins SINAPI PE 12-2023 Onerado'!E:E) -> 7.27 | H57: =IF(J57="SERV",G57*(1+$H$4),G57*(1+$H$5)) -> 9.006076 | I57: 18012.152 | J57: serv | K57: s
D58: TOTAL Sem BDI: | I58: =SUMPRODUCT(F10:F57,G10:G57) -> 616256.5325
D59: BDI: | I59: =I60-I58 -> 147162.06
D60: TOTAL COM BDI: | I60: =I50+I47+I44+I40+I36+I33+I26+I23+I13+I10+I18+I53 -> 763418.5925

Sheet Planilha Orçamentária Desoner (hidden)
A1: Ministério da Integração e do Desenvolvimento Regional
A2: Companhia de desenvolvimento dos Vales do São Francisco e do Parnaíba
A4: PLANILHA ORÇAMENTÁRIA - ORÇAMENTO DESONERADO
A5: OBRA: | B5: =UPPER("SERVIÇOS DE MANUTENÇÃO E OBRAS CIVIS NA ESTRUTURA DA BARRAGEM E EQUIPAMENTO HIDROMECÂNICO") -> SERVIÇOS DE MANUTENÇÃO E OBRAS CIVIS NA ESTRUTURA DA BARRAGEM E EQUIPAMENTO HIDROMECÂNICO | G5: BDI (serv.): | H5: ='BDI serv Desonerado'!D22 -> 0.3351 | I5: Bancos
A6: LOCAL: | B6: BARRAGEM POÇO DO MAGRO, GUANAMBI/BA | G6: BDI (forn.): | H6: ='BDI forn Desonerado'!D22 -> 0.212 | I6: 05/2023 - SINAPI/BA
A7: DATA BASE: | B7: 2023-05-01 | E7: Encargos sociais Horistas: | H7: ='Encargos Sociais'!C47 -> 0.8435 | I7: 01/2023 - SICRO/BA
A8: PRAZO: | B8: 120 DIAS | E8: Encargos sociais - Mensalista: | H8: ='Encargos Sociais'!D47 -> 0.4641 | I8: 04/2023 - ORSE
A9: ITEM | B9: REFERÊNCIA | D9: DESCRIÇÃO | E9: UNID. | F9: QUANT. | G9: CUSTO UNITÁRIO | H9: PREÇO UNITÁRIO | I9: PREÇO TOTAL | J9: TIPO de BDI | K9: CLASSIF
B10: FONTE | C10: CÓDIGO
A11: 1 | D11: ADMINISTRAÇÃO LOCAL | I11: =SUM(I12:I12) -> 31378.40137 | K11: ss
A12: 1.1 | B12: PRÓPRIA | C12: CPU.01 | D12: ADMINISTRAÇÃO LOCAL | E12: MÊS | F12: ='Planilha Orçamentária'!F11 -> 3 | G12: =SUMIFS('CPU DES'!$H:$H,'CPU DES'!$B:$B,'Planilha Orçamentária Desoner'!$A12,'CPU DES'!$I:$I,"ss")+SUMIFS('CPU DES'!$H:$H,'CPU DES'!$B:$B,'Planilha Orçamentária Desoner'!$A12,'CPU DES'!$I:$I,"mdo")+SUMIF('Comp SINAPI BA 05-2023 Desoner'!G:G,'Planilha Orçamentária Desoner'!C12,'Comp SINAPI BA 05-2023 Desoner'!K:K)+SUMIF('Ins SINAPI BA 05-2023 Desoner'!A:A,'Planilha Orçamentária Desoner'!C12,'Ins SINAPI BA 05-2023 Desoner'!E:E) -> 7834.22 | H12: =IF(J12="SERV",G12*(1+$H$5),G12*(1+$H$6)) -> 10459.46712 | I12: =IF(J12="SERV",G12*F12*(1+$H$5),G12*F12*(1+$H$6)) -> 31378.40137 | J12: serv | K12: s
A14: 2 | D14: SERVIÇOS PRELIMINARES | I14: =SUM(I15,I21) ->  | K14: ss
A15: 2.1 | D15: Canteiro de obras | I15: =SUM(I16:I20) ->  | K15: s
A16: 2.1.1 | B16: SINAPI | C16: 98525 | D16: =PROPER(IF(K16="i",VLOOKUP(C16,'Ins SINAPI BA 05-2023 Desoner'!$A$8:$E$5189,2,0),VLOOKUP(C16,'Comp SINAPI BA 05-2023 Desoner'!$G$7:$K$7500,2,0))) -> Limpeza Mecanizada De Camada Vegetal, Vegetação E Pequenas Árvores (Diâmetro De Tronco Menor Que 0,20 M), Com Trator De Esteiras.Af_05/2018 | E16: =LOWER(IF(K16="i",VLOOKUP(C16,'Ins SINAPI BA 05-2023 Desoner'!$A$8:$E$5189,3,0),VLOOKUP(C16,'Comp SINAPI BA 05-2023 Desoner'!$G$7:$K$7500,3,0))) -> m2 | F16: ='Planilha Orçamentária'!F15 -> 28.5 | G16: =SUMIFS('CPU DES'!$H:$H,'CPU DES'!$B:$B,'Planilha Orçamentária Desoner'!$A16,'CPU DES'!$I:$I,"ss")+SUMIFS('CPU DES'!$H:$H,'CPU DES'!$B:$B,'Planilha Orçamentária Desoner'!$A16,'CPU DES'!$I:$I,"mdo")+SUMIF('Comp SINAPI BA 05-2023 Desoner'!G:G,'Planilha Orçamentária Desoner'!C16,'Comp SINAPI BA 05-2023 Desoner'!K:K)+SUMIF('Ins SINAPI BA 05-2023 Desoner'!A:A,'Planilha Orçamentária Desoner'!C16,'Ins SINAPI BA 05-2023 Desoner'!E:E) -> 0.37 | H16: =IF(J16="SERV",G16*(1+$H$5),G16*(1+$H$6)) -> 0.493987 | I16: =IF(J16="SERV",G16*F16*(1+$H$5),G16*F16*(1+$H$6)) -> 14.0786295 | J16: serv | K16: s
A17: 2.1.2 | B17: SINAPI | C17: 94975 | D17: =PROPER(IF(K17="i",VLOOKUP(C17,'Ins SINAPI BA 05-2023 Desoner'!$A$8:$E$5189,2,0),VLOOKUP(C17,'Comp SINAPI BA 05-2023 Desoner'!$G$7:$K$7500,2,0))) -> Concreto Fck = 15Mpa, Traço 1:3,4:3,5 (Em Massa Seca De Cimento/ Areia Média/ Brita 1) - Preparo Manual. Af_05/2021 | E17: =LOWER(IF(K17="i",VLOOKUP(C17,'Ins SINAPI BA 05-2023 Desoner'!$A$8:$E$5189,3,0),VLOOKUP(C17,'Comp SINAPI BA 05-2023 Desoner'!$G$7:$K$7500,3,0))) -> m3 | F17: ='Planilha Orçamentária'!#REF! ->  | G17: =SUMIFS('CPU DES'!$H:$H,'CPU DES'!$B:$B,'Planilha Orçamentária Desoner'!$A17,'CPU DES'!$I:$I,"ss")+SUMIFS('CPU DES'!$H:$H,'CPU DES'!$B:$B,'Planilha Orçamentária Desoner'!$A17,'CPU DES'!$I:$I,"mdo")+SUMIF('Comp SINAPI BA 05-2023 Desoner'!G:G,'Planilha Orçamentária Desoner'!C17,'Comp SINAPI BA 05-2023 Desoner'!K:K)+SUMIF('Ins SINAPI BA 05-2023 Desoner'!A:A,'Planilha Orçamentária Desoner'!C17,'Ins SINAPI BA 05-2023 Desoner'!E:E) -> 510.11 | H17: =IF(J17="SERV",G17*(1+$H$5),G17*(1+$H$6)) -> 681.047861 | I17: =IF(J17="SERV",G17*F17*(1+$H$5),G17*F17*(1+$H$6)) ->  | J17: serv | K17: s
A18: 2.1.3 | B18: SINAPI | C18: 93210 | D18: =PROPER(IF(K18="i",VLOOKUP(C18,'Ins SINAPI BA 05-2023 Desoner'!$A$8:$E$5189,2,0),VLOOKUP(C18,'Comp SINAPI BA 05-2023 Desoner'!$G$7:$K$7500,2,0))) -> Execução De Refeitório Em Canteiro De Obra Em Chapa De Madeira Compensada, Não Incluso Mobiliário E Equipamentos. Af_02/2016 | E18: =LOWER(IF(K18="i",VLOOKUP(C18,'Ins SINAPI BA 05-2023 Desoner'!$A$8:$E$5189,3,0),VLOOKUP(C18,'Comp SINAPI BA 05-2023 Desoner'!$G$7:$K$7500,3,0))) -> m2 | F18: ='Planilha Orçamentária'!#REF! ->  | G18: =SUMIFS('CPU DES'!$H:$H,'CPU DES'!$B:$B,'Planilha Orçamentária Desoner'!$A18,'CPU DES'!$I:$I,"ss")+SUMIFS('CPU DES'!$H:$H,'CPU DES'!$B:$B,'Planilha Orçamentária Desoner'!$A18,'CPU DES'!$I:$I,"mdo")+SUMIF('Comp SINAPI BA 05-2023 Desoner'!G:G,'Planilha Orçamentária Desoner'!C18,'Comp SINAPI BA 05-2023 Desoner'!K:K)+SUMIF('Ins SINAPI BA 05-2023 Desoner'!A:A,'Planilha Orçamentária Desoner'!C18,'Ins SINAPI BA 05-2023 Desoner'!E:E) -> 602.5 | H18: 804.39775 | J18: serv | K18: s
A19: 2.1.4 | B19: SINAPI | C19: 93212 | D19: =PROPER(IF(K19="i",VLOOKUP(C19,'Ins SINAPI BA 05-2023 Desoner'!$A$8:$E$5189,2,0),VLOOKUP(C19,'Comp SINAPI BA 05-2023 Desoner'!$G$7:$K$7500,2,0))) -> Execução De Sanitário E Vestiário Em Canteiro De Obra Em Chapa De Madeira Compensada, Não Incluso Mobiliário. Af_02/2016 | E19: =LOWER(IF(K19="i",VLOOKUP(C19,'Ins SINAPI BA 05-2023 Desoner'!$A$8:$E$5189,3,0),VLOOKUP(C19,'Comp SINAPI BA 05-2023 Desoner'!$G$7:$K$7500,3,0))) -> m2 | F19: ='Planilha Orçamentária'!#REF! ->  | G19: =SUMIFS('CPU DES'!$H:$H,'CPU DES'!$B:$B,'Planilha Orçamentária Desoner'!$A19,'CPU DES'!$I:$I,"ss")+SUMIFS('CPU DES'!$H:$H,'CPU DES'!$B:$B,'Planilha Orçamentária Desoner'!$A19,'CPU DES'!$I:$I,"mdo")+SUMIF('Comp SINAPI BA 05-2023 Desoner'!G:G,'Planilha Orçamentária Desoner'!C19,'Comp SINAPI BA 05-2023 Desoner'!K:K)+SUMIF('Ins SINAPI BA 05-2023 Desoner'!A:A,'Planilha Orçamentária Desoner'!C19,'Ins SINAPI BA 05-2023 Desoner'!E:E) -> 1003.35 | H19: 1339.572585 | J19: serv | K19: s
A20: 2.1.5 | B20: SINAPI | C20: 93583 | D20: =PROPER(IF(K20="i",VLOOKUP(C20,'Ins SINAPI BA 05-2023 Desoner'!$A$8:$E$5189,2,0),VLOOKUP(C20,'Comp SINAPI BA 05-2023 Desoner'!$G$7:$K$7500,2,0))) -> Execução De Central De Fôrmas, Produção De Argamassa Ou Concreto Em Canteiro De Obra, Não Incluso Mobiliário E Equipamentos. Af_04/2016 | E20: =LOWER(IF(K20="i",VLOOKUP(C20,'Ins SINAPI BA 05-2023 Desoner'!$A$8:$E$5189,3,0),VLOOKUP(C20,'Comp SINAPI BA 05-2023 Desoner'!$G$7:$K$7500,3,0))) -> m2 | F20: ='Planilha Orçamentária'!#REF! ->  | G20: =SUMIFS('CPU DES'!$H:$H,'CPU DES'!$B:$B,'Planilha Orçamentária Desoner'!$A20,'CPU DES'!$I:$I,"ss")+SUMIFS('CPU DES'!$H:$H,'CPU DES'!$B:$B,'Planilha Orçamentária Desoner'!$A20,'CPU DES'!$I:$I,"mdo")+SUMIF('Comp SINAPI BA 05-2023 Desoner'!G:G,'Planilha Orçamentária Desoner'!C20,'Comp SINAPI BA 05-2023 Desoner'!K:K)+SUMIF('Ins SINAPI BA 05-2023 Desoner'!A:A,'Planilha Orçamentária Desoner'!C20,'Ins SINAPI BA 05-2023 Desoner'!E:E) -> 463.26 | H20: 618.498426 | J20: serv | K20: s
A21: 2.2 | D21: Sinalização | I21: =SUM(I22:I22) -> 1086.424274 | K21: s
A22: 2.2.1 | B22: PRÓPRIA | C22: CPU.02 | D22: PLACA DE OBRA EM CHAPA DE ACO GALVANIZADO | E22: m² | F22: ='Planilha Orçamentária'!F16 -> 2 | G22: =SUMIFS('CPU DES'!$H:$H,'CPU DES'!$B:$B,'Planilha Orçamentária Desoner'!$A22,'CPU DES'!$I:$I,"ss")+SUMIFS('CPU DES'!$H:$H,'CPU DES'!$B:$B,'Planilha Orçamentária Desoner'!$A22,'CPU DES'!$I:$I,"mdo")+SUMIF('Comp SINAPI BA 05-2023 Desoner'!G:G,'Planilha Orçamentária Desoner'!C22,'Comp SINAPI BA 05-2023 Desoner'!K:K)+SUMIF('Ins SINAPI BA 05-2023 Desoner'!A:A,'Planilha Orçamentária Desoner'!C22,'Ins SINAPI BA 05-2023 Desoner'!E:E) -> 406.87 | H22: =IF(J22="SERV",G22*(1+$H$5),G22*(1+$H$6)) -> 543.212137 | I22: =IF(J22="SERV",G22*F22*(1+$H$5),G22*F22*(1+$H$6)) -> 1086.424274 | J22: serv | K22: i
A24: 3 | D24: LIMPEZA DA REGIÃO A JUSANTE | I24: =SUM(I25) ->  | K24: ss
A25: 3.1 | D25: Remoção da vegetação a jusante | I25: =SUM(I26:I29) ->  | K25: s
A26: 3.1.1 | B26: SINAPI | C26: 98525 | D26: =PROPER(IF(K26="i",VLOOKUP(C26,'Ins SINAPI BA 05-2023 Desoner'!$A$8:$E$5189,2,0),VLOOKUP(C26,'Comp SINAPI BA 05-2023 Desoner'!$G$7:$K$7500,2,0))) -> Limpeza Mecanizada De Camada Vegetal, Vegetação E Pequenas Árvores (Diâmetro De Tronco Menor Que 0,20 M), Com Trator De Esteiras.Af_05/2018 | E26: =LOWER(IF(K26="i",VLOOKUP(C26,'Ins SINAPI BA 05-2023 Desoner'!$A$8:$E$5189,3,0),VLOOKUP(C26,'Comp SINAPI BA 05-2023 Desoner'!$G$7:$K$7500,3,0))) -> m2 | F26: ='Planilha Orçamentária'!#REF! ->  | G26: =SUMIFS('CPU DES'!$H:$H,'CPU DES'!$B:$B,'Planilha Orçamentária Desoner'!$A26,'CPU DES'!$I:$I,"ss")+SUMIFS('CPU DES'!$H:$H,'CPU DES'!$B:$B,'Planilha Orçamentária Desoner'!$A26,'CPU DES'!$I:$I,"mdo")+SUMIF('Comp SINAPI BA 05-2023 Desoner'!G:G,'Planilha Orçamentária Desoner'!C26,'Comp SINAPI BA 05-2023 Desoner'!K:K)+SUMIF('Ins SINAPI BA 05-2023 Desoner'!A:A,'Planilha Orçamentária Desoner'!C26,'Ins SINAPI BA 05-2023 Desoner'!E:E) -> 0.37 | H26: =IF(J26="SERV",G26*(1+$H$5),G26*(1+$H$6)) -> 0.493987 | I26: =IF(J26="SERV",G26*F26*(1+$H$5),G26*F26*(1+$H$6)) ->  | J26: serv | K26: s
A27: 3.1.2 | B27: EMBASA | C27: 02.04.04 | D27: CORTE DE ARVORE COM DESTOCAMENTO MANUAL,C/DIAMETRO ENTRE 15 E 30cm | E27: UN | F27: ='Planilha Orçamentária'!#REF! ->  | G27: 60.7 | H27: =IF(J27="SERV",G27*(1+$H$5),G27*(1+$H$6)) -> 81.04057 | I27: =IF(J27="SERV",G27*F27*(1+$H$5),G27*F27*(1+$H$6)) ->  | J27: serv | K27: s
A28: 3.1.3 | B28: EMBASA | C28: 15.92.02 | D28: LIMPEZA E DESOBSTRUCAO DE REDES DE ESGOTO / DRENAGEM | E28: H | F28: ='Planilha Orçamentária'!#REF! ->  | G28: 160.18 | H28: =IF(J28="SERV",G28*(1+$H$5),G28*(1+$H$6)) -> 213.856318 | I28: =IF(J28="SERV",G28*F28*(1+$H$5),G28*F28*(1+$H$6)) ->  | J28: serv | K28: s
A29: 3.1.4 | B29: SINAPI | C29: 97912 | D29: =PROPER(IF(K29="i",VLOOKUP(C29,'Ins SINAPI BA 05-2023 Desoner'!$A$8:$E$5189,2,0),VLOOKUP(C29,'Comp SINAPI BA 05-2023 Desoner'!$G$7:$K$7500,2,0))) -> Transporte Com Caminhão Basculante De 6 M³, Em Via Urbana Em Leito Natural (Unidade: M3Xkm). Af_07/2020 | E29: =LOWER(IF(K29="i",VLOOKUP(C29,'Ins SINAPI BA 05-2023 Desoner'!$A$8:$E$5189,3,0),VLOOKUP(C29,'Comp SINAPI BA 05-2023 Desoner'!$G$7:$K$7500,3,0))) -> m3xkm | F29: ='Planilha Orçamentária'!F20 -> 15 | G29: =SUMIFS('CPU DES'!$H:$H,'CPU DES'!$B:$B,'Planilha Orçamentária Desoner'!$A29,'CPU DES'!$I:$I,"ss")+SUMIFS('CPU DES'!$H:$H,'CPU DES'!$B:$B,'Planilha Orçamentária Desoner'!$A29,'CPU DES'!$I:$I,"mdo")+SUMIF('Comp SINAPI BA 05-2023 Desoner'!G:G,'Planilha Orçamentária Desoner'!C29,'Comp SINAPI BA 05-2023 Desoner'!K:K)+SUMIF('Ins SINAPI BA 05-2023 Desoner'!A:A,'Planilha Orçamentária Desoner'!C29,'Ins SINAPI BA 05-2023 Desoner'!E:E) -> 3.41 | H29: =IF(J29="SERV",G29*(1+$H$5),G29*(1+$H$6)) -> 4.552691 | I29: =IF(J29="SERV",G29*F29*(1+$H$5),G29*F29*(1+$H$6)) -> 68.290365 | J29: serv | K29: s
A31: 4 | D31: OPERAÇÃO SUBAQUÁTICA | I31: =SUM(I32,I35) ->  | K31: ss
A32: 4.1 | D32: Inspeção e Laudo da região subaquática | I32: =SUM(I33:I34) -> 
A33: 4.1.1 | B33: PRÓPRIA | C33: CPU.03 | D33: Mobilização da Equipe, Camara Hiperbarica e todos os equipamentos de mergulho envolvidos na operação | E33: un | F33: ='Planilha Orçamentária'!#REF! ->  | G33: =SUMIFS(CPU!$H:$H,CPU!$B:$B,'Planilha Orçamentária'!#REF!,CPU!$I:$I,"ss")+SUMIFS(CPU!$H:$H,CPU!$B:$B,'Planilha Orçamentária'!#REF!,CPU!$I:$I,"mdo")+SUMIF('Comp SINAPI PE 12-2023 Onerado'!G:G,'Planilha Orçamentária'!#REF!,'Comp SINAPI PE 12-2023 Onerado'!K:K)+SUMIF('Ins SINAPI PE 12-2023 Onerado'!A:A,'Planilha Orçamentária'!#REF!,'Ins SINAPI PE 12-2023 Onerado'!E:E) -> 0 | H33: =IF(J33="SERV",G33*(1+$H$5),G33*(1+$H$6)) -> 0 | I33: =IF(J33="SERV",G33*F33*(1+$H$5),G33*F33*(1+$H$6)) ->  | J33: serv | K33: s
A34: 4.1.2 | B34: SICRO | C34: 4816024 | D34: Operação de mergulho dependente em profundidade de até 30 m - inclusive descompressão | E34: h | F34: ='Planilha Orçamentária'!#REF! ->  | G34: 255.2 | H34: =IF(K34="SERV",G34*(1+$H$5),G34*(1+$H$6)) -> 309.3024 | I34: =IF(J34="SERV",G34*F34*(1+$H$5),G34*F34*(1+$H$6)) ->  | J34: serv | K34: s
A35: 4.2 | D35: Vedação/Abertura da tomada d'água | I35: =SUM(I36:I37) -> 
A36: 4.2.1 | B36: PRÓPRIA | C36: CPU.04 | D36: Vedação da entrada da tomada d’água com chapas metálicas | E36: un | F36: ='Planilha Orçamentária'!#REF! ->  | G36: =SUMIFS(CPU!$H:$H,CPU!$B:$B,'Planilha Orçamentária'!#REF!,CPU!$I:$I,"ss")+SUMIFS(CPU!$H:$H,CPU!$B:$B,'Planilha Orçamentária'!#REF!,CPU!$I:$I,"mdo")+SUMIF('Comp SINAPI PE 12-2023 Onerado'!G:G,'Planilha Orçamentária'!#REF!,'Comp SINAPI PE 12-2023 Onerado'!K:K)+SUMIF('Ins SINAPI PE 12-2023 Onerado'!A:A,'Planilha Orçamentária'!#REF!,'Ins SINAPI PE 12-2023 Onerado'!E:E) -> 0 | H36: =IF(J36="SERV",G36*(1+$H$5),G36*(1+$H$6)) -> 0 | J36: serv | K36: s
A37: 4.2.2 | B37: PRÓPRIA | C37: CPU.05 | D37: Remoção da vedação da entrada da tomada d’água com chapas metálicas | E37: un | F37: ='Planilha Orçamentária'!#REF! ->  | G37: =SUMIFS(CPU!$H:$H,CPU!$B:$B,'Planilha Orçamentária'!#REF!,CPU!$I:$I,"ss")+SUMIFS(CPU!$H:$H,CPU!$B:$B,'Planilha Orçamentária'!#REF!,CPU!$I:$I,"mdo")+SUMIF('Comp SINAPI PE 12-2023 Onerado'!G:G,'Planilha Orçamentária'!#REF!,'Comp SINAPI PE 12-2023 Onerado'!K:K)+SUMIF('Ins SINAPI PE 12-2023 Onerado'!A:A,'Planilha Orçamentária'!#REF!,'Ins SINAPI PE 12-2023 Onerado'!E:E) -> 0 | H37: 0 | J37: serv | K37: s
A39: 5 | D39: MANUTENÇÃO NOS DISPOSITIVOS DE CONTROLE | I39: =SUM(I40,I47) -> 
A40: 5.1 | D40: Manutenção das válvulas | I40: =SUM(I41:I46) -> 
A41: 5.1.1 | B41: SINAPI | C41: 98524 | D41: =PROPER(IF(K41="i",VLOOKUP(C41,'Ins SINAPI BA 05-2023 Desoner'!$A$8:$E$5189,2,0),VLOOKUP(C41,'Comp SINAPI BA 05-2023 Desoner'!$G$7:$K$7500,2,0))) -> Limpeza Manual De Vegetação Em Terreno Com Enxada.Af_05/2018 | E41: =LOWER(IF(K41="i",VLOOKUP(C41,'Ins SINAPI BA 05-2023 Desoner'!$A$8:$E$5189,3,0),VLOOKUP(C41,'Comp SINAPI BA 05-2023 Desoner'!$G$7:$K$7500,3,0))) -> m2 | F41: ='Planilha Orçamentária'!#REF! ->  | G41: =SUMIFS('CPU DES'!$H:$H,'CPU DES'!$B:$B,'Planilha Orçamentária Desoner'!$A41,'CPU DES'!$I:$I,"ss")+SUMIFS('CPU DES'!$H:$H,'CPU DES'!$B:$B,'Planilha Orçamentária Desoner'!$A41,'CPU DES'!$I:$I,"mdo")+SUMIF('Comp SINAPI BA 05-2023 Desoner'!G:G,'Planilha Orçamentária Desoner'!C41,'Comp SINAPI BA 05-2023 Desoner'!K:K)+SUMIF('Ins SINAPI BA 05-2023 Desoner'!A:A,'Planilha Orçamentária Desoner'!C41,'Ins SINAPI BA 05-2023 Desoner'!E:E) -> 2.9 | H41: =IF(J41="SERV",G41*(1+$H$5),G41*(1+$H$6)) -> 3.87179 | I41: =IF(J41="SERV",G41*F41*(1+$H$5),G41*F41*(1+$H$6)) ->  | J41: serv | K41: s
A42: 5.1.2 | B42: EMBASA | C42: 12.99.10 | D42: DESMONT. DE PECAS, CONEXOES, VALVULAS, APARELHOS E ACESSORIOS DE FERRO FUNDIDO DUCTIL OU ACO CARBONO, JUNTA TRAVADA, EXTERNA MECANICA OU FLANGEADA C/ DIAMETROS DE 700 A 1200 MM | E42: kg | F42: ='Planilha Orçamentária'!#REF! ->  | G42: 1.21 | H42: =IF(J42="SERV",G42*(1+$H$5),G42*(1+$H$6)) -> 1.615471 | I42: =IF(J42="SERV",G42*F42*(1+$H$5),G42*F42*(1+$H$6)) ->  | J42: serv | K42: s
A43: 5.1.3 | B43: EMBASA | C43: 62.01.53 | D43: MANUTENCAO EM VALVULAS (VRP, NIVEL E ANTI-GOLPE), VENTOSAS E REGISTROS ACIMA DE 16" ATÉ 24" POLEGADAS | E43: un | F43: ='Planilha Orçamentária'!#REF! ->  | G43: 581.86 | H43: =IF(J43="SERV",G43*(1+$H$5),G43*(1+$H$6)) -> 776.841286 | J43: serv | K43: s
A44: 5.1.4 | B44: EMBASA | C44: M012309000/M012309045 | D44: PARAFUSOS C/ PORCA P/ VALVULA BORBOLETA C/ FLANGE PN 10 - AWWA / PBFW10 DN 700 48,900 kg | E44: PC | F44: ='Planilha Orçamentária'!#REF! ->  | G44: 5.36 | H44: 7.156136 | J44: serv | K44: s
A45: 5.1.5 | B45: EMBASA | C45: 15.07.46 | D45: (REVISADA) - PINTURA EPOXI EM SURPEFICIE METALICA, INCL. LIXAMENTO E FUNDO EPOXI ANTICORROSIVO, DUAS DEMAOS | E45: m² | F45: ='Planilha Orçamentária'!#REF! ->  | G45: 75.54 | H45: 100.853454 | J45: serv | K45: s
A46: 5.1.6 | B46: EMBASA | C46: 12.02.07 | D46: MONT. DE PECAS, CONEXOES, VALVULAS, APARELHOS E ACESSORIOS DE FERRO FUNDIDO DUCTIL OU ACO CARBONO, JUNTA TRAVADA, EXTERNA MECANICA OU FLANGEADA C/ DIAMETROSDE 700 A 1200 mm. | E46: kg | F46: ='Planilha Orçamentária'!#REF! ->  | G46: 1.21 | H46: 1.615471 | J46: serv | K46: s
A47: 5.2 | D47: Instalação de dispositivo de drenagem na caixa de válvulas | I47: =SUM(I48:I50) -> 
A48: 5.2.1 | B48: SINAPI | C48: 97627 | D48: =PROPER(IF(K48="i",VLOOKUP(C48,'Ins SINAPI BA 05-2023 Desoner'!$A$8:$E$5189,2,0),VLOOKUP(C48,'Comp SINAPI BA 05-2023 Desoner'!$G$7:$K$7500,2,0))) -> Demolição De Pilares E Vigas Em Concreto Armado, De Forma Mecanizada Com Martelete, Sem Reaproveitamento. Af_12/2017 | E48: =LOWER(IF(K48="i",VLOOKUP(C48,'Ins SINAPI BA 05-2023 Desoner'!$A$8:$E$5189,3,0),VLOOKUP(C48,'Comp SINAPI BA 05-2023 Desoner'!$G$7:$K$7500,3,0))) -> m3 | F48: ='Planilha Orçamentária'!#REF! ->  | G48: =SUMIFS('CPU DES'!$H:$H,'CPU DES'!$B:$B,'Planilha Orçamentária Desoner'!$A48,'CPU DES'!$I:$I,"ss")+SUMIFS('CPU DES'!$H:$H,'CPU DES'!$B:$B,'Planilha Orçamentária Desoner'!$A48,'CPU DES'!$I:$I,"mdo")+SUMIF('Comp SINAPI BA 05-2023 Desoner'!G:G,'Planilha Orçamentária Desoner'!C48,'Comp SINAPI BA 05-2023 Desoner'!K:K)+SUMIF('Ins SINAPI BA 05-2023 Desoner'!A:A,'Planilha Orçamentária Desoner'!C48,'Ins SINAPI BA 05-2023 Desoner'!E:E) -> 311.2 | H48: =IF(J48="SERV",G48*(1+$H$5),G48*(1+$H$6)) -> 415.48312 | I48: =IF(J48="SERV",G48*F48*(1+$H$5),G48*F48*(1+$H$6)) ->  | J48: serv | K48: s
A49: 5.2.2 | B49: SINAPI | C49: 89714 | D49: =PROPER(IF(K49="i",VLOOKUP(C49,'Ins SINAPI BA 05-2023 Desoner'!$A$8:$E$5189,2,0),VLOOKUP(C49,'Comp SINAPI BA 05-2023 Desoner'!$G$7:$K$7500,2,0))) -> Tubo Pvc, Serie Normal, Esgoto Predial, Dn 100 Mm, Fornecido E Instalado Em Ramal De Descarga Ou Ramal De Esgoto Sanitário. Af_08/2022 | E49: =LOWER(IF(K49="i",VLOOKUP(C49,'Ins SINAPI BA 05-2023 Desoner'!$A$8:$E$5189,3,0),VLOOKUP(C49,'Comp SINAPI BA 05-2023 Desoner'!$G$7:$K$7500,3,0))) -> m | F49: ='Planilha Orçamentária'!#REF! ->  | G49: =SUMIFS('CPU DES'!$H:$H,'CPU DES'!$B:$B,'Planilha Orçamentária Desoner'!$A49,'CPU DES'!$I:$I,"ss")+SUMIFS('CPU DES'!$H:$H,'CPU DES'!$B:$B,'Planilha Orçamentária Desoner'!$A49,'CPU DES'!$I:$I,"mdo")+SUMIF('Comp SINAPI BA 05-2023 Desoner'!G:G,'Planilha Orçamentária Desoner'!C49,'Comp SINAPI BA 05-2023 Desoner'!K:K)+SUMIF('Ins SINAPI BA 05-2023 Desoner'!A:A,'Planilha Orçamentária Desoner'!C49,'Ins SINAPI BA 05-2023 Desoner'!E:E) -> 36.26 | H49: =IF(J49="SERV",G49*(1+$H$5),G49*(1+$H$6)) -> 48.410726 | I49: =IF(J49="SERV",G49*F49*(1+$H$5),G49*F49*(1+$H$6)) ->  | J49: serv | K49: s
A50: 5.2.3 | B50: SINAPI | C50: 103682 | D50: =PROPER(IF(K50="i",VLOOKUP(C50,'Ins SINAPI BA 05-2023 Desoner'!$A$8:$E$5189,2,0),VLOOKUP(C50,'Comp SINAPI BA 05-2023 Desoner'!$G$7:$K$7500,2,0))) -> Concretagem De Vigas E Lajes, Fck=25 Mpa, Para Qualquer Tipo De Laje Com Baldes Em Edificação Térrea - Lançamento, Adensamento E Acabamento. Af_02/2022 | E50: =LOWER(IF(K50="i",VLOOKUP(C50,'Ins SINAPI BA 05-2023 Desoner'!$A$8:$E$5189,3,0),VLOOKUP(C50,'Comp SINAPI BA 05-2023 Desoner'!$G$7:$K$7500,3,0))) -> m3 | F50: ='Planilha Orçamentária'!#REF! ->  | G50: =SUMIFS('CPU DES'!$H:$H,'CPU DES'!$B:$B,'Planilha Orçamentária Desoner'!$A50,'CPU DES'!$I:$I,"ss")+SUMIFS('CPU DES'!$H:$H,'CPU DES'!$B:$B,'Planilha Orçamentária Desoner'!$A50,'CPU DES'!$I:$I,"mdo")+SUMIF('Comp SINAPI BA 05-2023 Desoner'!G:G,'Planilha Orçamentária Desoner'!C50,'Comp SINAPI BA 05-2023 Desoner'!K:K)+SUMIF('Ins SINAPI BA 05-2023 Desoner'!A:A,'Planilha Orçamentária Desoner'!C50,'Ins SINAPI BA 05-2023 Desoner'!E:E) -> 962.12 | H50: 1284.526412 | J50: serv | K50: s
A52: 6 | D52: RECUPERAÇÃO | I52: =SUM(I53,I63,I69) ->  | K52: ss
A53: 6.1 | D53: Paramento a jusante | I53: =SUM(I54:I62) -> 
A54: 6.1.1 | B54: SINAPI | C54: 41805 | D54: =PROPER(IF(K54="i",VLOOKUP(C54,'Ins SINAPI BA 05-2023 Desoner'!$A$8:$E$5189,2,0),VLOOKUP(C54,'Comp SINAPI BA 05-2023 Desoner'!$G$7:$K$7500,2,0))) -> Locacao De Andaime Suspenso Ou Balancim Manual, Capacidade De Carga Total De Aproximadamente 250 Kg/M2, Plataforma De 1,50 M X 0,80 M (C X L), Cabo De 45 M | E54: =LOWER(IF(K54="i",VLOOKUP(C54,'Ins SINAPI BA 05-2023 Desoner'!$A$8:$E$5189,3,0),VLOOKUP(C54,'Comp SINAPI BA 05-2023 Desoner'!$G$7:$K$7500,3,0))) -> mes | F54: ='Planilha Orçamentária'!#REF! ->  | G54: =SUMIFS('CPU DES'!$H:$H,'CPU DES'!$B:$B,'Planilha Orçamentária Desoner'!$A54,'CPU DES'!$I:$I,"ss")+SUMIFS('CPU DES'!$H:$H,'CPU DES'!$B:$B,'Planilha Orçamentária Desoner'!$A54,'CPU DES'!$I:$I,"mdo")+SUMIF('Comp SINAPI BA 05-2023 Desoner'!G:G,'Planilha Orçamentária Desoner'!C54,'Comp SINAPI BA 05-2023 Desoner'!K:K)+SUMIF('Ins SINAPI BA 05-2023 Desoner'!A:A,'Planilha Orçamentária Desoner'!C54,'Ins SINAPI BA 05-2023 Desoner'!E:E) -> 425 | H54: =IF(J54="SERV",G54*(1+$H$5),G54*(1+$H$6)) -> 567.4175 | I54: =IF(J54="SERV",G54*F54*(1+$H$5),G54*F54*(1+$H$6)) ->  | J54: serv | K54: i
A55: 6.1.2 | B55: SICRO | C55: 3806402 | D55: Limpeza em superfície de concreto com jateamento d'água sob pressão | E55: m2 | F55: ='Planilha Orçamentária'!#REF! ->  | G55: 2.3 | H55: =IF(J55="SERV",G55*(1+$H$5),G55*(1+$H$6)) -> 3.07073 | I55: =IF(J55="SERV",G55*F55*(1+$H$5),G55*F55*(1+$H$6)) ->  | J55: serv | K55: s
A56: 6.1.3 | B56: SICRO | C56: 3806413 | D56: Apicoamento mecanizado de concreto | E56: m2 | F56: =F55 ->  | G56: 20.4 | H56: =IF(J56="SERV",G56*(1+$H$5),G56*(1+$H$6)) -> 27.23604 | J56: serv | K56: s
A57: 6.1.4 | B57: SICRO | C57: 4915645 | D57: Injeção de adesivo estrutural à base de resina epóxi de baixa viscosidade para tratamento de fissuras em estruturas de concreto - fornecimento e aplicação mecanizada | E57: kg | F57: ='Planilha Orçamentária'!#REF! ->  | G57: 272.61 | H57: 363.961611 | J57: serv | K57: s
A58: 6.1.5 | B58: SINAPI | C58: 92264 | D58: =PROPER(IF(K58="i",VLOOKUP(C58,'Ins SINAPI BA 05-2023 Desoner'!$A$8:$E$5189,2,0),VLOOKUP(C58,'Comp SINAPI BA 05-2023 Desoner'!$G$7:$K$7500,2,0))) -> Fabricação De Fôrma Para Pilares E Estruturas Similares, Em Chapa De Madeira Compensada Plastificada, E = 18 Mm. Af_09/2020 | E58: =LOWER(IF(K58="i",VLOOKUP(C58,'Ins SINAPI BA 05-2023 Desoner'!$A$8:$E$5189,3,0),VLOOKUP(C58,'Comp SINAPI BA 05-2023 Desoner'!$G$7:$K$7500,3,0))) -> m2 | F58: ='Planilha Orçamentária'!#REF! ->  | G58: =SUMIFS('CPU DES'!$H:$H,'CPU DES'!$B:$B,'Planilha Orçamentária Desoner'!$A58,'CPU DES'!$I:$I,"ss")+SUMIFS('CPU DES'!$H:$H,'CPU DES'!$B:$B,'Planilha Orçamentária Desoner'!$A58,'CPU DES'!$I:$I,"mdo")+SUMIF('Comp SINAPI BA 05-2023 Desoner'!G:G,'Planilha Orçamentária Desoner'!C58,'Comp SINAPI BA 05-2023 Desoner'!K:K)+SUMIF('Ins SINAPI BA 05-2023 Desoner'!A:A,'Planilha Orçamentária Desoner'!C58,'Ins SINAPI BA 05-2023 Desoner'!E:E) -> 204.44 | H58: 272.947844 | J58: serv | K58: s
A59: 6.1.6 | B59: PRÓPRIA | C59: CPU.06 | D59: ARGAMASSA TRACO 1:3 (CIMENTO E AREIA), PREPARO MANUAL, INCLUSO ADITIVO IMPERMEABILIZANTE | E59: m3 | F59: ='Planilha Orçamentária'!#REF! ->  | G59: =SUMIFS(CPU!$H:$H,CPU!$B:$B,'Planilha Orçamentária'!#REF!,CPU!$I:$I,"ss")+SUMIFS(CPU!$H:$H,CPU!$B:$B,'Planilha Orçamentária'!#REF!,CPU!$I:$I,"mdo")+SUMIF('Comp SINAPI PE 12-2023 Onerado'!G:G,'Planilha Orçamentária'!#REF!,'Comp SINAPI PE 12-2023 Onerado'!K:K)+SUMIF('Ins SINAPI PE 12-2023 Onerado'!A:A,'Planilha Orçamentária'!#REF!,'Ins SINAPI PE 12-2023 Onerado'!E:E) -> 0 | H59: 0 | J59: serv | K59: s
A60: 6.1.7 | B60: SINAPI | C60: 97912 | D60: =PROPER(IF(K60="i",VLOOKUP(C60,'Ins SINAPI BA 05-2023 Desoner'!$A$8:$E$5189,2,0),VLOOKUP(C60,'Comp SINAPI BA 05-2023 Desoner'!$G$7:$K$7500,2,0))) -> Transporte Com Caminhão Basculante De 6 M³, Em Via Urbana Em Leito Natural (Unidade: M3Xkm). Af_07/2020 | E60: =LOWER(IF(K60="i",VLOOKUP(C60,'Ins SINAPI BA 05-2023 Desoner'!$A$8:$E$5189,3,0),VLOOKUP(C60,'Comp SINAPI BA 05-2023 Desoner'!$G$7:$K$7500,3,0))) -> m3xkm | F60: ='Planilha Orçamentária'!#REF! ->  | G60: =SUMIFS('CPU DES'!$H:$H,'CPU DES'!$B:$B,'Planilha Orçamentária Desoner'!$A60,'CPU DES'!$I:$I,"ss")+SUMIFS('CPU DES'!$H:$H,'CPU DES'!$B:$B,'Planilha Orçamentária Desoner'!$A60,'CPU DES'!$I:$I,"mdo")+SUMIF('Comp SINAPI BA 05-2023 Desoner'!G:G,'Planilha Orçamentária Desoner'!C60,'Comp SINAPI BA 05-2023 Desoner'!K:K)+SUMIF('Ins SINAPI BA 05-2023 Desoner'!A:A,'Planilha Orçamentária Desoner'!C60,'Ins SINAPI BA 05-2023 Desoner'!E:E) -> 3.41 | H60: =IF(J60="SERV",G60*(1+$H$5),G60*(1+$H$6)) -> 4.552691 | I60: =IF(J60="SERV",G60*F60*(1+$H$5),G60*F60*(1+$H$6)) ->  | J60: serv | K60: s
A61: 6.1.8 | B61: PRÓPRIA | C61: CPU.07 | D61: CURA QUÍMICA | E61: m2 | F61: ='Planilha Orçamentária'!#REF! ->  | G61: =SUMIFS(CPU!$H:$H,CPU!$B:$B,'Planilha Orçamentária'!#REF!,CPU!$I:$I,"ss")+SUMIFS(CPU!$H:$H,CPU!$B:$B,'Planilha Orçamentária'!#REF!,CPU!$I:$I,"mdo")+SUMIF('Comp SINAPI PE 12-2023 Onerado'!G:G,'Planilha Orçamentária'!#REF!,'Comp SINAPI PE 12-2023 Onerado'!K:K)+SUMIF('Ins SINAPI PE 12-2023 Onerado'!A:A,'Planilha Orçamentária'!#REF!,'Ins SINAPI PE 12-2023 Onerado'!E:E) -> 0 | H61: 0 | J61: serv | K61: s
A62: 6.1.9 | B62: SICRO | C62: 3808043 | D62: Pintura manual com nata de cimento - 3 demãos | E62: m2 | F62: ='Planilha Orçamentária'!#REF! ->  | G62: 3.79 | H62: 5.060029 | J62: serv | K62: s
A63: 6.2 | D63: Crista | I63: =SUM(I64:I68) -> 
A64: 6.2.1 | B64: SICRO | C64: 3806402 | D64: Limpeza em superfície de concreto com jateamento d'água sob pressão | E64: m2 | F64: ='Planilha Orçamentária'!#REF! ->  | G64: 2.3 | H64: =IF(J64="SERV",G64*(1+$H$5),G64*(1+$H$6)) -> 3.07073 | I64: =IF(J64="SERV",G64*F64*(1+$H$5),G64*F64*(1+$H$6)) ->  | J64: serv | K64: s
A65: 6.2.2 | B65: SICRO | C65: 4915645 | D65: Injeção de adesivo estrutural à base de resina epóxi de baixa viscosidade para tratamento de fissuras em estruturas de concreto - fornecimento e aplicação mecanizada | E65: kg | F65: ='Planilha Orçamentária'!#REF! ->  | G65: 272.61 | H65: =IF(J65="SERV",G65*(1+$H$5),G65*(1+$H$6)) -> 363.961611 | I65: =IF(J65="SERV",G65*F65*(1+$H$5),G65*F65*(1+$H$6)) ->  | J65: serv | K65: s
A66: 6.2.3 | B66: PRÓPRIA | C66: CPU.06 | D66: ARGAMASSA TRACO 1:3 (CIMENTO E AREIA), PREPARO MANUAL, INCLUSO ADITIVO IMPERMEABILIZANTE | E66: m3 | F66: ='Planilha Orçamentária'!#REF! ->  | G66: =G59 -> 0 | H66: =IF(J66="SERV",G66*(1+$H$5),G66*(1+$H$6)) -> 0 | J66: serv | K66: s
A67: 6.2.4 | B67: SINAPI | C67: 97912 | D67: =PROPER(IF(K67="i",VLOOKUP(C67,'Ins SINAPI BA 05-2023 Desoner'!$A$8:$E$5189,2,0),VLOOKUP(C67,'Comp SINAPI BA 05-2023 Desoner'!$G$7:$K$7500,2,0))) -> Transporte Com Caminhão Basculante De 6 M³, Em Via Urbana Em Leito Natural (Unidade: M3Xkm). Af_07/2020 | E67: =LOWER(IF(K67="i",VLOOKUP(C67,'Ins SINAPI PE 12-2023 Onerado'!$A$8:$E$5189,3,0),VLOOKUP(C67,'Comp SINAPI PE 12-2023 Onerado'!$G$7:$K$7500,3,0))) -> m3xkm | F67: ='Planilha Orçamentária'!#REF! ->  | G67: =SUMIFS('CPU DES'!$H:$H,'CPU DES'!$B:$B,'Planilha Orçamentária Desoner'!$A67,'CPU DES'!$I:$I,"ss")+SUMIFS('CPU DES'!$H:$H,'CPU DES'!$B:$B,'Planilha Orçamentária Desoner'!$A67,'CPU DES'!$I:$I,"mdo")+SUMIF('Comp SINAPI BA 05-2023 Desoner'!G:G,'Planilha Orçamentária Desoner'!C67,'Comp SINAPI BA 05-2023 Desoner'!K:K)+SUMIF('Ins SINAPI BA 05-2023 Desoner'!A:A,'Planilha Orçamentária Desoner'!C67,'Ins SINAPI BA 05-2023 Desoner'!E:E) -> 3.41 | H67: =IF(J67="SERV",G67*(1+$H$5),G67*(1+$H$6)) -> 4.552691 | I67: =IF(J67="SERV",G67*F67*(1+$H$5),G67*F67*(1+$H$6)) ->  | J67: serv | K67: s
A68: 6.2.5 | B68: PRÓPRIA | C68: CPU.07 | D68: CURA QUÍMICA | E68: m2 | F68: ='Planilha Orçamentária'!#REF! ->  | G68: =G61 -> 0 | H68: =IF(J68="SERV",G68*(1+$H$5),G68*(1+$H$6)) -> 0 | J68: serv | K68: s
A69: 6.3 | D69: Vertedouro | I69: =SUM(I70:I72) -> 
A70: 6.3.1 | B70: SICRO | C70: 3806402 | D70: Limpeza em superfície de concreto com jateamento d'água sob pressão | E70: m2 | F70: ='Planilha Orçamentária'!#REF! ->  | G70: 2.3 | H70: =IF(J70="SERV",G70*(1+$H$5),G70*(1+$H$6)) -> 3.07073 | I70: =IF(J70="SERV",G70*F70*(1+$H$5),G70*F70*(1+$H$6)) ->  | J70: serv | K70: s
A71: 6.3.2 | B71: SICRO | C71: 4915645 | D71: Injeção de adesivo estrutural à base de resina epóxi de baixa viscosidade para tratamento de fissuras em estruturas de concreto - fornecimento e aplicação mecanizada | E71: kg | F71: ='Planilha Orçamentária'!#REF! ->  | G71: 272.61 | H71: =IF(J71="SERV",G71*(1+$H$5),G71*(1+$H$6)) -> 363.961611 | I71: =IF(J71="SERV",G71*F71*(1+$H$5),G71*F71*(1+$H$6)) ->  | J71: serv | K71: s
A72: 6.3.3 | B72: SICRO | C72: 4915694 | D72: Limpeza, serragem e enchimento de fissuras niveladas com abertura entre 0,4 mm e 1,0 mm e profundidade de 25 mm em estruturas de concreto com selante elástico a frio (BASEADO SICRO 4915694) | E72: m | F72: ='Planilha Orçamentária'!#REF! ->  | G72: 27 | H72: 36.0477 | J72: serv | K72: s
A74: 7 | D74: DIQUE | I74: =SUM(I75,I82) -> 
A75: 7.1 | D75: Investigação do maciço | I75: =SUM(I76:I81) -> 
A76: 7.1.1 | B76: EMBASA | C76: 32.02.01 | D76: SONDAGEM A PERCUSSÃO | E76: m | F76: ='Planilha Orçamentária'!#REF! ->  | G76: 101.49 | H76: =IF(J76="SERV",G76*(1+$H$5),G76*(1+$H$6)) -> 135.499299 | I76: =IF(J76="SERV",G76*F76*(1+$H$5),G76*F76*(1+$H$6)) ->  | J76: serv | K76: s
A77: 7.1.2 | B77: EMBASA | C77: 34.01.43 | D77: ENSAIO DE PERMEABILIDADE COM CARGA CONSTANTE | E77: un | F77: ='Planilha Orçamentária'!#REF! ->  | G77: 501.25 | H77: =IF(J77="SERV",G77*(1+$H$5),G77*(1+$H$6)) -> 669.218875 | I77: =IF(J77="SERV",G77*F77*(1+$H$5),G77*F77*(1+$H$6)) ->  | J77: serv | K77: s
A78: 7.1.3 | B78: EMBASA | C78: 34.02.04 | D78: "ANALISE GRANULOMETRICA POR PENEIRAMENTO E SEDIMENTACAO EM "TOP SOIL" | E78: un | F78: ='Planilha Orçamentária'!#REF! ->  | G78: 223.64 | H78: 298.581764 | J78: serv | K78: s
A79: 7.1.4 | B79: EMBASA | C79: 34.01.16 | D79: MASSA ESPECIFICA REAL DOS GRAOS | E79: un | F79: ='Planilha Orçamentária'!#REF! ->  | G79: 65.78 | H79: 87.822878 | J79: serv | K79: s
A80: 7.1.5 | B80: EMBASA | C80: 34.01.07 | D80: DETERMINACAO DE LIMITE DE LIQUIDEZ (NBR - 06459) | E80: un | F80: ='Planilha Orçamentária'!#REF! ->  | G80: 86.09 | H80: 114.938759 | J80: serv | K80: s
A81: 7.1.6 | B81: EMBASA | C81: 34.01.10 | D81: DETERMINACAO DE LIMITE DE PLASTICIDADE (NBR - 07180) | E81: un | F81: ='Planilha Orçamentária'!#REF! ->  | G81: 77.48 | H81: 103.443548 | J81: serv | K81: s
A82: 7.2 | D82: Recuperação do maciço | I82: =SUM(I83:I85) -> 
A83: 7.2.1 | B83: SINAPI | C83: 93358 | D83: =PROPER(IF(K83="i",VLOOKUP(C83,'Ins SINAPI BA 05-2023 Desoner'!$A$8:$E$5189,2,0),VLOOKUP(C83,'Comp SINAPI BA 05-2023 Desoner'!$G$7:$K$7500,2,0))) -> Escavação Manual De Vala Com Profundidade Menor Ou Igual A 1,30 M. Af_02/2021 | E83: =LOWER(IF(K83="i",VLOOKUP(C83,'Ins SINAPI BA 05-2023 Desoner'!$A$8:$E$5189,3,0),VLOOKUP(C83,'Comp SINAPI BA 05-2023 Desoner'!$G$7:$K$7500,3,0))) -> m3 | F83: ='Planilha Orçamentária'!#REF! ->  | G83: =SUMIFS('CPU DES'!$H:$H,'CPU DES'!$B:$B,'Planilha Orçamentária Desoner'!$A83,'CPU DES'!$I:$I,"ss")+SUMIFS('CPU DES'!$H:$H,'CPU DES'!$B:$B,'Planilha Orçamentária Desoner'!$A83,'CPU DES'!$I:$I,"mdo")+SUMIF('Comp SINAPI BA 05-2023 Desoner'!G:G,'Planilha Orçamentária Desoner'!C83,'Comp SINAPI BA 05-2023 Desoner'!K:K)+SUMIF('Ins SINAPI BA 05-2023 Desoner'!A:A,'Planilha Orçamentária Desoner'!C83,'Ins SINAPI BA 05-2023 Desoner'!E:E) -> 77.73 | H83: =IF(J83="SERV",G83*(1+$H$5),G83*(1+$H$6)) -> 103.777323 | I83: =IF(J83="SERV",G83*F83*(1+$H$5),G83*F83*(1+$H$6)) ->  | J83: serv | K83: s
A84: 7.2.2 | B84: SINAPI | C84: 99814 | D84: =PROPER(IF(K84="i",VLOOKUP(C84,'Ins SINAPI BA 05-2023 Desoner'!$A$8:$E$5189,2,0),VLOOKUP(C84,'Comp SINAPI BA 05-2023 Desoner'!$G$7:$K$7500,2,0))) -> Limpeza De Superfície Com Jato De Alta Pressão. Af_04/2019 | E84: =LOWER(IF(K84="i",VLOOKUP(C84,'Ins SINAPI BA 05-2023 Desoner'!$A$8:$E$5189,3,0),VLOOKUP(C84,'Comp SINAPI BA 05-2023 Desoner'!$G$7:$K$7500,3,0))) -> m2 | F84: ='Planilha Orçamentária'!#REF! ->  | G84: =SUMIFS('CPU DES'!$H:$H,'CPU DES'!$B:$B,'Planilha Orçamentária Desoner'!$A84,'CPU DES'!$I:$I,"ss")+SUMIFS('CPU DES'!$H:$H,'CPU DES'!$B:$B,'Planilha Orçamentária Desoner'!$A84,'CPU DES'!$I:$I,"mdo")+SUMIF('Comp SINAPI BA 05-2023 Desoner'!G:G,'Planilha Orçamentária Desoner'!C84,'Comp SINAPI BA 05-2023 Desoner'!K:K)+SUMIF('Ins SINAPI BA 05-2023 Desoner'!A:A,'Planilha Orçamentária Desoner'!C84,'Ins SINAPI BA 05-2023 Desoner'!E:E) -> 1.77 | H84: 2.363127 | J84: serv | K84: s
A85: 7.2.3 | B85: SICRO | C85: 3816196 | D85: Injeção de nata de cimento | E85: m3 | F85: ='Planilha Orçamentária'!#REF! ->  | G85: 1205.45 | H85: 1609.396295 | J85: serv | K85: s
A87: 8 | D87: SERVIÇOS AUXILIARES | I87: =SUM(I88) -> 
A88: 8.1 | D88: Análise da qualidade da água | I88: =SUM(I89:I91) -> 
A89: 8.1.1 | B89: SEDOP | C89: PT0009 | D89: Analise fisico-quimica da agua | E89: un | F89: ='Planilha Orçamentária'!#REF! ->  | G89: 236.71 | H89: =IF(J89="SERV",G89*(1+$H$5),G89*(1+$H$6)) -> 316.031521 | I89: =IF(J89="SERV",G89*F89*(1+$H$5),G89*F89*(1+$H$6)) ->  | J89: serv | K89: s
A90: 8.1.2 | B90: SEDOP | C90: PT0010 | D90: Analise bacteriologica | E90: un | F90: ='Planilha Orçamentária'!#REF! ->  | G90: 210.75 | H90: 281.372325 | J90: serv | K90: s
A91: 8.1.3 | B91: SEDOP | C91: PT0019 | D91: Relatório de analises e testes | E91: un | F91: ='Planilha Orçamentária'!#REF! ->  | G91: 1511.88 | H91: 2018.510988 | J91: serv | K91: s
D93: TOTAL Sem BDI: | I93: =SUMPRODUCT(F11:F92,G11:G92) -> 
D94: BDI: | I94: =I93*H5 -> 
D95: TOTAL COM BDI: | I95: =SUM(I93:I94) -> 

Sheet CPU DES (hidden)
B1: Ministério da Integração e do Desenvolvimento Regional
B2: Companhia de Desenvolvimento dos Vales do São Francisco e do Parnaíba
B4: COMPOSIÇÕES DE PREÇOS UNITÁRIOS - ORÇAMENTO DESONERADO
B5: OBRA: | C5: SERVIÇOS DE MANUTENÇÃO E OBRAS CIVIS NA ESTRUTURA DA BARRAGEM E EQUIPAMENTO HIDROMECÂNICO | F5: BDI (serv.): | G5: ='BDI serv Desonerado'!D22 -> 0.3351
B6: LOCAL: | C6: BARRAGEM POÇO DO MAGRO, GUANAMBI/BA | F6: BDI (forn.): | G6: ='BDI forn Desonerado'!D22 -> 0.212
B7: DATA BASE: | C7: 2023-05-01
B8: PRAZO: | C8: 120 DIAS
B10: REFERÊNCIA | C10: CÓDIGO | D10: DESCRIÇÃO | E10: UNIDADE | F10: ÍNDICE | G10: CUSTO UNITÁRIO | H10: PREÇO TOTAL
B11: ='Planilha Orçamentária Desoner'!A12 -> 1.1 | C11: =VLOOKUP($B11,'Planilha Orçamentária Desoner'!$A$11:$I$504,3,) -> CPU.01 | D11: =VLOOKUP($B11,'Planilha Orçamentária Desoner'!$A$11:$I$504,4,) -> ADMINISTRAÇÃO LOCAL | E11: un | H11: =SUM(H15,H14,H13,H12) -> 7834.22 | I11: S
B12: =B11 -> 1.1 | D12: MATERIAL | I12: ss
B13: =B11 -> 1.1 | D13: EQUIPAMENTOS | H13: 0 | I13: ss
B14: =B11 -> 1.1 | D14: SERVIÇOS | I14: ss
B15: =B11 -> 1.1 | D15: MÃO DE OBRA | H15: =SUM(H16:H17) -> 7834.22 | I15: mdo
B16: SINAPI | C16: 90778 | D16: =PROPER(IF(I16="i",VLOOKUP(C16,'Ins SINAPI BA 05-2023 Desoner'!$A$8:$E$5189,2,0),VLOOKUP(C16,'Comp SINAPI BA 05-2023 Desoner'!$G$7:$K$7500,2,0))) -> Engenheiro Civil De Obra Pleno Com Encargos Complementares | E16: =LOWER(IF(I16="i",VLOOKUP(C16,'Ins SINAPI BA 05-2023 Desoner'!$A$8:$E$5189,3,0),VLOOKUP(C16,'Comp SINAPI BA 05-2023 Desoner'!$G$7:$K$7500,3,0))) -> h | F16: =CPU!F15 -> 30 | G16: =IF(I16="i",VLOOKUP(C16,'Ins SINAPI BA 05-2023 Desoner'!$A$8:$E$5189,5,0),VLOOKUP(C16,'Comp SINAPI BA 05-2023 Desoner'!$G$7:$K$7500,5,0)) -> 111.26 | H16: =ROUND(F16*G16,2) -> 3337.8 | I16: ca
B17: SINAPI | C17: 93572 | D17: =PROPER(IF(I17="i",VLOOKUP(C17,'Ins SINAPI BA 05-2023 Desoner'!$A$8:$E$5189,2,0),VLOOKUP(C17,'Comp SINAPI BA 05-2023 Desoner'!$G$7:$K$7500,2,0))) -> Encarregado Geral De Obras Com Encargos Complementares | E17: =LOWER(IF(I17="i",VLOOKUP(C17,'Ins SINAPI BA 05-2023 Desoner'!$A$8:$E$5189,3,0),VLOOKUP(C17,'Comp SINAPI BA 05-2023 Desoner'!$G$7:$K$7500,3,0))) -> mes | F17: =CPU!F16 -> 0.8 | G17: =IF(I17="i",VLOOKUP(C17,'Ins SINAPI BA 05-2023 Desoner'!$A$8:$E$5189,5,0),VLOOKUP(C17,'Comp SINAPI BA 05-2023 Desoner'!$G$7:$K$7500,5,0)) -> 5620.52 | H17: =ROUND(F17*G17,2) -> 4496.42 | I17: ca
I18: x
B19: ='Planilha Orçamentária Desoner'!A22 -> 2.2.1 | C19: =VLOOKUP($B19,'Planilha Orçamentária Desoner'!$A$11:$I$504,3,) -> CPU.02 | D19: =VLOOKUP($B19,'Planilha Orçamentária Desoner'!$A$11:$I$504,4,) -> PLACA DE OBRA EM CHAPA DE ACO GALVANIZADO | E19: m² | H19: =SUM(H20,H28,H26,H27) -> 406.87 | I19: S
B20: =B19 -> 2.2.1 | D20: MATERIAL | H20: =SUM(H21:H25) -> 373.64 | I20: SS
B21: SINAPI | C21: 4417 | D21: =PROPER(IF(I21="i",VLOOKUP(C21,'Ins SINAPI BA 05-2023 Desoner'!$A$8:$E$5189,2,0),VLOOKUP(C21,'Comp SINAPI BA 05-2023 Desoner'!$G$7:$K$7500,2,0))) -> Sarrafo Nao Aparelhado *2,5 X 7* Cm, Em Macaranduba, Angelim Ou Equivalente Da Regiao - Bruta | E21: =LOWER(IF(I21="i",VLOOKUP(C21,'Ins SINAPI BA 05-2023 Desoner'!$A$8:$E$5189,3,0),VLOOKUP(C21,'Comp SINAPI BA 05-2023 Desoner'!$G$7:$K$7500,3,0))) -> m | F21: =CPU!F46 -> 2 | G21: =IF(I21="i",VLOOKUP(C21,'Ins SINAPI BA 05-2023 Desoner'!$A$8:$E$5189,5,0),VLOOKUP(C21,'Comp SINAPI BA 05-2023 Desoner'!$G$7:$K$7500,5,0)) -> 7.18 | H21: =ROUND(F21*G21,2) -> 14.36 | I21: i
B22: SINAPI | C22: 4430 | D22: =PROPER(IF(I22="i",VLOOKUP(C22,'Ins SINAPI BA 05-2023 Desoner'!$A$8:$E$5189,2,0),VLOOKUP(C22,'Comp SINAPI BA 05-2023 Desoner'!$G$7:$K$7500,2,0))) -> Caibro Nao Aparelhado *5 X 6* Cm, Em Macaranduba, Angelim Ou Equivalente Da Regiao - Bruta | E22: =LOWER(IF(I22="i",VLOOKUP(C22,'Ins SINAPI BA 05-2023 Desoner'!$A$8:$E$5189,3,0),VLOOKUP(C22,'Comp SINAPI BA 05-2023 Desoner'!$G$7:$K$7500,3,0))) -> m | F22: =CPU!F47 -> 4 | G22: =IF(I22="i",VLOOKUP(C22,'Ins SINAPI BA 05-2023 Desoner'!$A$8:$E$5189,5,0),VLOOKUP(C22,'Comp SINAPI BA 05-2023 Desoner'!$G$7:$K$7500,5,0)) -> 13.2 | H22: =ROUND(F22*G22,2) -> 52.8 | I22: I
B23: SINAPI | C23: 4813 | D23: =PROPER(IF(I23="i",VLOOKUP(C23,'Ins SINAPI BA 05-2023 Desoner'!$A$8:$E$5189,2,0),VLOOKUP(C23,'Comp SINAPI BA 05-2023 Desoner'!$G$7:$K$7500,2,0))) -> Placa De Obra (Para Construcao Civil) Em Chapa Galvanizada *N. 22*, Adesivada, De *2,4 X 1,2* M (Sem Postes Para Fixacao) | E23: =LOWER(IF(I23="i",VLOOKUP(C23,'Ins SINAPI BA 05-2023 Desoner'!$A$8:$E$5189,3,0),VLOOKUP(C23,'Comp SINAPI BA 05-2023 Desoner'!$G$7:$K$7500,3,0))) -> m2 | F23: =CPU!F48 -> 1 | G23: =IF(I23="i",VLOOKUP(C23,'Ins SINAPI BA 05-2023 Desoner'!$A$8:$E$5189,5,0),VLOOKUP(C23,'Comp SINAPI BA 05-2023 Desoner'!$G$7:$K$7500,5,0)) -> 300 | H23: =ROUND(F23*G23,2) -> 300 | I23: I
B24: SINAPI | C24: 5075 | D24: =PROPER(IF(I24="i",VLOOKUP(C24,'Ins SINAPI BA 05-2023 Desoner'!$A$8:$E$5189,2,0),VLOOKUP(C24,'Comp SINAPI BA 05-2023 Desoner'!$G$7:$K$7500,2,0))) -> Prego De Aco Polido Com Cabeca 18 X 30 (2 3/4 X 10) | E24: =LOWER(IF(I24="i",VLOOKUP(C24,'Ins SINAPI BA 05-2023 Desoner'!$A$8:$E$5189,3,0),VLOOKUP(C24,'Comp SINAPI BA 05-2023 Desoner'!$G$7:$K$7500,3,0))) -> kg | F24: =CPU!F49 -> 0.11 | G24: =IF(I24="i",VLOOKUP(C24,'Ins SINAPI BA 05-2023 Desoner'!$A$8:$E$5189,5,0),VLOOKUP(C24,'Comp SINAPI BA 05-2023 Desoner'!$G$7:$K$7500,5,0)) -> 20.6 | H24: =ROUND(F24*G24,2) -> 2.27 | I24: I
B25: SINAPI | C25: 94962 | D25: =PROPER(IF(I25="i",VLOOKUP(C25,'Ins SINAPI BA 05-2023 Desoner'!$A$8:$E$5189,2,0),VLOOKUP(C25,'Comp SINAPI BA 05-2023 Desoner'!$G$7:$K$7500,2,0))) -> Concreto Magro Para Lastro, Traço 1:4,5:4,5 (Em Massa Seca De Cimento/ Areia Média/ Brita 1) - Preparo Mecânico Com Betoneira 400 L. Af_05/2021 | E25: =LOWER(IF(I25="i",VLOOKUP(C25,'Ins SINAPI BA 05-2023 Desoner'!$A$8:$E$5189,3,0),VLOOKUP(C25,'Comp SINAPI BA 05-2023 Desoner'!$G$7:$K$7500,3,0))) -> m3 | F25: =CPU!F50 -> 0.01 | G25: =IF(I25="i",VLOOKUP(C25,'Ins SINAPI BA 05-2023 Desoner'!$A$8:$E$5189,5,0),VLOOKUP(C25,'Comp SINAPI BA 05-2023 Desoner'!$G$7:$K$7500,5,0)) -> 421.32 | H25: =ROUND(F25*G25,2) -> 4.21 | I25: ca
B26: =B19 -> 2.2.1 | D26: EQUIPAMENTOS | H26: 0 | I26: SS
B27: =B19 -> 2.2.1 | D27: SERVIÇOS | H27: 0 | I27: SS
B28: =B19 -> 2.2.1 | D28: MÃO DE OBRA | H28: =SUM(H29:H30) -> 33.23 | I28: ss
B29: SINAPI | C29: 88262 | D29: =PROPER(IF(I29="i",VLOOKUP(C29,'Ins SINAPI BA 05-2023 Desoner'!$A$8:$E$5189,2,0),VLOOKUP(C29,'Comp SINAPI BA 05-2023 Desoner'!$G$7:$K$7500,2,0))) -> Carpinteiro De Formas Com Encargos Complementares | E29: =LOWER(IF(I29="i",VLOOKUP(C29,'Ins SINAPI BA 05-2023 Desoner'!$A$8:$E$5189,3,0),VLOOKUP(C29,'Comp SINAPI BA 05-2023 Desoner'!$G$7:$K$7500,3,0))) -> h | F29: =CPU!F59 -> 0.5 | G29: =IF(I29="i",VLOOKUP(C29,'Ins SINAPI BA 05-2023 Desoner'!$A$8:$E$5189,5,0),VLOOKUP(C29,'Comp SINAPI BA 05-2023 Desoner'!$G$7:$K$7500,5,0)) -> 27.16 | H29: =ROUND(F29*G29,2) -> 13.58 | I29: ca
B30: SINAPI | C30: 88316 | D30: =PROPER(IF(I30="i",VLOOKUP(C30,'Ins SINAPI BA 05-2023 Desoner'!$A$8:$E$5189,2,0),VLOOKUP(C30,'Comp SINAPI BA 05-2023 Desoner'!$G$7:$K$7500,2,0))) -> Servente Com Encargos Complementares | E30: =LOWER(IF(I30="i",VLOOKUP(C30,'Ins SINAPI BA 05-2023 Desoner'!$A$8:$E$5189,3,0),VLOOKUP(C30,'Comp SINAPI BA 05-2023 Desoner'!$G$7:$K$7500,3,0))) -> h | F30: =CPU!F60 -> 1 | G30: =IF(I30="i",VLOOKUP(C30,'Ins SINAPI BA 05-2023 Desoner'!$A$8:$E$5189,5,0),VLOOKUP(C30,'Comp SINAPI BA 05-2023 Desoner'!$G$7:$K$7500,5,0)) -> 19.65 | H30: =ROUND(F30*G30,2) -> 19.65 | I30: ca
B32: ='Planilha Orçamentária Desoner'!A33 -> 4.1.1 | C32: =VLOOKUP($B32,'Planilha Orçamentária Desoner'!$A$11:$I$504,3,) -> CPU.03 | D32: =VLOOKUP($B32,'Planilha Orçamentária Desoner'!$A$11:$I$504,4,) -> Mobilização da Equipe, Camara Hiperbarica e todos os equipamentos de mergulho envolvidos na operação | E32: un | F32: 1 | H32: =SUM(H33,H35,H37) ->  | I32: S
B33: =B32 -> 4.1.1 | D33: MATERIAL | H33: 0 | I33: ss
B34: =B32 -> 4.1.1 | D34: EQUIPAMENTOS | H34: 0 | I34: ss
B35: =B32 -> 4.1.1 | D35: SERVIÇOS | H35: =H36 ->  | I35: ss
B36: COTAÇÃO | C36: 2023-05-01 | D36: Mobilização e desmobilização da Equipe, Camara Hiperbarica e todos os equipamentos de mergulho envolvidos na operação | E36: un | F36: =CPU!#REF! ->  | G36: =2*(21000+22000+19400)/3 -> 41600 | H36: =ROUND(F36*G36,2) ->  | I36: ca
B37: =B32 -> 4.1.1 | D37: MÃO DE OBRA | H37: 0 | I37: ss
I38: x
B39: ='Planilha Orçamentária Desoner'!A36 -> 4.2.1 | C39: =VLOOKUP($B39,'Planilha Orçamentária Desoner'!$A$11:$I$504,3,) -> CPU.04 | D39: =VLOOKUP($B39,'Planilha Orçamentária Desoner'!$A$11:$I$504,4,) -> Vedação da entrada da tomada d’água com chapas metálicas | E39: un | F39: 1 | H39: =SUM(H40,H51,H53,H56) ->  | I39: S
B40: =B39 -> 4.2.1 | D40: MATERIAL | H40: =SUM(H41:H50) ->  | I40: ss
B41: CODEVASF | C41: DP | D41: DIÁRIA | E41: dia | F41: =CPU!F172 -> 1.2 | G41: 305.1 | H41: =ROUND(F41*G41,2) -> 366.12
B42: SICRO | C42: E9043 | D42: Embarcação de alumínio com comprimento de 6 m e motor de popa - 18,60 kW | E42: h | F42: =CPU!#REF! ->  | G42: 66.1577 | H42: =ROUND(F42*G42,2) -> 
B43: SICRO | C43: 2408149 | D43: Estrutura em chapa de aço ASTM A36 corte, solda e montagem - fornecimento e instalação | E43: kg | F43: =CPU!#REF! ->  | G43: 14.84 | H43: =ROUND(F43*G43,2) -> 
B44: SICRO | C44: E9243 | D44: Câmara hiperbárica com filtro, serpentina e reservatório de ar para mergulho raso - D= 1,80 m e H = 2,22 m. | E44: h | F44: =CPU!#REF! ->  | G44: 58.3517 | H44: =ROUND(F44*G44,2) -> 
B45: SICRO | C45: E9245 | D45: Estação transmissora de superfície para comunicação com fio | E45: h | F45: =CPU!#REF! ->  | G45: 0.7428
B46: SICRO | C46: E9242 | D46: Estação transmissora de superfície para televisionamento | E46: h | F46: =CPU!#REF! ->  | G46: 1.3333
B47: SICRO | C47: E9066 | D47: Grupo gerador - 14 kVA | E47: h | F47: =CPU!#REF! ->  | G47: 19.3801
B48: SICRO | C48: E9246 | D48: Painel de controle de ar com manômetros e pneufatômetros | E48: h | F48: =CPU!#REF! ->  | G48: 1.4255
B49: SICRO | C49: E9248 | D49: Sistema de ar comprimido para mergulho até 30 m com pressão de trabalho de 1,4 MPa - 7,46 kW | E49: h | F49: =CPU!#REF! ->  | G49: 15.0543
B50: SICRO | C50: E9058 | D50: Plataforma flutuante de 12 x 24 x 1,8 m com capacidade de 150 t | E50: h | F50: =CPU!#REF! ->  | G50: 40.3012 | H50: =ROUND(F50*G50,2) -> 
B51: =B39 -> 4.2.1 | D51: EQUIPAMENTOS | H51: =SUM(H52) ->  | I51: ss
B52: CODEVASF | D52: CAMINHONETE | E52: mes | F52: =CPU!#REF! ->  | G52: 5885.33 | H52: =ROUND(F52*G52,2) ->  | I52: I
B53: =B39 -> 4.2.1 | D53: SERVIÇOS | H53: =SUM(H54:H55) -> 299.45 | I53: ss
B54: SICRO | C54: 3807863 | D54: Chumbador para concreto D = 12,5 mm tipo tecbolt - fornecimento e instalação | E54: un | F54: =CPU!F175 -> 22.4 | G54: 13.2 | H54: =ROUND(F54*G54,2) -> 295.68
B55: SICRO | C55: 4915639 | D55: Limpeza em superfície de concreto com escova de aço | E55: m² | F55: =CPU!F177 -> 1 | G55: 3.77 | H55: =ROUND(F55*G55,2) -> 3.77
B56: =B39 -> 4.2.1 | D56: MÃO DE OBRA | H56: =SUM(H57:H59) ->  | I56: ss
B57: SICRO | C57: P9926 | D57: Mergulhador raso auxiliar de superfície | E57: h | F57: =CPU!F182 -> 0.5 | G57: 28.2203 | H57: =ROUND(F57*G57,2) -> 14.11
B58: EMBASA | C58: B010000113 | D58: MERGULHADOR PROFISSIONAL | E58: h | F58: =CPU!F183 -> 5 | G58: 76.19 | H58: =ROUND(F58*G58,2) -> 380.95
B59: SICRO | C59: P9922 | D59: Mergulhador raso dependente de emergência | E59: h | F59: =CPU!#REF! ->  | G59: 31.5522
B61: ='Planilha Orçamentária Desoner'!A37 -> 4.2.2 | C61: =VLOOKUP($B61,'Planilha Orçamentária Desoner'!$A$11:$I$504,3,) -> CPU.05 | D61: =VLOOKUP($B61,'Planilha Orçamentária Desoner'!$A$11:$I$504,4,) -> Remoção da vedação da entrada da tomada d’água com chapas metálicas | E61: un | F61: 1 | H61: =SUM(H62,H72,H74,H75) ->  | I61: S
B62: =B61 -> 4.2.2 | D62: MATERIAL | H62: =SUM(H63:H71) ->  | I62: ss
B63: CODEVASF | C63: DP | D63: DIÁRIA | E63: dia | F63: =CPU!#REF! ->  | G63: 305.1 | H63: =ROUND(F63*G63,2) -> 
B64: SICRO | C64: E9043 | D64: Embarcação de alumínio com comprimento de 6 m e motor de popa - 18,60 kW | E64: h | F64: =CPU!#REF! ->  | G64: 66.1577 | H64: =ROUND(F64*G64,2) -> 
B65: SICRO | C65: E9243 | D65: Câmara hiperbárica com filtro, serpentina e reservatório de ar para mergulho raso - D= 1,80 m e H = 2,22 m. | E65: h | F65: =CPU!#REF! ->  | G65: 58.3517 | H65: =ROUND(F65*G65,2) -> 
B66: SICRO | C66: E9245 | D66: Estação transmissora de superfície para comunicação com fio | E66: h | F66: =CPU!#REF! ->  | G66: 0.7428
B67: SICRO | C67: E9242 | D67: Estação transmissora de superfície para televisionamento | E67: h | F67: =CPU!#REF! ->  | G67: 1.3333
B68: SICRO | C68: E9066 | D68: Grupo gerador - 14 kVA | E68: h | F68: =CPU!#REF! ->  | G68: 19.3801
B69: SICRO | C69: E9246 | D69: Painel de controle de ar com manômetros e pneufatômetros | E69: h | F69: =CPU!#REF! ->  | G69: 1.4255
B70: SICRO | C70: E9248 | D70: Sistema de ar comprimido para mergulho até 30 m com pressão de trabalho de 1,4 MPa - 7,46 kW | E70: h | F70: =CPU!#REF! ->  | G70: 15.0543
B71: SICRO | C71: E9058 | D71: Plataforma flutuante de 12 x 24 x 1,8 m com capacidade de 150 t | E71: h | F71: =CPU!#REF! ->  | G71: 40.3012 | H71: =ROUND(F71*G71,2) -> 
B72: =B61 -> 4.2.2 | D72: EQUIPAMENTOS | H72: =SUM(H73) ->  | I72: ss
B73: CODEVASF | D73: CAMINHONETE | E73: mes | F73: =CPU!#REF! ->  | G73: 5885.33 | H73: =ROUND(F73*G73,2) ->  | I73: I
B74: =B61 -> 4.2.2 | D74: SERVIÇOS | H74: 0 | I74: ss
B75: =B61 -> 4.2.2 | D75: MÃO DE OBRA | H75: =SUM(H76:H78) ->  | I75: ss
B76: SICRO | C76: P9926 | D76: Mergulhador raso auxiliar de superfície | E76: h | F76: =CPU!#REF! ->  | G76: 28.2203 | H76: =ROUND(F76*G76,2) -> 
B77: EMBASA | C77: B010000113 | D77: MERGULHADOR PROFISSIONAL | E77: h | F77: =CPU!#REF! ->  | G77: 76.19
B78: SICRO | C78: P9922 | D78: Mergulhador raso dependente de emergência | E78: h | F78: =CPU!#REF! ->  | G78: 31.5522
B80: ='Planilha Orçamentária Desoner'!A59 -> 6.1.6 | C80: =VLOOKUP($B80,'Planilha Orçamentária Desoner'!$A$11:$I$504,3,) -> CPU.06 | D80: =VLOOKUP($B80,'Planilha Orçamentária Desoner'!$A$11:$I$504,4,) -> ARGAMASSA TRACO 1:3 (CIMENTO E AREIA), PREPARO MANUAL, INCLUSO ADITIVO IMPERMEABILIZANTE | E80: m3 | H80: =H81+H84+H86+H87 ->  | I80: s
B81: =B80 -> 6.1.6 | D81: MATERIAL | H81: =SUM(H82:H83) ->  | I81: ss
B82: SINAPI | C82: 88629 | D82: =PROPER(IF(I82="i",VLOOKUP(C82,'Ins SINAPI BA 05-2023 Desoner'!$A$8:$E$5189,2,0),VLOOKUP(C82,'Comp SINAPI BA 05-2023 Desoner'!$G$7:$K$7500,2,0))) -> Argamassa Traço 1:3 (Em Volume De Cimento E Areia Média Úmida), Preparo Manual. Af_08/2019 | E82: =LOWER(IF(I82="i",VLOOKUP(C82,'Ins SINAPI BA 05-2023 Desoner'!$A$8:$E$5189,3,0),VLOOKUP(C82,'Comp SINAPI BA 05-2023 Desoner'!$G$7:$K$7500,3,0))) -> m3 | F82: =CPU!#REF! ->  | G82: =IF(I82="i",VLOOKUP(C82,'Ins SINAPI BA 05-2023 Desoner'!$A$8:$E$5189,5,0),VLOOKUP(C82,'Comp SINAPI BA 05-2023 Desoner'!$G$7:$K$7500,5,0)) -> 693.49 | H82: =ROUND(F82*G82,2) ->  | I82: ca
B83: SINAPI | C83: 123 | D83: =PROPER(IF(I83="i",VLOOKUP(C83,'Ins SINAPI BA 05-2023 Desoner'!$A$8:$E$5189,2,0),VLOOKUP(C83,'Comp SINAPI BA 05-2023 Desoner'!$G$7:$K$7500,2,0))) -> Aditivo Impermeabilizante De Pega Normal Para Argamassas E Concretos Sem Armacao, Liquido E Isento De Cloretos | E83: =LOWER(IF(I83="i",VLOOKUP(C83,'Ins SINAPI BA 05-2023 Desoner'!$A$8:$E$5189,3,0),VLOOKUP(C83,'Comp SINAPI BA 05-2023 Desoner'!$G$7:$K$7500,3,0))) -> l | F83: =CPU!#REF! ->  | G83: =IF(I83="i",VLOOKUP(C83,'Ins SINAPI BA 05-2023 Desoner'!$A$8:$E$5189,5,0),VLOOKUP(C83,'Comp SINAPI BA 05-2023 Desoner'!$G$7:$K$7500,5,0)) -> 6.85 | H83: =ROUND(F83*G83,2) ->  | I83: i
B84: =B80 -> 6.1.6 | D84: EQUIPAMENTOS | H84: =H85 ->  | I84: ss
B85: SICRO | C85: E9121 | D85: Plataforma elevatória articulada elétrica com alcance de 6 m com capacidade de 500 kg - 1,5 kW | E85: h | F85: =CPU!#REF! ->  | G85: 36.3564 | H85: =ROUND(F85*G85,2) ->  | I85: ca
B86: =B80 -> 6.1.6 | D86: SERVIÇOS | H86: 0 | I86: ss
B87: =B80 -> 6.1.6 | D87: MÃO DE OBRA | H87: 0 | I87: mdo
B89: ='Planilha Orçamentária Desoner'!A61 -> 6.1.8 | C89: =VLOOKUP($B89,'Planilha Orçamentária Desoner'!$A$11:$I$504,3,) -> CPU.07 | D89: =VLOOKUP($B89,'Planilha Orçamentária Desoner'!$A$11:$I$504,4,) -> CURA QUÍMICA | E89: m2 | H89: =H90+H92+H94+H95 ->  | I89: s
B90: =B89 -> 6.1.8 | D90: MATERIAL | H90: =SUM(H91) ->  | I90: ss
B91: SICRO | C91: M2152 | D91: Aditivo de cura para concreto | E91: kg | F91: =CPU!#REF! ->  | G91: 7.7205 | H91: =ROUND(F91*G91,2) ->  | I91: ca
B92: =B89 -> 6.1.8 | D92: EQUIPAMENTOS | H92: =SUM(H93) ->  | I92: ss
B93: SICRO | C93: E9589 | D93: Máquina texturizadora e aplicadora de cura química em pavimento de concreto - 44,80 kW | E93: H | F93: =CPU!#REF! ->  | G93: 206.4583 | H93: =ROUND(F93*G93,2) ->  | I93: ca
B94: =B89 -> 6.1.8 | D94: SERVIÇOS | H94: 0 | I94: ss
B95: =B89 -> 6.1.8 | D95: MÃO DE OBRA | H95: =SUM(H96) -> 15.72 | I95: mdo
B96: SINAPI | C96: 88316 | D96: =PROPER(IF(I96="i",VLOOKUP(C96,'Ins SINAPI BA 05-2023 Desoner'!$A$8:$E$5189,2,0),VLOOKUP(C96,'Comp SINAPI BA 05-2023 Desoner'!$G$7:$K$7500,2,0))) -> Servente Com Encargos Complementares | E96: =LOWER(IF(I96="i",VLOOKUP(C96,'Ins SINAPI BA 05-2023 Desoner'!$A$8:$E$5189,3,0),VLOOKUP(C96,'Comp SINAPI BA 05-2023 Desoner'!$G$7:$K$7500,3,0))) -> h | F96: =CPU!F298 -> 0.8 | G96: =IF(I96="i",VLOOKUP(C96,'Ins SINAPI BA 05-2023 Desoner'!$A$8:$E$5189,5,0),VLOOKUP(C96,'Comp SINAPI BA 05-2023 Desoner'!$G$7:$K$7500,5,0)) -> 19.65 | H96: =ROUND(F96*G96,2) -> 15.72 | I96: ca

Sheet Equipe de Mergulho (hidden)
B2: Definições de acordo com a TABELA REFERÊNCIA | H2: TABELA REFERÊNCIA
B3: 20 | C3: m | D3: Profundidade
B4: 48 | C4: min | D4: Tempo de mergulho
B5: =B4/60 -> 0.8 | C5: h
B6: 8 | C6: un | D6: Qd de mergulhadores
B8: EQUIPE ADOTADA DE ACORDO COM A NR 15 - ATIVIDADES E OPERAÇÕES INSALUBRES (POR DIA)
B9: H | C9: QTD
B10: =$B$5 -> 0.8 | C10: 1 | D10: Mergulhador Profissional
B11: =$B$5 -> 0.8 | C11: 1 | D11: Mergulhador Profissional
B12: 0.8 | C12: 1 | D12: Mergulhador Profissional
B13: 0.8 | C13: 1 | D13: Mergulhador Profissional
B14: 0.8 | C14: 1 | D14: Mergulhador Profissional
B15: 0.8 | C15: 1 | D15: Mergulhador Profissional
B16: 0.8 | C16: 1 | D16: Mergulhador Profissional
B17: 0.8 | C17: 1 | D17: Mergulhador Profissional
B18: =B5*B6 -> 6.4 | C18: 1 | D18: Mergulhador raso auxiliar de superfície
B19: =B5*B6 -> 6.4 | C19: 1 | D19: Mergulhador raso auxiliar de superfície
B20: =B5*B6 -> 6.4 | C20: 1 | D20: Mergulhador raso dependente de emergência
B21: =MAX(B10:B20) -> 6.4 | C21: =SUM(C10:C20) -> 11 | D21: TOTAL
B23: Identificação | D23: Serviço | E23: Duração (dias) | F23: Total (h)
B24: =CPU!B170 -> 6.1 | C24: =CPU!C170 -> CPU.14 | D24: =CPU!D170 -> Enrocamento c/ pedra de mão para proteção do talude | E24: 2 | F24: =$B$21*E24 -> 12.8
B25: =CPU!#REF! ->  | C25: =CPU!#REF! ->  | D25: =CPU!#REF! ->  | E25: 2 | F25: =$B$21*E25 -> 12.8
D27: De acordo com a duração do serviço será atualizada a quantidade de diárias
D28: Duração | E28: 2
D29: Diária | E29: =E28-1 -> 1

Sheet CPU
B1: Ministério da Integração e do Desenvolvimento Regional
B2: Companhia de Desenvolvimento dos Vales do São Francisco e do Parnaíba
B4: COMPOSIÇÕES DE PREÇOS UNITÁRIOS - ORÇAMENTO NÃO DESONERADO
B5: OBRA: | C5: ='Planilha Orçamentária'!B4 -> SERVIÇOS DE MANUTENÇÃO E OBRAS CIVIS NA BARRAGEM JUÁ I
B6: LOCAL: | C6: ='Planilha Orçamentária'!B5 -> BARRAGEM JUÁ I, CABROBÓ/PE
B7: DATA BASE: | C7: 2024-05-01
B8: PRAZO: | C8: ='Planilha Orçamentária'!B7 -> 90 DIAS
B9: REFERÊNCIA | C9: CÓDIGO | D9: DESCRIÇÃO | E9: UNIDADE | F9: ÍNDICE | G9: CUSTO UNITÁRIO | H9: PREÇO TOTAL
B10: ='Planilha Orçamentária'!A11 -> 1.1 | C10: =VLOOKUP($B10,'Planilha Orçamentária'!$A$10:$I$480,3,) -> CPU.01 | D10: =VLOOKUP($B10,'Planilha Orçamentária'!$A$10:$I$480,4,) -> Administração Local | E10: mes | F10: 1 | H10: =SUM(H14,H13,H12,H11) -> 28900.34 | I10: s | J10: COMENTÁRIOS
B11: =B10 -> 1.1 | D11: MATERIAL | H11: 0 | I11: ss
B12: =B10 -> 1.1 | D12: EQUIPAMENTOS | H12: 0 | I12: ss
B13: =B10 -> 1.1 | D13: SERVIÇOS | H13: 0 | I13: ss
B14: =B10 -> 1.1 | D14: MÃO DE OBRA | H14: =SUM(H15:H17) -> 28900.34 | I14: ss
B15: SINAPI | C15: 90778 | D15: =PROPER(IF(K15="i",VLOOKUP(C15,'Ins SINAPI PE 12-2023 Onerado'!$A$8:$E$5189,2,0),VLOOKUP(C15,'Comp SINAPI PE 12-2023 Onerado'!$G$7:$K$7500,2,0))) -> Engenheiro Civil De Obra Pleno Com Encargos Complementares | E15: =LOWER(IF(K15="i",VLOOKUP(C15,'Ins SINAPI PE 12-2023 Onerado'!$A$8:$E$5189,3,0),VLOOKUP(C15,'Comp SINAPI PE 12-2023 Onerado'!$G$7:$K$7500,3,0))) -> h | F15: =1.5*5*4 -> 30 | G15: =IF(I15="i",VLOOKUP(C15,'Ins SINAPI PE 12-2023 Onerado'!$A$8:$E$5189,5,0),VLOOKUP(C15,'Comp SINAPI PE 12-2023 Onerado'!$G$7:$K$7500,5,0)) -> 126.7 | H15: =ROUND(F15*G15,2) -> 3801 | I15: ca
B16: SINAPI | C16: 93572 | D16: =PROPER(IF(K16="i",VLOOKUP(C16,'Ins SINAPI PE 12-2023 Onerado'!$A$8:$E$5189,2,0),VLOOKUP(C16,'Comp SINAPI PE 12-2023 Onerado'!$G$7:$K$7500,2,0))) -> Encarregado Geral De Obras Com Encargos Complementares | E16: =LOWER(IF(K16="i",VLOOKUP(C16,'Ins SINAPI PE 12-2023 Onerado'!$A$8:$E$5189,3,0),VLOOKUP(C16,'Comp SINAPI PE 12-2023 Onerado'!$G$7:$K$7500,3,0))) -> mes | F16: 0.8 | G16: =IF(I16="i",VLOOKUP(C16,'Ins SINAPI PE 12-2023 Onerado'!$A$8:$E$5189,5,0),VLOOKUP(C16,'Comp SINAPI PE 12-2023 Onerado'!$G$7:$K$7500,5,0)) -> 6840.17 | H16: =ROUND(F16*G16,2) -> 5472.14 | I16: ca
B17: SINAPI-11/2023 | C17: 88326 | D17: VIGIA NOTURNO COM ENCARGOS COMPLEMENTARES | E17: h | F17: =4*12*15 -> 720 | G17: 27.26 | H17: =ROUND(F17*G17,2) -> 19627.2 | I17: ca | J17: considerando 4 vigias intercalando em dupla na jornada de 12/36
B19: ='Planilha Orçamentária'!A14 -> 2.1 | C19: =VLOOKUP($B19,'Planilha Orçamentária'!$A$10:$I$480,3,) -> CPU.02 | D19: =VLOOKUP($B19,'Planilha Orçamentária'!$A$10:$I$480,4,) -> Mobilização e desmobilização de instalação do canteiro | E19: un | F19: 1 | H19: =SUM(H20,H21,H26,H27) -> 6853.42 | I19: s | J19: mobilização e desmobilização de Petrolina a barragem
B20: =B19 -> 2.1 | D20: MATERIAL | H20: 0 | I20: ss
B21: =B19 -> 2.1 | D21: EQUIPAMENTOS | H21: =SUM(H22:H25) -> 6523.34 | I21: ss
A22: 2.1.1 | B22: SICRO | C22: E9134 | D22: Miniônibus com capacidade para 30 passageiros - 111 Kw | E22: chp | F22: =VLOOKUP(A22,'Memorial de cálculo'!$A$10:$H$565,8,0) -> 5 | G22: 221.2038 | H22: =ROUND(F22*G22,2) -> 1106.02 | I22: ca
A23: 2.1.2 | B23: SICRO | C23: E9134 | D23: Miniônibus com capacidade para 30 passageiros - 111 Kw | E23: chi | F23: =VLOOKUP(A23,'Memorial de cálculo'!$A$10:$H$565,8,0) -> 11 | G23: 74.2404 | H23: 816.64 | I23: ca
A24: 2.1.3 | B24: SINAPI | C24: 100946 | D24: =IF(I24="i",VLOOKUP(C24,'Ins SINAPI PE 12-2023 Onerado'!$A$8:$E$5189,2,0),VLOOKUP(C24,'Comp SINAPI PE 12-2023 Onerado'!$G$7:$K$7500,2,0)) -> TRANSPORTE COM CAMINHÃO CARROCERIA 9T, EM VIA URBANA EM REVESTIMENTO PRIMÁRIO (UNIDADE: TXKM). AF_07/2020 | E24: =IF(I24="i",VLOOKUP(C24,'Ins SINAPI PE 12-2023 Onerado'!$A$8:$E$5189,3,0),VLOOKUP(C24,'Comp SINAPI PE 12-2023 Onerado'!$G$7:$K$7500,3,0)) -> TXKM | F24: =VLOOKUP(A24,'Memorial de cálculo'!$A$10:$H$565,8,0) -> 224 | G24: =IF(I24="i",VLOOKUP(C24,'Ins SINAPI PE 12-2023 Onerado'!$A$8:$E$5189,5,0),VLOOKUP(C24,'Comp SINAPI PE 12-2023 Onerado'!$G$7:$K$7500,5,0)) -> 2.42 | H24: 542.08 | I24: ca | J24: considerando 5 toneladas de carga e metade da distância para Petrolina
A25: 2.1.4 | B25: SINAPI | C25: 100947 | D25: =IF(I25="i",VLOOKUP(C25,'Ins SINAPI PE 12-2023 Onerado'!$A$8:$E$5189,2,0),VLOOKUP(C25,'Comp SINAPI PE 12-2023 Onerado'!$G$7:$K$7500,2,0)) -> TRANSPORTE COM CAMINHÃO CARROCERIA 9T, EM VIA URBANA PAVIMENTADA, DMT ATÉ 30KM (UNIDADE: TXKM). AF_07/2020 | E25: =IF(I25="i",VLOOKUP(C25,'Ins SINAPI PE 12-2023 Onerado'!$A$8:$E$5189,3,0),VLOOKUP(C25,'Comp SINAPI PE 12-2023 Onerado'!$G$7:$K$7500,3,0)) -> TXKM | F25: =VLOOKUP(A25,'Memorial de cálculo'!$A$10:$H$565,8,0) -> 1820 | G25: =IF(I25="i",VLOOKUP(C25,'Ins SINAPI PE 12-2023 Onerado'!$A$8:$E$5189,5,0),VLOOKUP(C25,'Comp SINAPI PE 12-2023 Onerado'!$G$7:$K$7500,5,0)) -> 2.23 | H25: =ROUND(F25*G25,2) -> 4058.6 | I25: ca
B26: =B19 -> 2.1 | D26: SERVIÇOS | I26: ss
B27: =B19 -> 2.1 | D27: MÃO DE OBRA | H27: =H28 -> 330.08 | I27: ss
A28: 2.1.5 | B28: SINAPI | C28: 88284 | D28: =PROPER(IF(K28="i",VLOOKUP(C28,'Ins SINAPI PE 12-2023 Onerado'!$A$8:$E$5189,2,0),VLOOKUP(C28,'Comp SINAPI PE 12-2023 Onerado'!$G$7:$K$7500,2,0))) -> Motorista De Veículo Leve Com Encargos Complementares | E28: =LOWER(IF(K28="i",VLOOKUP(C28,'Ins SINAPI PE 12-2023 Onerado'!$A$8:$E$5189,3,0),VLOOKUP(C28,'Comp SINAPI PE 12-2023 Onerado'!$G$7:$K$7500,3,0))) -> h | F28: =VLOOKUP(A28,'Memorial de cálculo'!$A$10:$H$565,8,0) -> 16 | G28: =IF(I28="i",VLOOKUP(C28,'Ins SINAPI PE 12-2023 Onerado'!$A$8:$E$5189,5,0),VLOOKUP(C28,'Comp SINAPI PE 12-2023 Onerado'!$G$7:$K$7500,5,0)) -> 20.63 | H28: =ROUND(F28*G28,2) -> 330.08 | I28: ca
B30: ='Planilha Orçamentária'!A15 -> 2.2 | C30: =VLOOKUP($B30,'Planilha Orçamentária'!$A$10:$I$480,3,) -> CPU.03 | D30: =VLOOKUP($B30,'Planilha Orçamentária'!$A$10:$I$480,4,) -> Canteiro de obras | E30: un | H30: =H33 -> 746.64 | I30: s
B31: =B30 -> 2.2 | D31: MATERIAL | H31: 0 | I31: ss
B32: =B30 -> 2.2 | D32: EQUIPAMENTOS | H32: 0 | I32: ss
B33: =B30 -> 2.2 | D33: SERVIÇOS | H33: =SUM(H34:H41) -> 746.64 | I33: ss
A34: 2.2.1 | B34: SINAPI | C34: 98524 | D34: =PROPER(IF(K34="i",VLOOKUP(C34,'Ins SINAPI PE 12-2023 Onerado'!$A$8:$E$5189,2,0),VLOOKUP(C34,'Comp SINAPI PE 12-2023 Onerado'!$G$7:$K$7500,2,0))) -> Limpeza Manual De Vegetação Em Terreno Com Enxada. Af_03/2024 | E34: =LOWER(IF(K34="i",VLOOKUP(C34,'Ins SINAPI PE 12-2023 Onerado'!$A$8:$E$5189,3,0),VLOOKUP(C34,'Comp SINAPI PE 12-2023 Onerado'!$G$7:$K$7500,3,0))) -> m2 | F34: =VLOOKUP(A34,'Memorial de cálculo'!$A$10:$H$565,8,0) -> 1 | G34: =IF(I34="i",VLOOKUP(C34,'Ins SINAPI PE 12-2023 Onerado'!$A$8:$E$5189,5,0),VLOOKUP(C34,'Comp SINAPI PE 12-2023 Onerado'!$G$7:$K$7500,5,0)) -> 4.32 | H34: =ROUND(F34*G34,2) -> 4.32 | I34: ca
A35: 2.2.2 | B35: SINAPI | C35: 94975 | D35: =PROPER(IF(K35="i",VLOOKUP(C35,'Ins SINAPI PE 12-2023 Onerado'!$A$8:$E$5189,2,0),VLOOKUP(C35,'Comp SINAPI PE 12-2023 Onerado'!$G$7:$K$7500,2,0))) -> Concreto Fck = 15Mpa, Traço 1:3,4:3,5 (Em Massa Seca De Cimento/ Areia Média/ Brita 1) - Preparo Manual. Af_05/2021 | E35: =LOWER(IF(K35="i",VLOOKUP(C35,'Ins SINAPI PE 12-2023 Onerado'!$A$8:$E$5189,3,0),VLOOKUP(C35,'Comp SINAPI PE 12-2023 Onerado'!$G$7:$K$7500,3,0))) -> m3 | F35: =VLOOKUP(A35,'Memorial de cálculo'!$A$10:$H$565,8,0) -> 0.05 | G35: =IF(I35="i",VLOOKUP(C35,'Ins SINAPI PE 12-2023 Onerado'!$A$8:$E$5189,5,0),VLOOKUP(C35,'Comp SINAPI PE 12-2023 Onerado'!$G$7:$K$7500,5,0)) -> 479.76 | H35: 23.99 | I35: ca
A36: 2.2.3 | B36: SINAPI | C36: 93210 | D36: Execução De Refeitório Em Canteiro De Obra Em Chapa De Madeira Compensada, Não Incluso Mobiliário E Equipamentos. Af_02/2016 | E36: =LOWER(IF(K36="i",VLOOKUP(C36,'Ins SINAPI PE 12-2023 Onerado'!$A$8:$E$5189,3,0),VLOOKUP(C36,'Comp SINAPI PE 12-2023 Onerado'!$G$7:$K$7500,3,0))) ->  | F36: =VLOOKUP(A36,'Memorial de cálculo'!$A$10:$H$565,8,0) -> 0.2631578947 | G36: 632.64 | H36: 166.48 | I36: ca
A37: 2.2.4 | B37: SINAPI | C37: 93212 | D37: Execução De Sanitário E Vestiário Em Canteiro De Obra Em Chapa De Madeira Compensada, Não Incluso Mobiliário. Af_02/2016 | E37: =LOWER(IF(K37="i",VLOOKUP(C37,'Ins SINAPI PE 12-2023 Onerado'!$A$8:$E$5189,3,0),VLOOKUP(C37,'Comp SINAPI PE 12-2023 Onerado'!$G$7:$K$7500,3,0))) ->  | F37: =VLOOKUP(A37,'Memorial de cálculo'!$A$10:$H$565,8,0) -> 0.3157894737 | G37: 1038.41 | H37: 327.92 | I37: ca
A38: 2.2.5 | B38: SINAPI | C38: 93583 | D38: Execução De Central De Fôrmas, Produção De Argamassa Ou Concreto Em Canteiro De Obra, Não Incluso Mobiliário E Equipamentos. Af_04/2016 | E38: =LOWER(IF(K38="i",VLOOKUP(C38,'Ins SINAPI PE 12-2023 Onerado'!$A$8:$E$5189,3,0),VLOOKUP(C38,'Comp SINAPI PE 12-2023 Onerado'!$G$7:$K$7500,3,0))) ->  | F38: =VLOOKUP(A38,'Memorial de cálculo'!$A$10:$H$565,8,0) -> 0.4210526316 | G38: 514.11 | H38: 216.47 | I38: ca
A39: 2.2.6 | B39: COTAÇÃO | C39: CT.01 | D39: Hospedagem | E39: un | F39: =VLOOKUP(A39,'Memorial de cálculo'!$A$10:$H$565,8,0) -> 0.008975 | G39: 90 | H39: =ROUND(F39*G39,2) -> 0.81 | I39: ca
A40: 2.2.7 | B40: SICRO | C40: E9134 | D40: Miniônibus com capacidade para 30 passageiros - 111 Kw | E40: chp | F40: =VLOOKUP(A40,'Memorial de cálculo'!$A$10:$H$565,8,0) -> 0.008975 | G40: 221.2038 | H40: =ROUND(F40*G40,2) -> 1.99 | I40: ca
A41: 2.2.8 | B41: SICRO | C41: E9134 | D41: Miniônibus com capacidade para 30 passageiros - 111 Kw | E41: chi | F41: =VLOOKUP(A41,'Memorial de cálculo'!$A$10:$H$565,8,0) -> 0.062825 | G41: 74.2404 | H41: =ROUND(F41*G41,2) -> 4.66 | I41: ca
B42: =B30 -> 2.2 | D42: MÃO DE OBRA | H42: 0 | I42: mdo
B44: ='Planilha Orçamentária'!A16 -> 2.3 | C44: =VLOOKUP($B44,'Planilha Orçamentária'!$A$10:$I$480,3,) -> CPU.04 | D44: =VLOOKUP($B44,'Planilha Orçamentária'!$A$10:$I$480,4,) -> Placa de obra em chapa de aço galvanizado | E44: =VLOOKUP($B44,'Planilha Orçamentária'!$A$10:$I$57,5) -> m² | H44: =SUM(H45,H58,H51,H52) -> 512.21 | I44: s
B45: =B44 -> 2.3 | D45: MATERIAL | H45: =SUM(H46:H50) -> 330.86 | I45: ss
A46: 2.3.1 | B46: SINAPI | C46: 4417 | D46: =IF(I46="i",VLOOKUP(C46,'Ins SINAPI PE 12-2023 Onerado'!$A$8:$E$5189,2,0),VLOOKUP(C46,'Comp SINAPI PE 12-2023 Onerado'!$G$7:$K$6879,2,0)) -> SARRAFO NAO APARELHADO *2,5 X 7* CM, EM MACARANDUBA/MASSARANDUBA, ANGELIM, PEROBA-ROSA OU EQUIVALENTE DA REGIAO - BRUTA | E46: =IF(I46="i",VLOOKUP(C46,'Ins SINAPI PE 12-2023 Onerado'!$A$8:$E$5189,3,0),VLOOKUP(C46,'Comp SINAPI PE 12-2023 Onerado'!$G$7:$K$7500,3,0)) -> M | F46: =VLOOKUP(A46,'Memorial de cálculo'!$A$10:$H$565,8,0) -> 2 | G46: =IF(I46="i",VLOOKUP(C46,'Ins SINAPI PE 12-2023 Onerado'!$A$8:$E$5189,5,0),VLOOKUP(C46,'Comp SINAPI PE 12-2023 Onerado'!$G$7:$K$7500,5,0)) -> 8.02 | H46: =ROUND(F46*G46,2) -> 16.04 | I46: i
A47: 2.3.2 | B47: SINAPI | C47: 4430 | D47: =IF(I47="i",VLOOKUP(C47,'Ins SINAPI PE 12-2023 Onerado'!$A$8:$E$5189,2,0),VLOOKUP(C47,'Comp SINAPI PE 12-2023 Onerado'!$G$7:$K$6879,2,0)) -> CAIBRO NAO APARELHADO *5 X 6* CM, EM MACARANDUBA/MASSARANDUBA, ANGELIM OU EQUIVALENTE DA REGIAO - BRUTA | E47: =IF(I47="i",VLOOKUP(C47,'Ins SINAPI PE 12-2023 Onerado'!$A$8:$E$5189,3,0),VLOOKUP(C47,'Comp SINAPI PE 12-2023 Onerado'!$G$7:$K$7500,3,0)) -> M | F47: =VLOOKUP(A47,'Memorial de cálculo'!$A$10:$H$565,8,0) -> 4 | G47: =IF(I47="i",VLOOKUP(C47,'Ins SINAPI PE 12-2023 Onerado'!$A$8:$E$5189,5,0),VLOOKUP(C47,'Comp SINAPI PE 12-2023 Onerado'!$G$7:$K$7500,5,0)) -> 14.75 | H47: =ROUND(F47*G47,2) -> 59 | I47: i
A48: 2.3.3 | B48: SINAPI | C48: 4813 | D48: =IF(I48="i",VLOOKUP(C48,'Ins SINAPI PE 12-2023 Onerado'!$A$8:$E$5189,2,0),VLOOKUP(C48,'Comp SINAPI PE 12-2023 Onerado'!$G$7:$K$6879,2,0)) -> PLACA DE OBRA (PARA CONSTRUCAO CIVIL) EM CHAPA GALVANIZADA *N. 22*, ADESIVADA, DE *2,4 X 1,2* M (SEM POSTES PARA FIXACAO) | E48: =IF(I48="i",VLOOKUP(C48,'Ins SINAPI PE 12-2023 Onerado'!$A$8:$E$5189,3,0),VLOOKUP(C48,'Comp SINAPI PE 12-2023 Onerado'!$G$7:$K$7500,3,0)) -> M2 | F48: =VLOOKUP(A48,'Memorial de cálculo'!$A$10:$H$565,8,0) -> 1 | G48: =IF(I48="i",VLOOKUP(C48,'Ins SINAPI PE 12-2023 Onerado'!$A$8:$E$5189,5,0),VLOOKUP(C48,'Comp SINAPI PE 12-2023 Onerado'!$G$7:$K$7500,5,0)) -> 250 | H48: 250 | I48: i
A49: 2.3.4 | B49: SINAPI | C49: 5075 | D49: =IF(I49="i",VLOOKUP(C49,'Ins SINAPI PE 12-2023 Onerado'!$A$8:$E$5189,2,0),VLOOKUP(C49,'Comp SINAPI PE 12-2023 Onerado'!$G$7:$K$6879,2,0)) -> PREGO DE ACO POLIDO COM CABECA 18 X 30 (2 3/4 X 10) | E49: =IF(I49="i",VLOOKUP(C49,'Ins SINAPI PE 12-2023 Onerado'!$A$8:$E$5189,3,0),VLOOKUP(C49,'Comp SINAPI PE 12-2023 Onerado'!$G$7:$K$7500,3,0)) -> KG | F49: =VLOOKUP(A49,'Memorial de cálculo'!$A$10:$H$565,8,0) -> 0.11 | G49: =IF(I49="i",VLOOKUP(C49,'Ins SINAPI PE 12-2023 Onerado'!$A$8:$E$5189,5,0),VLOOKUP(C49,'Comp SINAPI PE 12-2023 Onerado'!$G$7:$K$7500,5,0)) -> 16.73 | H49: 1.84 | I49: i
A50: 2.3.5 | B50: SINAPI | C50: 94962 | D50: =IF(I50="i",VLOOKUP(C50,'Ins SINAPI PE 12-2023 Onerado'!$A$8:$E$5189,2,0),VLOOKUP(C50,'Comp SINAPI PE 12-2023 Onerado'!$G$7:$K$6879,2,0)) -> CONCRETO MAGRO PARA LASTRO, TRAÇO 1:4,5:4,5 (EM MASSA SECA DE CIMENTO/ AREIA MÉDIA/ BRITA 1) - PREPARO MECÂNICO COM BETONEIRA 400 L. AF_05/2021 | E50: =IF(I50="i",VLOOKUP(C50,'Ins SINAPI PE 12-2023 Onerado'!$A$8:$E$5189,3,0),VLOOKUP(C50,'Comp SINAPI PE 12-2023 Onerado'!$G$7:$K$7500,3,0)) -> M3 | F50: =VLOOKUP(A50,'Memorial de cálculo'!$A$10:$H$565,8,0) -> 0.01 | G50: =IF(I50="i",VLOOKUP(C50,'Ins SINAPI PE 12-2023 Onerado'!$A$8:$E$5189,5,0),VLOOKUP(C50,'Comp SINAPI PE 12-2023 Onerado'!$G$7:$K$7500,5,0)) -> 398.48 | H50: 3.98 | I50: ca
B51: =B44 -> 2.3 | D51: EQUIPAMENTOS | H51: 0 | I51: ss
B52: =B44 -> 2.3 | D52: SERVIÇOS | H52: =SUM(H53:H57) -> 148.52 | I52: ss
A53: 2.3.6 | B53: COTAÇÃO | C53: CT.01 | D53: Hospedagem | E53: un | F53: =VLOOKUP(A53,'Memorial de cálculo'!$A$10:$H$565,8,0) -> 0.1875 | G53: 90 | H53: =ROUND(F53*G53,2) -> 16.88 | I53: ca
A54: 2.3.7 | B54: SICRO | C54: E9134 | D54: Miniônibus com capacidade para 30 passageiros - 111 Kw | E54: chp | F54: =VLOOKUP(A54,'Memorial de cálculo'!$A$10:$H$565,8,0) -> 0.125 | G54: 221.2038 | H54: =ROUND(F54*G54,2) -> 27.65 | I54: ca
A55: 2.3.8 | B55: SICRO | C55: E9134 | D55: Miniônibus com capacidade para 30 passageiros - 111 Kw | E55: chi | F55: =VLOOKUP(A55,'Memorial de cálculo'!$A$10:$H$565,8,0) -> 0.875 | G55: 74.2404 | H55: =ROUND(F55*G55,2) -> 64.96 | I55: ca
A56: 2.3.9 | B56: SINAPI | C56: 100946 | D56: =IF(I56="i",VLOOKUP(C56,'Ins SINAPI PE 12-2023 Onerado'!$A$8:$E$5189,2,0),VLOOKUP(C56,'Comp SINAPI PE 12-2023 Onerado'!$G$7:$K$7500,2,0)) -> TRANSPORTE COM CAMINHÃO CARROCERIA 9T, EM VIA URBANA EM REVESTIMENTO PRIMÁRIO (UNIDADE: TXKM). AF_07/2020 | E56: =IF(I56="i",VLOOKUP(C56,'Ins SINAPI PE 12-2023 Onerado'!$A$8:$E$5189,3,0),VLOOKUP(C56,'Comp SINAPI PE 12-2023 Onerado'!$G$7:$K$7500,3,0)) -> TXKM | F56: =VLOOKUP(A56,'Memorial de cálculo'!$A$10:$H$565,8,0) -> 11.2 | G56: =IF(I56="i",VLOOKUP(C56,'Ins SINAPI PE 12-2023 Onerado'!$A$8:$E$5189,5,0),VLOOKUP(C56,'Comp SINAPI PE 12-2023 Onerado'!$G$7:$K$7500,5,0)) -> 2.42 | H56: =ROUND(F56*G56,2) -> 27.1 | I56: ca
A57: 2.3.10 | B57: SINAPI | C57: 100947 | D57: =IF(I57="i",VLOOKUP(C57,'Ins SINAPI PE 12-2023 Onerado'!$A$8:$E$5189,2,0),VLOOKUP(C57,'Comp SINAPI PE 12-2023 Onerado'!$G$7:$K$7500,2,0)) -> TRANSPORTE COM CAMINHÃO CARROCERIA 9T, EM VIA URBANA PAVIMENTADA, DMT ATÉ 30KM (UNIDADE: TXKM). AF_07/2020 | E57: =IF(I57="i",VLOOKUP(C57,'Ins SINAPI PE 12-2023 Onerado'!$A$8:$E$5189,3,0),VLOOKUP(C57,'Comp SINAPI PE 12-2023 Onerado'!$G$7:$K$7500,3,0)) -> TXKM | F57: =VLOOKUP(A57,'Memorial de cálculo'!$A$10:$H$565,8,0) -> 5.35 | G57: =IF(I57="i",VLOOKUP(C57,'Ins SINAPI PE 12-2023 Onerado'!$A$8:$E$5189,5,0),VLOOKUP(C57,'Comp SINAPI PE 12-2023 Onerado'!$G$7:$K$7500,5,0)) -> 2.23 | H57: =ROUND(F57*G57,2) -> 11.93 | I57: ca
B58: =B44 -> 2.3 | D58: MÃO DE OBRA | H58: =SUM(H59:H60) -> 32.83 | I58: ss
A59: 2.3.11 | B59: SINAPI | C59: 88262 | D59: =IF(I59="i",VLOOKUP(C59,'Ins SINAPI PE 12-2023 Onerado'!$A$8:$E$5189,2,0),VLOOKUP(C59,'Comp SINAPI PE 12-2023 Onerado'!$G$7:$K$7500,2,0)) -> CARPINTEIRO DE FORMAS COM ENCARGOS COMPLEMENTARES | E59: =IF(I59="i",VLOOKUP(C59,'Ins SINAPI PE 12-2023 Onerado'!$A$8:$E$5189,3,0),VLOOKUP(C59,'Comp SINAPI PE 12-2023 Onerado'!$G$7:$K$7500,3,0)) -> H | F59: =VLOOKUP(A59,'Memorial de cálculo'!A2:H459,8,0) -> 0.5 | G59: =IF(I59="i",VLOOKUP(C59,'Ins SINAPI PE 12-2023 Onerado'!$A$8:$E$5189,5,0),VLOOKUP(C59,'Comp SINAPI PE 12-2023 Onerado'!$G$7:$K$7500,5,0)) -> 25.1 | H59: =ROUND(F59*G59,2) -> 12.55 | I59: mdo
A60: 2.3.12 | B60: SINAPI | C60: 88316 | D60: =IF(I60="i",VLOOKUP(C60,'Ins SINAPI PE 12-2023 Onerado'!$A$8:$E$5189,2,0),VLOOKUP(C60,'Comp SINAPI PE 12-2023 Onerado'!$G$7:$K$7500,2,0)) -> SERVENTE COM ENCARGOS COMPLEMENTARES | E60: =IF(I60="i",VLOOKUP(C60,'Ins SINAPI PE 12-2023 Onerado'!$A$8:$E$5189,3,0),VLOOKUP(C60,'Comp SINAPI PE 12-2023 Onerado'!$G$7:$K$7500,3,0)) -> H | F60: =VLOOKUP(A60,'Memorial de cálculo'!A3:H460,8,0) -> 1 | G60: =IF(I60="i",VLOOKUP(C60,'Ins SINAPI PE 12-2023 Onerado'!$A$8:$E$5189,5,0),VLOOKUP(C60,'Comp SINAPI PE 12-2023 Onerado'!$G$7:$K$7500,5,0)) -> 20.28 | H60: =ROUND(F60*G60,2) -> 20.28 | I60: mdo
D63: CORTE DA VEGETAÇÃO E REMOÇÃO DAS RAIZES
B64: ='Planilha Orçamentária'!A19 -> 3.1 | C64: =VLOOKUP($B64,'Planilha Orçamentária'!$A$10:$I$480,3,0) -> CPU.05 | D64: =VLOOKUP($B64,'Planilha Orçamentária'!$A$10:$I$480,4,) -> Limpeza de Vegetação | E64: =VLOOKUP($B64,'Planilha Orçamentária'!$A$10:$I$57,5) -> m² | H64: =H67 -> 8.31 | I64: ss
B65: =B63 -> 0 | D65: MATERIAL | H65: 0 | I65: ss
B66: =B63 -> 0 | D66: EQUIPAMENTOS | H66: 0 | I66: ss
B67: =B63 -> 0 | D67: SERVIÇOS | H67: =SUM(H68:H73) -> 8.31 | I67: ss
A68: 3.1.1 | B68: SINAPI | C68: 98524 | D68: =PROPER(IF(K68="i",VLOOKUP(C68,'Ins SINAPI PE 12-2023 Onerado'!$A$8:$E$5189,2,0),VLOOKUP(C68,'Comp SINAPI PE 12-2023 Onerado'!$G$7:$K$7500,2,0))) -> Limpeza Manual De Vegetação Em Terreno Com Enxada. Af_03/2024 | E68: =LOWER(IF(K68="i",VLOOKUP(C68,'Ins SINAPI PE 12-2023 Onerado'!$A$8:$E$5189,3,0),VLOOKUP(C68,'Comp SINAPI PE 12-2023 Onerado'!$G$7:$K$7500,3,0))) -> m2 | F68: =VLOOKUP(A68,'Memorial de cálculo'!A11:H468,8,0) -> 1 | G68: =IF(I68="i",VLOOKUP(C68,'Ins SINAPI PE 12-2023 Onerado'!$A$8:$E$5189,5,0),VLOOKUP(C68,'Comp SINAPI PE 12-2023 Onerado'!$G$7:$K$7500,5,0)) -> 4.32 | H68: =ROUND(F68*G68,2) -> 4.32 | I68: ca
A69: 3.1.2 | B69: COTAÇÃO | C69: CT.01 | D69: Hospedagem | E69: un | F69: =VLOOKUP(A69,'Memorial de cálculo'!A12:H469,8,0) -> 0.01795 | G69: 90 | H69: =ROUND(F69*G69,2) -> 1.62 | I69: ca
A70: 3.1.3 | B70: SICRO | C70: E9134 | D70: Miniônibus com capacidade para 30 passageiros - 111 Kw | E70: chp | F70: =VLOOKUP(A70,'Memorial de cálculo'!A13:H470,8,0) -> 0.001795 | G70: 221.2038 | H70: 0.4 | I70: ca
A71: 3.1.4 | B71: SICRO | C71: E9134 | D71: Miniônibus com capacidade para 30 passageiros - 111 Kw | E71: chi | F71: =VLOOKUP(A71,'Memorial de cálculo'!A14:H560,8,0) -> 0.012565 | G71: 74.2404 | H71: 0.93 | I71: ca
A72: 3.1.5 | B72: SINAPI | C72: 97913 | D72: =PROPER(IF(K72="i",VLOOKUP(C72,'Ins SINAPI PE 12-2023 Onerado'!$A$8:$E$5189,2,0),VLOOKUP(C72,'Comp SINAPI PE 12-2023 Onerado'!$G$7:$K$7500,2,0))) -> Transporte Com Caminhão Basculante De 6 M³, Em Via Urbana Em Revestimento Primário (Unidade: M3Xkm). Af_07/2020 | E72: =LOWER(IF(K72="i",VLOOKUP(C72,'Ins SINAPI PE 12-2023 Onerado'!$A$8:$E$5189,3,0),VLOOKUP(C72,'Comp SINAPI PE 12-2023 Onerado'!$G$7:$K$7500,3,0))) -> m3xkm | F72: =VLOOKUP(A72,'Memorial de cálculo'!A15:H562,8,0) -> 0.224 | G72: =IF(I72="i",VLOOKUP(C72,'Ins SINAPI PE 12-2023 Onerado'!$A$8:$E$5189,5,0),VLOOKUP(C72,'Comp SINAPI PE 12-2023 Onerado'!$G$7:$K$7500,5,0)) -> 3.23 | H72: 0.72 | I72: ca
A73: 3.1.6 | B73: SINAPI | C73: 97914 | D73: =PROPER(IF(K73="i",VLOOKUP(C73,'Ins SINAPI PE 12-2023 Onerado'!$A$8:$E$5189,2,0),VLOOKUP(C73,'Comp SINAPI PE 12-2023 Onerado'!$G$7:$K$7500,2,0))) -> Transporte Com Caminhão Basculante De 6 M³, Em Via Urbana Pavimentada, Dmt Até 30 Km (Unidade: M3Xkm). Af_07/2020 | E73: =LOWER(IF(K73="i",VLOOKUP(C73,'Ins SINAPI PE 12-2023 Onerado'!$A$8:$E$5189,3,0),VLOOKUP(C73,'Comp SINAPI PE 12-2023 Onerado'!$G$7:$K$7500,3,0))) -> m3xkm | F73: =VLOOKUP(A73,'Memorial de cálculo'!A16:H563,8,0) -> 0.107 | G73: =IF(I73="i",VLOOKUP(C73,'Ins SINAPI PE 12-2023 Onerado'!$A$8:$E$5189,5,0),VLOOKUP(C73,'Comp SINAPI PE 12-2023 Onerado'!$G$7:$K$7500,5,0)) -> 2.95 | H73: =ROUND(F73*G73,2) -> 0.32 | I73: ca
B74: =B65 -> 0 | D74: MÃO DE OBRA | I74: mdo
B76: ='Planilha Orçamentária'!A20 -> 3.2 | C76: =VLOOKUP($B76,'Planilha Orçamentária'!$A$10:$I$480,3,0) -> CPU.06 | D76: =VLOOKUP($B76,'Planilha Orçamentária'!$A$10:$I$480,4,) -> Corte raso de árvores | E76: =VLOOKUP($B76,'Planilha Orçamentária'!$A$10:$I$57,5) -> un | H76: =H79 -> 246.19 | I76: ss
B77: =B75 -> 0 | D77: MATERIAL | H77: 0 | I77: ss
B78: =B75 -> 0 | D78: EQUIPAMENTOS | H78: 0 | I78: ss
B79: =B75 -> 0 | D79: SERVIÇOS | H79: =H80+H81+H82+H83 -> 246.19 | I79: ss
A80: 3.2.1 | B80: SINAPI | C80: 98529 | D80: =PROPER(IF(K80="i",VLOOKUP(C80,'Ins SINAPI PE 12-2023 Onerado'!$A$8:$E$5189,2,0),VLOOKUP(C80,'Comp SINAPI PE 12-2023 Onerado'!$G$7:$K$7500,2,0))) -> Corte Raso E Recorte De Árvore Com Diâmetro De Tronco Maior Ou Igual A 0,20 M E Menor Que 0,40 M. Af_03/2024 | E80: =LOWER(IF(K80="i",VLOOKUP(C80,'Ins SINAPI PE 12-2023 Onerado'!$A$8:$E$5189,3,0),VLOOKUP(C80,'Comp SINAPI PE 12-2023 Onerado'!$G$7:$K$7500,3,0))) -> un | F80: =VLOOKUP(A80,'Memorial de cálculo'!A16:H563,8,0) -> 1 | G80: =IF(I80="i",VLOOKUP(C80,'Ins SINAPI PE 12-2023 Onerado'!$A$8:$E$5189,5,0),VLOOKUP(C80,'Comp SINAPI PE 12-2023 Onerado'!$G$7:$K$7500,5,0)) -> 68.42 | H80: 68.42 | I80: ca
A81: 3.2.5 | B81: COTAÇÃO | C81: CT.01 | D81: Hospedagem | E81: un | F81: =VLOOKUP(A81,'Memorial de cálculo'!A17:H564,8,0) -> 0.3861 | G81: 90 | H81: =ROUND(F81*G81,2) -> 34.75 | I81: ca
A82: 3.2.6 | B82: SICRO | C82: E9134 | D82: Miniônibus com capacidade para 30 passageiros - 111 Kw | E82: chp | F82: =VLOOKUP(A82,'Memorial de cálculo'!A17:H565,8,0) -> 0.19305 | G82: 221.2038 | H82: 42.7 | I82: ca
A83: 3.2.7 | B83: SICRO | C83: E9134 | D83: Miniônibus com capacidade para 30 passageiros - 111 Kw | E83: chi | F83: =VLOOKUP(A83,'Memorial de cálculo'!A18:H566,8,0) -> 1.35135 | G83: 74.2404 | H83: 100.32 | I83: ca
B84: =B75 -> 0 | D84: MÃO DE OBRA | H84: 0 | I84: mdo
B86: ='Planilha Orçamentária'!A21 -> 3.3 | C86: =VLOOKUP($B86,'Planilha Orçamentária'!$A$10:$I$480,3,0) -> CPU.07 | D86: =VLOOKUP($B86,'Planilha Orçamentária'!$A$10:$I$480,4,) -> Remoção de raízes | E86: =VLOOKUP($B86,'Planilha Orçamentária'!$A$10:$I$57,5) -> un | H86: =H89 -> 212.89 | I86: ss
B87: =B85 -> 0 | D87: MATERIAL | H87: 0 | I87: ss
B88: =B85 -> 0 | D88: EQUIPAMENTOS | H88: 0 | I88: ss
B89: =B85 -> 0 | D89: SERVIÇOS | H89: =H90+H91+H92+H93 -> 212.89 | I89: ss
A90: 3.3.1 | B90: SINAPI | C90: 98526 | D90: =PROPER(IF(K90="i",VLOOKUP(C90,'Ins SINAPI PE 12-2023 Onerado'!$A$8:$E$5189,2,0),VLOOKUP(C90,'Comp SINAPI PE 12-2023 Onerado'!$G$7:$K$7500,2,0))) -> Remoção De Raízes Remanescentes De Tronco De Árvore Com Diâmetro Maior Ou Igual A 0,20 M E Menor Que 0,40 M. Af_03/2024 | E90: =LOWER(IF(K90="i",VLOOKUP(C90,'Ins SINAPI PE 12-2023 Onerado'!$A$8:$E$5189,3,0),VLOOKUP(C90,'Comp SINAPI PE 12-2023 Onerado'!$G$7:$K$7500,3,0))) -> un | F90: 1 | G90: =IF(I90="i",VLOOKUP(C90,'Ins SINAPI PE 12-2023 Onerado'!$A$8:$E$5189,5,0),VLOOKUP(C90,'Comp SINAPI PE 12-2023 Onerado'!$G$7:$K$7500,5,0)) -> 134.84 | H90: =ROUND(F90*G90,2) -> 134.84 | I90: ca
A91: 3.3.2 | B91: COTAÇÃO | C91: CT.01 | D91: Hospedagem | E91: un | F91: =VLOOKUP(A91,'Memorial de cálculo'!A21:H569,8,0) -> 0.1695 | G91: 90 | H91: =ROUND(F91*G91,2) -> 15.26 | I91: ca
A92: 3.3.3 | B92: SICRO | C92: E9134 | D92: Miniônibus com capacidade para 30 passageiros - 111 Kw | E92: chp | F92: =VLOOKUP(A92,'Memorial de cálculo'!A22:H570,8,0) -> 0.08475 | G92: 221.2038 | H92: 18.75 | I92: ca | J92: =F92/F93 -> 0.1428571429
A93: 3.3.4 | B93: SICRO | C93: E9134 | D93: Miniônibus com capacidade para 30 passageiros - 111 Kw | E93: chi | F93: =VLOOKUP(A93,'Memorial de cálculo'!A23:H571,8,0) -> 0.59325 | G93: 74.2404 | H93: 44.04 | I93: ca
B94: =B80 -> SINAPI | D94: MÃO DE OBRA | H94: 0 | I94: mdo
A96: 4 | D96: =VLOOKUP($A96,'Planilha Orçamentária'!$A$10:$I$480,4,) -> RECUPERAÇÃO DA EROSÃO TALUDES MONTANTE E JUSANTE
B97: ='Planilha Orçamentária'!A24 -> 4.1 | C97: =VLOOKUP($B97,'Planilha Orçamentária'!$A$10:$I$480,3,0) -> CPU.08 | D97: =VLOOKUP($B97,'Planilha Orçamentária'!$A$10:$I$480,4,) -> Aterro de valas | E97: =VLOOKUP($B97,'Planilha Orçamentária'!$A$10:$I$57,5) -> M3 | H97: =SUM(H101:H106) -> 193.51 | I97: s
B98: =B97 -> 4.1 | D98: MATERIAL | H98: 0 | I98: ss
B99: =B97 -> 4.1 | D99: EQUIPAMENTOS | H99: 0 | I99: ss
B100: =B97 -> 4.1 | D100: SERVIÇOS | H100: =H101+H102+H103+H104+H105+H106 -> 193.51 | I100: ss
A101: 4.1.1 | B101: SINAPI | C101: 94319 | D101: =PROPER(IF(K101="i",VLOOKUP(C101,'Ins SINAPI PE 12-2023 Onerado'!$A$8:$E$5189,2,0),VLOOKUP(C101,'Comp SINAPI PE 12-2023 Onerado'!$G$7:$K$7500,2,0))) -> Aterro Manual De Valas Com Solo Argilo-Arenoso. Af_08/2023 | E101: =LOWER(IF(K101="i",VLOOKUP(C101,'Ins SINAPI PE 12-2023 Onerado'!$A$8:$E$5189,3,0),VLOOKUP(C101,'Comp SINAPI PE 12-2023 Onerado'!$G$7:$K$7500,3,0))) -> m3 | F101: =VLOOKUP(A101,'Memorial de cálculo'!A22:H468,8,0) -> 1 | G101: =IF(I101="i",VLOOKUP(C101,'Ins SINAPI PE 12-2023 Onerado'!$A$8:$E$5189,5,0),VLOOKUP(C101,'Comp SINAPI PE 12-2023 Onerado'!$G$7:$K$7500,5,0)) -> 76.27 | H101: =ROUND(F101*G101,2) -> 76.27 | I101: ca
A102: 4.1.2 | B102: COTAÇÃO | C102: CT.01 | D102: Hospedagem | E102: un | F102: =VLOOKUP(A102,'Memorial de cálculo'!A23:H469,8,0) -> 0.098325 | G102: 90 | H102: 8.85 | I102: ca
A103: 4.1.3 | B103: SICRO | C103: E9134 | D103: Miniônibus com capacidade para 30 passageiros - 111 Kw | E103: chp | F103: =VLOOKUP(A103,'Memorial de cálculo'!A24:H470,8,0) -> 0.032775 | G103: 221.2038 | H103: 7.25 | I103: ca
A104: 4.1.4 | B104: SICRO | C104: E9134 | D104: Miniônibus com capacidade para 30 passageiros - 111 Kw | E104: chi | F104: =VLOOKUP(A104,'Memorial de cálculo'!A25:H560,8,0) -> 0.229425 | G104: 74.2404 | H104: 17.03 | I104: ca
A105: 4.1.5 | B105: SINAPI | C105: 93589 | D105: =PROPER(IF(K105="i",VLOOKUP(C105,'Ins SINAPI PE 12-2023 Onerado'!$A$8:$E$5189,2,0),VLOOKUP(C105,'Comp SINAPI PE 12-2023 Onerado'!$G$7:$K$7500,2,0))) -> Transporte Com Caminhão Basculante De 10 M³, Em Via Urbana Em Revestimento Primário (Unidade: M3Xkm). Af_07/2020 | E105: =LOWER(IF(K105="i",VLOOKUP(C105,'Ins SINAPI PE 12-2023 Onerado'!$A$8:$E$5189,3,0),VLOOKUP(C105,'Comp SINAPI PE 12-2023 Onerado'!$G$7:$K$7500,3,0))) -> m3xkm | F105: =VLOOKUP(A105,'Memorial de cálculo'!A118:H590,8,0) -> 10.7 | G105: =IF(I105="i",VLOOKUP(C105,'Ins SINAPI PE 12-2023 Onerado'!$A$8:$E$5189,5,0),VLOOKUP(C105,'Comp SINAPI PE 12-2023 Onerado'!$G$7:$K$7500,5,0)) -> 2.69 | H105: 28.78 | I105: ca
A106: 4.1.6 | B106: SINAPI | C106: 95875 | D106: =PROPER(IF(K106="i",VLOOKUP(C106,'Ins SINAPI PE 12-2023 Onerado'!$A$8:$E$5189,2,0),VLOOKUP(C106,'Comp SINAPI PE 12-2023 Onerado'!$G$7:$K$7500,2,0))) -> Transporte Com Caminhão Basculante De 10 M³, Em Via Urbana Pavimentada, Dmt Até 30 Km (Unidade: M3Xkm). Af_07/2020 | E106: =LOWER(IF(K106="i",VLOOKUP(C106,'Ins SINAPI PE 12-2023 Onerado'!$A$8:$E$5189,3,0),VLOOKUP(C106,'Comp SINAPI PE 12-2023 Onerado'!$G$7:$K$7500,3,0))) -> m3xkm | F106: =VLOOKUP(A106,'Memorial de cálculo'!A127:H591,8,0) -> 22.4 | G106: =IF(I106="i",VLOOKUP(C106,'Ins SINAPI PE 12-2023 Onerado'!$A$8:$E$5189,5,0),VLOOKUP(C106,'Comp SINAPI PE 12-2023 Onerado'!$G$7:$K$7500,5,0)) -> 2.47 | H106: =ROUND(F106*G106,2) -> 55.33 | I106: ca
B107: =B97 -> 4.1 | D107: MÃO DE OBRA | H107: 0 | I107: ss
B109: ='Planilha Orçamentária'!A27 -> 5.1 | C109: =VLOOKUP($B109,'Planilha Orçamentária'!$A$10:$I$480,3,) -> CPU.9 | D109: =VLOOKUP($B109,'Planilha Orçamentária'!$A$10:$I$480,4,) -> Remoção de guias pré-fabricadas sem reaproveitamento | E109: =VLOOKUP($B109,'Planilha Orçamentária'!$A$10:$I$57,5) -> M | H109: =SUM(H113:H116) -> 38.08 | I109: s
B110: =B109 -> 5.1 | D110: MATERIAL | H110: 0 | I110: ss
B111: =B109 -> 5.1 | D111: EQUIPAMENTOS | H111: 0 | I111: ss
B112: =B109 -> 5.1 | D112: SERVIÇOS | H112: =SUM(H113:H116) -> 38.08 | I112: ss
A113: 5.1.1 | B113: SINAPI | C113: 104796 | D113: =PROPER(IF(K115="i",VLOOKUP(C113,'Ins SINAPI PE 12-2023 Onerado'!$A$8:$E$5189,2,0),VLOOKUP(C113,'Comp SINAPI PE 12-2023 Onerado'!$G$7:$K$7500,2,0))) -> Demolição De Guias, Sarjetas Ou Sarjetões, De Forma Mecanizada, Sem Reaproveitamento. Af_09/2023 | E113: =LOWER(IF(K115="i",VLOOKUP(C113,'Ins SINAPI PE 12-2023 Onerado'!$A$8:$E$5189,3,0),VLOOKUP(C113,'Comp SINAPI PE 12-2023 Onerado'!$G$7:$K$7500,3,0))) -> m | F113: =VLOOKUP(A113,'Memorial de cálculo'!A46:H481,8,0) -> 1 | G113: =IF(I113="i",VLOOKUP(C113,'Ins SINAPI PE 12-2023 Onerado'!$A$8:$E$5189,5,0),VLOOKUP(C113,'Comp SINAPI PE 12-2023 Onerado'!$G$7:$K$7500,5,0)) -> 14.16 | H113: =ROUND(F113*G113,2) -> 14.16 | I113: ca
A114: 5.1.2 | B114: COTAÇÃO | C114: CT.01 | D114: Hospedagem | E114: un | F114: =VLOOKUP(A114,'Memorial de cálculo'!A47:H482,8,0) -> 0.03955 | G114: 90 | H114: =ROUND(F114*G114,2) -> 3.56 | I114: ca | J114: 3.56
A115: 5.1.3 | B115: SICRO | C115: E9134 | D115: Miniônibus com capacidade para 30 passageiros - 111 Kw | E115: chp | F115: =VLOOKUP(A115,'Memorial de cálculo'!A48:H483,8,0) -> 0.0274875 | G115: 221.2038 | H115: 6.08 | I115: ca | J115: 2.81
A116: 5.1.4 | B116: SICRO | C116: E9134 | D116: Miniônibus com capacidade para 30 passageiros - 111 Kw | E116: chi | F116: =VLOOKUP(A116,'Memorial de cálculo'!A49:H484,8,0) -> 0.1924125 | G116: 74.2404 | H116: 14.28 | I116: ca | J116: 6.93
B117: =B113 -> SINAPI | D117: MÃO DE OBRA | H117: 0 | I117: mdo
B119: ='Planilha Orçamentária'!A28 -> 5.2 | C119: =VLOOKUP($B119,'Planilha Orçamentária'!$A$10:$I$480,3,) -> CPU.10 | D119: =VLOOKUP($B119,'Planilha Orçamentária'!$A$10:$I$480,4,) -> Regularização e compactação da crista | E119: =VLOOKUP($B119,'Planilha Orçamentária'!$A$10:$I$57,5) -> M2 | H119: =SUM(H123:H126) -> 3.48 | I119: s
B120: =B119 -> 5.2 | D120: MATERIAL | H120: 0 | I120: ss
B121: =B119 -> 5.2 | D121: EQUIPAMENTOS | H121: 0 | I121: ss
B122: =B119 -> 5.2 | D122: SERVIÇOS | H122: =SUM(H123:H126) -> 3.48 | I122: ss
A123: 5.2.1 | B123: SINAPI | C123: 100576 | D123: =PROPER(IF(K125="i",VLOOKUP(C123,'Ins SINAPI PE 12-2023 Onerado'!$A$8:$E$5189,2,0),VLOOKUP(C123,'Comp SINAPI PE 12-2023 Onerado'!$G$7:$K$7500,2,0))) -> Regularização E Compactação De Subleito De Solo Predominantemente Argiloso. Af_11/2019 | E123: =LOWER(IF(K125="i",VLOOKUP(C123,'Ins SINAPI PE 12-2023 Onerado'!$A$8:$E$5189,3,0),VLOOKUP(C123,'Comp SINAPI PE 12-2023 Onerado'!$G$7:$K$7500,3,0))) -> m2 | F123: 1 | G123: =IF(I123="i",VLOOKUP(C123,'Ins SINAPI PE 12-2023 Onerado'!$A$8:$E$5189,5,0),VLOOKUP(C123,'Comp SINAPI PE 12-2023 Onerado'!$G$7:$K$7500,5,0)) -> 2.65 | H123: =ROUND(F123*G123,2) -> 2.65 | I123: ca
A124: 5.2.2 | B124: COTAÇÃO | C124: CT.01 | D124: Hospedagem | E124: un | F124: =VLOOKUP(A124,'Memorial de cálculo'!A12:H560,8,0) -> 0.001 | G124: 90 | H124: =ROUND(F124*G124,2) -> 0.09 | I124: ca
A125: 5.2.3 | B125: SICRO | C125: E9134 | D125: Miniônibus com capacidade para 30 passageiros - 111 Kw | E125: chp | F125: =VLOOKUP(A125,'Memorial de cálculo'!A13:H469,8,0) -> 0.001 | G125: 221.2038 | H125: 0.22 | I125: ca
A126: 5.2.4 | B126: SICRO | C126: E9134 | D126: Miniônibus com capacidade para 30 passageiros - 111 Kw | E126: chi | F126: =VLOOKUP(A126,'Memorial de cálculo'!A14:H470,8,0) -> 0.007 | G126: 74.2404 | H126: 0.52 | I126: ca
B127: =B123 -> SINAPI | D127: MÃO DE OBRA | H127: 0 | I127: mdo
B129: ='Planilha Orçamentária'!A29 -> 5.3 | C129: =VLOOKUP($B129,'Planilha Orçamentária'!$A$10:$I$480,3,) -> CPU.11 | D129: =VLOOKUP($B129,'Planilha Orçamentária'!$A$10:$I$480,4,) -> Drenagem - Trecho reto | E129: =VLOOKUP($B129,'Planilha Orçamentária'!$A$10:$I$57,5) -> M | H129: =SUM(H133:H140) -> 77.47 | I129: s
B130: =B129 -> 5.3 | D130: MATERIAL | H130: 0 | I130: ss
B131: =B129 -> 5.3 | D131: EQUIPAMENTOS | H131: 0 | I131: ss
B132: =B129 -> 5.3 | D132: SERVIÇOS | H132: =SUM(H133:H140) -> 77.47 | I132: ss
A133: 5.3.1 | B133: SINAPI | C133: 94267 | D133: =PROPER(IF(K133="i",VLOOKUP(C133,'Ins SINAPI PE 12-2023 Onerado'!$A$8:$E$5189,2,0),VLOOKUP(C133,'Comp SINAPI PE 12-2023 Onerado'!$G$7:$K$7500,2,0))) -> Guia (Meio-Fio) E Sarjeta Conjugados De Concreto, Moldada In Loco Em Trecho Reto Com Extrusora, 45 Cm Base (15 Cm Base Da Guia + 30 Cm Base Da Sarjeta) X 22 Cm Altura. Af_01/2024 | E133: =LOWER(IF(K133="i",VLOOKUP(C133,'Ins SINAPI PE 12-2023 Onerado'!$A$8:$E$5189,3,0),VLOOKUP(C133,'Comp SINAPI PE 12-2023 Onerado'!$G$7:$K$7500,3,0))) -> m | F133: 1 | G133: =IF(I133="i",VLOOKUP(C133,'Ins SINAPI PE 12-2023 Onerado'!$A$8:$E$5189,5,0),VLOOKUP(C133,'Comp SINAPI PE 12-2023 Onerado'!$G$7:$K$7500,5,0)) -> 52.03 | H133: =ROUND(F133*G133,2) -> 52.03 | I133: ca
A134: 5.3.2 | B134: SINAPI | C134: 100946 | D134: =PROPER(IF(K134="i",VLOOKUP(C134,'Ins SINAPI PE 12-2023 Onerado'!$A$8:$E$5189,2,0),VLOOKUP(C134,'Comp SINAPI PE 12-2023 Onerado'!$G$7:$K$7500,2,0))) -> Transporte Com Caminhão Carroceria 9T, Em Via Urbana Em Revestimento Primário (Unidade: Txkm). Af_07/2020 | E134: =LOWER(IF(K134="i",VLOOKUP(C134,'Ins SINAPI PE 12-2023 Onerado'!$A$8:$E$5189,3,0),VLOOKUP(C134,'Comp SINAPI PE 12-2023 Onerado'!$G$7:$K$7500,3,0))) -> txkm | F134: =VLOOKUP(A134,'Memorial de cálculo'!A18:H565,8,0) -> 1.288 | G134: =IF(I134="i",VLOOKUP(C134,'Ins SINAPI PE 12-2023 Onerado'!$A$8:$E$5189,5,0),VLOOKUP(C134,'Comp SINAPI PE 12-2023 Onerado'!$G$7:$K$7500,5,0)) -> 2.42 | H134: =ROUND(F134*G134,2) -> 3.12 | I134: ca | J134: =F134*G134 -> 3.11696
A135: 5.3.3 | B135: SINAPI | C135: 100947 | D135: =PROPER(IF(K135="i",VLOOKUP(C135,'Ins SINAPI PE 12-2023 Onerado'!$A$8:$E$5189,2,0),VLOOKUP(C135,'Comp SINAPI PE 12-2023 Onerado'!$G$7:$K$7500,2,0))) -> Transporte Com Caminhão Carroceria 9T, Em Via Urbana Pavimentada, Dmt Até 30Km (Unidade: Txkm). Af_07/2020 | E135: =LOWER(IF(K135="i",VLOOKUP(C135,'Ins SINAPI PE 12-2023 Onerado'!$A$8:$E$5189,3,0),VLOOKUP(C135,'Comp SINAPI PE 12-2023 Onerado'!$G$7:$K$7500,3,0))) -> txkm | F135: =VLOOKUP(A135,'Memorial de cálculo'!A19:H566,8,0) -> 0.61525 | G135: =IF(I135="i",VLOOKUP(C135,'Ins SINAPI PE 12-2023 Onerado'!$A$8:$E$5189,5,0),VLOOKUP(C135,'Comp SINAPI PE 12-2023 Onerado'!$G$7:$K$7500,5,0)) -> 2.23 | H135: =ROUND(F135*G135,2) -> 1.37 | I135: ca
A136: 5.3.4 | B136: SINAPI | C136: 88830 | D136: =PROPER(IF(K136="i",VLOOKUP(C136,'Ins SINAPI PE 12-2023 Onerado'!$A$8:$E$5189,2,0),VLOOKUP(C136,'Comp SINAPI PE 12-2023 Onerado'!$G$7:$K$7500,2,0))) -> Betoneira Capacidade Nominal De 400 L, Capacidade De Mistura 280 L, Motor Elétrico Trifásico Potência De 2 Cv, Sem Carregador - Chp Diurno. Af_05/2023 | E136: =LOWER(IF(K136="i",VLOOKUP(C136,'Ins SINAPI PE 12-2023 Onerado'!$A$8:$E$5189,3,0),VLOOKUP(C136,'Comp SINAPI PE 12-2023 Onerado'!$G$7:$K$7500,3,0))) -> chp | F136: =VLOOKUP(A136,'Memorial de cálculo'!A20:H567,8,0) -> 0.09516122 | G136: =IF(I136="i",VLOOKUP(C136,'Ins SINAPI PE 12-2023 Onerado'!$A$8:$E$5189,5,0),VLOOKUP(C136,'Comp SINAPI PE 12-2023 Onerado'!$G$7:$K$7500,5,0)) -> 2.04 | H136: 0.19 | I136: ca
A137: 5.3.5 | B137: SINAPI | C137: 88831 | D137: =PROPER(IF(K137="i",VLOOKUP(C137,'Ins SINAPI PE 12-2023 Onerado'!$A$8:$E$5189,2,0),VLOOKUP(C137,'Comp SINAPI PE 12-2023 Onerado'!$G$7:$K$7500,2,0))) -> Betoneira Capacidade Nominal De 400 L, Capacidade De Mistura 280 L, Motor Elétrico Trifásico Potência De 2 Cv, Sem Carregador - Chi Diurno. Af_05/2023 | E137: =LOWER(IF(K137="i",VLOOKUP(C137,'Ins SINAPI PE 12-2023 Onerado'!$A$8:$E$5189,3,0),VLOOKUP(C137,'Comp SINAPI PE 12-2023 Onerado'!$G$7:$K$7500,3,0))) -> chi | F137: =VLOOKUP(A137,'Memorial de cálculo'!A21:H568,8,0) -> 0.01805478 | G137: =IF(I137="i",VLOOKUP(C137,'Ins SINAPI PE 12-2023 Onerado'!$A$8:$E$5189,5,0),VLOOKUP(C137,'Comp SINAPI PE 12-2023 Onerado'!$G$7:$K$7500,5,0)) -> 0.42 | H137: 0.01 | I137: ca
A138: 5.3.6 | B138: COTAÇÃO | C138: CT.01 | D138: Hospedagem | E138: un | F138: =VLOOKUP(A138,'Memorial de cálculo'!A22:H569,8,0) -> 0.105 | G138: 90 | H138: 9.45 | I138: ca
A139: 5.3.7 | B139: SICRO | C139: E9134 | D139: Miniônibus com capacidade para 30 passageiros - 111 Kw | E139: chp | F139: =VLOOKUP(A139,'Memorial de cálculo'!A23:H570,8,0) -> 0.01525 | G139: 221.2038 | H139: 3.37 | I139: ca
A140: 5.3.8 | B140: SICRO | C140: E9134 | D140: Miniônibus com capacidade para 30 passageiros - 111 Kw | E140: chi | F140: =VLOOKUP(A140,'Memorial de cálculo'!A24:H571,8,0) -> 0.10675 | G140: 74.2404 | H140: 7.93 | I140: ca
B141: =B137 -> SINAPI | D141: MÃO DE OBRA | H141: 0 | I141: mdo
B143: ='Planilha Orçamentária'!A30 -> 5.4 | C143: =VLOOKUP($B143,'Planilha Orçamentária'!$A$10:$I$480,3,) -> CPU.12 | D143: =VLOOKUP($B143,'Planilha Orçamentária'!$A$10:$I$480,4,) -> Drenagem - Trecho curvo | E143: =VLOOKUP($B143,'Planilha Orçamentária'!$A$10:$I$57,5) -> M | H143: =SUM(H147:H154) -> 85.77 | I143: s
B144: =B143 -> 5.4 | D144: MATERIAL | H144: 0 | I144: ss
B145: =B143 -> 5.4 | D145: EQUIPAMENTOS | H145: 0 | I145: ss
B146: =B143 -> 5.4 | D146: SERVIÇOS | H146: =SUM(H147:H154) -> 85.77 | I146: ss
A147: 5.4.1 | B147: SINAPI | C147: 94268 | D147: =PROPER(IF(K147="i",VLOOKUP(C147,'Ins SINAPI PE 12-2023 Onerado'!$A$8:$E$5189,2,0),VLOOKUP(C147,'Comp SINAPI PE 12-2023 Onerado'!$G$7:$K$7500,2,0))) -> Guia (Meio-Fio) E Sarjeta Conjugados De Concreto, Moldada In Loco Em Trecho Curvo Com Extrusora, 45 Cm Base (15 Cm Base Da Guia + 30 Cm Base Da Sarjeta) X 22 Cm Altura. Af_01/2024 | E147: =LOWER(IF(K147="i",VLOOKUP(C147,'Ins SINAPI PE 12-2023 Onerado'!$A$8:$E$5189,3,0),VLOOKUP(C147,'Comp SINAPI PE 12-2023 Onerado'!$G$7:$K$7500,3,0))) -> m | F147: 1 | G147: =IF(I147="i",VLOOKUP(C147,'Ins SINAPI PE 12-2023 Onerado'!$A$8:$E$5189,5,0),VLOOKUP(C147,'Comp SINAPI PE 12-2023 Onerado'!$G$7:$K$7500,5,0)) -> 57.42 | H147: =ROUND(F147*G147,2) -> 57.42 | I147: ca
A148: 5.4.2 | B148: SINAPI | C148: 100946 | D148: =PROPER(IF(K148="i",VLOOKUP(C148,'Ins SINAPI PE 12-2023 Onerado'!$A$8:$E$5189,2,0),VLOOKUP(C148,'Comp SINAPI PE 12-2023 Onerado'!$G$7:$K$7500,2,0))) -> Transporte Com Caminhão Carroceria 9T, Em Via Urbana Em Revestimento Primário (Unidade: Txkm). Af_07/2020 | E148: =LOWER(IF(K148="i",VLOOKUP(C148,'Ins SINAPI PE 12-2023 Onerado'!$A$8:$E$5189,3,0),VLOOKUP(C148,'Comp SINAPI PE 12-2023 Onerado'!$G$7:$K$7500,3,0))) -> txkm | F148: =VLOOKUP(A148,'Memorial de cálculo'!A44:H580,8,0) -> 1.288 | G148: =IF(I148="i",VLOOKUP(C148,'Ins SINAPI PE 12-2023 Onerado'!$A$8:$E$5189,5,0),VLOOKUP(C148,'Comp SINAPI PE 12-2023 Onerado'!$G$7:$K$7500,5,0)) -> 2.42 | H148: =ROUND(F148*G148,2) -> 3.12 | I148: ca
A149: 5.4.3 | B149: SINAPI | C149: 100947 | D149: =PROPER(IF(K149="i",VLOOKUP(C149,'Ins SINAPI PE 12-2023 Onerado'!$A$8:$E$5189,2,0),VLOOKUP(C149,'Comp SINAPI PE 12-2023 Onerado'!$G$7:$K$7500,2,0))) -> Transporte Com Caminhão Carroceria 9T, Em Via Urbana Pavimentada, Dmt Até 30Km (Unidade: Txkm). Af_07/2020 | E149: =LOWER(IF(K149="i",VLOOKUP(C149,'Ins SINAPI PE 12-2023 Onerado'!$A$8:$E$5189,3,0),VLOOKUP(C149,'Comp SINAPI PE 12-2023 Onerado'!$G$7:$K$7500,3,0))) -> txkm | F149: =VLOOKUP(A149,'Memorial de cálculo'!A45:H581,8,0) -> 1.90325 | G149: =IF(I149="i",VLOOKUP(C149,'Ins SINAPI PE 12-2023 Onerado'!$A$8:$E$5189,5,0),VLOOKUP(C149,'Comp SINAPI PE 12-2023 Onerado'!$G$7:$K$7500,5,0)) -> 2.23 | H149: =ROUND(F149*G149,2) -> 4.24 | I149: ca
A150: 5.4.4 | B150: SINAPI | C150: 88830 | D150: =PROPER(IF(K150="i",VLOOKUP(C150,'Ins SINAPI PE 12-2023 Onerado'!$A$8:$E$5189,2,0),VLOOKUP(C150,'Comp SINAPI PE 12-2023 Onerado'!$G$7:$K$7500,2,0))) -> Betoneira Capacidade Nominal De 400 L, Capacidade De Mistura 280 L, Motor Elétrico Trifásico Potência De 2 Cv, Sem Carregador - Chp Diurno. Af_05/2023 | E150: =LOWER(IF(K150="i",VLOOKUP(C150,'Ins SINAPI PE 12-2023 Onerado'!$A$8:$E$5189,3,0),VLOOKUP(C150,'Comp SINAPI PE 12-2023 Onerado'!$G$7:$K$7500,3,0))) -> chp | F150: =VLOOKUP(A150,'Memorial de cálculo'!A46:H582,8,0) -> 0.11310145 | G150: =IF(I150="i",VLOOKUP(C150,'Ins SINAPI PE 12-2023 Onerado'!$A$8:$E$5189,5,0),VLOOKUP(C150,'Comp SINAPI PE 12-2023 Onerado'!$G$7:$K$7500,5,0)) -> 2.04 | H150: 0.23 | I150: ca
A151: 5.4.5 | B151: SINAPI | C151: 88831 | D151: =PROPER(IF(K151="i",VLOOKUP(C151,'Ins SINAPI PE 12-2023 Onerado'!$A$8:$E$5189,2,0),VLOOKUP(C151,'Comp SINAPI PE 12-2023 Onerado'!$G$7:$K$7500,2,0))) -> Betoneira Capacidade Nominal De 400 L, Capacidade De Mistura 280 L, Motor Elétrico Trifásico Potência De 2 Cv, Sem Carregador - Chi Diurno. Af_05/2023 | E151: =LOWER(IF(K151="i",VLOOKUP(C151,'Ins SINAPI PE 12-2023 Onerado'!$A$8:$E$5189,3,0),VLOOKUP(C151,'Comp SINAPI PE 12-2023 Onerado'!$G$7:$K$7500,3,0))) -> chi | F151: =VLOOKUP(A151,'Memorial de cálculo'!A47:H583,8,0) -> 0.02145855 | G151: =IF(I151="i",VLOOKUP(C151,'Ins SINAPI PE 12-2023 Onerado'!$A$8:$E$5189,5,0),VLOOKUP(C151,'Comp SINAPI PE 12-2023 Onerado'!$G$7:$K$7500,5,0)) -> 0.42 | H151: 0.01 | I151: ca
A152: 5.4.6 | B152: COTAÇÃO | C152: CT.01 | D152: Hospedagem | E152: un | F152: =VLOOKUP(A152,'Memorial de cálculo'!A48:H584,8,0) -> 0.105 | G152: 90 | H152: 9.45 | I152: ca
A153: 5.4.7 | B153: SICRO | C153: E9134 | D153: Miniônibus com capacidade para 30 passageiros - 111 Kw | E153: chp | F153: =VLOOKUP(A153,'Memorial de cálculo'!A49:H585,8,0) -> 0.01525 | G153: 221.2038 | H153: 3.37 | I153: ca
A154: 5.4.8 | B154: SICRO | C154: E9134 | D154: Miniônibus com capacidade para 30 passageiros - 111 Kw | E154: chi | F154: =VLOOKUP(A154,'Memorial de cálculo'!A50:H586,8,0) -> 0.10675 | G154: 74.2404 | H154: 7.93 | I154: ca
B155: =B151 -> SINAPI | D155: MÃO DE OBRA | H155: 0 | I155: mdo
B157: ='Planilha Orçamentária'!A31 -> 5.5 | C157: =VLOOKUP($B157,'Planilha Orçamentária'!$A$10:$I$480,3,) -> CPU.13 | D157: =VLOOKUP($B157,'Planilha Orçamentária'!$A$10:$I$480,4,) -> Revestimento com BGTC | E157: =VLOOKUP($B157,'Planilha Orçamentária'!$A$10:$I$57,5) -> M3 | H157: =SUM(H161:H167) -> 338.41 | I157: SS
B158: =B157 -> 5.5 | D158: MATERIAL | H158: 0 | I158: ss
B159: =B157 -> 5.5 | D159: EQUIPAMENTOS | H159: 0 | I159: ss
B160: =B157 -> 5.5 | D160: SERVIÇOS | H160: =SUM(H161:H167) -> 338.41 | I160: ss
A161: 5.5.1 | B161: SINAPI | C161: 96397 | D161: =PROPER(IF(K161="i",VLOOKUP(C161,'Ins SINAPI PE 12-2023 Onerado'!$A$8:$E$5189,2,0),VLOOKUP(C161,'Comp SINAPI PE 12-2023 Onerado'!$G$7:$K$7500,2,0))) -> Execução E Compactação De Base E Ou Sub Base Para Pavimentação De Brita Graduada Simples Tratada Com Cimento - Exclusive Carga E Transporte. Af_11/2019 | E161: =LOWER(IF(K161="i",VLOOKUP(C161,'Ins SINAPI PE 12-2023 Onerado'!$A$8:$E$5189,3,0),VLOOKUP(C161,'Comp SINAPI PE 12-2023 Onerado'!$G$7:$K$7500,3,0))) -> m3 | F161: 1 | G161: =IF(I161="i",VLOOKUP(C161,'Ins SINAPI PE 12-2023 Onerado'!$A$8:$E$5189,5,0),VLOOKUP(C161,'Comp SINAPI PE 12-2023 Onerado'!$G$7:$K$7500,5,0)) -> 240.32 | H161: =ROUND(F161*G161,2) -> 240.32 | I161: ca
A162: 5.5.2 | B162: SINAPI | C162: 100976 | D162: =PROPER(IF(K162="i",VLOOKUP(C162,'Ins SINAPI PE 12-2023 Onerado'!$A$8:$E$5189,2,0),VLOOKUP(C162,'Comp SINAPI PE 12-2023 Onerado'!$G$7:$K$7500,2,0))) -> Carga, Manobra E Descarga De Solos E Materiais Granulares Em Caminhão Basculante 18 M³ - Carga Com Pá Carregadeira (Caçamba De 1,7 A 2,8 M³ / 128 Hp) E Descarga Livre (Unidade: M3). Af_07/2020 | E162: =LOWER(IF(K162="i",VLOOKUP(C162,'Ins SINAPI PE 12-2023 Onerado'!$A$8:$E$5189,3,0),VLOOKUP(C162,'Comp SINAPI PE 12-2023 Onerado'!$G$7:$K$7500,3,0))) -> m3 | F162: =VLOOKUP(A162,'Memorial de cálculo'!A43:H575,8,0) -> 1 | G162: =IF(I162="i",VLOOKUP(C162,'Ins SINAPI PE 12-2023 Onerado'!$A$8:$E$5189,5,0),VLOOKUP(C162,'Comp SINAPI PE 12-2023 Onerado'!$G$7:$K$7500,5,0)) -> 8.28 | H162: =ROUND(F162*G162,2) -> 8.28 | I162: ca
A163: 5.5.3 | B163: SINAPI | C163: 93589 | D163: =PROPER(IF(K163="i",VLOOKUP(C163,'Ins SINAPI PE 12-2023 Onerado'!$A$8:$E$5189,2,0),VLOOKUP(C163,'Comp SINAPI PE 12-2023 Onerado'!$G$7:$K$7500,2,0))) -> Transporte Com Caminhão Basculante De 10 M³, Em Via Urbana Em Revestimento Primário (Unidade: M3Xkm). Af_07/2020 | E163: =LOWER(IF(K163="i",VLOOKUP(C163,'Ins SINAPI PE 12-2023 Onerado'!$A$8:$E$5189,3,0),VLOOKUP(C163,'Comp SINAPI PE 12-2023 Onerado'!$G$7:$K$7500,3,0))) -> m3xkm | F163: =VLOOKUP(A163,'Memorial de cálculo'!A44:H576,8,0) -> 22.4 | G163: =IF(I163="i",VLOOKUP(C163,'Ins SINAPI PE 12-2023 Onerado'!$A$8:$E$5189,5,0),VLOOKUP(C163,'Comp SINAPI PE 12-2023 Onerado'!$G$7:$K$7500,5,0)) -> 2.69 | H163: 60.26 | I163: ca
A164: 5.5.4 | B164: SINAPI | C164: 95875 | D164: =PROPER(IF(K164="i",VLOOKUP(C164,'Ins SINAPI PE 12-2023 Onerado'!$A$8:$E$5189,2,0),VLOOKUP(C164,'Comp SINAPI PE 12-2023 Onerado'!$G$7:$K$7500,2,0))) -> Transporte Com Caminhão Basculante De 10 M³, Em Via Urbana Pavimentada, Dmt Até 30 Km (Unidade: M3Xkm). Af_07/2020 | E164: =LOWER(IF(K164="i",VLOOKUP(C164,'Ins SINAPI PE 12-2023 Onerado'!$A$8:$E$5189,3,0),VLOOKUP(C164,'Comp SINAPI PE 12-2023 Onerado'!$G$7:$K$7500,3,0))) -> m3xkm | F164: =VLOOKUP(A164,'Memorial de cálculo'!A45:H577,8,0) -> 10.7 | G164: =IF(I164="i",VLOOKUP(C164,'Ins SINAPI PE 12-2023 Onerado'!$A$8:$E$5189,5,0),VLOOKUP(C164,'Comp SINAPI PE 12-2023 Onerado'!$G$7:$K$7500,5,0)) -> 2.47 | H164: 26.43 | I164: ca
A165: 5.5.5 | B165: COTAÇÃO | C165: CT.01 | D165: Hospedagem | E165: un | F165: =VLOOKUP(A165,'Memorial de cálculo'!A46:H578,8,0) -> 0.00375 | G165: 90 | H165: 0.34 | I165: ca
A166: 5.5.6 | B166: SICRO | C166: E9134 | D166: Miniônibus com capacidade para 30 passageiros - 111 Kw | E166: chp | F166: =VLOOKUP(A166,'Memorial de cálculo'!A47:H579,8,0) -> 0.00375 | G166: 221.2038 | H166: =ROUND(F166*G166,2) -> 0.83 | I166: ca
A167: 5.5.7 | B167: SICRO | C167: E9134 | D167: Miniônibus com capacidade para 30 passageiros - 111 Kw | E167: chi | F167: =VLOOKUP(A167,'Memorial de cálculo'!A48:H580,8,0) -> 0.02625 | G167: 74.2404 | H167: =ROUND(F167*G167,2) -> 1.95 | I167: ca
B168: =B157 -> 5.5 | D168: MÃO DE OBRA | H168: 0 | I168: mdo
B170: ='Planilha Orçamentária'!A34 -> 6.1 | C170: =VLOOKUP($B170,'Planilha Orçamentária'!$A$10:$I$480,3,) -> CPU.14 | D170: =VLOOKUP($B170,'Planilha Orçamentária'!$A$10:$I$480,4,) -> Enrocamento c/ pedra de mão para proteção do talude | E170: m³ | F170: 1 | H170: =SUM(H171,H173,H174,H181) -> 435.13 | I170: S
B171: =B170 -> 6.1 | D171: MATERIAL | H171: =SUM(H172:H172) -> 117.84 | I171: ss
A172: 6.1.1 | B172: SINAPI | C172: 4730 | D172: =IF(I172="i",VLOOKUP(C172,'Ins SINAPI PE 12-2023 Onerado'!$A$8:$E$5189,2,0),VLOOKUP(C172,'Comp SINAPI PE 12-2023 Onerado'!$G$7:$K$7500,2,0)) -> PEDRA DE MAO OU PEDRA RACHAO PARA ARRIMO/FUNDACAO (POSTO PEDREIRA/FORNECEDOR, SEM FRETE) | E172: =IF(I172="i",VLOOKUP(C172,'Ins SINAPI PE 12-2023 Onerado'!$A$8:$E$5189,3,0),VLOOKUP(C172,'Comp SINAPI PE 12-2023 Onerado'!$G$7:$K$7500,3,0)) -> M3 | F172: =VLOOKUP(A172,'Memorial de cálculo'!A53:H585,8,0) -> 1.2 | G172: =IF(I172="i",VLOOKUP(C172,'Ins SINAPI PE 12-2023 Onerado'!$A$8:$E$5189,5,0),VLOOKUP(C172,'Comp SINAPI PE 12-2023 Onerado'!$G$7:$K$7500,5,0)) -> 98.2 | H172: =ROUND(F172*G172,2) -> 117.84 | I172: i | J172: INDICES COM BASE NA COMPOSIÇÃO DA SICRO
B173: =B170 -> 6.1 | D173: EQUIPAMENTOS | I173: ss
B174: =B170 -> 6.1 | D174: SERVIÇOS | H174: =SUM(H175:H180) -> 203.16 | I174: ss
A175: 6.1.2 | B175: SINAPI | C175: 93589 | D175: =IF(I175="i",VLOOKUP(C175,'Ins SINAPI PE 12-2023 Onerado'!$A$8:$E$5189,2,0),VLOOKUP(C175,'Comp SINAPI PE 12-2023 Onerado'!$G$7:$K$7500,2,0)) -> TRANSPORTE COM CAMINHÃO BASCULANTE DE 10 M³, EM VIA URBANA EM REVESTIMENTO PRIMÁRIO (UNIDADE: M3XKM). AF_07/2020 | E175: =IF(I175="i",VLOOKUP(C175,'Ins SINAPI PE 12-2023 Onerado'!$A$8:$E$5189,3,0),VLOOKUP(C175,'Comp SINAPI PE 12-2023 Onerado'!$G$7:$K$7500,3,0)) -> M3XKM | F175: =VLOOKUP(A175,'Memorial de cálculo'!A56:H588,8,0) -> 22.4 | G175: =IF(I175="i",VLOOKUP(C175,'Ins SINAPI PE 12-2023 Onerado'!$A$8:$E$5189,5,0),VLOOKUP(C175,'Comp SINAPI PE 12-2023 Onerado'!$G$7:$K$7500,5,0)) -> 2.69 | H175: =ROUND(F175*G175,2) -> 60.26 | I175: ca
A176: 6.1.3 | B176: SINAPI | C176: 95875 | D176: =IF(I176="i",VLOOKUP(C176,'Ins SINAPI PE 12-2023 Onerado'!$A$8:$E$5189,2,0),VLOOKUP(C176,'Comp SINAPI PE 12-2023 Onerado'!$G$7:$K$7500,2,0)) -> TRANSPORTE COM CAMINHÃO BASCULANTE DE 10 M³, EM VIA URBANA PAVIMENTADA, DMT ATÉ 30 KM (UNIDADE: M3XKM). AF_07/2020 | E176: =IF(I176="i",VLOOKUP(C176,'Ins SINAPI PE 12-2023 Onerado'!$A$8:$E$5189,3,0),VLOOKUP(C176,'Comp SINAPI PE 12-2023 Onerado'!$G$7:$K$7500,3,0)) -> M3XKM | F176: =VLOOKUP(A176,'Memorial de cálculo'!A57:H589,8,0) -> 10.7 | G176: =IF(I176="i",VLOOKUP(C176,'Ins SINAPI PE 12-2023 Onerado'!$A$8:$E$5189,5,0),VLOOKUP(C176,'Comp SINAPI PE 12-2023 Onerado'!$G$7:$K$7500,5,0)) -> 2.47 | H176: =ROUND(F176*G176,2) -> 26.43 | I176: ca
A177: 6.1.4 | B177: SINAPI | C177: 100976 | D177: =IF(I177="i",VLOOKUP(C177,'Ins SINAPI PE 12-2023 Onerado'!$A$8:$E$5189,2,0),VLOOKUP(C177,'Comp SINAPI PE 12-2023 Onerado'!$G$7:$K$7500,2,0)) -> CARGA, MANOBRA E DESCARGA DE SOLOS E MATERIAIS GRANULARES EM CAMINHÃO BASCULANTE 18 M³ - CARGA COM PÁ CARREGADEIRA (CAÇAMBA DE 1,7 A 2,8 M³ / 128 HP) E DESCARGA LIVRE (UNIDADE: M3). AF_07/2020 | E177: =IF(I177="i",VLOOKUP(C177,'Ins SINAPI PE 12-2023 Onerado'!$A$8:$E$5189,3,0),VLOOKUP(C177,'Comp SINAPI PE 12-2023 Onerado'!$G$7:$K$7500,3,0)) -> M3 | F177: =VLOOKUP(A177,'Memorial de cálculo'!A58:H590,8,0) -> 1 | G177: =IF(I177="i",VLOOKUP(C177,'Ins SINAPI PE 12-2023 Onerado'!$A$8:$E$5189,5,0),VLOOKUP(C177,'Comp SINAPI PE 12-2023 Onerado'!$G$7:$K$7500,5,0)) -> 8.28 | H177: =ROUND(F177*G177,2) -> 8.28 | I177: ca
A178: 6.1.5 | B178: COTAÇÃO | C178: CT.01 | D178: Hospedagem | E178: un | F178: =VLOOKUP(A178,'Memorial de cálculo'!A62:H594,8,0) -> 0.6875 | G178: 90 | H178: =ROUND(F178*G178,2) -> 61.88 | I178: ca
A179: 6.1.6 | B179: SICRO | C179: E9134 | D179: Miniônibus com capacidade para 30 passageiros - 111 Kw | E179: chp | F179: =VLOOKUP(A179,'Memorial de cálculo'!A63:H595,8,0) -> 0.0625 | G179: 221.2038 | H179: 13.83 | I179: ca
A180: 6.1.7 | B180: SICRO | C180: E9134 | D180: Miniônibus com capacidade para 30 passageiros - 111 Kw | E180: chi | F180: =VLOOKUP(A180,'Memorial de cálculo'!A64:H596,8,0) -> 0.4375 | G180: 74.2404 | H180: =ROUND(F180*G180,2) -> 32.48 | I180: ca
B181: =B170 -> 6.1 | D181: MÃO DE OBRA | H181: =SUM(H182:H184) -> 114.13 | I181: mdo
A182: 6.1.8 | B182: SINAPI | C182: 88309 | D182: =IF(I182="i",VLOOKUP(C182,'Ins SINAPI PE 12-2023 Onerado'!$A$8:$E$5189,2,0),VLOOKUP(C182,'Comp SINAPI PE 12-2023 Onerado'!$G$7:$K$7500,2,0)) -> PEDREIRO COM ENCARGOS COMPLEMENTARES | E182: =IF(I182="i",VLOOKUP(C182,'Ins SINAPI PE 12-2023 Onerado'!$A$8:$E$5189,3,0),VLOOKUP(C182,'Comp SINAPI PE 12-2023 Onerado'!$G$7:$K$7500,3,0)) -> H | F182: =VLOOKUP(A182,'Memorial de cálculo'!A60:H592,8,0) -> 0.5 | G182: =IF(I182="i",VLOOKUP(C182,'Ins SINAPI PE 12-2023 Onerado'!$A$8:$E$5189,5,0),VLOOKUP(C182,'Comp SINAPI PE 12-2023 Onerado'!$G$7:$K$7500,5,0)) -> 25.46 | H182: =ROUND(F182*G182,2) -> 12.73 | I182: ca
A183: 6.1.9 | B183: SINAPI | C183: 88316 | D183: =IF(I183="i",VLOOKUP(C183,'Ins SINAPI PE 12-2023 Onerado'!$A$8:$E$5189,2,0),VLOOKUP(C183,'Comp SINAPI PE 12-2023 Onerado'!$G$7:$K$7500,2,0)) -> SERVENTE COM ENCARGOS COMPLEMENTARES | E183: =IF(I183="i",VLOOKUP(C183,'Ins SINAPI PE 12-2023 Onerado'!$A$8:$E$5189,3,0),VLOOKUP(C183,'Comp SINAPI PE 12-2023 Onerado'!$G$7:$K$7500,3,0)) -> H | F183: =VLOOKUP(A183,'Memorial de cálculo'!A61:H593,8,0) -> 5 | G183: =IF(I183="i",VLOOKUP(C183,'Ins SINAPI PE 12-2023 Onerado'!$A$8:$E$5189,5,0),VLOOKUP(C183,'Comp SINAPI PE 12-2023 Onerado'!$G$7:$K$7500,5,0)) -> 20.28 | H183: =ROUND(F183*G183,2) -> 101.4 | I183: ca
B185: ='Planilha Orçamentária'!A37 -> 7.1 | C185: =VLOOKUP($B185,'Planilha Orçamentária'!$A$10:$I$480,3,) -> CPU.15 | D185: =VLOOKUP($B185,'Planilha Orçamentária'!$A$10:$I$480,4,) -> Canaleta para descida d'água | E185: un | H185: =H188 -> 71.35 | I185: s
B186: =B185 -> 7.1 | D186: MATERIAL | I186: ss
B187: =B185 -> 7.1 | D187: EQUIPAMENTOS | I187: ss
B188: =B185 -> 7.1 | D188: SERVIÇOS | H188: =SUM(H189:H194) -> 71.35 | I188: ss
A189: 7.1.1 | B189: SINAPI | C189: 102990 | D189: =PROPER(IF(K186="i",VLOOKUP(C189,'Ins SINAPI PE 12-2023 Onerado'!$A$8:$E$5189,2,0),VLOOKUP(C189,'Comp SINAPI PE 12-2023 Onerado'!$G$7:$K$7500,2,0))) -> Canaleta Meia Cana Pré-Moldada De Concreto (D = 30 Cm) - Fornecimento E Instalação. Af_08/2021 | E189: =LOWER(IF(K186="i",VLOOKUP(C189,'Ins SINAPI PE 12-2023 Onerado'!$A$8:$E$5189,3,0),VLOOKUP(C189,'Comp SINAPI PE 12-2023 Onerado'!$G$7:$K$7500,3,0))) -> m | F189: 1 | G189: =IF(I189="i",VLOOKUP(C189,'Ins SINAPI PE 12-2023 Onerado'!$A$8:$E$5189,5,0),VLOOKUP(C189,'Comp SINAPI PE 12-2023 Onerado'!$G$7:$K$7500,5,0)) -> 45.75 | H189: =ROUND(F189*G189,2) -> 45.75 | I189: ca
A190: 7.1.2 | B190: SINAPI | C190: 100946 | D190: =PROPER(IF(K187="i",VLOOKUP(C190,'Ins SINAPI PE 12-2023 Onerado'!$A$8:$E$5189,2,0),VLOOKUP(C190,'Comp SINAPI PE 12-2023 Onerado'!$G$7:$K$7500,2,0))) -> Transporte Com Caminhão Carroceria 9T, Em Via Urbana Em Revestimento Primário (Unidade: Txkm). Af_07/2020 | E190: =LOWER(IF(K187="i",VLOOKUP(C190,'Ins SINAPI PE 12-2023 Onerado'!$A$8:$E$5189,3,0),VLOOKUP(C190,'Comp SINAPI PE 12-2023 Onerado'!$G$7:$K$7500,3,0))) -> txkm | F190: =VLOOKUP(A190,'Memorial de cálculo'!A99:H623,8,0) -> 1.792 | G190: =IF(I190="i",VLOOKUP(C190,'Ins SINAPI PE 12-2023 Onerado'!$A$8:$E$5189,5,0),VLOOKUP(C190,'Comp SINAPI PE 12-2023 Onerado'!$G$7:$K$7500,5,0)) -> 2.42 | H190: =ROUND(F190*G190,2) -> 4.34 | I190: ca
A191: 7.1.3 | B191: SINAPI | C191: 100947 | D191: =PROPER(IF(K188="i",VLOOKUP(C191,'Ins SINAPI PE 12-2023 Onerado'!$A$8:$E$5189,2,0),VLOOKUP(C191,'Comp SINAPI PE 12-2023 Onerado'!$G$7:$K$7500,2,0))) -> Transporte Com Caminhão Carroceria 9T, Em Via Urbana Pavimentada, Dmt Até 30Km (Unidade: Txkm). Af_07/2020 | E191: =LOWER(IF(K188="i",VLOOKUP(C191,'Ins SINAPI PE 12-2023 Onerado'!$A$8:$E$5189,3,0),VLOOKUP(C191,'Comp SINAPI PE 12-2023 Onerado'!$G$7:$K$7500,3,0))) -> txkm | F191: =VLOOKUP(A191,'Memorial de cálculo'!A100:H624,8,0) -> 0.856 | G191: =IF(I191="i",VLOOKUP(C191,'Ins SINAPI PE 12-2023 Onerado'!$A$8:$E$5189,5,0),VLOOKUP(C191,'Comp SINAPI PE 12-2023 Onerado'!$G$7:$K$7500,5,0)) -> 2.23 | H191: =ROUND(F191*G191,2) -> 1.91 | I191: ca
A192: 7.1.4 | B192: COTAÇÃO | C192: CT.01 | D192: Hospedagem | E192: un | F192: =VLOOKUP(A192,'Memorial de cálculo'!A72:H603,8,0) -> 0.0703 | G192: 90 | H192: 6.33 | I192: ca
A193: 7.1.5 | B193: SICRO | C193: E9134 | D193: Miniônibus com capacidade para 30 passageiros - 111 Kw | E193: chp | F193: =VLOOKUP(A193,'Memorial de cálculo'!A73:H604,8,0) -> 0.017575 | G193: 221.2038 | H193: 3.89 | I193: ca
A194: 7.1.6 | B194: SICRO | C194: E9134 | D194: Miniônibus com capacidade para 30 passageiros - 111 Kw | E194: chi | F194: =VLOOKUP(A194,'Memorial de cálculo'!A74:H605,8,0) -> 0.123025 | G194: 74.2404 | H194: 9.13 | I194: ca
B195: =B180 -> SICRO | D195: MÃO DE OBRA | H195: 0 | I195: mdo
B197: ='Planilha Orçamentária'!A38 -> 7.2 | C197: =VLOOKUP($B197,'Planilha Orçamentária'!$A$10:$I$480,3,) -> CPU.16 | D197: =VLOOKUP($B197,'Planilha Orçamentária'!$A$10:$I$480,4,) -> Entrada para descida d'água | E197: un | H197: =H198+H199+H200+H206 -> 93.32 | I197: s
B198: =B197 -> 7.2 | D198: MATERIAL | I198: ss
B199: =B197 -> 7.2 | D199: EQUIPAMENTOS | I199: ss
B200: =B197 -> 7.2 | D200: SERVIÇOS | H200: =SUM(H201:H205) -> 93.32 | I200: ss
A201: 7.2.1 | B201: SINPAI | C201: 94964 | D201: =PROPER(IF(K201="i",VLOOKUP(C201,'Ins SINAPI PE 12-2023 Onerado'!$A$8:$E$5189,2,0),VLOOKUP(C201,'Comp SINAPI PE 12-2023 Onerado'!$G$7:$K$7500,2,0))) -> Concreto Fck = 20Mpa, Traço 1:2,7:3 (Em Massa Seca De Cimento/ Areia Média/ Brita 1) - Preparo Mecânico Com Betoneira 400 L. Af_05/2021 | E201: =IF(I201="i",VLOOKUP(C201,'Ins SINAPI PE 12-2023 Onerado'!$A$8:$E$5189,3,0),VLOOKUP(C201,'Comp SINAPI PE 12-2023 Onerado'!$G$7:$K$7500,3,0)) -> M3 | F201: =VLOOKUP(A201,'Memorial de cálculo'!A80:H612,8,0) -> 0.11 | G201: =IF(I201="i",VLOOKUP(C201,'Ins SINAPI PE 12-2023 Onerado'!$A$8:$E$5189,5,0),VLOOKUP(C201,'Comp SINAPI PE 12-2023 Onerado'!$G$7:$K$7500,5,0)) -> 476.05 | H201: =ROUND(F201*G201,2) -> 52.37 | I201: ca | J201: índices baseados em SICRO 2003385 Entrada para descida d'água - EDA 01 - areia e brita comerciais
A202: 7.2.2 | B202: SINPAI | C202: 92268 | D202: =PROPER(IF(K202="i",VLOOKUP(C202,'Ins SINAPI PE 12-2023 Onerado'!$A$8:$E$5189,2,0),VLOOKUP(C202,'Comp SINAPI PE 12-2023 Onerado'!$G$7:$K$7500,2,0))) -> Fabricação De Fôrma Para Lajes, Em Chapa De Madeira Compensada Plastificada, E = 18 Mm. Af_09/2020 | E202: =IF(I202="i",VLOOKUP(C202,'Ins SINAPI PE 12-2023 Onerado'!$A$8:$E$5189,3,0),VLOOKUP(C202,'Comp SINAPI PE 12-2023 Onerado'!$G$7:$K$7500,3,0)) -> M2 | F202: =VLOOKUP(A202,'Memorial de cálculo'!A81:H613,8,0) -> 0.1 | G202: =IF(I202="i",VLOOKUP(C202,'Ins SINAPI PE 12-2023 Onerado'!$A$8:$E$5189,5,0),VLOOKUP(C202,'Comp SINAPI PE 12-2023 Onerado'!$G$7:$K$7500,5,0)) -> 88.55 | H202: 8.86 | I202: ca
A203: 7.2.3 | B203: COTAÇÃO | C203: CT.01 | D203: Hospedagem | E203: un | F203: =VLOOKUP(A203,'Memorial de cálculo'!A82:H614,8,0) -> 0.06979075 | G203: 90 | H203: 6.28 | I203: ca
A204: 7.2.4 | B204: SICRO | C204: E9134 | D204: Miniônibus com capacidade para 30 passageiros - 111 Kw | E204: chp | F204: =VLOOKUP(A204,'Memorial de cálculo'!A83:H615,8,0) -> 0.034832875 | G204: 221.2038 | H204: 7.71 | I204: ca
A205: 7.2.5 | B205: SICRO | C205: E9134 | D205: Miniônibus com capacidade para 30 passageiros - 111 Kw | E205: chi | F205: =VLOOKUP(A205,'Memorial de cálculo'!A84:H616,8,0) -> 0.243830125 | G205: 74.2404 | H205: 18.1 | I205: ca
B206: =B197 -> 7.2 | D206: MÃO DE OBRA | H206: 0 | I206: mdo
B208: ='Planilha Orçamentária'!A41 -> 8.1 | C208: =VLOOKUP($B208,'Planilha Orçamentária'!$A$10:$I$480,3,) -> CPU.17 | D208: =VLOOKUP($B208,'Planilha Orçamentária'!$A$10:$I$480,4,) -> Aplicação de Adubo | E208: un | H208: =H211 -> 5.21 | I208: s
B209: =B208 -> 8.1 | D209: MATERIAL | I209: ss
B210: =B208 -> 8.1 | D210: EQUIPAMENTOS | I210: ss
B211: =B208 -> 8.1 | D211: SERVIÇOS | H211: =H212+H213+H214+H215+H216+H217 -> 5.21 | I211: ss
A212: 8.1.1 | B212: SINAPI | C212: 98520 | D212: =PROPER(IF(K212="i",VLOOKUP(C212,'Ins SINAPI PE 12-2023 Onerado'!$A$8:$E$5189,2,0),VLOOKUP(C212,'Comp SINAPI PE 12-2023 Onerado'!$G$7:$K$7500,2,0))) -> Aplicação De Adubo Em Solo. Af_05/2018 | E212: =LOWER(IF(K212="i",VLOOKUP(C212,'Ins SINAPI PE 12-2023 Onerado'!$A$8:$E$5189,3,0),VLOOKUP(C212,'Comp SINAPI PE 12-2023 Onerado'!$G$7:$K$7500,3,0))) -> m2 | F212: =VLOOKUP(A212,'Memorial de cálculo'!A99:H623,8,0) -> 1 | G212: =IF(I212="i",VLOOKUP(C212,'Ins SINAPI PE 12-2023 Onerado'!$A$8:$E$5189,5,0),VLOOKUP(C212,'Comp SINAPI PE 12-2023 Onerado'!$G$7:$K$7500,5,0)) -> 4.51 | H212: =ROUND(F212*G212,2) -> 4.51 | I212: ca
A213: 8.1.2 | B213: COTAÇÃO | C213: CT.01 | D213: Hospedagem | E213: un | F213: =VLOOKUP(A213,'Memorial de cálculo'!A100:H624,8,0) -> 0.002075 | G213: 90 | H213: =ROUND(F213*G213,2) -> 0.19 | I213: ca
A214: 8.1.3 | B214: SICRO | C214: E9134 | D214: Miniônibus com capacidade para 30 passageiros - 111 Kw | E214: chp | F214: =VLOOKUP(A214,'Memorial de cálculo'!A101:H625,8,0) -> 0.000415625 | G214: 221.2038 | H214: 0.09 | I214: ca
A215: 8.1.4 | B215: SICRO | C215: E9134 | D215: Miniônibus com capacidade para 30 passageiros - 111 Kw | E215: chi | F215: =VLOOKUP(A215,'Memorial de cálculo'!A102:H626,8,0) -> 0.002909375 | G215: 74.2404 | H215: 0.22 | I215: ca
A216: 8.1.5 | B216: SINAPI | C216: 100946 | D216: =PROPER(IF(K216="i",VLOOKUP(C216,'Ins SINAPI PE 12-2023 Onerado'!$A$8:$E$5189,2,0),VLOOKUP(C216,'Comp SINAPI PE 12-2023 Onerado'!$G$7:$K$7500,2,0))) -> Transporte Com Caminhão Carroceria 9T, Em Via Urbana Em Revestimento Primário (Unidade: Txkm). Af_07/2020 | E216: =LOWER(IF(K216="i",VLOOKUP(C216,'Ins SINAPI PE 12-2023 Onerado'!$A$8:$E$5189,3,0),VLOOKUP(C216,'Comp SINAPI PE 12-2023 Onerado'!$G$7:$K$7500,3,0))) -> txkm | F216: =VLOOKUP(A216,'Memorial de cálculo'!A104:H628,8,0) -> 0.05824 | G216: =IF(I216="i",VLOOKUP(C216,'Ins SINAPI PE 12-2023 Onerado'!$A$8:$E$5189,5,0),VLOOKUP(C216,'Comp SINAPI PE 12-2023 Onerado'!$G$7:$K$7500,5,0)) -> 2.42 | H216: 0.14 | I216: ca
A217: 8.1.6 | B217: SINAPI | C217: 100947 | D217: =PROPER(IF(K217="i",VLOOKUP(C217,'Ins SINAPI PE 12-2023 Onerado'!$A$8:$E$5189,2,0),VLOOKUP(C217,'Comp SINAPI PE 12-2023 Onerado'!$G$7:$K$7500,2,0))) -> Transporte Com Caminhão Carroceria 9T, Em Via Urbana Pavimentada, Dmt Até 30Km (Unidade: Txkm). Af_07/2020 | E217: =LOWER(IF(K217="i",VLOOKUP(C217,'Ins SINAPI PE 12-2023 Onerado'!$A$8:$E$5189,3,0),VLOOKUP(C217,'Comp SINAPI PE 12-2023 Onerado'!$G$7:$K$7500,3,0))) -> txkm | F217: =VLOOKUP(A217,'Memorial de cálculo'!A105:H629,8,0) -> 0.02782 | G217: =IF(I217="i",VLOOKUP(C217,'Ins SINAPI PE 12-2023 Onerado'!$A$8:$E$5189,5,0),VLOOKUP(C217,'Comp SINAPI PE 12-2023 Onerado'!$G$7:$K$7500,5,0)) -> 2.23 | H217: 0.06 | I217: ca
B218: =B207 -> 0 | D218: MÃO DE OBRA | H218: 0 | I218: mdo
... 95 more rows

Sheet Memorial de cálculo
A1: Ministério da Integração e do Desenvolvimento Regional
A2: Companhia de Desenvolvimento dos Vales do São Francisco e do Parnaíba
A4: MEMORIAL DE CÁLCULO | G4: h | H4: km
A5: OBRA: | B5: ='Planilha Orçamentária'!B4 -> SERVIÇOS DE MANUTENÇÃO E OBRAS CIVIS NA BARRAGEM JUÁ I | C5: DESLOCAMENTO - Petrolina para Cabrobó (km) - (tempo IDA E VOLTA - h) | G5: 5 | H5: 182
A6: LOCAL: | B6: ='Planilha Orçamentária'!B5 -> BARRAGEM JUÁ I, CABROBÓ/PE | C6: DESLOCAMENTO -Cabrobó para Barragem Juá I (km)-(tempo IDA E VOLTA - h): | G6: 1 | H6: 33.1
A7: DATA BASE: | B7: 2024-05-01 | C7: VIA URBANA PAVIMENTADA - Cabrobó para Barragem Juá I (km) | H7: 10.7
A8: PRAZO: | B8: ='Planilha Orçamentária'!B7 -> 90 DIAS | C8: REVESTIMENTO PRIMÁRIO - Cabrobó para Barragem Juá I (km) | H8: 22.4
A9: ITEM | B9: DESCRIÇÃO | C9: UNID. | D9: PARÂMETRO 1 | E9: PARÂMETRO 2 | F9: PARÂMETRO 3 | G9: PARÂMETRO 4 | H9: TOTAL
A10: ='Planilha Orçamentária'!A10 -> 1 | B10: =VLOOKUP(A10,'Planilha Orçamentária'!$A$10:$D$57,4,0) -> ADMINISTRAÇÃO DA OBRA
A11: ='Planilha Orçamentária'!A11 -> 1.1 | B11: =VLOOKUP(A11,'Planilha Orçamentária'!$A$7:$E$5169,4,0) -> Administração Local | C11: =VLOOKUP(A11,'Planilha Orçamentária'!$A$7:$E$5169,5,0) -> mês | D11: QUANT PESSOAS | E11: HORAS DIÁRIA | F11: DIAS TRABALHADOS NO MÊS | G11: MESES | H11: =G12 -> 3
A12: CPU.01 | G12: 3 | H12: 1
B14: Engenheiro Civil De Obra Pleno Com Encargos Complementares | C14: h | D14: 1 | E14: 1.5 | F14: 20 | H14: 30
B15: Encarregado Geral De Obras Com Encargos Complementares | C15: mes | D15: 1 | G15: 0.8 | H15: 0.8
B16: VIGIA NOTURNO COM ENCARGOS COMPLEMENTARES | C16: h | D16: 4 | E16: 12 | F16: 15 | H16: 720
A18: ='Planilha Orçamentária'!A13 -> 2 | B18: =VLOOKUP(A18,'Planilha Orçamentária'!$A$10:$D$57,4,0) -> SERVIÇOS PRELIMINARES
A19: ='Planilha Orçamentária'!A14 -> 2.1 | B19: =VLOOKUP(A19,'Planilha Orçamentária'!$A$7:$E$5169,4,0) -> Mobilização e desmobilização de instalação do canteiro | C19: =VLOOKUP(A19,'Planilha Orçamentária'!$A$7:$E$5169,5,0) -> un | D19: TEMPO DE VIAGEM | E19: TONELADAS | F19: KM | G19: IDA E VOLTA | H19: 1
A20: CPU.03
A21: SICRO | B21: Miniônibus com capacidade para 30 passageiros - 111 Kw | C21: chp | D21: 3 | G21: 2 | H21: =D21*G21 -> 6
A22: SICRO | B22: Miniônibus com capacidade para 30 passageiros - 111 Kw | C22: chi | D22: =8-D21 -> 5 | G22: 2 | H22: =D22*G22 -> 10
A23: 100946 | B23: TRANSPORTE COM CAMINHÃO CARROCERIA 9T, EM VIA URBANA EM REVESTIMENTO PRIMÁRIO (UNIDADE: TXKM). AF_07/2020 | C23: =IF(G23="i",VLOOKUP(A23,'Ins SINAPI PE 12-2023 Onerado'!$A$8:$E$5189,3,0),VLOOKUP(A23,'Comp SINAPI PE 12-2023 Onerado'!$G$7:$K$7500,3,0)) -> TXKM | E23: 5 | F23: =$H$6 -> 33.1 | G23: 2 | H23: =E23*F23*G23 -> 331
A24: 100947 | B24: TRANSPORTE COM CAMINHÃO CARROCERIA 9T, EM VIA URBANA PAVIMENTADA, DMT ATÉ 30KM (UNIDADE: TXKM). AF_07/2020 | C24: =IF(G24="i",VLOOKUP(A24,'Ins SINAPI PE 12-2023 Onerado'!$A$8:$E$5189,3,0),VLOOKUP(A24,'Comp SINAPI PE 12-2023 Onerado'!$G$7:$K$7500,3,0)) -> TXKM | E24: 5 | F24: =$H$5 -> 182 | G24: 2 | H24: =E24*F24*G24 -> 1820 | I24: =5*194*2 -> 1940
A25: DIAS MÃO DE OBRA | B25: MOTORISTA DE VEÍCULO LEVE COM ENCARGOS COMPLEMENTARES | C25: h | H25: =H21+H22 -> 16
A27: =CPU!A22 -> 2.1.1 | B27: =VLOOKUP(A27,CPU!$A$7:$E$5453,4,0) -> Miniônibus com capacidade para 30 passageiros - 111 Kw | C27: =VLOOKUP(A27,CPU!$A$7:$E$5453,5,0) -> chp | D27: tempo de viagem | E27: Ida e Volta | G27: ÍNDICE | H27: =H28 -> 5
D28: =G5 -> 5 | E28: 2 | H28: =D28 -> 5
A29: =CPU!A23 -> 2.1.2 | B29: =VLOOKUP(A29,CPU!$A$7:$E$5453,4,0) -> Miniônibus com capacidade para 30 passageiros - 111 Kw | C29: =VLOOKUP(A29,CPU!$A$7:$E$5453,5,0) -> chi | D29: tempo de viagem | E29: Ida e Volta | G29: ÍNDICE | H29: =H30 -> 11
D30: =(8*2)-5 -> 11 | E30: 2 | H30: =D30 -> 11
A31: =CPU!A24 -> 2.1.3 | B31: =VLOOKUP(A31,CPU!$A$7:$E$5453,4,0) -> TRANSPORTE COM CAMINHÃO CARROCERIA 9T, EM VIA URBANA EM REVESTIMENTO PRIMÁRIO (UNIDADE: TXKM). AF_07/2020 | C31: =VLOOKUP(A31,CPU!$A$7:$E$5453,5,0) -> TXKM | D31: ton | E31: Ida e Volta | F31: km | G31: ÍNDICE | H31: =H32 -> 224
D32: 5 | E32: 2 | F32: =H8 -> 22.4 | H32: =D32*E32*F32 -> 224
A33: =CPU!A25 -> 2.1.4 | B33: =VLOOKUP(A33,CPU!$A$7:$E$5453,4,0) -> TRANSPORTE COM CAMINHÃO CARROCERIA 9T, EM VIA URBANA PAVIMENTADA, DMT ATÉ 30KM (UNIDADE: TXKM). AF_07/2020 | C33: =VLOOKUP(A33,CPU!$A$7:$E$5453,5,0) -> TXKM | D33: ton | E33: Ida e Volta | F33: km | G33: ÍNDICE | H33: =H34 -> 1820
D34: 5 | E34: 2 | F34: =H5 -> 182 | H34: =D34*E34*F34 -> 1820
A35: =CPU!A28 -> 2.1.5 | B35: =VLOOKUP(A35,CPU!$A$7:$E$5453,4,0) -> Motorista De Veículo Leve Com Encargos Complementares | C35: =VLOOKUP(A35,CPU!$A$7:$E$5453,5,0) -> h | E35: Ida e Volta | H35: =H36 -> 16
C36: 8 | E36: 2 | H36: =E36*C36 -> 16
A37: ='Planilha Orçamentária'!A15 -> 2.2 | B37: =VLOOKUP(A37,'Planilha Orçamentária'!$A$7:$E$5169,4,0) -> Canteiro de obras | H37: =H38+H39+H40 -> 28.5
B38: dimensões refeitório | D38: 1 | E38: 3 | F38: 2.5 | H38: =D38*E38*F38 -> 7.5
B39: dimensões banheiro | D39: 1 | E39: 4.5 | F39: 2 | H39: =D39*E39*F39 -> 9
B40: dimensões central de formas | D40: 1 | E40: 4 | F40: 3 | H40: =D40*E40*F40 -> 12
A41: =CPU!A34 -> 2.2.1 | B41: =VLOOKUP(A41,CPU!$A$7:$E$5453,4,0) -> Limpeza Manual De Vegetação Em Terreno Com Enxada. Af_03/2024 | C41: =VLOOKUP(A41,CPU!$A$7:$E$5453,5,0) -> m2 | D41: QUANT PESSOAS | E41: RENDIMENTO (H/M2) | F41: m2 | G41: HORAS | H41: =H42/C42 -> 1 | I41: =H45+H80 -> 0.133975
B42: Conforme as áreas REFEITÓRIO, SANITÁRIO E CENTRAL DE FORMAS | C42: 28.5 | H42: =C42 -> 28.5
B44: MÃO DE OBRA | D44: PESSOAS | E44: ÍNDICE | F44: RENDIMENTO | G44: H | H44: DIAS | I44: H | J44: DIAS
A45: DIAS MÃO DE OBRA | B45: 88316 SERVENTE COM ENCARGOS COMPLEMENTARES/88441 JARDINEIRO COM ENCARGOS COMPLEMENTARES | C45: h | D45: 1 | E45: 0.0718 | F45: =E45/D45 -> 0.0718 | G45: =$F$45*$H$41 -> 0.0718 | H45: =G45/8 -> 0.008975 | I45: =F45*H42 -> 2.0463 | J45: =I45/8 -> 0.2557875
A47: =CPU!A35 -> 2.2.2 | B47: =VLOOKUP(A47,CPU!$A$7:$E$5453,4,0) -> Concreto Fck = 15Mpa, Traço 1:3,4:3,5 (Em Massa Seca De Cimento/ Areia Média/ Brita 1) - Preparo Manual. Af_05/2021 | C47: =VLOOKUP(A47,CPU!$A$7:$E$5453,5,0) -> m3 | G47: ÍNDICE | H47: =H48 -> 0.05
B48: Soma da área das instalações do canteiro | D48: =C42 -> 28.5 | G48: 0.05 | H48: =G48 -> 0.05
A50: =CPU!A36 -> 2.2.3 | B50: =VLOOKUP(A50,CPU!$A$7:$E$5453,4,0) -> Execução De Refeitório Em Canteiro De Obra Em Chapa De Madeira Compensada, Não Incluso Mobiliário E Equipamentos. Af_02/2016 | C50: =VLOOKUP(A50,CPU!$A$7:$E$5453,5,0) ->  | H50: =H51/$C$42 -> 0.2631578947
B51: Área do Refeitório Em Canteiro De Obra | D51: 1 | E51: 3 | F51: 2.5 | H51: =D51*E51*F51 -> 7.5
A53: =CPU!A37 -> 2.2.4 | B53: =VLOOKUP(A53,CPU!$A$7:$E$5453,4,0) -> Execução De Sanitário E Vestiário Em Canteiro De Obra Em Chapa De Madeira Compensada, Não Incluso Mobiliário. Af_02/2016 | C53: =VLOOKUP(A53,CPU!$A$7:$E$5453,5,0) ->  | H53: =H54/$C$42 -> 0.3157894737
B54: Área do Sanitário Em Canteiro De Obra | D54: 1 | E54: 4.5 | F54: 2 | H54: =D54*E54*F54 -> 9
A56: =CPU!A38 -> 2.2.5 | B56: =VLOOKUP(A56,CPU!$A$7:$E$5453,4,0) -> Execução De Central De Fôrmas, Produção De Argamassa Ou Concreto Em Canteiro De Obra, Não Incluso Mobiliário E Equipamentos. Af_04/2016 | C56: =VLOOKUP(A56,CPU!$A$7:$E$5453,5,0) ->  | H56: =H57/$C$42 -> 0.4210526316
B57: Área da Central de Fôrmas Em Canteiro De Obra | D57: 1 | E57: 4 | F57: 3 | H57: =D57*E57*F57 -> 12
A59: =CPU!A39 -> 2.2.6 | B59: =VLOOKUP(A59,CPU!$A$7:$E$5453,4,0) -> Hospedagem | C59: =VLOOKUP(A59,CPU!$A$7:$E$5453,5,0) -> un | H59: =$H$45*$D$45 -> 0.008975
A61: =CPU!A40 -> 2.2.7 | B61: =VLOOKUP(A61,CPU!$A$7:$E$5453,4,0) -> Miniônibus com capacidade para 30 passageiros - 111 Kw | C61: =VLOOKUP(A61,CPU!$A$7:$E$5453,5,0) -> chp | E61: horas diárias | F61: dias de trabalho | H61: =H62 -> 0.008975
C62: chp | E62: 1 | F62: =$H$45 -> 0.008975 | H62: =E62*F62 -> 0.008975
A63: =CPU!A41 -> 2.2.8 | B63: =VLOOKUP(A63,CPU!$A$7:$E$5453,4,0) -> Miniônibus com capacidade para 30 passageiros - 111 Kw | C63: =VLOOKUP(A63,CPU!$A$7:$E$5453,5,0) -> chi | E63: horas diárias | F63: dias de trabalho | H63: =H64 -> 0.062825
C64: chi | E64: =8-E62 -> 7 | F64: =$H$45 -> 0.008975 | H64: =E64*F64 -> 0.062825
A66: ='Planilha Orçamentária'!A16 -> 2.3 | B66: =VLOOKUP(A66,'Planilha Orçamentária'!$A$7:$E$5169,4,0) -> Placa de obra em chapa de aço galvanizado | C66: =VLOOKUP(A66,'Planilha Orçamentária'!$A$7:$E$5169,5,0) -> m² | D66: QUANT. | E66: COMP. (M) | F66: LARG. (M) | H66: =H68 -> 2
B67: Dimensionamento para 1 placa | H67: 1
A68: =CPU!A46 -> 2.3.1 | B68: =VLOOKUP(A68,CPU!$A$7:$E$5453,4,0) -> SARRAFO NAO APARELHADO *2,5 X 7* CM, EM MACARANDUBA/MASSARANDUBA, ANGELIM, PEROBA-ROSA OU EQUIVALENTE DA REGIAO - BRUTA | C68: =VLOOKUP(A68,CPU!$A$7:$E$5453,5,0) -> M | H68: =H69 -> 2
H69: 2
A70: =CPU!A47 -> 2.3.2 | B70: =VLOOKUP(A70,CPU!$A$7:$E$5453,4,0) -> CAIBRO NAO APARELHADO *5 X 6* CM, EM MACARANDUBA/MASSARANDUBA, ANGELIM OU EQUIVALENTE DA REGIAO - BRUTA | C70: =VLOOKUP(A70,CPU!$A$7:$E$5453,5,0) -> M | H70: 4
A72: =CPU!A48 -> 2.3.3 | B72: =VLOOKUP(A72,CPU!$A$7:$E$5453,4,0) -> PLACA DE OBRA (PARA CONSTRUCAO CIVIL) EM CHAPA GALVANIZADA *N. 22*, ADESIVADA, DE *2,4 X 1,2* M (SEM POSTES PARA FIXACAO) | C72: =VLOOKUP(A72,CPU!$A$7:$E$5453,5,0) -> M2 | H72: 1
A74: =CPU!A49 -> 2.3.4 | B74: =VLOOKUP(A74,CPU!$A$7:$E$5453,4,0) -> PREGO DE ACO POLIDO COM CABECA 18 X 30 (2 3/4 X 10) | C74: =VLOOKUP(A74,CPU!$A$7:$E$5453,5,0) -> KG | H74: 0.11
A76: =CPU!A50 -> 2.3.5 | B76: =VLOOKUP(A76,CPU!$A$7:$E$5453,4,0) -> CONCRETO MAGRO PARA LASTRO, TRAÇO 1:4,5:4,5 (EM MASSA SECA DE CIMENTO/ AREIA MÉDIA/ BRITA 1) - PREPARO MECÂNICO COM BETONEIRA 400 L. AF_05/2021 | C76: =VLOOKUP(A76,CPU!$A$7:$E$5453,5,0) -> M3 | H76: 0.01
B78: MÃO DE OBRA | D78: PESSOAS | E78: ÍNDICE | F78: RENDIMENTO | G78: H | H78: DIAS | I78: H | J78: DIAS
A79: DIAS MÃO DE OBRA | B79: 88262 CARPINTEIRO DE FORMAS COM ENCARGOS COMPLEMENTARES | C79: H | D79: 1 | E79: 0.5 | F79: =E79/D79 -> 0.5 | G79: =F79*$H$67 -> 0.5 | H79: =G79/8 -> 0.0625 | I79: =F79*$H$66 -> 1 | J79: =I79/8 -> 0.125
A80: DIAS MÃO DE OBRA | B80: 88316 SERVENTE COM ENCARGOS COMPLEMENTARES | C80: H | D80: 1 | E80: 1 | F80: =E80/D80 -> 1 | G80: =F80*$H$67 -> 1 | H80: =G80/8 -> 0.125 | I80: =F80*$H$66 -> 2 | J80: =I80/8 -> 0.25
A82: =CPU!A53 -> 2.3.6 | B82: =VLOOKUP(A82,CPU!$A$7:$E$5453,4,0) -> Hospedagem | C82: =VLOOKUP(A82,CPU!$A$7:$E$5453,5,0) -> un | H82: =$H$79*$D$79+$H$80*$D$80 -> 0.1875
A84: =CPU!A54 -> 2.3.7 | B84: =VLOOKUP(A84,CPU!$A$7:$E$5453,4,0) -> Miniônibus com capacidade para 30 passageiros - 111 Kw | C84: =VLOOKUP(A84,CPU!$A$7:$E$5453,5,0) -> chp | E84: horas diárias | F84: dias de trabalho | H84: =H85 -> 0.125
C85: chp | E85: =$G$6 -> 1 | F85: =$H$80 -> 0.125 | H85: =E85*F85 -> 0.125
A86: =CPU!A55 -> 2.3.8 | B86: =VLOOKUP(A86,CPU!$A$7:$E$5453,4,0) -> Miniônibus com capacidade para 30 passageiros - 111 Kw | C86: =VLOOKUP(A86,CPU!$A$7:$E$5453,5,0) -> chi | E86: horas diárias | F86: dias de trabalho | H86: =H87 -> 0.875
C87: chi | E87: =8-E85 -> 7 | F87: =$H$80 -> 0.125 | H87: =E87*F87 -> 0.875
A88: =CPU!A56 -> 2.3.9 | B88: =VLOOKUP(A88,CPU!$A$7:$E$5527,4,0) -> TRANSPORTE COM CAMINHÃO CARROCERIA 9T, EM VIA URBANA EM REVESTIMENTO PRIMÁRIO (UNIDADE: TXKM). AF_07/2020 | C88: =VLOOKUP(A88,CPU!$A$7:$E$5527,5,0) -> TXKM | D88: ton | E88: km | H88: =H89 -> 11.2
D89: 0.5 | E89: =$H$8 -> 22.4 | H89: =D89*E89 -> 11.2
A90: =CPU!A57 -> 2.3.10 | B90: =VLOOKUP(A90,CPU!$A$7:$E$5527,4,0) -> TRANSPORTE COM CAMINHÃO CARROCERIA 9T, EM VIA URBANA PAVIMENTADA, DMT ATÉ 30KM (UNIDADE: TXKM). AF_07/2020 | C90: =VLOOKUP(A90,CPU!$A$7:$E$5527,5,0) -> TXKM | D90: ton | E90: km | H90: =H91 -> 5.35
B91: 500 kg uma placa | D91: 0.5 | E91: =$H$7 -> 10.7 | H91: =D91*E91 -> 5.35
A93: =CPU!A59 -> 2.3.11 | B93: =VLOOKUP(A93,CPU!$A$7:$E$5527,4,0) -> CARPINTEIRO DE FORMAS COM ENCARGOS COMPLEMENTARES | H93: 0.5
A95: =CPU!A60 -> 2.3.12 | B95: =VLOOKUP(A95,CPU!$A$7:$E$5527,4,0) -> SERVENTE COM ENCARGOS COMPLEMENTARES | H95: 1
A97: ='Planilha Orçamentária'!A18 -> 3 | B97: =VLOOKUP(A97,'Planilha Orçamentária'!$A$10:$D$57,4,0) -> CORTE DA VEGETAÇÃO E REMOÇÃO DAS RAIZES | I97: =H103+H123+H137 -> 0.279595 | J97: =D103+D104+D123+D124+D137+D138 -> 14
A98: ='Planilha Orçamentária'!A19 -> 3.1 | B98: =VLOOKUP(A98,'Planilha Orçamentária'!$A$7:$E$5169,4,0) -> Limpeza de Vegetação | C98: =VLOOKUP(A98,CPU!$A$7:$E$5453,5,0) ->  | H98: =C100 -> 11670
A99: =CPU!A68 -> 3.1.1 | B99: =VLOOKUP(A99,CPU!$A$7:$E$5453,4,0) -> Limpeza Manual De Vegetação Em Terreno Com Enxada. Af_03/2024 | C99: =VLOOKUP(A99,CPU!$A$7:$E$5453,5,0) -> m2 | D99: QUANT PESSOAS | E99: RENDIMENTO (H/M2) | F99: HORAS | G99: DIAS | H99: 1
B100: Área calculada no Google Earth | C100: 11670
J101: diárias hotel
B102: MÃO DE OBRA | D102: PESSOAS | E102: ÍNDICE | F102: RENDIMENTO | G102: H | H102: DIAS | I102: H | J102: DIAS
A103: DIAS MÃO DE OBRA | B103: 88316 SERVENTE COM ENCARGOS COMPLEMENTARES | C103: h | D103: 5 | E103: 0.0718 | F103: =E103/D103 -> 0.01436 | G103: =F103*$H$99 -> 0.01436 | H103: =G103/8 -> 0.001795 | I103: =F103*$H$98 -> 167.5812 | J103: =I103/8 -> 20.94765
B104: 88441 JARDINEIRO COM ENCARGOS COMPLEMENTARES | C104: h | D104: 5 | E104: 0.0718 | F104: =E104/D104 -> 0.01436 | G104: =F104*$H$99 -> 0.01436 | H104: =G104/8 -> 0.001795 | I104: =F104*$H$98 -> 167.5812 | J104: =I104/8 -> 20.94765
A106: =CPU!A69 -> 3.1.2 | B106: =VLOOKUP(A106,CPU!$A$7:$E$5453,4,0) -> Hospedagem | C106: =VLOOKUP(A106,CPU!$A$7:$E$5453,5,0) -> un | H106: =$H$103*$D$103+$H$104*$D$104 -> 0.01795
E107: =$H$103*$D$103+$H$104*$D$104 -> 0.01795
A108: =CPU!A70 -> 3.1.3 | B108: =VLOOKUP(A108,CPU!$A$7:$E$5453,4,0) -> Miniônibus com capacidade para 30 passageiros - 111 Kw | C108: =VLOOKUP(A108,CPU!$A$7:$E$5453,5,0) -> chp | E108: horas diárias | F108: dias de trabalho | H108: =SUM(H109:H109) -> 0.001795
C109: chp | E109: =$G$6 -> 1 | F109: =$H$103 -> 0.001795 | H109: =E109*F109 -> 0.001795
A110: =CPU!A71 -> 3.1.4 | B110: =VLOOKUP(A110,CPU!$A$7:$E$5453,4,0) -> Miniônibus com capacidade para 30 passageiros - 111 Kw | C110: =VLOOKUP(A110,CPU!$A$7:$E$5453,5,0) -> chi | E110: horas diárias | F110: dias de trabalho | H110: =H111 -> 0.012565
C111: chi | E111: =8-E109 -> 7 | F111: =$H$103 -> 0.001795 | H111: =E111*F111 -> 0.012565
A113: =CPU!A72 -> 3.1.5 | B113: =VLOOKUP(A113,CPU!$A$7:$E$5453,4,0) -> Transporte Com Caminhão Basculante De 6 M³, Em Via Urbana Em Revestimento Primário (Unidade: M3Xkm). Af_07/2020 | C113: =VLOOKUP(A113,CPU!$A$7:$E$5453,5,0) -> m3xkm | D113: m2 | E113: m | F113: km | H113: =SUM(H114:H114) -> 0.224
B114: - Cáculo m3 de árvore = (área total*x)*distância km = 11.670 m² *,01 m*5km onde x varia entre 0,1 m a 0,05 a depender da densidade de vegetação no local | D114: =$H$99 -> 1 | E114: 0.01 | F114: =H8 -> 22.4 | H114: =E114*F114 -> 0.224
A116: =CPU!A73 -> 3.1.6 | B116: =VLOOKUP(A116,CPU!$A$7:$E$5453,4,0) -> Transporte Com Caminhão Basculante De 6 M³, Em Via Urbana Pavimentada, Dmt Até 30 Km (Unidade: M3Xkm). Af_07/2020 | C116: =VLOOKUP(A116,CPU!$A$7:$E$5453,5,0) -> m3xkm | D116: m2 | E116: m | F116: km | H116: =SUM(H117:H117) -> 0.107
B117: - Cáculo m3 de árvore = (área total*x)*distância km = 11.670 m² *,01 m*5km onde x varia entre 0,1 m a 0,05 a depender da densidade de vegetação no local | D117: =$H$99 -> 1 | E117: 0.01 | F117: =H7 -> 10.7 | H117: =E117*F117 -> 0.107
A119: ='Planilha Orçamentária'!A20 -> 3.2 | B119: =VLOOKUP(A119,'Planilha Orçamentária'!$A$10:$D$57,4,0) -> Corte raso de árvores | H119: =C121 -> 15
A120: =CPU!A80 -> 3.2.1 | B120: =VLOOKUP(A120,CPU!$A$7:$E$5453,4,0) -> Corte Raso E Recorte De Árvore Com Diâmetro De Tronco Maior Ou Igual A 0,20 M E Menor Que 0,40 M. Af_03/2024 | C120: =VLOOKUP(A120,CPU!$A$7:$E$5453,5,0) -> un | D120: QUANT PESSOAS | E120: RENDIMENTO (H/corte recorte de árvore) | F120: QUANTIDADE DE ÁRVORES | G120: HORAS DE TRABALHO | H120: 1
B121: Quantidade estimada através das imagens obtidas na visita técnica (Contém na especificação técnica) | C121: 15 | H121: =C121 -> 15 | J121: diárias hotel
B122: MÃO DE OBRA | D122: PESSOAS | E122: ÍNDICE | F122: RENDIMENTO | G122: H | H122: DIAS | I122: H | J122: DIAS
A123: DIAS MÃO DE OBRA | B123: 88316 SERVENTE COM ENCARGOS COMPLEMENTARES | D123: 1 | E123: 1.5444 | F123: =E123/D123 -> 1.5444 | G123: =F123*$H$120 -> 1.5444 | H123: =G123/8 -> 0.19305 | I123: =F123*$H$119 -> 23.166 | J123: =I123/8 -> 2.89575
B124: 88441 JARDINEIRO COM ENCARGOS COMPLEMENTARES | D124: 1 | E124: 1.5444 | F124: =E124/D124 -> 1.5444 | G124: =F124*$H$120 -> 1.5444 | H124: =G124/8 -> 0.19305 | I124: =F124*$H$119 -> 23.166 | J124: =I124/8 -> 2.89575
A126: =CPU!A81 -> 3.2.5 | B126: =VLOOKUP(A126,CPU!$A$7:$E$5453,4,0) -> Hospedagem | C126: =VLOOKUP(A126,CPU!$A$7:$E$5453,5,0) -> un | H126: =$H$123*$D$123+$H$124*$D$124 -> 0.3861
A128: =CPU!A82 -> 3.2.6 | B128: =VLOOKUP(A128,CPU!$A$7:$E$5453,4,0) -> Miniônibus com capacidade para 30 passageiros - 111 Kw | C128: =VLOOKUP(A128,CPU!$A$7:$E$5453,5,0) -> chp | E128: horas diárias | F128: dias de trabalho | H128: =H129 -> 0.19305
C129: chp | E129: =$G$6 -> 1 | F129: =$H$123 -> 0.19305 | H129: =E129*F129 -> 0.19305
A130: =CPU!A83 -> 3.2.7 | B130: =VLOOKUP(A130,CPU!$A$7:$E$5453,4,0) -> Miniônibus com capacidade para 30 passageiros - 111 Kw | C130: =VLOOKUP(A130,CPU!$A$7:$E$5453,5,0) -> chi | E130: horas diárias | F130: dias de trabalho | H130: =H131 -> 1.35135
C131: chi | E131: =8-E129 -> 7 | F131: =$H$123 -> 0.19305 | H131: =E131*F131 -> 1.35135
A133: ='Planilha Orçamentária'!A21 -> 3.3 | B133: =VLOOKUP(A133,'Planilha Orçamentária'!$A$7:$E$5169,4,0) -> Remoção de raízes | H133: =C135 -> 15
A134: =CPU!A90 -> 3.3.1 | B134: =VLOOKUP(A134,CPU!$A$7:$E$5453,4,0) -> Remoção De Raízes Remanescentes De Tronco De Árvore Com Diâmetro Maior Ou Igual A 0,20 M E Menor Que 0,40 M. Af_03/2024 | C134: =VLOOKUP(A134,CPU!$A$7:$E$5453,5,0) -> un | H134: 1
B135: Quantidade estimada através das imagens obtidas na visita técnica (Contém na especificação técnica) | C135: 15 | H135: =C135 -> 15
B136: MÃO DE OBRA | D136: PESSOAS | E136: ÍNDICE | F136: RENDIMENTO | G136: H | H136: DIAS | I136: H | J136: DIAS
A137: DIAS MÃO DE OBRA | B137: 88316 SERVENTE COM ENCARGOS COMPLEMENTARES | D137: 1 | E137: 0.678 | F137: =E137/D137 -> 0.678 | G137: =F137*$H$134 -> 0.678 | H137: =G137/8 -> 0.08475 | I137: =F137*$H$119 -> 10.17 | J137: =I137/8 -> 1.27125
B138: 88441 JARDINEIRO COM ENCARGOS COMPLEMENTARES | D138: 1 | E138: 0.678 | F138: =E138/D138 -> 0.678 | G138: =F138*$H$134 -> 0.678 | H138: =G138/8 -> 0.08475 | I138: =F138*$H$119 -> 10.17 | J138: =I138/8 -> 1.27125
A140: =CPU!A91 -> 3.3.2 | B140: =VLOOKUP(A140,CPU!$A$7:$E$5453,4,0) -> Hospedagem | C140: =VLOOKUP(A140,CPU!$A$7:$E$5453,5,0) -> un | H140: =$H$137*$D$137+H138*D138 -> 0.1695
A142: =CPU!A92 -> 3.3.3 | B142: =VLOOKUP(A142,CPU!$A$7:$E$5453,4,0) -> Miniônibus com capacidade para 30 passageiros - 111 Kw | C142: =VLOOKUP(A142,CPU!$A$7:$E$5453,5,0) -> chp | E142: horas diárias | F142: dias de trabalho | H142: =H143 -> 0.08475
C143: chp | E143: =$G$6 -> 1 | F143: =$H$137 -> 0.08475 | H143: =E143*F143 -> 0.08475
A144: =CPU!A93 -> 3.3.4 | B144: =VLOOKUP(A144,CPU!$A$7:$E$5453,4,0) -> Miniônibus com capacidade para 30 passageiros - 111 Kw | C144: =VLOOKUP(A144,CPU!$A$7:$E$5453,5,0) -> chi | E144: horas diárias | F144: dias de trabalho | H144: =H145 -> 0.59325
C145: chi | E145: =8-E143 -> 7 | F145: =$H$137 -> 0.08475 | H145: =E145*F145 -> 0.59325
A147: ='Planilha Orçamentária'!A23 -> 4 | B147: =VLOOKUP(A147,'Planilha Orçamentária'!$A$10:$D$57,4,0) -> RECUPERAÇÃO DA EROSÃO TALUDES MONTANTE E JUSANTE
A148: ='Planilha Orçamentária'!A24 -> 4.1 | B148: =VLOOKUP(A148,'Planilha Orçamentária'!$A$7:$E$5169,4,0) -> Aterro de valas | H148: =C150 -> 170
A149: =CPU!A101 -> 4.1.1 | B149: =VLOOKUP(A149,CPU!$A$7:$E$5453,4,0) -> Aterro Manual De Valas Com Solo Argilo-Arenoso. Af_08/2023 | C149: =VLOOKUP(A149,CPU!$A$7:$E$5453,5,0) -> m3 | D149: m2 | E149: Revolvimento do Solo | F149: Porcentagem da área total dos taludes | G149: VOLUME DE ATERRO | H149: 1
B150: VOLUME DE ATERRO. 170 = (1450+1950)*,1*50% | C150: =(D151+D152)*0.1*0.5 -> 170 | G150: =((D151+D152)*E154*F153) -> 170 | H150: =G150 -> 170
B151: Talude de Montante (m²) - calculado no Google Earth | D151: 1450
B152: Talude de Jusante (m²) - calculado no Google Earth | D152: 1950
B153: Aterro será aplicado para 50% da área total | F153: 0.5
B154: 10 cm de revolvimento do solo | E154: 0.1
B156: MÃO DE OBRA | D156: PESSOAS | E156: ÍNDICE | F156: RENDIMENTO | G156: H | H156: DIAS | I156: H | J156: DIAS
A157: DIAS MÃO DE OBRA | B157: 88316 SERVENTE COM ENCARGOS COMPLEMENTARES | D157: 3 | E157: 0.7866 | F157: =E157/D157 -> 0.2622 | G157: =F157*$H$149 -> 0.2622 | H157: =G157/8 -> 0.032775 | I157: =F157*$H$150 -> 44.574 | J157: =I157/8 -> 5.57175
I158: =F158*#REF! ->  | J158: =I158/8 -> 
A159: =CPU!A102 -> 4.1.2 | B159: =VLOOKUP(A159,CPU!$A$7:$E$5453,4,0) -> Hospedagem | C159: =VLOOKUP(A159,CPU!$A$7:$E$5453,5,0) -> un | D159: DIAS DE HOSPEDAGEM | H159: =D160 -> 0.098325
D160: =$H$157*$D$157 -> 0.098325
A162: =CPU!A103 -> 4.1.3 | B162: =VLOOKUP(A162,CPU!$A$7:$E$5453,4,0) -> Miniônibus com capacidade para 30 passageiros - 111 Kw | C162: =VLOOKUP(A162,CPU!$A$7:$E$5453,5,0) -> chp | E162: horas diárias | F162: dias de trabalho | H162: =H163 -> 0.032775
C163: chp | E163: =$G$6 -> 1 | F163: =$H$157 -> 0.032775 | H163: =E163*F163 -> 0.032775
A164: =CPU!A104 -> 4.1.4 | B164: =VLOOKUP(A164,CPU!$A$7:$E$5453,4,0) -> Miniônibus com capacidade para 30 passageiros - 111 Kw | C164: =VLOOKUP(A164,CPU!$A$7:$E$5453,5,0) -> chi | E164: horas diárias | F164: dias de trabalho | H164: =H165 -> 0.229425
C165: chi | E165: =8-E163 -> 7 | F165: =$H$157 -> 0.032775 | H165: =E165*F165 -> 0.229425
A167: =CPU!A105 -> 4.1.5 | B167: =VLOOKUP(A167,CPU!$A$7:$E$5453,4,0) -> Transporte Com Caminhão Basculante De 10 M³, Em Via Urbana Em Revestimento Primário (Unidade: M3Xkm). Af_07/2020 | C167: =VLOOKUP(A167,CPU!$A$7:$E$5453,5,0) -> m3xkm | D167: m³ | E167: km | H167: =H169 -> 10.7
B168: VOLUME TRANSPORTADO: ARGILA, ARGILA VERMELHA OU ARGILA ARENOSA para atividade aterro | D168: =$H$149 -> 1
B169: Transporte Com Caminhão Basculante De 10 M³, Em Via Urbana Em Revestimento Primário (Unidade: M3Xkm). Af_07/2020 | E169: =$H$7 -> 10.7 | H169: =$D$168*E169 -> 10.7
A171: =CPU!A106 -> 4.1.6 | B171: =VLOOKUP(A171,CPU!$A$7:$E$5453,4,0) -> Transporte Com Caminhão Basculante De 10 M³, Em Via Urbana Pavimentada, Dmt Até 30 Km (Unidade: M3Xkm). Af_07/2020 | C171: =VLOOKUP(A171,CPU!$A$7:$E$5453,5,0) -> m3xkm | D171: m³ | E171: km | H171: =H173 -> 22.4
B172: VOLUME TRANSPORTADO: ARGILA, ARGILA VERMELHA OU ARGILA ARENOSA para atividade aterro | D172: =$H$149 -> 1
B173: Transporte Com Caminhão Basculante De 10 M³, Em Via Urbana Pavimentada, Adicional Para Dmt Excedente A 30 Km (Unidade: M3Xkm). Af_07/2020 | E173: =H8 -> 22.4 | H173: =$D$172*E173 -> 22.4
A175: ='Planilha Orçamentária'!A26 -> 5 | B175: =VLOOKUP(A175,'Planilha Orçamentária'!$A$10:$D$57,4,0) -> REGULARIZAÇÃO E PAVIMENTAÇÃO DA CRISTA | I175: =H196+H211 -> 0.01625 | J175: =D196+D210+D211+D310+D311 -> 15
A176: ='Planilha Orçamentária'!A27 -> 5.1 | B176: =VLOOKUP(A176,'Planilha Orçamentária'!$A$7:$E$5169,4,0) -> Remoção de guias pré-fabricadas sem reaproveitamento | H176: =C178 -> 296
A177: =CPU!A113 -> 5.1.1 | B177: =VLOOKUP(A177,CPU!$A$7:$E$5453,4,0) -> Demolição De Guias, Sarjetas Ou Sarjetões, De Forma Mecanizada, Sem Reaproveitamento. Af_09/2023 | C177: =VLOOKUP(A177,CPU!$A$7:$E$5453,5,0) -> m | D177: Comprimento crista (m) | E177: Remoção | H177: 1
B178: = 2*230*80% (20% do meio-fio já se perdeu) | C178: =2*D178*E178 -> 296 | D178: 185 | E178: 0.8 | H178: =C178 -> 296
B180: MÃO DE OBRA | D180: PESSOAS | E180: ÍNDICE | F180: RENDIMENTO | G180: H | H180: DIAS | I180: H | J180: DIAS
B181: 88309 PEDREIRO COM ENCARGOS COMPLEMENTARES | C181: H | D181: 1 | E181: 0.2199 | F181: =E181/D181 -> 0.2199 | G181: =F181*$H$177 -> 0.2199 | H181: =G181/8 -> 0.0274875 | I181: =F181*$H$176 -> 65.0904 | J181: =I181/8 -> 8.1363
B182: 88316 SERVENTE COM ENCARGOS COMPLEMENTARES | C182: H | D182: 1 | E182: 0.0965 | F182: =E182/D182 -> 0.0965 | G182: =F182*$H$177 -> 0.0965 | H182: =G182/8 -> 0.0120625 | I182: =F182*$H$176 -> 28.564 | J182: =I182/8 -> 3.5705
A183: =CPU!A114 -> 5.1.2 | B183: =VLOOKUP(A183,CPU!$A$7:$E$5453,4,0) -> Hospedagem | C183: =VLOOKUP(A183,CPU!$A$7:$E$5453,5,0) -> un | D183: DIAS DE HOSPEDAGEM | H183: =H184 -> 0.03955
D184: =$H$181*$D$181+$H$182*$D$182 -> 0.03955 | H184: =D184 -> 0.03955
A186: =CPU!A115 -> 5.1.3 | B186: =VLOOKUP(A186,CPU!$A$7:$E$5453,4,0) -> Miniônibus com capacidade para 30 passageiros - 111 Kw | C186: =VLOOKUP(A186,CPU!$A$7:$E$5453,5,0) -> chp | E186: horas diárias | F186: dias de trabalho | H186: =H187 -> 0.0274875
C187: chp | E187: =$G$6 -> 1 | F187: =$H$181 -> 0.0274875 | H187: =E187*F187 -> 0.0274875
A188: =CPU!A116 -> 5.1.4 | B188: =VLOOKUP(A188,CPU!$A$7:$E$5453,4,0) -> Miniônibus com capacidade para 30 passageiros - 111 Kw | C188: =VLOOKUP(A188,CPU!$A$7:$E$5453,5,0) -> chi | E188: horas diárias | F188: dias de trabalho | H188: =H189 -> 0.1924125
C189: chi | E189: =8-E187 -> 7 | F189: =$H$181 -> 0.0274875 | H189: =E189*F189 -> 0.1924125
A191: ='Planilha Orçamentária'!A28 -> 5.2 | B191: =VLOOKUP(A191,'Planilha Orçamentária'!$A$7:$E$5169,4,0) -> Regularização e compactação da crista | H191: =C193 -> 690
A192: =CPU!A123 -> 5.2.1 | B192: =VLOOKUP(A192,CPU!$A$7:$E$5453,4,0) -> Regularização E Compactação De Subleito De Solo Predominantemente Argiloso. Af_11/2019 | C192: =VLOOKUP(A192,CPU!$A$7:$E$5453,5,0) -> m2 | D192: Comprimento crista (m) | E192: Largura da crista | H192: 1
C193: 690 | H193: =C193 -> 690
B195: MÃO DE OBRA | D195: PESSOAS | E195: ÍNDICE | F195: RENDIMENTO | G195: H | H195: DIAS | I195: H | J195: DIAS
B196: 88316 SERVENTE COM ENCARGOS COMPLEMENTARES | C196: H | D196: 1 | E196: 0.008 | F196: =E196/D196 -> 0.008 | G196: =F196*$H$192 -> 0.008 | H196: =G196/8 -> 0.001 | I196: =F196*$H$191 -> 5.52 | J196: =I196/8 -> 0.69
I197: =F197*$H$176 -> 0 | J197: =I197/8 -> 0
A198: =CPU!A124 -> 5.2.2 | B198: =VLOOKUP(A198,CPU!$A$7:$E$5453,4,0) -> Hospedagem | C198: =VLOOKUP(A198,CPU!$A$7:$E$5453,5,0) -> un | D198: DIAS DE HOSPEDAGEM | H198: =H199 -> 0.001
D199: =$H$196*$D$196 -> 0.001 | H199: =D199 -> 0.001
A201: =CPU!A125 -> 5.2.3 | B201: =VLOOKUP(A201,CPU!$A$7:$E$5453,4,0) -> Miniônibus com capacidade para 30 passageiros - 111 Kw | C201: =VLOOKUP(A201,CPU!$A$7:$E$5453,5,0) -> chp | E201: horas diárias | F201: dias de trabalho | H201: =H202 -> 0.001
C202: chp | E202: =$G$6 -> 1 | F202: =$H$196 -> 0.001 | H202: =E202*F202 -> 0.001
A203: =CPU!A126 -> 5.2.4 | B203: =VLOOKUP(A203,CPU!$A$7:$E$5453,4,0) -> Miniônibus com capacidade para 30 passageiros - 111 Kw | C203: =VLOOKUP(A203,CPU!$A$7:$E$5453,5,0) -> chi | E203: horas diárias | F203: dias de trabalho | H203: =H204 -> 0.007
C204: chi | E204: =8-E202 -> 7 | F204: =$H$196 -> 0.001 | H204: =E204*F204 -> 0.007
A205: ='Planilha Orçamentária'!A29 -> 5.3 | B205: =VLOOKUP(A205,'Planilha Orçamentária'!$A$7:$E$5169,4,0) -> Drenagem - Trecho reto | H205: =H207 -> 370
A206: =CPU!A133 -> 5.3.1 | B206: =VLOOKUP(A206,CPU!$A$7:$E$5453,4,0) -> Guia (Meio-Fio) E Sarjeta Conjugados De Concreto, Moldada In Loco Em Trecho Reto Com Extrusora, 45 Cm Base (15 Cm Base Da Guia + 30 Cm Base Da Sarjeta) X 22 Cm Altura. Af_01/2024 | C206: Comprimento meio-fio (m) | D206: Comprimento crista (m) | H206: 1
B207: construção nova de toda estrutura de meio-fio e sarjeta | C207: =D207*2 -> 370 | D207: 185 | H207: =C207 -> 370
B209: MÃO DE OBRA | D209: PESSOAS | E209: ÍNDICE | F209: RENDIMENTO | G209: H | H209: DIAS | I209: H | J209: DIAS
A210: DIAS MÃO DE OBRA | B210: 88243 AJUDANTE ESPECIALIZADO COM ENCARGOS COMPLEMENTARES | C210: H | D210: 1 | E210: 0.109 | F210: =E210/D210 -> 0.109 | G210: =F210*$H$206 -> 0.109 | H210: =G210/8 -> 0.013625 | I210: =F210*$H$205 -> 40.33 | J210: =I210/8 -> 5.04125
A211: DIAS MÃO DE OBRA | B211: 88309 PEDREIRO COM ENCARGOS COMPLEMENTARES | C211: H | D211: 2 | E211: 0.244 | F211: =E211/D211 -> 0.122 | G211: =F211*$H$206 -> 0.122 | H211: =G211/8 -> 0.01525 | I211: =F211*$H$205 -> 45.14 | J211: =I211/8 -> 5.6425
A212: DIAS MÃO DE OBRA | B212: 88316 SERVENTE COM ENCARGOS COMPLEMENTARES | C212: H | D212: 4 | E212: 0.487 | F212: =E212/D212 -> 0.12175 | G212: =F212*$H$206 -> 0.12175 | H212: =G212/8 -> 0.01521875 | I212: 45.0475 | J212: =I212/8 -> 5.6309375
A214: =CPU!A134 -> 5.3.2 | B214: =VLOOKUP(A214,CPU!$A$7:$E$5453,4,0) -> Transporte Com Caminhão Carroceria 9T, Em Via Urbana Em Revestimento Primário (Unidade: Txkm). Af_07/2020 | C214: =VLOOKUP(A214,CPU!$A$7:$E$5453,5,0) -> txkm | D214: kg/m | E214: ton | F214: km | H214: =H215 -> 1.288
B215: GUIA DE CALÇADA 1,00 X 0,30 X 0,10 : 57,5 kg (https://crepan.com.br/guias-de-concreto/) | D215: 57.5 | E215: =($H$206*D215)/1000 -> 0.0575 | F215: =$H$8 -> 22.4 | H215: =E215*F215 -> 1.288
A217: =CPU!A135 -> 5.3.3 | B217: =VLOOKUP(A217,CPU!$A$7:$E$5453,4,0) -> Transporte Com Caminhão Carroceria 9T, Em Via Urbana Pavimentada, Dmt Até 30Km (Unidade: Txkm). Af_07/2020 | C217: =VLOOKUP(A217,CPU!$A$7:$E$5453,5,0) -> txkm | D217: kg/m | E217: ton | F217: km | H217: =H218 -> 0.61525
D218: 57.5 | E218: =($H$206*D218)/1000 -> 0.0575 | F218: =H7 -> 10.7 | H218: =E218*F218 -> 0.61525
A220: =CPU!A136 -> 5.3.4 | B220: =VLOOKUP(A220,CPU!$A$7:$E$5453,4,0) -> Betoneira Capacidade Nominal De 400 L, Capacidade De Mistura 280 L, Motor Elétrico Trifásico Potência De 2 Cv, Sem Carregador - Chp Diurno. Af_05/2023 | C220: =VLOOKUP(A220,CPU!$A$7:$E$5453,5,0) -> chp | D220: HORAS | E220: OPERAÇÃO | H220: =H221 -> 0.09516122
C221: 1.1143 | D221: =G211 -> 0.122 | E221: 0.7 | H221: =C221*D221*E221 -> 0.09516122
A223: =CPU!A137 -> 5.3.5 | B223: =VLOOKUP(A223,CPU!$A$7:$E$5453,4,0) -> Betoneira Capacidade Nominal De 400 L, Capacidade De Mistura 280 L, Motor Elétrico Trifásico Potência De 2 Cv, Sem Carregador - Chi Diurno. Af_05/2023 | C223: =VLOOKUP(A223,CPU!$A$7:$E$5453,5,0) -> chi | D223: HORAS | E223: NÃO OPERAÇÃO | H223: =H224 -> 0.01805478
C224: 0.4933 | D224: =D221 -> 0.122 | E224: 0.3 | H224: =C224*D224*E224 -> 0.01805478
A226: =CPU!A138 -> 5.3.6 | B226: =VLOOKUP(A226,CPU!$A$7:$E$5453,4,0) -> Hospedagem | C226: =VLOOKUP(A226,CPU!$A$7:$E$5453,5,0) -> un | D226: DIAS DE HOSPEDAGEM | H226: =D227 -> 0.105
D227: =$H$210*$D$210+$H$211*$D$211+$H$212*$D$212 -> 0.105
A228: =CPU!A139 -> 5.3.7 | B228: =VLOOKUP(A228,CPU!$A$7:$E$5453,4,0) -> Miniônibus com capacidade para 30 passageiros - 111 Kw | C228: =VLOOKUP(A228,CPU!$A$7:$E$5453,5,0) -> chp | E228: horas diárias | F228: dias de trabalho | H228: =SUM(H229:H229) -> 0.01525
C229: chp | E229: =$G$6 -> 1 | F229: =$H$211 -> 0.01525 | H229: =E229*F229 -> 0.01525
A230: =CPU!A140 -> 5.3.8 | B230: =VLOOKUP(A230,CPU!$A$7:$E$5453,4,0) -> Miniônibus com capacidade para 30 passageiros - 111 Kw | C230: =VLOOKUP(A230,CPU!$A$7:$E$5453,5,0) -> chi | E230: horas diárias | F230: dias de trabalho | H230: =H231 -> 0.10675
C231: chi | E231: =8-E229 -> 7 | F231: =$H$211 -> 0.01525 | H231: =E231*F231 -> 0.10675
A233: ='Planilha Orçamentária'!A30 -> 5.4 | B233: =VLOOKUP(A233,'Planilha Orçamentária'!$A$7:$E$5169,4,0) -> Drenagem - Trecho curvo | H233: =H235 -> 90
A234: =CPU!A147 -> 5.4.1 | B234: =VLOOKUP(A234,CPU!$A$7:$E$5453,4,0) -> Guia (Meio-Fio) E Sarjeta Conjugados De Concreto, Moldada In Loco Em Trecho Curvo Com Extrusora, 45 Cm Base (15 Cm Base Da Guia + 30 Cm Base Da Sarjeta) X 22 Cm Altura. Af_01/2024 | C234: Comprimento meio-fio (m) | D234: Comprimento crista - trecho curvo(m) | H234: 1
B235: o muro lateral a direita do vertedouro (d = 45 m; total de 90 m de meio-fio) | C235: 90 | D235: 45 | H235: =C235 -> 90
B237: MÃO DE OBRA | D237: PESSOAS | E237: ÍNDICE | F237: RENDIMENTO | G237: H | H237: DIAS | I237: H | J237: DIAS
A238: DIAS MÃO DE OBRA | B238: 88243 AJUDANTE ESPECIALIZADO COM ENCARGOS COMPLEMENTARES | C238: H | D238: 1 | E238: 0.156 | F238: =E238/D238 -> 0.156 | G238: =F238*$H$206 -> 0.156 | H238: =G238/8 -> 0.0195 | I238: =F238*$H$205 -> 57.72 | J238: =I238/8 -> 7.215
A239: DIAS MÃO DE OBRA | B239: 88309 PEDREIRO COM ENCARGOS COMPLEMENTARES | C239: H | D239: 2 | E239: 0.29 | F239: =E239/D239 -> 0.145 | G239: =F239*$H$206 -> 0.145 | H239: =G239/8 -> 0.018125 | I239: =F239*$H$205 -> 53.65 | J239: =I239/8 -> 6.70625
A240: DIAS MÃO DE OBRA | B240: 88316 SERVENTE COM ENCARGOS COMPLEMENTARES | C240: H | D240: 4 | E240: 0.581 | F240: =E240/D240 -> 0.14525 | G240: =F240*$H$206 -> 0.14525 | H240: =G240/8 -> 0.01815625 | I240: 53.7425 | J240: =I240/8 -> 6.7178125
A242: =CPU!A148 -> 5.4.2 | B242: =VLOOKUP(A242,CPU!$A$7:$E$5453,4,0) -> Transporte Com Caminhão Carroceria 9T, Em Via Urbana Em Revestimento Primário (Unidade: Txkm). Af_07/2020 | C242: =VLOOKUP(A242,CPU!$A$7:$E$5453,5,0) -> txkm | D242: kg/m | E242: ton | F242: km | H242: =H243 -> 1.288
B243: GUIA DE CALÇADA 1,00 X 0,30 X 0,10 : 57,5 kg (https://crepan.com.br/guias-de-concreto/) | D243: 57.5 | E243: =($H$206*D243)/1000 -> 0.0575 | F243: =$H$8 -> 22.4 | H243: =E243*F243 -> 1.288
A245: =CPU!A149 -> 5.4.3 | B245: =VLOOKUP(A245,CPU!$A$7:$E$5453,4,0) -> Transporte Com Caminhão Carroceria 9T, Em Via Urbana Pavimentada, Dmt Até 30Km (Unidade: Txkm). Af_07/2020 | C245: =VLOOKUP(A245,CPU!$A$7:$E$5453,5,0) -> txkm | D245: kg/m | E245: ton | F245: km | H245: =H246 -> 1.90325
D246: 57.5 | E246: =($H$206*D246)/1000 -> 0.0575 | F246: =H6 -> 33.1 | H246: =E246*F246 -> 1.90325
A248: =CPU!A150 -> 5.4.4 | B248: =VLOOKUP(A248,CPU!$A$7:$E$5453,4,0) -> Betoneira Capacidade Nominal De 400 L, Capacidade De Mistura 280 L, Motor Elétrico Trifásico Potência De 2 Cv, Sem Carregador - Chp Diurno. Af_05/2023 | C248: =VLOOKUP(A248,CPU!$A$7:$E$5453,5,0) -> chp | D248: HORAS | E248: OPERAÇÃO | H248: =H249 -> 0.11310145
C249: 1.1143 | D249: =G239 -> 0.145 | E249: 0.7 | H249: =C249*D249*E249 -> 0.11310145
A251: =CPU!A151 -> 5.4.5 | B251: =VLOOKUP(A251,CPU!$A$7:$E$5453,4,0) -> Betoneira Capacidade Nominal De 400 L, Capacidade De Mistura 280 L, Motor Elétrico Trifásico Potência De 2 Cv, Sem Carregador - Chi Diurno. Af_05/2023 | C251: =VLOOKUP(A251,CPU!$A$7:$E$5453,5,0) -> chi | D251: HORAS | E251: NÃO OPERAÇÃO | H251: =H252 -> 0.02145855
C252: 0.4933 | D252: =D249 -> 0.145 | E252: 0.3 | H252: =C252*D252*E252 -> 0.02145855
A254: =CPU!A152 -> 5.4.6 | B254: =VLOOKUP(A254,CPU!$A$7:$E$5453,4,0) -> Hospedagem | C254: =VLOOKUP(A254,CPU!$A$7:$E$5453,5,0) -> un | D254: DIAS DE HOSPEDAGEM | H254: =D255 -> 0.105
... 239 more rows

Sheet Cronograma
A1: Ministério da Integração e do Desenvolvimento Regional
A2: Companhia de Desenvolvimento dos Vales do São Francisco e do Parnaíba
A4: CRONOGRAMA FÍSICO-FINANCEIRO ONERADO
A5: OBRA: | B5: =CPU!C5 -> SERVIÇOS DE MANUTENÇÃO E OBRAS CIVIS NA BARRAGEM JUÁ I | F5: BDI (serv.): | G5: ='Planilha Orçamentária'!H4 -> 0.2388
A6: LOCAL: | B6: =CPU!C6 -> BARRAGEM JUÁ I, CABROBÓ/PE | F6: BDI (forn.): | G6: ='Planilha Orçamentária'!H5 -> 0.136
A7: DATA BASE: | B7: =CPU!C7 -> 2024-05-01
A8: PRAZO: | B8: ='Planilha Orçamentária'!B7:C7 -> 90 DIAS
A9: ITEM | B9: DESCRIÇÃO | C9: TOTAL POR ETAPA | D9: MESES | G9: TOTAL
D10: 1 | E10: 2 | F10: 3
A11: 1 | B11: =VLOOKUP(A11,'Planilha Orçamentária'!$A$10:$D$57,4) -> ADMINISTRAÇÃO DA OBRA | C11: =SUMIF('Planilha Orçamentária'!$A$10:$A$57,A11,'Planilha Orçamentária'!$I$10:$I$57) -> 107405.2236 | D11: =$C11*D12 -> 26851.30589 | E11: 26851.30589 | F11: 26851.30589 | G11: =SUM(D11:F11) -> 80553.91768 | H11: R$
C12: =C11/C11 -> 1 | D12: 0.25 | E12: 0.25 | F12: 0.25 | G12: 0.75 | H12: %
A13: 2 | B13: =VLOOKUP(A13,'Planilha Orçamentária'!$A$10:$D$57,4) -> SERVIÇOS PRELIMINARES | C13: =SUMIF('Planilha Orçamentária'!$A$10:$A$57,A13,'Planilha Orçamentária'!$I$10:$I$57) -> 36119.7907 | D13: =$C13*D14 -> 36119.7907 | G13: 36119.7907 | H13: R$
C14: =C13/C13 -> 1 | D14: 1 | G14: 1 | H14: %
A15: 3 | B15: =VLOOKUP(A15,'Planilha Orçamentária'!$A$10:$D$57,4) -> CORTE DA VEGETAÇÃO E REMOÇÃO DAS RAIZES | C15: =SUMIF('Planilha Orçamentária'!$A$10:$A$57,A15,'Planilha Orçamentária'!$I$10:$I$57) -> 128666.5993 | D15: =$C15*D16 -> 128666.5993 | G15: 128666.5993 | H15: R$
C16: =C15/C15 -> 1 | D16: 1 | G16: 1 | H16: %
A17: 4 | B17: =VLOOKUP(A17,'Planilha Orçamentária'!$A$10:$D$57,4) -> RECUPERAÇÃO DA EROSÃO TALUDES MONTANTE E JUSANTE | C17: =SUMIF('Planilha Orçamentária'!$A$10:$A$57,A17,'Planilha Orçamentária'!$I$10:$I$57) -> 40752.43196 | D17: =$C17*D18 -> 40752.43196 | G17: 40752.43196 | H17: R$
C18: =C17/C17 -> 1 | D18: 1 | G18: 1 | H18: %
A19: 5 | B19: =VLOOKUP(A19,'Planilha Orçamentária'!$A$10:$D$57,4) -> REGULARIZAÇÃO E PAVIMENTAÇÃO DA CRISTA | C19: =SUMIF('Planilha Orçamentária'!$A$10:$A$57,A19,'Planilha Orçamentária'!$I$10:$I$57) -> 119862.1504 | E19: =$C19*E20 -> 119862.1504 | G19: 119862.1504 | H19: R$
C20: =C19/C19 -> 1 | E20: 1 | G20: 1 | H20: %
A21: 6 | B21: =VLOOKUP(A21,'Planilha Orçamentária'!$A$10:$D$57,4) -> MANUTENÇÃO NO TALUDE DE MONTANTE | C21: =SUMIF('Planilha Orçamentária'!$A$10:$A$57,A21,'Planilha Orçamentária'!$I$10:$I$57) -> 78160.66138 | E21: =$C21*E22 -> 78160.66138 | G21: 78160.66138 | H21: R$
C22: =C21/C21 -> 1 | E22: 1 | G22: 1 | H22: %
A23: 7 | B23: =VLOOKUP(A23,'Planilha Orçamentária'!$A$10:$D$57,4) -> DRENAGEM SUPERFICIAL DO TALUDE JUSANTE | C23: =SUMIF('Planilha Orçamentária'!$A$10:$A$57,A23,'Planilha Orçamentária'!$I$10:$I$57) -> 6464.470301 | E23: =$C23*E24 -> 6464.470301 | G23: 6464.470301 | H23: R$
C24: =C23/C23 -> 1 | E24: 1 | G24: 1 | H24: %
A25: 8 | B25: =VLOOKUP(A25,'Planilha Orçamentária'!$A$10:$D$57,4) -> PROTEÇÃO SUPERFICIAL DO TALUDE DE JUSANTE | C25: =SUMIF('Planilha Orçamentária'!$A$10:$A$57,A25,'Planilha Orçamentária'!$I$10:$I$57) -> 62734.6902 | E25: =$C25*E26 -> 62734.6902 | G25: 62734.6902 | H25: R$
C26: =C25/C25 -> 1 | E26: 1 | G26: 1 | H26: %
A27: 9 | B27: =VLOOKUP(A27,'Planilha Orçamentária'!$A$10:$D$57,4) -> RESTAURAÇÃO SUPERFICIAL - MURO LATERAL | C27: =SUMIF('Planilha Orçamentária'!$A$10:$A$57,A27,'Planilha Orçamentária'!$I$10:$I$57) -> 12911.02136 | F27: =$C27*F28 -> 12911.02136 | G27: 12911.02136 | H27: R$
C28: =C27/C27 -> 1 | F28: 1 | G28: 1 | H28: %
A29: 10 | B29: =VLOOKUP(A29,'Planilha Orçamentária'!$A$10:$D$57,4) -> CONTENÇÃO PROCESSO EROSIVO CANAL DE RESTITUIÇÃO | C29: =SUMIF('Planilha Orçamentária'!$A$10:$A$57,A29,'Planilha Orçamentária'!$I$10:$I$57) -> 52849.0662 | F29: =$C29*F30 -> 52849.0662 | G29: 52849.0662 | H29: R$
C30: =C29/C29 -> 1 | F30: 1 | G30: 1 | H30: %
A31: 11 | B31: =VLOOKUP(A31,'Planilha Orçamentária'!$A$10:$D$57,4) -> LIMPEZA ENTULHOS E RESÍDUOS DOMÉSTICOS | C31: =SUMIF('Planilha Orçamentária'!$A$10:$A$57,A31,'Planilha Orçamentária'!$I$10:$I$57) -> 4191.1701 | F31: =$C31*F32 -> 4191.1701 | G31: 4191.1701 | H31: R$
C32: =C31/C31 -> 1 | F32: 1 | G32: 1 | H32: %
A33: 12 | B33: =VLOOKUP(A33,'Planilha Orçamentária'!$A$10:$D$57,4) -> SERVIÇOS COMPLEMENTARES | C33: =SUMIF('Planilha Orçamentária'!$A$10:$A$57,A33,'Planilha Orçamentária'!$I$10:$I$57) -> 113301.317 | F33: =$C33*F34 -> 113301.317 | G33: 113301.317 | H33: R$
C34: =C33/C33 -> 1 | F34: 1 | G34: 1 | H34: %
B35: VALOR TOTAL: | C35: =SUMIF($H$11:$H$34,"R$",C$11:C$34) -> 763418.5925 | D35: =SUMIF($H$11:$H$30,"R$",D$11:D$30) -> 232390.1279 | E35: =SUMIF($H$11:$H$30,"R$",E$11:E$30) -> 294073.2782 | F35: =SUMIF($H$11:$H$30,"R$",F$11:F$28) -> 92611.39345 | G35: =SUMIF($H$11:$H$34,"R$",G$11:G$34) -> 736567.2866
B36: VALOR ACUMULADO: | D36: =D35 -> 232390.1279 | E36: =E35+D36 -> 526463.4061 | F36: =F35+E36 -> 619074.7995 | G36: =G35 -> 736567.2866
B37: FÍSICO PARCIAL: | D37: =SUMIF($H$13:$H$30,"R$",D$13:D$30)/$C$35 -> 0.2692347606 | E37: =SUMIF($H$13:$H$30,"R$",E$13:E$30)/$C$35 -> 0.3500333564 | F37: =SUMIF($H$13:$H$30,"R$",F$13:F$28)/$C$35 -> 0.08613896519 | G37: =G35/$C$35 -> 0.9648275453
B38: AVANÇO FÍSICO: | D38: =D35/$C$35 -> 0.3044072154 | E38: =E35/$C$35 -> 0.3852058112 | F38: =F35/$C$35 -> 0.1213114199

Sheet Cronograma Desoner (hidden)
A1: Ministério da Integração e do Desenvolvimento Regional
A2: Companhia de Desenvolvimento dos Vales do São Francisco e do Parnaíba
A4: CRONOGRAMA FÍSICO-FINANCEIRO DESONERADO
A5: OBRA: | B5: =UPPER("SERVIÇOS DE MANUTENÇÃO E OBRAS CIVIS NA ESTRUTURA DA BARRAGEM E EQUIPAMENTO HIDROMECÂNICO") -> SERVIÇOS DE MANUTENÇÃO E OBRAS CIVIS NA ESTRUTURA DA BARRAGEM E EQUIPAMENTO HIDROMECÂNICO | F5: BDI (serv.): | G5: ='BDI serv Desonerado'!D22 -> 0.3351
A6: LOCAL: | B6: BARRAGEM POÇO DO MAGRO, GUANAMBI/BA | F6: BDI (forn.): | G6: ='BDI forn Desonerado'!D22 -> 0.212
A7: DATA BASE: | B7: 2023-05-01
A8: PRAZO: | B8: 120 DIAS
A9: ITEM | B9: DESCRIÇÃO | C9: TOTAL POR ETAPA | D9: MESES | H9: TOTAL
D10: 1 | E10: 2 | F10: 3 | G10: 4
A11: 1 | B11: =VLOOKUP(A11,'Planilha Orçamentária Desoner'!$A$11:$D$92,4) -> ADMINISTRAÇÃO LOCAL | C11: =SUMIF('Planilha Orçamentária Desoner'!$A$11:$A$92,A11,'Planilha Orçamentária Desoner'!$I$11:$I$92) -> 31378.40137 | D11: =$C11*D12 ->  | H11: =SUM(D11:G11) ->  | I11: R$
C12: =C11/C11 -> 1 | D12: =D37 ->  | E12: =D38-D37+E37 ->  | F12: =E38-E37+F37 ->  | G12: =1-SUM(D12:F12) ->  | I12: %
A13: 2 | B13: =VLOOKUP(A13,'Planilha Orçamentária Desoner'!$A$11:$D$92,4) -> SERVIÇOS PRELIMINARES | C13: =SUMIF('Planilha Orçamentária Desoner'!$A$11:$A$92,A13,'Planilha Orçamentária Desoner'!$I$11:$I$92) ->  | D13: =$C13*D14 ->  | I13: R$
C14: =C13/C13 ->  | D14: 1 | H14: 1 | I14: %
A15: 3 | B15: =VLOOKUP(A15,'Planilha Orçamentária Desoner'!$A$11:$D$92,4) -> LIMPEZA DA REGIÃO A JUSANTE | C15: =SUMIF('Planilha Orçamentária Desoner'!$A$11:$A$92,A15,'Planilha Orçamentária Desoner'!$I$11:$I$92) ->  | D15: =$C15*D16 ->  | I15: R$
C16: =C15/C15 ->  | D16: 1 | H16: 1 | I16: %
A17: 4.1 | B17: =VLOOKUP(A17,'Planilha Orçamentária Desoner'!$A$11:$D$92,4) -> Inspeção e Laudo da região subaquática | C17: =SUMIF('Planilha Orçamentária Desoner'!$A$11:$A$92,A17,'Planilha Orçamentária Desoner'!$I$11:$I$92) ->  | D17: =$C17*D18 ->  | I17: R$
C18: =C17/C17 ->  | D18: 1 | H18: 1 | I18: %
A19: 4.2 | B19: =VLOOKUP(A19,'Planilha Orçamentária Desoner'!$A$11:$D$92,4) -> Vedação/Abertura da tomada d'água | C19: =SUMIF('Planilha Orçamentária Desoner'!$A$11:$A$92,A19,'Planilha Orçamentária Desoner'!$I$11:$I$92) ->  | D19: =$C19*D20 ->  | E19: =$C19*E20 ->  | I19: R$
C20: =C19/C19 ->  | D20: 0.5 | E20: 0.5 | H20: 1 | I20: %
A21: 5 | B21: =VLOOKUP(A21,'Planilha Orçamentária Desoner'!$A$11:$D$92,4) -> MANUTENÇÃO NOS DISPOSITIVOS DE CONTROLE | C21: =SUMIF('Planilha Orçamentária Desoner'!$A$11:$A$92,A21,'Planilha Orçamentária Desoner'!$I$11:$I$92) ->  | E21: =$C21*E22 ->  | H21: =SUM(E21:G21) ->  | I21: R$
C22: =C21/C21 ->  | E22: 1 | H22: =SUM(E22:G22) -> 1 | I22: %
A23: 6.1 | B23: =VLOOKUP(A23,'Planilha Orçamentária Desoner'!$A$11:$D$92,4) -> Paramento a jusante | C23: =SUMIF('Planilha Orçamentária Desoner'!$A$11:$A$92,A23,'Planilha Orçamentária Desoner'!$I$11:$I$92) ->  | E23: =$C23*E24 ->  | F23: =$C23*F24 ->  | H23: =SUM(E23:G23) ->  | I23: R$
C24: =C23/C23 ->  | E24: 0.5 | F24: 0.5 | H24: 1 | I24: %
A25: 6.2 | B25: =VLOOKUP(A25,'Planilha Orçamentária Desoner'!$A$11:$D$92,4) -> Crista | C25: =SUMIF('Planilha Orçamentária Desoner'!$A$11:$A$92,A25,'Planilha Orçamentária Desoner'!$I$11:$I$92) ->  | F25: =$C25*F26 ->  | I25: R$
C26: =C25/C25 ->  | F26: 1 | H26: 1 | I26: %
A27: 6.3 | B27: =VLOOKUP(A27,'Planilha Orçamentária Desoner'!$A$11:$D$92,4) -> Vertedouro | C27: =SUMIF('Planilha Orçamentária Desoner'!$A$11:$A$92,A27,'Planilha Orçamentária Desoner'!$I$11:$I$92) ->  | F27: =$C27*F28 ->  | I27: R$
C28: =C27/C27 ->  | F28: 1 | H28: 1 | I28: %
A29: 7.1 | B29: =VLOOKUP(A29,'Planilha Orçamentária Desoner'!$A$11:$D$92,4) -> Investigação do maciço | C29: =SUMIF('Planilha Orçamentária Desoner'!$A$11:$A$92,A29,'Planilha Orçamentária Desoner'!$I$11:$I$92) ->  | F29: =$C29*F30 ->  | I29: R$
C30: =C29/C29 ->  | F30: 1 | H30: 1 | I30: %
A31: 7.2 | B31: =VLOOKUP(A31,'Planilha Orçamentária Desoner'!$A$11:$D$92,4) -> Recuperação do maciço | C31: =SUMIF('Planilha Orçamentária Desoner'!$A$11:$A$92,A31,'Planilha Orçamentária Desoner'!$I$11:$I$92) ->  | F31: =$C31*F32 ->  | I31: R$
C32: =C31/C31 ->  | F32: 1 | H32: 1 | I32: %
A33: 8 | B33: =VLOOKUP(A33,'Planilha Orçamentária Desoner'!$A$11:$D$92,4) -> SERVIÇOS AUXILIARES | C33: =SUMIF('Planilha Orçamentária Desoner'!$A$11:$A$92,A33,'Planilha Orçamentária Desoner'!$I$11:$I$92) ->  | G33: =$C33*G34 ->  | I33: R$
C34: =C33/C33 ->  | G34: 1 | H34: 1 | I34: %
B35: VALOR TOTAL: | C35: =SUMIF($I$11:$I$34,"R$",C$11:C$34) -> 
B36: VALOR ACUMULADO: | D36: =D35 ->  | E36: =E35+D36 ->  | H36: =H35 -> 
B37: FÍSICO PARCIAL: | D37: =SUMIF($I$13:$I$34,"R$",D$13:D$34)/$C$35 ->  | E37: =SUMIF($I$13:$I$34,"R$",E$13:E$34)/$C$35 ->  | F37: =SUMIF($I$13:$I$34,"R$",F$13:F$34)/$C$35 ->  | G37: =SUMIF($I$13:$I$34,"R$",G$13:G$34)/$C$35 ->  | H37: =H35/$C$35 -> 
B38: AVANÇO FÍSICO: | D38: =D35/$C$35 ->  | E38: =E35/$C$35 ->  | F38: =F35/$C$35 -> 

Sheet Cotações
A1: Ministério da Integração e do Desenvolvimento Regional
A2: Companhia de Desenvolvimento dos Vales do São Francisco e do Parnaíba
A3: ='Planilha Orçamentária'!#REF! -> 
A4: COTAÇÕES
A5: OBRA: | B5: ='Planilha Orçamentária'!B4:D4 -> SERVIÇOS DE MANUTENÇÃO E OBRAS CIVIS NA BARRAGEM JUÁ I | K5: BDI (serv.): | L5: ='BDI serv'!D22 -> 0.2388
A6: LOCAL: | B6: ='Planilha Orçamentária'!B5 -> BARRAGEM JUÁ I, CABROBÓ/PE | K6: BDI (forn.): | L6: ='BDI forn'!E6 -> 0.136
A7: DATA BASE: | B7: ='Planilha Orçamentária'!B6:C6 -> 2024-05-01
A8: PRAZO: | B8: ='Planilha Orçamentária'!B7:C7 -> 90 DIAS
A9: ITEM | B9: EMPRESA | G9: ORÇADO POR | H9: DESCRIÇÃO / OBSERVAÇÃO | I9: UNID | J9: QUANT | K9: LINK OU LOCAL DO ARQUIVO | L9: VALOR
B10: DATA | C10: EMPRESA / CNPJ | D10: RESPONSÁVEL | E10: ENDEREÇO | F10: CONTATO | L10: MAT | M10: MDO | N10: TRANSPORTE | O10: TOTAL
A11: =CPU!#REF! ->  | B11: =CPU!#REF! ->  | O11: =AVERAGE(O12:O13) -> 90
A12: 1 | B12: 2024-01-22 | G12: Murilo - RHA | H12: Diária hotel | I12: un | J12: 1 | L12: 100 | O12: =SUM(L12:N12) -> 100
A13: 2 | B13: 2024-01-22 | G13: Murilo - RHA | H13: Diaria hotel | I13: un | J13: 1 | L13: 80 | O13: =SUM(L13:N13) -> 80
A14: =CPU!C287 -> CPU.23 | B14: Régua linimétrica | O14: =MEDIAN(O15:O17) -> 169
A15: 1 | B15: 2024-01-22 | C15: POLIMEDIÇÃO COMERCIAL | D15: Preço na loja online | E15: R. Arlete, 151 - Jardim Penha - São Paulo - SP | F15: Tel: (11) 4328-3003 WhatsApp: (11) 98575-6343 polimedicao@gmail.com | G15: Murilo - RHA | H15: Régua linimétrica em alumínio 2 X 70 X 1000MM | I15: un | J15: 1 | K15: https://www.polimedicao.com.br/product-page/r%C3%A9gua-linim%C3%A9trica-em-chapa-de-aluminio-2-x-70-x-1000mm | L15: 169 | O15: =SUM(L15:N15) -> 169
A16: 2 | B16: 2024-01-22 | C16: Gravametal | D16: Preço na loja online | E16: Rua Uniflor, 1012 - Emiliano Perneta Pinhais - Paraná - CEP: 83324-227 | F16: ☎ (41) 3403-0144 ✆ (41) 99672-9692 ✉ gravametal@gmail.com | G16: Murilo - RHA | H16: Régua linimétrica em alumínio 2 X 70 X 1000MM | I16: un | J16: 1 | K16: https://www.gravametal.com.br/product-page/r%C3%A9gua-linim%C3%A9trica-fluviom%C3%A9trica-1000x70x2mm | L16: 240 | O16: =SUM(L16:N16) -> 240
A17: 3 | B17: 2024-01-22 | C17: Hidromec | D17: Consulta via Whatsapp | E17: Rua Sacadura Cabral, 351 Saúde - Rio de Janeiro - RJ CEP: 20221-160 | F17: (21) 3622-8000 contato@hidromechc.com.br | G17: Murilo - RHA | H17: Régua linimétrica em alumínio 2 X 70 X 1000MM | I17: un | J17: 1 | K17: https://www.hidromechc.com.br/regua | L17: 140 | O17: 140
A18: 4 | B18: 2024-01-22 | C18: Agrosensores | G18: Murilo - RHA | H18: Régua linimétrica em alumínio 2 X 70 X 1000MM | I18: un | J18: 1 | K18: https://www.agrosensores.com.br/sensores/limnimetro/regua-limnimetrica-dualbase | N18: 89.53 | O18: 89.53

Sheet BDI serv
A1: Ministério da Integração e do Desenvolvimento Regional
A2: Companhia de Desenvolvimento dos Vales do São Francisco e do Parnaíba
A3: ='Planilha Orçamentária'!#REF! -> 
A4: COMPOSIÇÃO DE BDI - SERVIÇOS - ONERADO
A5: OBRA: | B5: =UPPER("SERVIÇOS DE MANUTENÇÃO E OBRAS CIVIS NA BARRAGEM JUÁ I") -> SERVIÇOS DE MANUTENÇÃO E OBRAS CIVIS NA BARRAGEM JUÁ I | F5: BDI (serv.): | G5: =D22 -> 0.2388
A6: LOCAL: | B6: BARRAGEM JUÁ I, CABROBÓ/PE | F6: BDI (forn.): | G6: ='BDI forn'!D22 -> 0.136
A7: DATA BASE: | B7: 2024-05-01
A8: PRAZO: | B8: 120 DIAS
A9: ITEM | B9: DESCRIÇÃO | C9: SIGLA | D9: % APLICADO | E9: REFERÊNCIA TCU (ACÓRDÃO Nº 2622/2013)
E10: 1º QUARTIL | F10: 2º QUARTIL | G10: 3º QUARTIL
A11: 1 | B11: ADMINISTRAÇÃO CENTRAL | C11: AC | D11: =E11 -> 0.04 | E11: 0.04 | F11: 0.0552 | G11: 0.0785
A12: 2 | B12: IMPOSTOS | C12: T | D12: =SUM(D13:D16) -> 0.0715
A13: 2.1 | B13: ISS (*) | D13: 0.035 | E13: - | F13: - | G13: -
A14: 2.2 | B14: PIS | D14: 0.0065 | E14: - | F14: - | G14: -
A15: 2.3 | B15: Cofins | D15: 0.03 | E15: - | F15: - | G15: -
A16: 2.4 | B16: Contribuição previdênciária sobre a receita bruta (CPRB) | E16: - | F16: - | G16: -
A17: 3 | B17: SEGURO, GARANTIA E RISCO | D17: =SUM(D18:D19) -> 0.0227
A18: 3.1 | B18: Seguro + Garantia | C18: S + G | D18: =E18 -> 0.0081 | E18: 0.0081 | F18: 0.0122 | G18: 0.0199
A19: 3.2 | B19: Risco | C19: R | D19: =E19 -> 0.0146 | E19: 0.0146 | F19: 0.0232 | G19: 0.0316
A20: 4 | B20: DESPESAS FINANCEIRAS | C20: DF | D20: =F20 -> 0.0102 | E20: 0.0094 | F20: 0.0102 | G20: 0.01363
A21: 5 | B21: LUCRO | C21: L | D21: =E21 -> 0.0714 | E21: 0.0714 | F21: 0.084 | G21: 0.1043
B22: BDI ADOTADO: | D22: =ROUND(((((1+D11+D17)*(1+D20)*(1+D21))/(1-D12))-1),4) -> 0.2388
A23: Considerações: O BDI foi calculado através da seguinte fórmula, regulamentada pelo Acórdão Nº 2622/2013 – TCU.

Sheet BDI serv Desonerado (hidden)
A1: Ministério do Desenvolvimento Regional
A2: Companhia de Desenvolvimento dos Vales do São Francisco e do Parnaíba
A3: ='Planilha Orçamentária'!#REF! -> 
A4: COMPOSIÇÃO DE BDI - SERVIÇOS - DESONERADO
A5: OBRA: | B5: =UPPER("SERVIÇOS DE MANUTENÇÃO E OBRAS CIVIS NA ESTRUTURA DA BARRAGEM E EQUIPAMENTO HIDROMECÂNICO") -> SERVIÇOS DE MANUTENÇÃO E OBRAS CIVIS NA ESTRUTURA DA BARRAGEM E EQUIPAMENTO HIDROMECÂNICO | D5: BDI (serv.): | E5: =D22 -> 0.3351
A6: LOCAL: | B6: BARRAGEM POÇO DO MAGRO, GUANAMBI/BA | D6: BDI (forn.): | E6: ='BDI forn Desonerado'!E6 -> 0.212
A7: DATA BASE: | B7: 2023-05-01
A8: PRAZO: | B8: 120 DIAS
A9: ITEM | B9: DESCRIÇÃO | C9: SIGLA | D9: % APLICADO | E9: REFERÊNCIA TCU (ACÓRDÃO Nº 2622/2013)
E10: 1º QUARTIL | F10: 2º QUARTIL | G10: 3º QUARTIL
A11: 1 | B11: ADMINISTRAÇÃO CENTRAL | C11: AC | D11: =E11 -> 0.04 | E11: 0.04 | F11: 0.0552 | G11: 0.0785
A12: 2 | B12: IMPOSTOS | C12: T | D12: =SUM(D13:D16) -> 0.1315
A13: 2.1 | B13: ISS (*) | D13: 0.05 | E13: - | F13: - | G13: -
A14: 2.2 | B14: PIS | D14: 0.0065 | E14: - | F14: - | G14: -
A15: 2.3 | B15: Cofins | D15: 0.03 | E15: - | F15: - | G15: -
A16: 2.4 | B16: Contribuição previdênciária sobre a receita bruta (CPRB) | D16: 0.045 | E16: - | F16: - | G16: -
A17: 3 | B17: SEGURO, GARANTIA E RISCO | D17: =SUM(D18:D19) -> 0.0313
A18: 3.1 | B18: Seguro + Garantia | C18: S + G | D18: =E18 -> 0.0081 | E18: 0.0081 | F18: 0.0122 | G18: 0.0199
A19: 3.2 | B19: Risco | C19: R | D19: =F19 -> 0.0232 | E19: 0.0146 | F19: 0.0232 | G19: 0.0316
A20: 4 | B20: DESPESAS FINANCEIRAS | C20: DF | D20: =F20 -> 0.0102 | E20: 0.0094 | F20: 0.0102 | G20: 0.01363
A21: 5 | B21: LUCRO | C21: L | D21: =E21 -> 0.0714 | E21: 0.0714 | F21: 0.084 | G21: 0.1043
B22: BDI ADOTADO: | D22: =ROUND(((((1+D11+D17)*(1+D20)*(1+D21))/(1-D12))-1),4) -> 0.3351
A23: Considerações: O BDI foi calculado através da seguinte fórmula, regulamentada pelo Acórdão Nº 2622/2013 – TCU. * O percentual de ISSQN aqui utilizado refere-se ao município de Porteirinha/MG, conforme Lei Complementar 1899/2007 - Art. 1º (Item 7.02C). Conforme Art. 112, § 14, na base de cálculo do ISSQN considerou-se dedução do percentual abaixo discriminado.

Sheet BDI forn
A1: Ministério da Integração e do Desenvolvimento Regional
A2: Companhia de Desenvolvimento dos Vales do São Francisco e do Parnaíba
A3: ='Planilha Orçamentária'!#REF! -> 
A4: COMPOSIÇÃO DE BDI - FORNECIMENTO - ONERADO
A5: OBRA: | B5: =UPPER("SERVIÇOS DE MANUTENÇÃO E OBRAS CIVIS NA ESTRUTURA DA BARRAGEM BARRAGEM JUÁ I") -> SERVIÇOS DE MANUTENÇÃO E OBRAS CIVIS NA ESTRUTURA DA BARRAGEM BARRAGEM JUÁ I | D5: BDI (serv.): | E5: ='BDI serv'!D22 -> 0.2388
A6: LOCAL: | B6: BARRAGEM JUÁ I, CABROBÓ/PE | D6: BDI (forn.): | E6: =D22 -> 0.136
A7: DATA BASE: | B7: 2024-05-01
A8: PRAZO: | B8: 120 DIAS
A9: ITEM | B9: DESCRIÇÃO | C9: SIGLA | D9: % APLICADO | E9: REFERÊNCIA TCU (ACÓRDÃO Nº 2622/2013)
E10: 1º QUARTIL | F10: 2º QUARTIL | G10: 3º QUARTIL
A11: 1 | B11: ADMINISTRAÇÃO CENTRAL | C11: AC | D11: 0.04 | E11: 0.015 | F11: 0.0345 | G11: 0.0449
A12: 2 | B12: IMPOSTOS | C12: T | D12: =SUM(D13:D16) -> 0.0365
A13: 2.1 | B13: ISS (*) | E13: - | F13: - | G13: -
A14: 2.2 | B14: PIS | D14: 0.0065 | E14: - | F14: - | G14: -
A15: 2.3 | B15: Cofins | D15: 0.03 | E15: - | F15: - | G15: -
A16: 2.4 | B16: Contribuição previdênciária sobre a receita bruta (CPRB) | E16: - | F16: - | G16: -
A17: 3 | B17: SEGURO, GARANTIA E RISCO | D17: =SUM(D18:D19) -> 0.0086
A18: 3.1 | B18: Seguro + Garantia | C18: S + G | D18: =E18 -> 0.003 | E18: 0.003 | F18: 0.0048 | G18: 0.0082
A19: 3.3 | B19: Risco | C19: R | D19: =E19 -> 0.0056 | E19: 0.0056 | F19: 0.0085 | G19: 0.0089
A20: 4 | B20: DESPESAS FINANCEIRAS | C20: DF | D20: =E20 -> 0.0085 | E20: 0.0085 | F20: 0.0085 | G20: 0.0111
A21: 5 | B21: LUCRO | C21: L | D21: 0.035 | E21: 0.035 | F21: 0.0511 | G21: 0.0622
B22: BDI ADOTADO: | D22: =ROUND(((((1+D11+D17)*(1+D20)*(1+D21))/(1-D12))-1),4) -> 0.136
A23: Considerações: O BDI foi calculado através da seguinte fórmula, regulamentada pelo Acórdão Nº 2622/2013 – TCU.

Sheet BDI forn Desonerado (hidden)
A1: Ministério do Desenvolvimento Regional
A2: Companhia de Desenvolvimento dos Vales do São Francisco e do Parnaíba
A3: ='Planilha Orçamentária'!#REF! -> 
A4: COMPOSIÇÃO DE BDI - FORNECIMENTO - DESONERADO
A5: OBRA: | B5: =UPPER("SERVIÇOS DE MANUTENÇÃO E OBRAS CIVIS NA ESTRUTURA DA BARRAGEM E EQUIPAMENTO HIDROMECÂNICO") -> SERVIÇOS DE MANUTENÇÃO E OBRAS CIVIS NA ESTRUTURA DA BARRAGEM E EQUIPAMENTO HIDROMECÂNICO | D5: BDI (serv.): | E5: ='BDI serv Desonerado'!E5 -> 0.3351
A6: LOCAL: | B6: BARRAGEM POÇO DO MAGRO, GUANAMBI/BA | D6: BDI (forn.): | E6: =D22 -> 0.212
A7: DATA BASE: | B7: 2023-05-01
A8: PRAZO: | B8: 120 DIAS
A9: ITEM | B9: DESCRIÇÃO | C9: SIGLA | D9: % APLICADO | E9: REFERÊNCIA TCU (ACÓRDÃO Nº 2622/2013)
E10: 1º QUARTIL | F10: 2º QUARTIL | G10: 3º QUARTIL
A11: 1 | B11: ADMINISTRAÇÃO CENTRAL | C11: AC | D11: 0.04 | E11: 0.015 | F11: 0.0345 | G11: 0.0449
A12: 2 | B12: IMPOSTOS | C12: T | D12: =SUM(D13:D16) -> 0.0815
A13: 2.1 | B13: ISS (*) | E13: - | F13: - | G13: -
A14: 2.2 | B14: PIS | D14: 0.0065 | E14: - | F14: - | G14: -
A15: 2.3 | B15: Cofins | D15: 0.03 | E15: - | F15: - | G15: -
A16: 2.4 | B16: Contribuição previdênciária sobre a receita bruta (CPRB) | D16: 0.045 | E16: - | F16: - | G16: -
A17: 3 | B17: SEGURO, GARANTIA E RISCO | D17: =SUM(D18:D19) -> 0.0086
A18: 3.1 | B18: Seguro +Garantia | C18: S+G | D18: =E18 -> 0.003 | E18: 0.003 | F18: 0.0048 | G18: 0.0082
A19: 3.2 | B19: Risco | C19: R | D19: =E19 -> 0.0056 | E19: 0.0056 | F19: 0.0085 | G19: 0.0089
A20: 4 | B20: DESPESAS FINANCEIRAS | C20: DF | D20: 0.01 | E20: 0.0085 | F20: 0.0085 | G20: 0.0111
A21: 5 | B21: LUCRO | C21: L | D21: =F21 -> 0.0511 | E21: 0.035 | F21: 0.0511 | G21: 0.0622
B22: BDI ADOTADO: | D22: =ROUND(((((1+D11+D17)*(1+D20)*(1+D21))/(1-D12))-1),4) -> 0.212
A23: Considerações: O BDI foi calculado através da seguinte fórmula, regulamentada pelo Acórdão Nº 2622/2013 – TCU.

Sheet Encargos Sociais
A1: Ministério da Integração e do Desenvolvimento Regional
A2: Companhia de Desenvolvimento dos Vales do São Francisco e do Parnaíba
A3: ='Planilha Orçamentária'!#REF! -> 
A4: COMPOSIÇÃO DE ENCARGOS SOCIAIS SOBRE A MÃO DE OBRA
A5: OBRA: | B5: =UPPER("SERVIÇOS DE MANUTENÇÃO E OBRAS CIVIS NA ESTRUTURA DA BARRAGEM BARRAGEM JUÁ I") -> SERVIÇOS DE MANUTENÇÃO E OBRAS CIVIS NA ESTRUTURA DA BARRAGEM BARRAGEM JUÁ I
A6: LOCAL: | B6: BARRAGEM JUÁ I, CABROBÓ/PE
A7: DATA BASE: | B7: 2024-05-01
A8: PRAZO: | B8: 120 DIAS
A9: Encargos Sociais – Pernambuco VIGÊNCIA A PARTIR DE 12/2023
A10: ENCARGOS SOCIAIS SOBRE A MÃO DE OBRA
A11: CÓDIGO | B11: DESCRIÇÃO | C11: COM DESONERAÇÃO | E11: SEM DESONERAÇÃO
C12: HORISTA % | D12: MENSALISTA % | E12: HORISTA % | F12: MENSALISTA %
A13: GRUPO A
A14: A1 | B14: INSS | C14: 0 | D14: 0 | E14: 0.2 | F14: 0.2
A15: A2 | B15: SESI | C15: 0.015 | D15: 0.015 | E15: 0.015 | F15: 0.015
A16: A3 | B16: SENAI | C16: 0.01 | D16: 0.01 | E16: 0.01 | F16: 0.01
A17: A4 | B17: INCRA | C17: 0.002 | D17: 0.002 | E17: 0.002 | F17: 0.002
A18: A5 | B18: SEBRAE | C18: 0.006 | D18: 0.006 | E18: 0.006 | F18: 0.006
A19: A6 | B19: Salário Educação | C19: 0.025 | D19: 0.025 | E19: 0.025 | F19: 0.025
A20: A7 | B20: Seguro Contra Acidentes de Trabalho | C20: 0.03 | D20: 0.03 | E20: 0.03 | F20: 0.03
A21: A8 | B21: FGTS | C21: 0.08 | D21: 0.08 | E21: 0.08 | F21: 0.08
A22: A9 | B22: SECONCI | C22: 0 | D22: 0 | E22: 0 | F22: 0
A23: A | B23: Total | C23: =SUM(C14:C22) -> 0.168 | D23: =SUM(D14:D22) -> 0.168 | E23: =SUM(E14:E22) -> 0.368 | F23: =SUM(F14:F22) -> 0.368
A24: GRUPO B
A25: B1 | B25: Repouso Semanal Remunerado | C25: 0.1801 | D25: Não incide | E25: 0.1801 | F25: Não incide
A26: B2 | B26: Feriados | C26: 0.0432 | D26: Não incide | E26: 0.0432 | F26: Não incide
A27: B3 | B27: Auxílio - Enfermidade | C27: 0.0085 | D27: 0.0064 | E27: 0.0085 | F27: 0.0064
A28: B4 | B28: 13º Salário | C28: 0.1103 | D28: 0.0833 | E28: 0.1103 | F28: 0.0833
A29: B5 | B29: Licença Paternidade | C29: 0.0006 | D29: 0.0004 | E29: 0.0006 | F29: 0.0004
A30: B6 | B30: Faltas Justificadas | C30: 0.0074 | D30: 0.0056 | E30: 0.0074 | F30: 0.0056
A31: B7 | B31: Dias de Chuvas | C31: 0.0198 | D31: Não incide | E31: 0.0198 | F31: Não incide
A32: B8 | B32: Auxílio Acidente de Trabalho | C32: 0.001 | D32: 0.0008 | E32: 0.001 | F32: 0.0008
A33: B9 | B33: Férias Gozadas | C33: 0.109 | D33: 0.0824 | E33: 0.109 | F33: 0.0824
A34: B10 | B34: Salário Maternidade | C34: 0.0004 | D34: 0.0003 | E34: 0.0004 | F34: 0.0003
A35: B | B35: Total | C35: =SUM(C25:C34) -> 0.4803 | D35: =SUM(D25:D34) -> 0.1792 | E35: =SUM(E25:E34) -> 0.4803 | F35: =SUM(F25:F34) -> 0.1792
A36: GRUPO C
A37: C1 | B37: Aviso Prévio Indenizado | C37: 0.048 | D37: 0.0363 | E37: 0.048 | F37: 0.0363
A38: C2 | B38: Aviso Prévio Trabalhado | C38: 0.0011 | D38: 0.0009 | E38: 0.0011 | F38: 0.0009
A39: C3 | B39: Férias Indenizadas | C39: 0.0291 | D39: 0.022 | E39: 0.0291 | F39: 0.022
A40: C4 | B40: Depósito Rescisão Sem Justa Causa | C40: 0.0283 | D40: 0.0214 | E40: 0.0283 | F40: 0.0214
A41: C5 | B41: Indenização Adicional | C41: 0.004 | D41: 0.0031 | E41: 0.004 | F41: 0.0031
A42: C | B42: Total | C42: =SUM(C37:C41) -> 0.1105 | D42: =SUM(D37:D41) -> 0.0837 | E42: =SUM(E37:E41) -> 0.1105 | F42: =SUM(F37:F41) -> 0.0837
A43: GRUPO D
A44: D1 | B44: Reincidência de Grupo A sobre Grupo B | C44: 0.0807 | D44: 0.0301 | E44: 0.1768 | F44: 0.0659
A45: D2 | B45: Reincidência de Grupo A sobre Aviso Prévio Trabalhado e Reincidência do FGTS sobre Aviso Prévio Indenizado | C45: 0.004 | D45: 0.0031 | E45: 0.0042 | F45: 0.0032
A46: D | B46: Total | C46: =SUM(C44:C45) -> 0.0847 | D46: =SUM(D44:D45) -> 0.0332 | E46: =SUM(E44:E45) -> 0.181 | F46: =SUM(F44:F45) -> 0.0691
A47: TOTAL(A+B+C+D) | C47: =C23+C35+C42+C46 -> 0.8435 | D47: =D23+D35+D42+D46 -> 0.4641 | E47: =E23+E35+E42+E46 -> 1.1398 | F47: =F23+F35+F42+F46 -> 0.7
A48: Fonte: Informação Dias de Chuva – INMET

Sheet Comp SINAPI PE 12-2023 Onerado
A1: PCI.817.01 - CUSTO DE COMPOSIÇÕES - SINTÉTICO DATA DE EMISSÃO: 17/04/2024 23:50:35 DATA DE RT: 17/04/2024
A2: ENCARGOS SOCIAIS SOBRE PREÇOS DA MÃO-DE-OBRA: 113,98%(HORA) 70,00%(MÊS)
A3: ABRANGÊNCIA : NACIONAL LOCALIDADE : RECIFE DATA DE PREÇO : 03/2024 REFERÊNCIA COLETA : MEDIANO
A5: DESCRICAO DA CLASSE | B5: SIGLA DA CLASSE | C5: DESCRICAO DO TIPO 1 | D5: SIGLA DO TIPO 1 | E5: CODIGO DO AGRUPADOR | F5: DESCRICAO DO AGRUPADOR | G5: CODIGO DA COMPOSICAO | H5: DESCRICAO DA COMPOSICAO | I5: UNIDADE | J5: ORIGEM DE PREÇO | K5: CUSTO TOTAL | L5: VINCULO
A7: ASSENTAMENTO DE TUBOS E PECAS | B7: ASTU | C7: FORNEC E/OU ASSENT DE TUBO DE FERRO FUNDIDO JUNTA ELASTICA | D7: 0045 | G7: 97141 | H7: ASSENTAMENTO DE TUBO DE FERRO FUNDIDO PARA REDE DE ÁGUA, DN 80 MM, JUNTA ELÁSTICA, INSTALADO EM LOCAL COM NÍVEL ALTO DE INTERFERÊNCIAS (NÃO INCLUI FORNECIMENTO). AF_11/2017 | I7: M | J7: COEFICIENTE DE REPRESENTATIVIDADE | K7: 8.97 | L7: CAIXA REFERENCIAL
A8: ASSENTAMENTO DE TUBOS E PECAS | B8: ASTU | C8: FORNEC E/OU ASSENT DE TUBO DE FERRO FUNDIDO JUNTA ELASTICA | D8: 0045 | G8: 97142 | H8: ASSENTAMENTO DE TUBO DE FERRO FUNDIDO PARA REDE DE ÁGUA, DN 100 MM, JUNTA ELÁSTICA, INSTALADO EM LOCAL COM NÍVEL ALTO DE INTERFERÊNCIAS (NÃO INCLUI FORNECIMENTO). AF_11/2017 | I8: M | J8: COEFICIENTE DE REPRESENTATIVIDADE | K8: 9.93 | L8: CAIXA REFERENCIAL
A9: ASSENTAMENTO DE TUBOS E PECAS | B9: ASTU | C9: FORNEC E/OU ASSENT DE TUBO DE FERRO FUNDIDO JUNTA ELASTICA | D9: 0045 | G9: 97143 | H9: ASSENTAMENTO DE TUBO DE FERRO FUNDIDO PARA REDE DE ÁGUA, DN 150 MM, JUNTA ELÁSTICA, INSTALADO EM LOCAL COM NÍVEL ALTO DE INTERFERÊNCIAS (NÃO INCLUI FORNECIMENTO). AF_11/2017 | I9: M | J9: COEFICIENTE DE REPRESENTATIVIDADE | K9: 12.37 | L9: CAIXA REFERENCIAL
A10: ASSENTAMENTO DE TUBOS E PECAS | B10: ASTU | C10: FORNEC E/OU ASSENT DE TUBO DE FERRO FUNDIDO JUNTA ELASTICA | D10: 0045 | G10: 97144 | H10: ASSENTAMENTO DE TUBO DE FERRO FUNDIDO PARA REDE DE ÁGUA, DN 200 MM, JUNTA ELÁSTICA, INSTALADO EM LOCAL COM NÍVEL ALTO DE INTERFERÊNCIAS (NÃO INCLUI FORNECIMENTO). AF_11/2017 | I10: M | J10: COEFICIENTE DE REPRESENTATIVIDADE | K10: 14.79 | L10: CAIXA REFERENCIAL
A11: ASSENTAMENTO DE TUBOS E PECAS | B11: ASTU | C11: FORNEC E/OU ASSENT DE TUBO DE FERRO FUNDIDO JUNTA ELASTICA | D11: 0045 | G11: 97145 | H11: ASSENTAMENTO DE TUBO DE FERRO FUNDIDO PARA REDE DE ÁGUA, DN 250 MM, JUNTA ELÁSTICA, INSTALADO EM LOCAL COM NÍVEL ALTO DE INTERFERÊNCIAS (NÃO INCLUI FORNECIMENTO). AF_11/2017 | I11: M | J11: COEFICIENTE DE REPRESENTATIVIDADE | K11: 17.24 | L11: CAIXA REFERENCIAL
A12: ASSENTAMENTO DE TUBOS E PECAS | B12: ASTU | C12: FORNEC E/OU ASSENT DE TUBO DE FERRO FUNDIDO JUNTA ELASTICA | D12: 0045 | G12: 97146 | H12: ASSENTAMENTO DE TUBO DE FERRO FUNDIDO PARA REDE DE ÁGUA, DN 300 MM, JUNTA ELÁSTICA, INSTALADO EM LOCAL COM NÍVEL ALTO DE INTERFERÊNCIAS (NÃO INCLUI FORNECIMENTO). AF_11/2017 | I12: M | J12: COEFICIENTE DE REPRESENTATIVIDADE | K12: 19.68 | L12: CAIXA REFERENCIAL
A13: ASSENTAMENTO DE TUBOS E PECAS | B13: ASTU | C13: FORNEC E/OU ASSENT DE TUBO DE FERRO FUNDIDO JUNTA ELASTICA | D13: 0045 | G13: 97147 | H13: ASSENTAMENTO DE TUBO DE FERRO FUNDIDO PARA REDE DE ÁGUA, DN 350 MM, JUNTA ELÁSTICA, INSTALADO EM LOCAL COM NÍVEL ALTO DE INTERFERÊNCIAS (NÃO INCLUI FORNECIMENTO). AF_11/2017 | I13: M | J13: COEFICIENTE DE REPRESENTATIVIDADE | K13: 22.12 | L13: CAIXA REFERENCIAL
A14: ASSENTAMENTO DE TUBOS E PECAS | B14: ASTU | C14: FORNEC E/OU ASSENT DE TUBO DE FERRO FUNDIDO JUNTA ELASTICA | D14: 0045 | G14: 97148 | H14: ASSENTAMENTO DE TUBO DE FERRO FUNDIDO PARA REDE DE ÁGUA, DN 400 MM, JUNTA ELÁSTICA, INSTALADO EM LOCAL COM NÍVEL ALTO DE INTERFERÊNCIAS (NÃO INCLUI FORNECIMENTO). AF_11/2017 | I14: M | J14: COEFICIENTE DE REPRESENTATIVIDADE | K14: 24.56 | L14: CAIXA REFERENCIAL
A15: ASSENTAMENTO DE TUBOS E PECAS | B15: ASTU | C15: FORNEC E/OU ASSENT DE TUBO DE FERRO FUNDIDO JUNTA ELASTICA | D15: 0045 | G15: 97149 | H15: ASSENTAMENTO DE TUBO DE FERRO FUNDIDO PARA REDE DE ÁGUA, DN 450 MM, JUNTA ELÁSTICA, INSTALADO EM LOCAL COM NÍVEL ALTO DE INTERFERÊNCIAS (NÃO INCLUI FORNECIMENTO). AF_11/2017 | I15: M | J15: COEFICIENTE DE REPRESENTATIVIDADE | K15: 27.04 | L15: CAIXA REFERENCIAL
A16: ASSENTAMENTO DE TUBOS E PECAS | B16: ASTU | C16: FORNEC E/OU ASSENT DE TUBO DE FERRO FUNDIDO JUNTA ELASTICA | D16: 0045 | G16: 97150 | H16: ASSENTAMENTO DE TUBO DE FERRO FUNDIDO PARA REDE DE ÁGUA, DN 500 MM, JUNTA ELÁSTICA, INSTALADO EM LOCAL COM NÍVEL ALTO DE INTERFERÊNCIAS (NÃO INCLUI FORNECIMENTO). AF_11/2017 | I16: M | J16: COEFICIENTE DE REPRESENTATIVIDADE | K16: 33.71 | L16: CAIXA REFERENCIAL
A17: ASSENTAMENTO DE TUBOS E PECAS | B17: ASTU | C17: FORNEC E/OU ASSENT DE TUBO DE FERRO FUNDIDO JUNTA ELASTICA | D17: 0045 | G17: 97151 | H17: ASSENTAMENTO DE TUBO DE FERRO FUNDIDO PARA REDE DE ÁGUA, DN 600 MM, JUNTA ELÁSTICA, INSTALADO EM LOCAL COM NÍVEL ALTO DE INTERFERÊNCIAS (NÃO INCLUI FORNECIMENTO). AF_11/2017 | I17: M | J17: COEFICIENTE DE REPRESENTATIVIDADE | K17: 39.24 | L17: CAIXA REFERENCIAL
A18: ASSENTAMENTO DE TUBOS E PECAS | B18: ASTU | C18: FORNEC E/OU ASSENT DE TUBO DE FERRO FUNDIDO JUNTA ELASTICA | D18: 0045 | G18: 97152 | H18: ASSENTAMENTO DE TUBO DE FERRO FUNDIDO PARA REDE DE ÁGUA, DN 700 MM, JUNTA ELÁSTICA, INSTALADO EM LOCAL COM NÍVEL ALTO DE INTERFERÊNCIAS (NÃO INCLUI FORNECIMENTO). AF_11/2017 | I18: M | J18: COEFICIENTE DE REPRESENTATIVIDADE | K18: 44.53 | L18: CAIXA REFERENCIAL
A19: ASSENTAMENTO DE TUBOS E PECAS | B19: ASTU | C19: FORNEC E/OU ASSENT DE TUBO DE FERRO FUNDIDO JUNTA ELASTICA | D19: 0045 | G19: 97153 | H19: ASSENTAMENTO DE TUBO DE FERRO FUNDIDO PARA REDE DE ÁGUA, DN 800 MM, JUNTA ELÁSTICA, INSTALADO EM LOCAL COM NÍVEL ALTO DE INTERFERÊNCIAS (NÃO INCLUI FORNECIMENTO). AF_11/2017 | I19: M | J19: COEFICIENTE DE REPRESENTATIVIDADE | K19: 49.97 | L19: CAIXA REFERENCIAL
A20: ASSENTAMENTO DE TUBOS E PECAS | B20: ASTU | C20: FORNEC E/OU ASSENT DE TUBO DE FERRO FUNDIDO JUNTA ELASTICA | D20: 0045 | G20: 97154 | H20: ASSENTAMENTO DE TUBO DE FERRO FUNDIDO PARA REDE DE ÁGUA, DN 900 MM, JUNTA ELÁSTICA, INSTALADO EM LOCAL COM NÍVEL ALTO DE INTERFERÊNCIAS (NÃO INCLUI FORNECIMENTO). AF_11/2017 | I20: M | J20: COEFICIENTE DE REPRESENTATIVIDADE | K20: 55.46 | L20: CAIXA REFERENCIAL
A21: ASSENTAMENTO DE TUBOS E PECAS | B21: ASTU | C21: FORNEC E/OU ASSENT DE TUBO DE FERRO FUNDIDO JUNTA ELASTICA | D21: 0045 | G21: 97155 | H21: ASSENTAMENTO DE TUBO DE FERRO FUNDIDO PARA REDE DE ÁGUA, DN 1000 MM, JUNTA ELÁSTICA, INSTALADO EM LOCAL COM NÍVEL ALTO DE INTERFERÊNCIAS (NÃO INCLUI FORNECIMENTO). AF_11/2017 | I21: M | J21: COEFICIENTE DE REPRESENTATIVIDADE | K21: 60.92 | L21: CAIXA REFERENCIAL
A22: ASSENTAMENTO DE TUBOS E PECAS | B22: ASTU | C22: FORNEC E/OU ASSENT DE TUBO DE FERRO FUNDIDO JUNTA ELASTICA | D22: 0045 | G22: 97156 | H22: ASSENTAMENTO DE TUBO DE FERRO FUNDIDO PARA REDE DE ÁGUA, DN 1200 MM, JUNTA ELÁSTICA, INSTALADO EM LOCAL COM NÍVEL ALTO DE INTERFERÊNCIAS (NÃO INCLUI FORNECIMENTO). AF_11/2017 | I22: M | J22: COEFICIENTE DE REPRESENTATIVIDADE | K22: 72.23 | L22: CAIXA REFERENCIAL
A23: ASSENTAMENTO DE TUBOS E PECAS | B23: ASTU | C23: FORNEC E/OU ASSENT DE TUBO DE FERRO FUNDIDO JUNTA ELASTICA | D23: 0045 | G23: 97157 | H23: ASSENTAMENTO DE TUBO DE FERRO FUNDIDO PARA REDE DE ÁGUA, DN 80 MM, JUNTA ELÁSTICA, INSTALADO EM LOCAL COM NÍVEL BAIXO DE INTERFERÊNCIAS (NÃO INCLUI FORNECIMENTO). AF_11/2017 | I23: M | J23: COEFICIENTE DE REPRESENTATIVIDADE | K23: 5.37 | L23: CAIXA REFERENCIAL
A24: ASSENTAMENTO DE TUBOS E PECAS | B24: ASTU | C24: FORNEC E/OU ASSENT DE TUBO DE FERRO FUNDIDO JUNTA ELASTICA | D24: 0045 | G24: 97158 | H24: ASSENTAMENTO DE TUBO DE FERRO FUNDIDO PARA REDE DE ÁGUA, DN 100 MM, JUNTA ELÁSTICA, INSTALADO EM LOCAL COM NÍVEL BAIXO DE INTERFERÊNCIAS (NÃO INCLUI FORNECIMENTO). AF_11/2017 | I24: M | J24: COEFICIENTE DE REPRESENTATIVIDADE | K24: 5.96 | L24: CAIXA REFERENCIAL
A25: ASSENTAMENTO DE TUBOS E PECAS | B25: ASTU | C25: FORNEC E/OU ASSENT DE TUBO DE FERRO FUNDIDO JUNTA ELASTICA | D25: 0045 | G25: 97159 | H25: ASSENTAMENTO DE TUBO DE FERRO FUNDIDO PARA REDE DE ÁGUA, DN 150 MM, JUNTA ELÁSTICA, INSTALADO EM LOCAL COM NÍVEL BAIXO DE INTERFERÊNCIAS (NÃO INCLUI FORNECIMENTO). AF_11/2017 | I25: M | J25: COEFICIENTE DE REPRESENTATIVIDADE | K25: 7.43 | L25: CAIXA REFERENCIAL
A26: ASSENTAMENTO DE TUBOS E PECAS | B26: ASTU | C26: FORNEC E/OU ASSENT DE TUBO DE FERRO FUNDIDO JUNTA ELASTICA | D26: 0045 | G26: 97160 | H26: ASSENTAMENTO DE TUBO DE FERRO FUNDIDO PARA REDE DE ÁGUA, DN 200 MM, JUNTA ELÁSTICA, INSTALADO EM LOCAL COM NÍVEL BAIXO DE INTERFERÊNCIAS (NÃO INCLUI FORNECIMENTO). AF_11/2017 | I26: M | J26: COEFICIENTE DE REPRESENTATIVIDADE | K26: 8.89 | L26: CAIXA REFERENCIAL
A27: ASSENTAMENTO DE TUBOS E PECAS | B27: ASTU | C27: FORNEC E/OU ASSENT DE TUBO DE FERRO FUNDIDO JUNTA ELASTICA | D27: 0045 | G27: 97161 | H27: ASSENTAMENTO DE TUBO DE FERRO FUNDIDO PARA REDE DE ÁGUA, DN 250 MM, JUNTA ELÁSTICA, INSTALADO EM LOCAL COM NÍVEL BAIXO DE INTERFERÊNCIAS (NÃO INCLUI FORNECIMENTO). AF_11/2017 | I27: M | J27: COEFICIENTE DE REPRESENTATIVIDADE | K27: 10.38 | L27: CAIXA REFERENCIAL
A28: ASSENTAMENTO DE TUBOS E PECAS | B28: ASTU | C28: FORNEC E/OU ASSENT DE TUBO DE FERRO FUNDIDO JUNTA ELASTICA | D28: 0045 | G28: 97162 | H28: ASSENTAMENTO DE TUBO DE FERRO FUNDIDO PARA REDE DE ÁGUA, DN 300 MM, JUNTA ELÁSTICA, INSTALADO EM LOCAL COM NÍVEL BAIXO DE INTERFERÊNCIAS (NÃO INCLUI FORNECIMENTO). AF_11/2017 | I28: M | J28: COEFICIENTE DE REPRESENTATIVIDADE | K28: 11.86 | L28: CAIXA REFERENCIAL
A29: ASSENTAMENTO DE TUBOS E PECAS | B29: ASTU | C29: FORNEC E/OU ASSENT DE TUBO DE FERRO FUNDIDO JUNTA ELASTICA | D29: 0045 | G29: 97163 | H29: ASSENTAMENTO DE TUBO DE FERRO FUNDIDO PARA REDE DE ÁGUA, DN 350 MM, JUNTA ELÁSTICA, INSTALADO EM LOCAL COM NÍVEL BAIXO DE INTERFERÊNCIAS (NÃO INCLUI FORNECIMENTO). AF_11/2017 | I29: M | J29: COEFICIENTE DE REPRESENTATIVIDADE | K29: 13.36 | L29: CAIXA REFERENCIAL
A30: ASSENTAMENTO DE TUBOS E PECAS | B30: ASTU | C30: FORNEC E/OU ASSENT DE TUBO DE FERRO FUNDIDO JUNTA ELASTICA | D30: 0045 | G30: 97164 | H30: ASSENTAMENTO DE TUBO DE FERRO FUNDIDO PARA REDE DE ÁGUA, DN 400 MM, JUNTA ELÁSTICA, INSTALADO EM LOCAL COM NÍVEL BAIXO DE INTERFERÊNCIAS (NÃO INCLUI FORNECIMENTO). AF_11/2017 | I30: M | J30: COEFICIENTE DE REPRESENTATIVIDADE | K30: 14.84 | L30: CAIXA REFERENCIAL
A31: ASSENTAMENTO DE TUBOS E PECAS | B31: ASTU | C31: FORNEC E/OU ASSENT DE TUBO DE FERRO FUNDIDO JUNTA ELASTICA | D31: 0045 | G31: 97165 | H31: ASSENTAMENTO DE TUBO DE FERRO FUNDIDO PARA REDE DE ÁGUA, DN 450 MM, JUNTA ELÁSTICA, INSTALADO EM LOCAL COM NÍVEL BAIXO DE INTERFERÊNCIAS (NÃO INCLUI FORNECIMENTO). AF_11/2017 | I31: M | J31: COEFICIENTE DE REPRESENTATIVIDADE | K31: 16.35 | L31: CAIXA REFERENCIAL
A32: ASSENTAMENTO DE TUBOS E PECAS | B32: ASTU | C32: FORNEC E/OU ASSENT DE TUBO DE FERRO FUNDIDO JUNTA ELASTICA | D32: 0045 | G32: 97166 | H32: ASSENTAMENTO DE TUBO DE FERRO FUNDIDO PARA REDE DE ÁGUA, DN 500 MM, JUNTA ELÁSTICA, INSTALADO EM LOCAL COM NÍVEL BAIXO DE INTERFERÊNCIAS (NÃO INCLUI FORNECIMENTO). AF_11/2017 | I32: M | J32: COEFICIENTE DE REPRESENTATIVIDADE | K32: 20.4 | L32: CAIXA REFERENCIAL
A33: ASSENTAMENTO DE TUBOS E PECAS | B33: ASTU | C33: FORNEC E/OU ASSENT DE TUBO DE FERRO FUNDIDO JUNTA ELASTICA | D33: 0045 | G33: 97167 | H33: ASSENTAMENTO DE TUBO DE FERRO FUNDIDO PARA REDE DE ÁGUA, DN 600 MM, JUNTA ELÁSTICA, INSTALADO EM LOCAL COM NÍVEL BAIXO DE INTERFERÊNCIAS (NÃO INCLUI FORNECIMENTO). AF_11/2017 | I33: M | J33: COEFICIENTE DE REPRESENTATIVIDADE | K33: 23.78 | L33: CAIXA REFERENCIAL
A34: ASSENTAMENTO DE TUBOS E PECAS | B34: ASTU | C34: FORNEC E/OU ASSENT DE TUBO DE FERRO FUNDIDO JUNTA ELASTICA | D34: 0045 | G34: 97168 | H34: ASSENTAMENTO DE TUBO DE FERRO FUNDIDO PARA REDE DE ÁGUA, DN 700 MM, JUNTA ELÁSTICA, INSTALADO EM LOCAL COM NÍVEL BAIXO DE INTERFERÊNCIAS (NÃO INCLUI FORNECIMENTO). AF_11/2017 | I34: M | J34: COEFICIENTE DE REPRESENTATIVIDADE | K34: 26.93 | L34: CAIXA REFERENCIAL
A35: ASSENTAMENTO DE TUBOS E PECAS | B35: ASTU | C35: FORNEC E/OU ASSENT DE TUBO DE FERRO FUNDIDO JUNTA ELASTICA | D35: 0045 | G35: 97169 | H35: ASSENTAMENTO DE TUBO DE FERRO FUNDIDO PARA REDE DE ÁGUA, DN 800 MM, JUNTA ELÁSTICA, INSTALADO EM LOCAL COM NÍVEL BAIXO DE INTERFERÊNCIAS (NÃO INCLUI FORNECIMENTO). AF_11/2017 | I35: M | J35: COEFICIENTE DE REPRESENTATIVIDADE | K35: 30.23 | L35: CAIXA REFERENCIAL
A36: ASSENTAMENTO DE TUBOS E PECAS | B36: ASTU | C36: FORNEC E/OU ASSENT DE TUBO DE FERRO FUNDIDO JUNTA ELASTICA | D36: 0045 | G36: 97170 | H36: ASSENTAMENTO DE TUBO DE FERRO FUNDIDO PARA REDE DE ÁGUA, DN 900 MM, JUNTA ELÁSTICA, INSTALADO EM LOCAL COM NÍVEL BAIXO DE INTERFERÊNCIAS (NÃO INCLUI FORNECIMENTO). AF_11/2017 | I36: M | J36: COEFICIENTE DE REPRESENTATIVIDADE | K36: 33.55 | L36: CAIXA REFERENCIAL
A37: ASSENTAMENTO DE TUBOS E PECAS | B37: ASTU | C37: FORNEC E/OU ASSENT DE TUBO DE FERRO FUNDIDO JUNTA ELASTICA | D37: 0045 | G37: 97171 | H37: ASSENTAMENTO DE TUBO DE FERRO FUNDIDO PARA REDE DE ÁGUA, DN 1000 MM, JUNTA ELÁSTICA, INSTALADO EM LOCAL COM NÍVEL BAIXO DE INTERFERÊNCIAS (NÃO INCLUI FORNECIMENTO). AF_11/2017 | I37: M | J37: COEFICIENTE DE REPRESENTATIVIDADE | K37: 36.88 | L37: CAIXA REFERENCIAL
A38: ASSENTAMENTO DE TUBOS E PECAS | B38: ASTU | C38: FORNEC E/OU ASSENT DE TUBO DE FERRO FUNDIDO JUNTA ELASTICA | D38: 0045 | G38: 97172 | H38: ASSENTAMENTO DE TUBO DE FERRO FUNDIDO PARA REDE DE ÁGUA, DN 1200 MM, JUNTA ELÁSTICA, INSTALADO EM LOCAL COM NÍVEL BAIXO DE INTERFERÊNCIAS (NÃO INCLUI FORNECIMENTO). AF_11/2017 | I38: M | J38: COEFICIENTE DE REPRESENTATIVIDADE | K38: 43.89 | L38: CAIXA REFERENCIAL
A39: ASSENTAMENTO DE TUBOS E PECAS | B39: ASTU | C39: FORNEC E/OU ASSENT DE TUBO DE ACO COM JUNTA SOLDADA | D39: 0046 | G39: 97173 | H39: ASSENTAMENTO DE TUBO DE AÇO CARBONO PARA REDE DE ÁGUA, DN 600 MM (24"), JUNTA SOLDADA, INSTALADO EM LOCAL COM NÍVEL ALTO DE INTERFERÊNCIAS (NÃO INCLUI FORNECIMENTO). AF_11/2017 | I39: M | J39: COEFICIENTE DE REPRESENTATIVIDADE | K39: 36.23 | L39: CAIXA REFERENCIAL
A40: ASSENTAMENTO DE TUBOS E PECAS | B40: ASTU | C40: FORNEC E/OU ASSENT DE TUBO DE ACO COM JUNTA SOLDADA | D40: 0046 | G40: 97174 | H40: ASSENTAMENTO DE TUBO DE AÇO CARBONO PARA REDE DE ÁGUA, DN 700 MM (28"), JUNTA SOLDADA, INSTALADO EM LOCAL COM NÍVEL ALTO DE INTERFERÊNCIAS (NÃO INCLUI FORNECIMENTO). AF_11/2017 | I40: M | J40: COEFICIENTE DE REPRESENTATIVIDADE | K40: 41.95 | L40: CAIXA REFERENCIAL
A41: ASSENTAMENTO DE TUBOS E PECAS | B41: ASTU | C41: FORNEC E/OU ASSENT DE TUBO DE ACO COM JUNTA SOLDADA | D41: 0046 | G41: 97175 | H41: ASSENTAMENTO DE TUBO DE AÇO CARBONO PARA REDE DE ÁGUA, DN 800 MM (32"), JUNTA SOLDADA, INSTALADO EM LOCAL COM NÍVEL ALTO DE INTERFERÊNCIAS (NÃO INCLUI FORNECIMENTO). AF_11/2017 | I41: M | J41: COEFICIENTE DE REPRESENTATIVIDADE | K41: 47.66 | L41: CAIXA REFERENCIAL
A42: ASSENTAMENTO DE TUBOS E PECAS | B42: ASTU | C42: FORNEC E/OU ASSENT DE TUBO DE ACO COM JUNTA SOLDADA | D42: 0046 | G42: 97176 | H42: ASSENTAMENTO DE TUBO DE AÇO CARBONO PARA REDE DE ÁGUA, DN 900 MM (36"), JUNTA SOLDADA, INSTALADO EM LOCAL COM NÍVEL ALTO DE INTERFERÊNCIAS (NÃO INCLUI FORNECIMENTO). AF_11/2017 | I42: M | J42: COEFICIENTE DE REPRESENTATIVIDADE | K42: 53.37 | L42: CAIXA REFERENCIAL
A43: ASSENTAMENTO DE TUBOS E PECAS | B43: ASTU | C43: FORNEC E/OU ASSENT DE TUBO DE ACO COM JUNTA SOLDADA | D43: 0046 | G43: 97177 | H43: ASSENTAMENTO DE TUBO DE AÇO CARBONO PARA REDE DE ÁGUA, DN 1000 MM (40") OU DN 1100 MM (44"), JUNTA SOLDADA, INSTALADO EM LOCAL COM NÍVEL ALTO DE INTERFERÊNCIAS (NÃO INCLUI FORNECIMENTO). AF_11/2017 | I43: M | J43: COEFICIENTE DE REPRESENTATIVIDADE | K43: 64.81 | L43: CAIXA REFERENCIAL
A44: ASSENTAMENTO DE TUBOS E PECAS | B44: ASTU | C44: FORNEC E/OU ASSENT DE TUBO DE ACO COM JUNTA SOLDADA | D44: 0046 | G44: 97178 | H44: ASSENTAMENTO DE TUBO DE AÇO CARBONO PARA REDE DE ÁGUA, DN 1200 MM (48") OU DN 1300 MM (52"), JUNTA SOLDADA, INSTALADO EM LOCAL COM NÍVEL ALTO DE INTERFERÊNCIAS (NÃO INCLUI FORNECIMENTO). AF_11/2017 | I44: M | J44: COEFICIENTE DE REPRESENTATIVIDADE | K44: 76.25 | L44: CAIXA REFERENCIAL
A45: ASSENTAMENTO DE TUBOS E PECAS | B45: ASTU | C45: FORNEC E/OU ASSENT DE TUBO DE ACO COM JUNTA SOLDADA | D45: 0046 | G45: 97179 | H45: ASSENTAMENTO DE TUBO DE AÇO CARBONO PARA REDE DE ÁGUA, DN 1400 MM (56'') OU DN 1500 MM (60"), JUNTA SOLDADA, INSTALADO EM LOCAL COM NÍVEL ALTO DE INTERFERÊNCIAS (NÃO INCLUI FORNECIMENTO). AF_11/2017 | I45: M | J45: COEFICIENTE DE REPRESENTATIVIDADE | K45: 87.65 | L45: CAIXA REFERENCIAL
A46: ASSENTAMENTO DE TUBOS E PECAS | B46: ASTU | C46: FORNEC E/OU ASSENT DE TUBO DE ACO COM JUNTA SOLDADA | D46: 0046 | G46: 97180 | H46: ASSENTAMENTO DE TUBO DE AÇO CARBONO PARA REDE DE ÁGUA, DN 1600 MM (64") OU DN 1700 MM (68"), JUNTA SOLDADA, INSTALADO EM LOCAL COM NÍVEL ALTO DE INTERFERÊNCIAS (NÃO INCLUI FORNECIMENTO). AF_11/2017 | I46: M | J46: COEFICIENTE DE REPRESENTATIVIDADE | K46: 99.1 | L46: CAIXA REFERENCIAL
A47: ASSENTAMENTO DE TUBOS E PECAS | B47: ASTU | C47: FORNEC E/OU ASSENT DE TUBO DE ACO COM JUNTA SOLDADA | D47: 0046 | G47: 97181 | H47: ASSENTAMENTO DE TUBO DE AÇO CARBONO PARA REDE DE ÁGUA, DN 1800 MM (72") OU DN 1900 MM (76"), JUNTA SOLDADA, INSTALADO EM LOCAL COM NÍVEL ALTO DE INTERFERÊNCIAS (NÃO INCLUI FORNECIMENTO). AF_11/2017 | I47: M | J47: COEFICIENTE DE REPRESENTATIVIDADE | K47: 115.2 | L47: CAIXA REFERENCIAL
A48: ASSENTAMENTO DE TUBOS E PECAS | B48: ASTU | C48: FORNEC E/OU ASSENT DE TUBO DE ACO COM JUNTA SOLDADA | D48: 0046 | G48: 97182 | H48: ASSENTAMENTO DE TUBO DE AÇO CARBONO PARA REDE DE ÁGUA, DN 2000 MM (80") OU DN 2100 MM (84"), JUNTA SOLDADA, INSTALADO EM LOCAL COM NÍVEL ALTO DE INTERFERÊNCIAS (NÃO INCLUI FORNECIMENTO). AF_11/2017 | I48: M | J48: COEFICIENTE DE REPRESENTATIVIDADE | K48: 127.14 | L48: CAIXA REFERENCIAL
A49: ASSENTAMENTO DE TUBOS E PECAS | B49: ASTU | C49: FORNEC E/OU ASSENT DE TUBO DE ACO COM JUNTA SOLDADA | D49: 0046 | G49: 97183 | H49: ASSENTAMENTO DE TUBO DE AÇO CARBONO PARA REDE DE ÁGUA, DN 600 MM (24"), JUNTA SOLDADA, INSTALADO EM LOCAL COM NÍVEL BAIXO DE INTERFERÊNCIAS (NÃO INCLUI FORNECIMENTO). AF_11/2017 | I49: M | J49: COEFICIENTE DE REPRESENTATIVIDADE | K49: 28.59 | L49: CAIXA REFERENCIAL
A50: ASSENTAMENTO DE TUBOS E PECAS | B50: ASTU | C50: FORNEC E/OU ASSENT DE TUBO DE ACO COM JUNTA SOLDADA | D50: 0046 | G50: 97184 | H50: ASSENTAMENTO DE TUBO DE AÇO CARBONO PARA REDE DE ÁGUA, DN 700 MM (28"), JUNTA SOLDADA, INSTALADO EM LOCAL COM NÍVEL BAIXO DE INTERFERÊNCIAS (NÃO INCLUI FORNECIMENTO). AF_11/2017 | I50: M | J50: COEFICIENTE DE REPRESENTATIVIDADE | K50: 33.15 | L50: CAIXA REFERENCIAL
A51: ASSENTAMENTO DE TUBOS E PECAS | B51: ASTU | C51: FORNEC E/OU ASSENT DE TUBO DE ACO COM JUNTA SOLDADA | D51: 0046 | G51: 97185 | H51: ASSENTAMENTO DE TUBO DE AÇO CARBONO PARA REDE DE ÁGUA, DN 800 MM (32"), JUNTA SOLDADA, INSTALADO EM LOCAL COM NÍVEL BAIXO DE INTERFERÊNCIAS (NÃO INCLUI FORNECIMENTO). AF_11/2017 | I51: M | J51: COEFICIENTE DE REPRESENTATIVIDADE | K51: 37.72 | L51: CAIXA REFERENCIAL
A52: ASSENTAMENTO DE TUBOS E PECAS | B52: ASTU | C52: FORNEC E/OU ASSENT DE TUBO DE ACO COM JUNTA SOLDADA | D52: 0046 | G52: 97186 | H52: ASSENTAMENTO DE TUBO DE AÇO CARBONO PARA REDE DE ÁGUA, DN 900 MM (36"), JUNTA SOLDADA, INSTALADO EM LOCAL COM NÍVEL BAIXO DE INTERFERÊNCIAS (NÃO INCLUI FORNECIMENTO). AF_11/2017 | I52: M | J52: COEFICIENTE DE REPRESENTATIVIDADE | K52: 42.3 | L52: CAIXA REFERENCIAL
A53: ASSENTAMENTO DE TUBOS E PECAS | B53: ASTU | C53: FORNEC E/OU ASSENT DE TUBO DE ACO COM JUNTA SOLDADA | D53: 0046 | G53: 97187 | H53: ASSENTAMENTO DE TUBO DE AÇO CARBONO PARA REDE DE ÁGUA, DN 1000 MM (40 ) OU DN 1100 MM (44 ), JUNTA SOLDADA, INSTALADO EM LOCAL COM NÍVEL BAIXO DE INTERFERÊNCIAS (NÃO INCLUI FORNECIMENTO). AF_11/2017 | I53: M | J53: COEFICIENTE DE REPRESENTATIVIDADE | K53: 51.44 | L53: CAIXA REFERENCIAL
A54: ASSENTAMENTO DE TUBOS E PECAS | B54: ASTU | C54: FORNEC E/OU ASSENT DE TUBO DE ACO COM JUNTA SOLDADA | D54: 0046 | G54: 97188 | H54: ASSENTAMENTO DE TUBO DE AÇO CARBONO PARA REDE DE ÁGUA, DN 1200 MM (48") OU DN 1300 MM (52"), JUNTA SOLDADA, INSTALADO EM LOCAL COM NÍVEL BAIXO DE INTERFERÊNCIAS (NÃO INCLUI FORNECIMENTO). AF_11/2017 | I54: M | J54: COEFICIENTE DE REPRESENTATIVIDADE | K54: 60.58 | L54: CAIXA REFERENCIAL
A55: ASSENTAMENTO DE TUBOS E PECAS | B55: ASTU | C55: FORNEC E/OU ASSENT DE TUBO DE ACO COM JUNTA SOLDADA | D55: 0046 | G55: 97189 | H55: ASSENTAMENTO DE TUBO DE AÇO CARBONO PARA REDE DE ÁGUA, DN 1400 MM (56'') OU DN 1500 MM (60"), JUNTA SOLDADA, INSTALADO EM LOCAL COM NÍVEL BAIXO DE INTERFERÊNCIAS (NÃO INCLUI FORNECIMENTO). AF_11/2017 | I55: M | J55: COEFICIENTE DE REPRESENTATIVIDADE | K55: 69.71 | L55: CAIXA REFERENCIAL
A56: ASSENTAMENTO DE TUBOS E PECAS | B56: ASTU | C56: FORNEC E/OU ASSENT DE TUBO DE ACO COM JUNTA SOLDADA | D56: 0046 | G56: 97190 | H56: ASSENTAMENTO DE TUBO DE AÇO CARBONO PARA REDE DE ÁGUA, DN 1600 MM (64") OU DN 1700 MM (68"), JUNTA SOLDADA, INSTALADO EM LOCAL COM NÍVEL BAIXO DE INTERFERÊNCIAS (NÃO INCLUI FORNECIMENTO). AF_11/2017 | I56: M | J56: COEFICIENTE DE REPRESENTATIVIDADE | K56: 78.86 | L56: CAIXA REFERENCIAL
A57: ASSENTAMENTO DE TUBOS E PECAS | B57: ASTU | C57: FORNEC E/OU ASSENT DE TUBO DE ACO COM JUNTA SOLDADA | D57: 0046 | G57: 97191 | H57: ASSENTAMENTO DE TUBO DE AÇO CARBONO PARA REDE DE ÁGUA, DN 1800 MM (72") OU DN 1900 MM (76"), JUNTA SOLDADA, INSTALADO EM LOCAL COM NÍVEL BAIXO DE INTERFERÊNCIAS (NÃO INCLUI FORNECIMENTO). AF_11/2017 | I57: M | J57: COEFICIENTE DE REPRESENTATIVIDADE | K57: 91.4 | L57: CAIXA REFERENCIAL
A58: ASSENTAMENTO DE TUBOS E PECAS | B58: ASTU | C58: FORNEC E/OU ASSENT DE TUBO DE ACO COM JUNTA SOLDADA | D58: 0046 | G58: 97192 | H58: ASSENTAMENTO DE TUBO DE AÇO CARBONO PARA REDE DE ÁGUA, DN 2000 MM (80") OU DN 2100 MM (84"), JUNTA SOLDADA, INSTALADO EM LOCAL COM NÍVEL BAIXO DE INTERFERÊNCIAS (NÃO INCLUI FORNECIMENTO). AF_11/2017 | I58: M | J58: COEFICIENTE DE REPRESENTATIVIDADE | K58: 100.91 | L58: CAIXA REFERENCIAL
A59: ASSENTAMENTO DE TUBOS E PECAS | B59: ASTU | C59: FORNEC E/OU ASSENT DE TUBO DE PVC COM JUNTA ELASTICA | D59: 0048 | G59: 90694 | H59: TUBO DE PVC PARA REDE COLETORA DE ESGOTO DE PAREDE MACIÇA, DN 100 MM, JUNTA ELÁSTICA - FORNECIMENTO E ASSENTAMENTO. AF_01/2021 | I59: M | J59: COEFICIENTE DE REPRESENTATIVIDADE | K59: 37.72 | L59: CAIXA REFERENCIAL
A60: ASSENTAMENTO DE TUBOS E PECAS | B60: ASTU | C60: FORNEC E/OU ASSENT DE TUBO DE PVC COM JUNTA ELASTICA | D60: 0048 | G60: 90695 | H60: TUBO DE PVC PARA REDE COLETORA DE ESGOTO DE PAREDE MACIÇA, DN 150 MM, JUNTA ELÁSTICA - FORNECIMENTO E ASSENTAMENTO. AF_01/2021 | I60: M | J60: COEFICIENTE DE REPRESENTATIVIDADE | K60: 71.36 | L60: CAIXA REFERENCIAL
A61: ASSENTAMENTO DE TUBOS E PECAS | B61: ASTU | C61: FORNEC E/OU ASSENT DE TUBO DE PVC COM JUNTA ELASTICA | D61: 0048 | G61: 90696 | H61: TUBO DE PVC PARA REDE COLETORA DE ESGOTO DE PAREDE MACIÇA, DN 200 MM, JUNTA ELÁSTICA - FORNECIMENTO E ASSENTAMENTO. AF_01/2021 | I61: M | J61: COEFICIENTE DE REPRESENTATIVIDADE | K61: 118.93 | L61: CAIXA REFERENCIAL
A62: ASSENTAMENTO DE TUBOS E PECAS | B62: ASTU | C62: FORNEC E/OU ASSENT DE TUBO DE PVC COM JUNTA ELASTICA | D62: 0048 | G62: 90697 | H62: TUBO DE PVC PARA REDE COLETORA DE ESGOTO DE PAREDE MACIÇA, DN 250 MM, JUNTA ELÁSTICA - FORNECIMENTO E ASSENTAMENTO. AF_01/2021 | I62: M | J62: COEFICIENTE DE REPRESENTATIVIDADE | K62: 184.27 | L62: CAIXA REFERENCIAL
A63: ASSENTAMENTO DE TUBOS E PECAS | B63: ASTU | C63: FORNEC E/OU ASSENT DE TUBO DE PVC COM JUNTA ELASTICA | D63: 0048 | G63: 90698 | H63: TUBO DE PVC PARA REDE COLETORA DE ESGOTO DE PAREDE MACIÇA, DN 300 MM, JUNTA ELÁSTICA, FORNECIMENTO E ASSENTAMENTO. AF_01/2021 | I63: M | J63: COEFICIENTE DE REPRESENTATIVIDADE | K63: 281.36 | L63: CAIXA REFERENCIAL
A64: ASSENTAMENTO DE TUBOS E PECAS | B64: ASTU | C64: FORNEC E/OU ASSENT DE TUBO DE PVC COM JUNTA ELASTICA | D64: 0048 | G64: 90699 | H64: TUBO DE PVC PARA REDE COLETORA DE ESGOTO DE PAREDE MACIÇA, DN 350 MM, JUNTA ELÁSTICA - FORNECIMENTO E ASSENTAMENTO. AF_01/2021 | I64: M | J64: COEFICIENTE DE REPRESENTATIVIDADE | K64: 395.77 | L64: CAIXA REFERENCIAL
A65: ASSENTAMENTO DE TUBOS E PECAS | B65: ASTU | C65: FORNEC E/OU ASSENT DE TUBO DE PVC COM JUNTA ELASTICA | D65: 0048 | G65: 90700 | H65: TUBO DE PVC PARA REDE COLETORA DE ESGOTO DE PAREDE MACIÇA, DN 400 MM, JUNTA ELÁSTICA FORNECIMENTO E ASSENTAMENTO. AF_01/2021 | I65: M | J65: COEFICIENTE DE REPRESENTATIVIDADE | K65: 463.2 | L65: CAIXA REFERENCIAL
A66: ASSENTAMENTO DE TUBOS E PECAS | B66: ASTU | C66: FORNEC E/OU ASSENT DE TUBO DE PVC COM JUNTA ELASTICA | D66: 0048 | G66: 90701 | H66: TUBO DE PVC CORRUGADO DE DUPLA PAREDE PARA REDE COLETORA DE ESGOTO, DN 150 MM, JUNTA ELÁSTICA - FORNECIMENTO E ASSENTAMENTO. AF_01/2021 | I66: M | J66: COEFICIENTE DE REPRESENTATIVIDADE | K66: 57.18 | L66: CAIXA REFERENCIAL
A67: ASSENTAMENTO DE TUBOS E PECAS | B67: ASTU | C67: FORNEC E/OU ASSENT DE TUBO DE PVC COM JUNTA ELASTICA | D67: 0048 | G67: 90702 | H67: TUBO DE PVC CORRUGADO DE DUPLA PAREDE PARA REDE COLETORA DE ESGOTO, DN 200 MM, JUNTA ELÁSTICA - FORNECIMENTO E ASSENTAMENTO. AF_01/2021 | I67: M | J67: COEFICIENTE DE REPRESENTATIVIDADE | K67: 94.22 | L67: CAIXA REFERENCIAL
A68: ASSENTAMENTO DE TUBOS E PECAS | B68: ASTU | C68: FORNEC E/OU ASSENT DE TUBO DE PVC COM JUNTA ELASTICA | D68: 0048 | G68: 90703 | H68: TUBO DE PVC CORRUGADO DE DUPLA PAREDE PARA REDE COLETORA DE ESGOTO, DN 250 MM, JUNTA ELÁSTICA - FORNECIMENTO E ASSENTAMENTO. AF_01/2021 | I68: M | J68: COEFICIENTE DE REPRESENTATIVIDADE | K68: 148.65 | L68: CAIXA REFERENCIAL
A69: ASSENTAMENTO DE TUBOS E PECAS | B69: ASTU | C69: FORNEC E/OU ASSENT DE TUBO DE PVC COM JUNTA ELASTICA | D69: 0048 | G69: 90704 | H69: TUBO DE PVC CORRUGADO DE DUPLA PAREDE PARA REDE COLETORA DE ESGOTO, DN 300 MM, JUNTA ELÁSTICA - FORNECIMENTO E ASSENTAMENTO. AF_01/2021 | I69: M | J69: COEFICIENTE DE REPRESENTATIVIDADE | K69: 223.36 | L69: CAIXA REFERENCIAL
A70: ASSENTAMENTO DE TUBOS E PECAS | B70: ASTU | C70: FORNEC E/OU ASSENT DE TUBO DE PVC COM JUNTA ELASTICA | D70: 0048 | G70: 90705 | H70: TUBO DE PVC CORRUGADO DE DUPLA PAREDE PARA REDE COLETORA DE ESGOTO, DN 350 MM, JUNTA ELÁSTICA - FORNECIMENTO E ASSENTAMENTO. AF_01/2021 | I70: M | J70: COEFICIENTE DE REPRESENTATIVIDADE | K70: 287.1 | L70: CAIXA REFERENCIAL
A71: ASSENTAMENTO DE TUBOS E PECAS | B71: ASTU | C71: FORNEC E/OU ASSENT DE TUBO DE PVC COM JUNTA ELASTICA | D71: 0048 | G71: 90706 | H71: TUBO DE PVC CORRUGADO DE DUPLA PAREDE PARA REDE COLETORA DE ESGOTO, DN 400 MM, JUNTA ELÁSTICA - FORNECIMENTO E ASSENTAMENTO. AF_01/2021 | I71: M | J71: COEFICIENTE DE REPRESENTATIVIDADE | K71: 381.88 | L71: CAIXA REFERENCIAL
A72: ASSENTAMENTO DE TUBOS E PECAS | B72: ASTU | C72: FORNEC E/OU ASSENT DE TUBO DE PVC COM JUNTA ELASTICA | D72: 0048 | G72: 90708 | H72: TUBO DE PEAD CORRUGADO DE DUPLA PAREDE PARA REDE COLETORA DE ESGOTO, DN 600 MM, JUNTA ELÁSTICA INTEGRADA - FORNECIMENTO E ASSENTAMENTO. AF_01/2021 | I72: M | J72: COEFICIENTE DE REPRESENTATIVIDADE | K72: 1783.84 | L72: CAIXA REFERENCIAL
A73: ASSENTAMENTO DE TUBOS E PECAS | B73: ASTU | C73: FORNEC E/OU ASSENT DE TUBO DE PVC COM JUNTA ELASTICA | D73: 0048 | G73: 90724 | H73: JUNTA ARGAMASSADA ENTRE TUBO DN 100 MM E O POÇO DE VISITA/ CAIXA DE CONCRETO OU ALVENARIA EM REDES DE ESGOTO. AF_01/2021 | I73: UN | J73: COEFICIENTE DE REPRESENTATIVIDADE | K73: 22.88 | L73: CAIXA REFERENCIAL
A74: ASSENTAMENTO DE TUBOS E PECAS | B74: ASTU | C74: FORNEC E/OU ASSENT DE TUBO DE PVC COM JUNTA ELASTICA | D74: 0048 | G74: 90725 | H74: JUNTA ARGAMASSADA ENTRE TUBO DN 150 MM E O POÇO DE VISITA/ CAIXA DE CONCRETO OU ALVENARIA EM REDES DE ESGOTO. AF_01/2021 | I74: UN | J74: COEFICIENTE DE REPRESENTATIVIDADE | K74: 28.15 | L74: CAIXA REFERENCIAL
A75: ASSENTAMENTO DE TUBOS E PECAS | B75: ASTU | C75: FORNEC E/OU ASSENT DE TUBO DE PVC COM JUNTA ELASTICA | D75: 0048 | G75: 90726 | H75: JUNTA ARGAMASSADA ENTRE TUBO DN 200 MM E O POÇO/ CAIXA DE CONCRETO OU ALVENARIA EM REDES DE ESGOTO. AF_01/2021 | I75: UN | J75: COEFICIENTE DE REPRESENTATIVIDADE | K75: 33.52 | L75: CAIXA REFERENCIAL
A76: ASSENTAMENTO DE TUBOS E PECAS | B76: ASTU | C76: FORNEC E/OU ASSENT DE TUBO DE PVC COM JUNTA ELASTICA | D76: 0048 | G76: 90727 | H76: JUNTA ARGAMASSADA ENTRE TUBO DN 250 MM E O POÇO DE VISITA/ CAIXA DE CONCRETO OU ALVENARIA EM REDES DE ESGOTO. AF_01/2021 | I76: UN | J76: COEFICIENTE DE REPRESENTATIVIDADE | K76: 38.79 | L76: CAIXA REFERENCIAL
A77: ASSENTAMENTO DE TUBOS E PECAS | B77: ASTU | C77: FORNEC E/OU ASSENT DE TUBO DE PVC COM JUNTA ELASTICA | D77: 0048 | G77: 90728 | H77: JUNTA ARGAMASSADA ENTRE TUBO DN 300 MM E O POÇO DE VISITA/ CAIXA DE CONCRETO OU ALVENARIA EM REDES DE ESGOTO. AF_01/2021 | I77: UN | J77: COEFICIENTE DE REPRESENTATIVIDADE | K77: 44.07 | L77: CAIXA REFERENCIAL
A78: ASSENTAMENTO DE TUBOS E PECAS | B78: ASTU | C78: FORNEC E/OU ASSENT DE TUBO DE PVC COM JUNTA ELASTICA | D78: 0048 | G78: 90729 | H78: JUNTA ARGAMASSADA ENTRE TUBO DN 350 MM E O POÇO DE VISITA/ CAIXA DE CONCRETO OU ALVENARIA EM REDES DE ESGOTO. AF_01/2021 | I78: UN | J78: COEFICIENTE DE REPRESENTATIVIDADE | K78: 49.36 | L78: CAIXA REFERENCIAL
A79: ASSENTAMENTO DE TUBOS E PECAS | B79: ASTU | C79: FORNEC E/OU ASSENT DE TUBO DE PVC COM JUNTA ELASTICA | D79: 0048 | G79: 90730 | H79: JUNTA ARGAMASSADA ENTRE TUBO DN 400 MM E O POÇO DE VISITA/ CAIXA DE CONCRETO OU ALVENARIA EM REDES DE ESGOTO. AF_01/2021 | I79: UN | J79: COEFICIENTE DE REPRESENTATIVIDADE | K79: 54.64 | L79: CAIXA REFERENCIAL
A80: ASSENTAMENTO DE TUBOS E PECAS | B80: ASTU | C80: FORNEC E/OU ASSENT DE TUBO DE PVC COM JUNTA ELASTICA | D80: 0048 | G80: 90731 | H80: JUNTA ARGAMASSADA ENTRE TUBO DN 450 MM E O POÇO DE VISITA/ CAIXA DE CONCRETO OU ALVENARIA EM REDES DE ESGOTO. AF_01/2021 | I80: UN | J80: COEFICIENTE DE REPRESENTATIVIDADE | K80: 59.93 | L80: CAIXA REFERENCIAL
A81: ASSENTAMENTO DE TUBOS E PECAS | B81: ASTU | C81: FORNEC E/OU ASSENT DE TUBO DE PVC COM JUNTA ELASTICA | D81: 0048 | G81: 90732 | H81: JUNTA ARGAMASSADA ENTRE TUBO DN 600 MM E O POÇO DE VISITA/ CAIXA DE CONCRETO OU ALVENARIA EM REDES DE ESGOTO. AF_01/2021 | I81: UN | J81: COEFICIENTE DE REPRESENTATIVIDADE | K81: 75.78 | L81: CAIXA REFERENCIAL
A82: ASSENTAMENTO DE TUBOS E PECAS | B82: ASTU | C82: FORNEC E/OU ASSENT DE TUBO DE PVC COM JUNTA ELASTICA | D82: 0048 | G82: 90733 | H82: ASSENTAMENTO DE TUBO DE PVC PARA REDE COLETORA DE ESGOTO DE PAREDE MACIÇA, DN 100 MM, JUNTA ELÁSTICA (NÃO INCLUI FORNECIMENTO). AF_01/2021 | I82: M | J82: COEFICIENTE DE REPRESENTATIVIDADE | K82: 3.21 | L82: CAIXA REFERENCIAL
A83: ASSENTAMENTO DE TUBOS E PECAS | B83: ASTU | C83: FORNEC E/OU ASSENT DE TUBO DE PVC COM JUNTA ELASTICA | D83: 0048 | G83: 90734 | H83: ASSENTAMENTO DE TUBO DE PVC PARA REDE COLETORA DE ESGOTO DE PAREDE MACIÇA, DN 150 MM, JUNTA ELÁSTICA, (NÃO INCLUI FORNECIMENTO). AF_01/2021 | I83: M | J83: COEFICIENTE DE REPRESENTATIVIDADE | K83: 3.8 | L83: CAIXA REFERENCIAL
A84: ASSENTAMENTO DE TUBOS E PECAS | B84: ASTU | C84: FORNEC E/OU ASSENT DE TUBO DE PVC COM JUNTA ELASTICA | D84: 0048 | G84: 90735 | H84: ASSENTAMENTO DE TUBO DE PVC PARA REDE COLETORA DE ESGOTO DE PAREDE MACIÇA, DN 200 MM, JUNTA ELÁSTICA (NÃO INCLUI FORNECIMENTO). AF_01/2021 | I84: M | J84: COEFICIENTE DE REPRESENTATIVIDADE | K84: 4.39 | L84: CAIXA REFERENCIAL
A85: ASSENTAMENTO DE TUBOS E PECAS | B85: ASTU | C85: FORNEC E/OU ASSENT DE TUBO DE PVC COM JUNTA ELASTICA | D85: 0048 | G85: 90736 | H85: ASSENTAMENTO DE TUBO DE PVC PARA REDE COLETORA DE ESGOTO DE PAREDE MACIÇA, DN 250 MM, JUNTA ELÁSTICA (NÃO INCLUI FORNECIMENTO). AF_01/2021 | I85: M | J85: COEFICIENTE DE REPRESENTATIVIDADE | K85: 4.99 | L85: CAIXA REFERENCIAL
A86: ASSENTAMENTO DE TUBOS E PECAS | B86: ASTU | C86: FORNEC E/OU ASSENT DE TUBO DE PVC COM JUNTA ELASTICA | D86: 0048 | G86: 90737 | H86: ASSENTAMENTO DE TUBO DE PVC PARA REDE COLETORA DE ESGOTO DE PAREDE MACIÇA, DN 300 MM, JUNTA ELÁSTICA (NÃO INCLUI FORNECIMENTO). AF_01/2021 | I86: M | J86: COEFICIENTE DE REPRESENTATIVIDADE | K86: 5.58 | L86: CAIXA REFERENCIAL
A87: ASSENTAMENTO DE TUBOS E PECAS | B87: ASTU | C87: FORNEC E/OU ASSENT DE TUBO DE PVC COM JUNTA ELASTICA | D87: 0048 | G87: 90738 | H87: ASSENTAMENTO DE TUBO DE PVC PARA REDE COLETORA DE ESGOTO DE PAREDE MACIÇA, DN 350 MM, JUNTA ELÁSTICA (NÃO INCLUI FORNECIMENTO). AF_01/2021 | I87: M | J87: COEFICIENTE DE REPRESENTATIVIDADE | K87: 6.18 | L87: CAIXA REFERENCIAL
A88: ASSENTAMENTO DE TUBOS E PECAS | B88: ASTU | C88: FORNEC E/OU ASSENT DE TUBO DE PVC COM JUNTA ELASTICA | D88: 0048 | G88: 90739 | H88: ASSENTAMENTO DE TUBO DE PVC PARA REDE COLETORA DE ESGOTO DE PAREDE MACIÇA, DN 400 MM, JUNTA ELÁSTICA (NÃO INCLUI FORNECIMENTO). AF_01/2021 | I88: M | J88: COEFICIENTE DE REPRESENTATIVIDADE | K88: 9.48 | L88: CAIXA REFERENCIAL
A89: ASSENTAMENTO DE TUBOS E PECAS | B89: ASTU | C89: FORNEC E/OU ASSENT DE TUBO DE PVC COM JUNTA ELASTICA | D89: 0048 | G89: 90740 | H89: ASSENTAMENTO DE TUBO DE PVC CORRUGADO DE DUPLA PAREDE PARA REDE COLETORA DE ESGOTO, DN 150 MM, JUNTA ELÁSTICA (NÃO INCLUI FORNECIMENTO). AF_01/2021 | I89: M | J89: COEFICIENTE DE REPRESENTATIVIDADE | K89: 4.24 | L89: CAIXA REFERENCIAL
A90: ASSENTAMENTO DE TUBOS E PECAS | B90: ASTU | C90: FORNEC E/OU ASSENT DE TUBO DE PVC COM JUNTA ELASTICA | D90: 0048 | G90: 90741 | H90: ASSENTAMENTO DE TUBO DE PVC CORRUGADO DE DUPLA PAREDE PARA REDE COLETORA DE ESGOTO, DN 200 MM, JUNTA ELÁSTICA (NÃO INCLUI FORNECIMENTO). AF_01/2021 | I90: M | J90: COEFICIENTE DE REPRESENTATIVIDADE | K90: 4.83 | L90: CAIXA REFERENCIAL
A91: ASSENTAMENTO DE TUBOS E PECAS | B91: ASTU | C91: FORNEC E/OU ASSENT DE TUBO DE PVC COM JUNTA ELASTICA | D91: 0048 | G91: 90742 | H91: ASSENTAMENTO DE TUBO DE PVC CORRUGADO DE DUPLA PAREDE PARA REDE COLETORA DE ESGOTO, DN 250 MM, JUNTA ELÁSTICA (NÃO INCLUI FORNECIMENTO). AF_01/2021 | I91: M | J91: COEFICIENTE DE REPRESENTATIVIDADE | K91: 5.42 | L91: CAIXA REFERENCIAL
A92: ASSENTAMENTO DE TUBOS E PECAS | B92: ASTU | C92: FORNEC E/OU ASSENT DE TUBO DE PVC COM JUNTA ELASTICA | D92: 0048 | G92: 90743 | H92: ASSENTAMENTO DE TUBO DE PVC CORRUGADO DE DUPLA PAREDE PARA REDE COLETORA DE ESGOTO, DN 300 MM, JUNTA ELÁSTICA (NÃO INCLUI FORNECIMENTO). AF_01/2021 | I92: M | J92: COEFICIENTE DE REPRESENTATIVIDADE | K92: 6.01 | L92: CAIXA REFERENCIAL
A93: ASSENTAMENTO DE TUBOS E PECAS | B93: ASTU | C93: FORNEC E/OU ASSENT DE TUBO DE PVC COM JUNTA ELASTICA | D93: 0048 | G93: 90744 | H93: ASSENTAMENTO DE TUBO DE PVC CORRUGADO DE DUPLA PAREDE PARA REDE COLETORA DE ESGOTO, DN 350 MM, JUNTA ELÁSTICA (NÃO INCLUI FORNECIMENTO). AF_01/2021 | I93: M | J93: COEFICIENTE DE REPRESENTATIVIDADE | K93: 6.62 | L93: CAIXA REFERENCIAL
A94: ASSENTAMENTO DE TUBOS E PECAS | B94: ASTU | C94: FORNEC E/OU ASSENT DE TUBO DE PVC COM JUNTA ELASTICA | D94: 0048 | G94: 90745 | H94: ASSENTAMENTO DE TUBO DE PVC CORRUGADO DE DUPLA PAREDE PARA REDE COLETORA DE ESGOTO, DN 400 MM, JUNTA ELÁSTICA (NÃO INCLUI FORNECIMENTO). AF_01/2021 | I94: M | J94: COEFICIENTE DE REPRESENTATIVIDADE | K94: 10.57 | L94: CAIXA REFERENCIAL
A95: ASSENTAMENTO DE TUBOS E PECAS | B95: ASTU | C95: FORNEC E/OU ASSENT DE TUBO DE PVC COM JUNTA ELASTICA | D95: 0048 | G95: 90746 | H95: ASSENTAMENTO DE TUBO DE PEAD CORRUGADO DE DUPLA PAREDE PARA REDE COLETORA DE ESGOTO, DN 450 MM, JUNTA ELÁSTICA INTEGRADA (NÃO INCLUI FORNECIMENTO). AF_01/2021 | I95: M | J95: COEFICIENTE DE REPRESENTATIVIDADE | K95: 3.47 | L95: CAIXA REFERENCIAL
A96: ASSENTAMENTO DE TUBOS E PECAS | B96: ASTU | C96: FORNEC E/OU ASSENT DE TUBO DE PVC COM JUNTA ELASTICA | D96: 0048 | G96: 90747 | H96: ASSENTAMENTO DE TUBO DE PEAD CORRUGADO DE DUPLA PAREDE PARA REDE COLETORA DE ESGOTO, DN 600 MM, JUNTA ELÁSTICA INTEGRADA (NÃO INCLUI FORNECIMENTO). AF_01/2021 | I96: M | J96: COEFICIENTE DE REPRESENTATIVIDADE | K96: 17.25 | L96: CAIXA REFERENCIAL
A97: ASSENTAMENTO DE TUBOS E PECAS | B97: ASTU | C97: FORNEC E/OU ASSENT DE TUBO DE PVC COM JUNTA ELASTICA | D97: 0048 | G97: 94869 | H97: TUBO DE PEAD CORRUGADO DE DUPLA PAREDE PARA REDE COLETORA DE ESGOTO, DN 250 MM, JUNTA ELÁSTICA INTEGRADA - FORNECIMENTO E ASSENTAMENTO. AF_01/2021 | I97: M | J97: COEFICIENTE DE REPRESENTATIVIDADE | K97: 316.22 | L97: CAIXA REFERENCIAL
A98: ASSENTAMENTO DE TUBOS E PECAS | B98: ASTU | C98: FORNEC E/OU ASSENT DE TUBO DE PVC COM JUNTA ELASTICA | D98: 0048 | G98: 94870 | H98: ASSENTAMENTO DE TUBO DE PEAD CORRUGADO DE DUPLA PAREDE PARA REDE COLETORA DE ESGOTO, DN 250 MM, JUNTA ELÁSTICA INTEGRADA (NÃO INCLUI FORNECIMENTO). AF_01/2021 | I98: M | J98: COEFICIENTE DE REPRESENTATIVIDADE | K98: 1.74 | L98: CAIXA REFERENCIAL
A99: ASSENTAMENTO DE TUBOS E PECAS | B99: ASTU | C99: FORNEC E/OU ASSENT DE TUBO DE PVC COM JUNTA ELASTICA | D99: 0048 | G99: 94871 | H99: TUBO DE PEAD CORRUGADO DE DUPLA PAREDE PARA REDE COLETORA DE ESGOTO, DN 300 MM, JUNTA ELÁSTICA INTEGRADA - FORNECIMENTO E ASSENTAMENTO. AF_01/2021 | I99: M | J99: COEFICIENTE DE REPRESENTATIVIDADE | K99: 495.17 | L99: CAIXA REFERENCIAL
A100: ASSENTAMENTO DE TUBOS E PECAS | B100: ASTU | C100: FORNEC E/OU ASSENT DE TUBO DE PVC COM JUNTA ELASTICA | D100: 0048 | G100: 94872 | H100: ASSENTAMENTO DE TUBO DE PEAD CORRUGADO DE DUPLA PAREDE PARA REDE COLETORA DE ESGOTO, DN 300 MM, JUNTA ELÁSTICA INTEGRADA (NÃO INCLUI FORNECIMENTO). AF_01/2021 | I100: M | J100: COEFICIENTE DE REPRESENTATIVIDADE | K100: 2.47 | L100: CAIXA REFERENCIAL
A101: ASSENTAMENTO DE TUBOS E PECAS | B101: ASTU | C101: FORNEC E/OU ASSENT DE TUBO DE PVC COM JUNTA ELASTICA | D101: 0048 | G101: 94875 | H101: TUBO DE PEAD CORRUGADO DE DUPLA PAREDE PARA REDE COLETORA DE ESGOTO, DN 800 MM, JUNTA ELÁSTICA INTEGRADA - FORNECIMENTO E ASSENTAMENTO. AF_01/2021 | I101: M | J101: COEFICIENTE DE REPRESENTATIVIDADE | K101: 2899.33 | L101: CAIXA REFERENCIAL
A102: ASSENTAMENTO DE TUBOS E PECAS | B102: ASTU | C102: FORNEC E/OU ASSENT DE TUBO DE PVC COM JUNTA ELASTICA | D102: 0048 | G102: 94876 | H102: ASSENTAMENTO DE TUBO DE PEAD CORRUGADO DE DUPLA PAREDE PARA REDE COLETORA DE ESGOTO, DN 800 MM, JUNTA ELÁSTICA INTEGRADA (NÃO INCLUI FORNECIMENTO). AF_01/2021 | I102: M | J102: COEFICIENTE DE REPRESENTATIVIDADE | K102: 28.59 | L102: CAIXA REFERENCIAL
A103: ASSENTAMENTO DE TUBOS E PECAS | B103: ASTU | C103: FORNEC E/OU ASSENT DE TUBO DE PVC COM JUNTA ELASTICA | D103: 0048 | G103: 94878 | H103: ASSENTAMENTO DE TUBO DE PEAD CORRUGADO DE DUPLA PAREDE PARA REDE COLETORA DE ESGOTO, DN 900 MM, JUNTA ELÁSTICA INTEGRADA (NÃO INCLUI FORNECIMENTO). AF_01/2021 | I103: M | J103: COEFICIENTE DE REPRESENTATIVIDADE | K103: 33.14 | L103: CAIXA REFERENCIAL
A104: ASSENTAMENTO DE TUBOS E PECAS | B104: ASTU | C104: FORNEC E/OU ASSENT DE TUBO DE PVC COM JUNTA ELASTICA | D104: 0048 | G104: 94879 | H104: TUBO DE PEAD CORRUGADO DE DUPLA PAREDE PARA REDE COLETORA DE ESGOTO, DN 1000 MM, JUNTA ELÁSTICA INTEGRADA - FORNECIMENTO E ASSENTAMENTO. AF_01/2021 | I104: M | J104: COEFICIENTE DE REPRESENTATIVIDADE | K104: 4464.79 | L104: CAIXA REFERENCIAL
A105: ASSENTAMENTO DE TUBOS E PECAS | B105: ASTU | C105: FORNEC E/OU ASSENT DE TUBO DE PVC COM JUNTA ELASTICA | D105: 0048 | G105: 94880 | H105: ASSENTAMENTO DE TUBO DE PEAD CORRUGADO DE DUPLA PAREDE PARA REDE COLETORA DE ESGOTO, DN 1000 MM, JUNTA ELÁSTICA INTEGRADA (NÃO INCLUI FORNECIMENTO). AF_01/2021 | I105: M | J105: COEFICIENTE DE REPRESENTATIVIDADE | K105: 42.48 | L105: CAIXA REFERENCIAL
A106: ASSENTAMENTO DE TUBOS E PECAS | B106: ASTU | C106: FORNEC E/OU ASSENT DE TUBO DE PVC COM JUNTA ELASTICA | D106: 0048 | G106: 94881 | H106: TUBO DE PEAD CORRUGADO DE DUPLA PAREDE PARA REDE COLETORA DE ESGOTO, DN 1200 MM, JUNTA ELÁSTICA INTEGRADA - FORNECIMENTO E ASSENTAMENTO. AF_01/2021 | I106: M | J106: COEFICIENTE DE REPRESENTATIVIDADE | K106: 6161.38 | L106: CAIXA REFERENCIAL
A107: ASSENTAMENTO DE TUBOS E PECAS | B107: ASTU | C107: FORNEC E/OU ASSENT DE TUBO DE PVC COM JUNTA ELASTICA | D107: 0048 | G107: 94882 | H107: ASSENTAMENTO DE TUBO DE PEAD CORRUGADO DE DUPLA PAREDE PARA REDE COLETORA DE ESGOTO, DN 1200 MM, JUNTA ELÁSTICA INTEGRADA (NÃO INCLUI FORNECIMENTO). AF_01/2021 | I107: M | J107: COEFICIENTE DE REPRESENTATIVIDADE | K107: 49.47 | L107: CAIXA REFERENCIAL
A108: ASSENTAMENTO DE TUBOS E PECAS | B108: ASTU | C108: FORNEC E/OU ASSENT DE TUBO DE PVC COM JUNTA ELASTICA | D108: 0048 | G108: 94884 | H108: ASSENTAMENTO DE TUBO DE PEAD CORRUGADO DE DUPLA PAREDE PARA REDE COLETORA DE ESGOTO, DN 1500 MM, JUNTA ELÁSTICA INTEGRADA (NÃO INCLUI FORNECIMENTO). AF_01/2021 | I108: M | J108: COEFICIENTE DE REPRESENTATIVIDADE | K108: 63.66 | L108: CAIXA REFERENCIAL
A109: ASSENTAMENTO DE TUBOS E PECAS | B109: ASTU | C109: FORNEC E/OU ASSENT DE TUBO DE PVC COM JUNTA ELASTICA | D109: 0048 | G109: 97121 | H109: ASSENTAMENTO DE TUBO DE PVC PBA PARA REDE DE ÁGUA, DN 50 MM, JUNTA ELÁSTICA INTEGRADA, INSTALADO EM LOCAL COM NÍVEL ALTO DE INTERFERÊNCIAS (NÃO INCLUI FORNECIMENTO). AF_11/2017 | I109: M | J109: COEFICIENTE DE REPRESENTATIVIDADE | K109: 1.91 | L109: CAIXA REFERENCIAL
A110: ASSENTAMENTO DE TUBOS E PECAS | B110: ASTU | C110: FORNEC E/OU ASSENT DE TUBO DE PVC COM JUNTA ELASTICA | D110: 0048 | G110: 97122 | H110: ASSENTAMENTO DE TUBO DE PVC PBA PARA REDE DE ÁGUA, DN 75 MM, JUNTA ELÁSTICA INTEGRADA, INSTALADO EM LOCAL COM NÍVEL ALTO DE INTERFERÊNCIAS (NÃO INCLUI FORNECIMENTO). AF_11/2017 | I110: M | J110: COEFICIENTE DE REPRESENTATIVIDADE | K110: 2.65 | L110: CAIXA REFERENCIAL
A111: ASSENTAMENTO DE TUBOS E PECAS | B111: ASTU | C111: FORNEC E/OU ASSENT DE TUBO DE PVC COM JUNTA ELASTICA | D111: 0048 | G111: 97123 | H111: ASSENTAMENTO DE TUBO DE PVC PBA PARA REDE DE ÁGUA, DN 100 MM, JUNTA ELÁSTICA INTEGRADA, INSTALADO EM LOCAL COM NÍVEL ALTO DE INTERFERÊNCIAS (NÃO INCLUI FORNECIMENTO). AF_11/2017 | I111: M | J111: COEFICIENTE DE REPRESENTATIVIDADE | K111: 3.36 | L111: CAIXA REFERENCIAL
A112: ASSENTAMENTO DE TUBOS E PECAS | B112: ASTU | C112: FORNEC E/OU ASSENT DE TUBO DE PVC COM JUNTA ELASTICA | D112: 0048 | G112: 97124 | H112: ASSENTAMENTO DE TUBO DE PVC PBA PARA REDE DE ÁGUA, DN 50 MM, JUNTA ELÁSTICA INTEGRADA, INSTALADO EM LOCAL COM NÍVEL BAIXO DE INTERFERÊNCIAS (NÃO INCLUI FORNECIMENTO). AF_11/2017 | I112: M | J112: COEFICIENTE DE REPRESENTATIVIDADE | K112: 0.84 | L112: CAIXA REFERENCIAL
A113: ASSENTAMENTO DE TUBOS E PECAS | B113: ASTU | C113: FORNEC E/OU ASSENT DE TUBO DE PVC COM JUNTA ELASTICA | D113: 0048 | G113: 97125 | H113: ASSENTAMENTO DE TUBO DE PVC PBA PARA REDE DE ÁGUA, DN 75 MM, JUNTA ELÁSTICA INTEGRADA, INSTALADO EM LOCAL COM NÍVEL BAIXO DE INTERFERÊNCIAS (NÃO INCLUI FORNECIMENTO). AF_11/2017 | I113: M | J113: COEFICIENTE DE REPRESENTATIVIDADE | K113: 1.19 | L113: CAIXA REFERENCIAL
A114: ASSENTAMENTO DE TUBOS E PECAS | B114: ASTU | C114: FORNEC E/OU ASSENT DE TUBO DE PVC COM JUNTA ELASTICA | D114: 0048 | G114: 97126 | H114: ASSENTAMENTO DE TUBO DE PVC PBA PARA REDE DE ÁGUA, DN 100 MM, JUNTA ELÁSTICA INTEGRADA, INSTALADO EM LOCAL COM NÍVEL BAIXO DE INTERFERÊNCIAS (NÃO INCLUI FORNECIMENTO). AF_11/2017 | I114: M | J114: COEFICIENTE DE REPRESENTATIVIDADE | K114: 1.51 | L114: CAIXA REFERENCIAL
A115: ASSENTAMENTO DE TUBOS E PECAS | B115: ASTU | C115: FORNEC E/OU ASSENT DE TUBO DE PVC COM JUNTA ELASTICA | D115: 0048 | G115: 102264 | H115: TUBO DE PVC BRANCO PARA REDE COLETORA DE ESGOTO CONDOMINIAL DE PAREDE MACIÇA, DN 100 MM, JUNTA ELÁSTICA - FORNECIMENTO E ASSENTAMENTO. AF_01/2021 | I115: M | J115: COEFICIENTE DE REPRESENTATIVIDADE | K115: 16.9 | L115: CAIXA REFERENCIAL
A116: ASSENTAMENTO DE TUBOS E PECAS | B116: ASTU | C116: FORNEC E/OU ASSENT DE TUBO DE PVC COM JUNTA ELASTICA | D116: 0048 | G116: 102265 | H116: JUNTA ARGAMASSADA ENTRE TUBO DN 800 MM E O POÇO DE VISITA/ CAIXA DE CONCRETO OU ALVENARIA EM REDES DE ESGOTO. AF_01/2021 | I116: UN | J116: COEFICIENTE DE REPRESENTATIVIDADE | K116: 96.9 | L116: CAIXA REFERENCIAL
A117: ASSENTAMENTO DE TUBOS E PECAS | B117: ASTU | C117: FORNEC E/OU ASSENT DE TUBO DE PVC COM JUNTA ELASTICA | D117: 0048 | G117: 102266 | H117: JUNTA ARGAMASSADA ENTRE TUBO DN 900 MM E O POÇO DE VISITA/ CAIXA DE CONCRETO OU ALVENARIA EM REDES DE ESGOTO. AF_01/2021 | I117: UN | J117: COEFICIENTE DE REPRESENTATIVIDADE | K117: 107.47 | L117: CAIXA REFERENCIAL
A118: ASSENTAMENTO DE TUBOS E PECAS | B118: ASTU | C118: FORNEC E/OU ASSENT DE TUBO DE PVC COM JUNTA ELASTICA | D118: 0048 | G118: 102267 | H118: JUNTA ARGAMASSADA ENTRE TUBO DN 1000 MM E O POÇO DE VISITA/ CAIXA DE CONCRETO OU ALVENARIA EM REDES DE ESGOTO. AF_01/2021 | I118: UN | J118: COEFICIENTE DE REPRESENTATIVIDADE | K118: 123.38 | L118: CAIXA REFERENCIAL
A119: ASSENTAMENTO DE TUBOS E PECAS | B119: ASTU | C119: FORNEC E/OU ASSENT DE TUBO DE PVC COM JUNTA ELASTICA | D119: 0048 | G119: 102268 | H119: JUNTA ARGAMASSADA ENTRE TUBO DN 1200 MM E O POÇO DE VISITA/ CAIXA DE CONCRETO OU ALVENARIA EM REDES DE ESGOTO. AF_01/2021 | I119: UN | J119: COEFICIENTE DE REPRESENTATIVIDADE | K119: 139.23 | L119: CAIXA REFERENCIAL
A120: ASSENTAMENTO DE TUBOS E PECAS | B120: ASTU | C120: FORNEC E/OU ASSENT DE TUBO DE PVC COM JUNTA ELASTICA | D120: 0048 | G120: 102269 | H120: JUNTA ARGAMASSADA ENTRE TUBO DN 1500 MM E O POÇO DE VISITA/ CAIXA DE CONCRETO OU ALVENARIA EM REDES DE ESGOTO. AF_01/2021 | I120: UN | J120: COEFICIENTE DE REPRESENTATIVIDADE | K120: 170.92 | L120: CAIXA REFERENCIAL
A121: ASSENTAMENTO DE TUBOS E PECAS | B121: ASTU | C121: FORNEC E/OU ASSENT DE TUBO DE CONCRETO COM JUNTA ELASTICA | D121: 0051 | G121: 92833 | H121: TUBO DE CONCRETO PARA REDES COLETORAS DE ESGOTO SANITÁRIO, DIÂMETRO DE 300 MM, JUNTA ELÁSTICA, INSTALADO EM LOCAL COM BAIXO NÍVEL DE INTERFERÊNCIAS - FORNECIMENTO E ASSENTAMENTO. AF_03/2024 | I121: M | J121: COEFICIENTE DE REPRESENTATIVIDADE | K121: 174.61 | L121: CAIXA REFERENCIAL
A122: ASSENTAMENTO DE TUBOS E PECAS | B122: ASTU | C122: FORNEC E/OU ASSENT DE TUBO DE CONCRETO COM JUNTA ELASTICA | D122: 0051 | G122: 92834 | H122: ASSENTAMENTO DE TUBO DE CONCRETO PARA REDES COLETORAS DE ESGOTO SANITÁRIO, DIÂMETRO DE 300 MM, JUNTA ELÁSTICA, INSTALADO EM LOCAL COM BAIXO NÍVEL DE INTERFERÊNCIAS (NÃO INCLUI FORNECIMENTO). AF_03/2024 | I122: M | J122: COEFICIENTE DE REPRESENTATIVIDADE | K122: 22.72 | L122: CAIXA REFERENCIAL
A123: ASSENTAMENTO DE TUBOS E PECAS | B123: ASTU | C123: FORNEC E/OU ASSENT DE TUBO DE CONCRETO COM JUNTA ELASTICA | D123: 0051 | G123: 92835 | H123: TUBO DE CONCRETO PARA REDES COLETORAS DE ESGOTO SANITÁRIO, DIÂMETRO DE 400 MM, JUNTA ELÁSTICA, INSTALADO EM LOCAL COM BAIXO NÍVEL DE INTERFERÊNCIAS - FORNECIMENTO E ASSENTAMENTO. AF_03/2024 | I123: M | J123: COEFICIENTE DE REPRESENTATIVIDADE | K123: 185.45 | L123: CAIXA REFERENCIAL
A124: ASSENTAMENTO DE TUBOS E PECAS | B124: ASTU | C124: FORNEC E/OU ASSENT DE TUBO DE CONCRETO COM JUNTA ELASTICA | D124: 0051 | G124: 92836 | H124: ASSENTAMENTO DE TUBO DE CONCRETO PARA REDES COLETORAS DE ESGOTO SANITÁRIO, DIÂMETRO DE 400 MM, JUNTA ELÁSTICA, INSTALADO EM LOCAL COM BAIXO NÍVEL DE INTERFERÊNCIAS (NÃO INCLUI FORNECIMENTO). AF_03/2024 | I124: M | J124: COEFICIENTE DE REPRESENTATIVIDADE | K124: 29.66 | L124: CAIXA REFERENCIAL
A125: ASSENTAMENTO DE TUBOS E PECAS | B125: ASTU | C125: FORNEC E/OU ASSENT DE TUBO DE CONCRETO COM JUNTA ELASTICA | D125: 0051 | G125: 92837 | H125: TUBO DE CONCRETO PARA REDES COLETORAS DE ESGOTO SANITÁRIO, DIÂMETRO DE 500 MM, JUNTA ELÁSTICA, INSTALADO EM LOCAL COM BAIXO NÍVEL DE INTERFERÊNCIAS - FORNECIMENTO E ASSENTAMENTO. AF_03/2024 | I125: M | J125: COEFICIENTE DE REPRESENTATIVIDADE | K125: 325.29 | L125: CAIXA REFERENCIAL
A126: ASSENTAMENTO DE TUBOS E PECAS | B126: ASTU | C126: FORNEC E/OU ASSENT DE TUBO DE CONCRETO COM JUNTA ELASTICA | D126: 0051 | G126: 92838 | H126: ASSENTAMENTO DE TUBO DE CONCRETO PARA REDES COLETORAS DE ESGOTO SANITÁRIO, DIÂMETRO DE 500 MM, JUNTA ELÁSTICA, INSTALADO EM LOCAL COM BAIXO NÍVEL DE INTERFERÊNCIAS (NÃO INCLUI FORNECIMENTO). AF_03/2024 | I126: M | J126: COEFICIENTE DE REPRESENTATIVIDADE | K126: 37.07 | L126: CAIXA REFERENCIAL
A127: ASSENTAMENTO DE TUBOS E PECAS | B127: ASTU | C127: FORNEC E/OU ASSENT DE TUBO DE CONCRETO COM JUNTA ELASTICA | D127: 0051 | G127: 92839 | H127: TUBO DE CONCRETO PARA REDES COLETORAS DE ESGOTO SANITÁRIO, DIÂMETRO DE 600 MM, JUNTA ELÁSTICA, INSTALADO EM LOCAL COM BAIXO NÍVEL DE INTERFERÊNCIAS - FORNECIMENTO E ASSENTAMENTO. AF_03/2024 | I127: M | J127: COEFICIENTE DE REPRESENTATIVIDADE | K127: 398.53 | L127: CAIXA REFERENCIAL
A128: ASSENTAMENTO DE TUBOS E PECAS | B128: ASTU | C128: FORNEC E/OU ASSENT DE TUBO DE CONCRETO COM JUNTA ELASTICA | D128: 0051 | G128: 92840 | H128: ASSENTAMENTO DE TUBO DE CONCRETO PARA REDES COLETORAS DE ESGOTO SANITÁRIO, DIÂMETRO DE 600 MM, JUNTA ELÁSTICA, INSTALADO EM LOCAL COM BAIXO NÍVEL DE INTERFERÊNCIAS (NÃO INCLUI FORNECIMENTO). AF_03/2024 | I128: M | J128: COEFICIENTE DE REPRESENTATIVIDADE | K128: 44.87 | L128: CAIXA REFERENCIAL
A129: ASSENTAMENTO DE TUBOS E PECAS | B129: ASTU | C129: FORNEC E/OU ASSENT DE TUBO DE CONCRETO COM JUNTA ELASTICA | D129: 0051 | G129: 92841 | H129: TUBO DE CONCRETO PARA REDES COLETORAS DE ESGOTO SANITÁRIO, DIÂMETRO DE 700 MM, JUNTA ELÁSTICA, INSTALADO EM LOCAL COM BAIXO NÍVEL DE INTERFERÊNCIAS - FORNECIMENTO E ASSENTAMENTO. AF_03/2024 | I129: M | J129: COEFICIENTE DE REPRESENTATIVIDADE | K129: 518.69 | L129: CAIXA REFERENCIAL
A130: ASSENTAMENTO DE TUBOS E PECAS | B130: ASTU | C130: FORNEC E/OU ASSENT DE TUBO DE CONCRETO COM JUNTA ELASTICA | D130: 0051 | G130: 92842 | H130: ASSENTAMENTO DE TUBO DE CONCRETO PARA REDES COLETORAS DE ESGOTO SANITÁRIO, DIÂMETRO DE 700 MM, JUNTA ELÁSTICA, INSTALADO EM LOCAL COM BAIXO NÍVEL DE INTERFERÊNCIAS (NÃO INCLUI FORNECIMENTO). AF_03/2024 | I130: M | J130: COEFICIENTE DE REPRESENTATIVIDADE | K130: 56.76 | L130: CAIXA REFERENCIAL
A131: ASSENTAMENTO DE TUBOS E PECAS | B131: ASTU | C131: FORNEC E/OU ASSENT DE TUBO DE CONCRETO COM JUNTA ELASTICA | D131: 0051 | G131: 92843 | H131: TUBO DE CONCRETO PARA REDES COLETORAS DE ESGOTO SANITÁRIO, DIÂMETRO DE 800 MM, JUNTA ELÁSTICA, INSTALADO EM LOCAL COM BAIXO NÍVEL DE INTERFERÊNCIAS - FORNECIMENTO E ASSENTAMENTO. AF_03/2024 | I131: M | J131: COEFICIENTE DE REPRESENTATIVIDADE | K131: 539.87 | L131: CAIXA REFERENCIAL
A132: ASSENTAMENTO DE TUBOS E PECAS | B132: ASTU | C132: FORNEC E/OU ASSENT DE TUBO DE CONCRETO COM JUNTA ELASTICA | D132: 0051 | G132: 92844 | H132: ASSENTAMENTO DE TUBO DE CONCRETO PARA REDES COLETORAS DE ESGOTO SANITÁRIO, DIÂMETRO DE 800 MM, JUNTA ELÁSTICA, INSTALADO EM LOCAL COM BAIXO NÍVEL DE INTERFERÊNCIAS (NÃO INCLUI FORNECIMENTO). AF_03/2024 | I132: M | J132: COEFICIENTE DE REPRESENTATIVIDADE | K132: 67.73 | L132: CAIXA REFERENCIAL
A133: ASSENTAMENTO DE TUBOS E PECAS | B133: ASTU | C133: FORNEC E/OU ASSENT DE TUBO DE CONCRETO COM JUNTA ELASTICA | D133: 0051 | G133: 92845 | H133: TUBO DE CONCRETO PARA REDES COLETORAS DE ESGOTO SANITÁRIO, DIÂMETRO DE 900 MM, JUNTA ELÁSTICA, INSTALADO EM LOCAL COM BAIXO NÍVEL DE INTERFERÊNCIAS - FORNECIMENTO E ASSENTAMENTO. AF_03/2024 | I133: M | J133: COEFICIENTE DE REPRESENTATIVIDADE | K133: 793.66 | L133: CAIXA REFERENCIAL
A134: ASSENTAMENTO DE TUBOS E PECAS | B134: ASTU | C134: FORNEC E/OU ASSENT DE TUBO DE CONCRETO COM JUNTA ELASTICA | D134: 0051 | G134: 92846 | H134: ASSENTAMENTO DE TUBO DE CONCRETO PARA REDES COLETORAS DE ESGOTO SANITÁRIO, DIÂMETRO DE 900 MM, JUNTA ELÁSTICA, INSTALADO EM LOCAL COM BAIXO NÍVEL DE INTERFERÊNCIAS (NÃO INCLUI FORNECIMENTO). AF_03/2024 | I134: M | J134: COEFICIENTE DE REPRESENTATIVIDADE | K134: 77.77 | L134: CAIXA REFERENCIAL
A135: ASSENTAMENTO DE TUBOS E PECAS | B135: ASTU | C135: FORNEC E/OU ASSENT DE TUBO DE CONCRETO COM JUNTA ELASTICA | D135: 0051 | G135: 92847 | H135: TUBO DE CONCRETO PARA REDES COLETORAS DE ESGOTO SANITÁRIO, DIÂMETRO DE 1000 MM, JUNTA ELÁSTICA, INSTALADO EM LOCAL COM BAIXO NÍVEL DE INTERFERÊNCIAS - FORNECIMENTO E ASSENTAMENTO. AF_03/2024 | I135: M | J135: COEFICIENTE DE REPRESENTATIVIDADE | K135: 818.36 | L135: CAIXA REFERENCIAL
A136: ASSENTAMENTO DE TUBOS E PECAS | B136: ASTU | C136: FORNEC E/OU ASSENT DE TUBO DE CONCRETO COM JUNTA ELASTICA | D136: 0051 | G136: 92848 | H136: ASSENTAMENTO DE TUBO DE CONCRETO PARA REDES COLETORAS DE ESGOTO SANITÁRIO, DIÂMETRO DE 1000 MM, JUNTA ELÁSTICA, INSTALADO EM LOCAL COM BAIXO NÍVEL DE INTERFERÊNCIAS (NÃO INCLUI FORNECIMENTO). AF_03/2024 | I136: M | J136: COEFICIENTE DE REPRESENTATIVIDADE | K136: 92.35 | L136: CAIXA REFERENCIAL
A137: ASSENTAMENTO DE TUBOS E PECAS | B137: ASTU | C137: FORNEC E/OU ASSENT DE TUBO DE CONCRETO COM JUNTA ELASTICA | D137: 0051 | G137: 92849 | H137: TUBO DE CONCRETO PARA REDES COLETORAS DE ESGOTO SANITÁRIO, DIÂMETRO DE 300 MM, JUNTA ELÁSTICA, INSTALADO EM LOCAL COM ALTO NÍVEL DE INTERFERÊNCIAS - FORNECIMENTO E ASSENTAMENTO. AF_03/2024 | I137: M | J137: COEFICIENTE DE REPRESENTATIVIDADE | K137: 177.05 | L137: CAIXA REFERENCIAL
A138: ASSENTAMENTO DE TUBOS E PECAS | B138: ASTU | C138: FORNEC E/OU ASSENT DE TUBO DE CONCRETO COM JUNTA ELASTICA | D138: 0051 | G138: 92850 | H138: ASSENTAMENTO DE TUBO DE CONCRETO PARA REDES COLETORAS DE ESGOTO SANITÁRIO, DIÂMETRO DE 300 MM, JUNTA ELÁSTICA, INSTALADO EM LOCAL COM ALTO NÍVEL DE INTERFERÊNCIAS (NÃO INCLUI FORNECIMENTO). AF_03/2024 | I138: M | J138: COEFICIENTE DE REPRESENTATIVIDADE | K138: 25.16 | L138: CAIXA REFERENCIAL
A139: ASSENTAMENTO DE TUBOS E PECAS | B139: ASTU | C139: FORNEC E/OU ASSENT DE TUBO DE CONCRETO COM JUNTA ELASTICA | D139: 0051 | G139: 92851 | H139: TUBO DE CONCRETO PARA REDES COLETORAS DE ESGOTO SANITÁRIO, DIÂMETRO DE 400 MM, JUNTA ELÁSTICA, INSTALADO EM LOCAL COM ALTO NÍVEL DE INTERFERÊNCIAS - FORNECIMENTO E ASSENTAMENTO. AF_03/2024 | I139: M | J139: COEFICIENTE DE REPRESENTATIVIDADE | K139: 188.95 | L139: CAIXA REFERENCIAL
A140: ASSENTAMENTO DE TUBOS E PECAS | B140: ASTU | C140: FORNEC E/OU ASSENT DE TUBO DE CONCRETO COM JUNTA ELASTICA | D140: 0051 | G140: 92852 | H140: ASSENTAMENTO DE TUBO DE CONCRETO PARA REDES COLETORAS DE ESGOTO SANITÁRIO, DIÂMETRO DE 400 MM, JUNTA ELÁSTICA, INSTALADO EM LOCAL COM ALTO NÍVEL DE INTERFERÊNCIAS (NÃO INCLUI FORNECIMENTO). AF_03/2024 | I140: M | J140: COEFICIENTE DE REPRESENTATIVIDADE | K140: 33.16 | L140: CAIXA REFERENCIAL
A141: ASSENTAMENTO DE TUBOS E PECAS | B141: ASTU | C141: FORNEC E/OU ASSENT DE TUBO DE CONCRETO COM JUNTA ELASTICA | D141: 0051 | G141: 92853 | H141: TUBO DE CONCRETO PARA REDES COLETORAS DE ESGOTO SANITÁRIO, DIÂMETRO DE 500 MM, JUNTA ELÁSTICA, INSTALADO EM LOCAL COM ALTO NÍVEL DE INTERFERÊNCIAS - FORNECIMENTO E ASSENTAMENTO. AF_03/2024 | I141: M | J141: COEFICIENTE DE REPRESENTATIVIDADE | K141: 329.82 | L141: CAIXA REFERENCIAL
A142: ASSENTAMENTO DE TUBOS E PECAS | B142: ASTU | C142: FORNEC E/OU ASSENT DE TUBO DE CONCRETO COM JUNTA ELASTICA | D142: 0051 | G142: 92854 | H142: ASSENTAMENTO DE TUBO DE CONCRETO PARA REDES COLETORAS DE ESGOTO SANITÁRIO, DIÂMETRO DE 500 MM, JUNTA ELÁSTICA, INSTALADO EM LOCAL COM ALTO NÍVEL DE INTERFERÊNCIAS (NÃO INCLUI FORNECIMENTO). AF_03/2024 | I142: M | J142: COEFICIENTE DE REPRESENTATIVIDADE | K142: 41.6 | L142: CAIXA REFERENCIAL
A143: ASSENTAMENTO DE TUBOS E PECAS | B143: ASTU | C143: FORNEC E/OU ASSENT DE TUBO DE CONCRETO COM JUNTA ELASTICA | D143: 0051 | G143: 92855 | H143: TUBO DE CONCRETO PARA REDES COLETORAS DE ESGOTO SANITÁRIO, DIÂMETRO DE 600 MM, JUNTA ELÁSTICA, INSTALADO EM LOCAL COM ALTO NÍVEL DE INTERFERÊNCIAS - FORNECIMENTO E ASSENTAMENTO. AF_03/2024 | I143: M | J143: COEFICIENTE DE REPRESENTATIVIDADE | K143: 404.11 | L143: CAIXA REFERENCIAL
A144: ASSENTAMENTO DE TUBOS E PECAS | B144: ASTU | C144: FORNEC E/OU ASSENT DE TUBO DE CONCRETO COM JUNTA ELASTICA | D144: 0051 | G144: 92856 | H144: ASSENTAMENTO DE TUBO DE CONCRETO PARA REDES COLETORAS DE ESGOTO SANITÁRIO, DIÂMETRO DE 600 MM, JUNTA ELÁSTICA, INSTALADO EM LOCAL COM ALTO NÍVEL DE INTERFERÊNCIAS (NÃO INCLUI FORNECIMENTO). AF_03/2024 | I144: M | J144: COEFICIENTE DE REPRESENTATIVIDADE | K144: 50.45 | L144: CAIXA REFERENCIAL
A145: ASSENTAMENTO DE TUBOS E PECAS | B145: ASTU | C145: FORNEC E/OU ASSENT DE TUBO DE CONCRETO COM JUNTA ELASTICA | D145: 0051 | G145: 92857 | H145: TUBO DE CONCRETO PARA REDES COLETORAS DE ESGOTO SANITÁRIO, DIÂMETRO DE 700 MM, JUNTA ELÁSTICA, INSTALADO EM LOCAL COM ALTO NÍVEL DE INTERFERÊNCIAS - FORNECIMENTO E ASSENTAMENTO. AF_03/2024 | I145: M | J145: COEFICIENTE DE REPRESENTATIVIDADE | K145: 525.33 | L145: CAIXA REFERENCIAL
A146: ASSENTAMENTO DE TUBOS E PECAS | B146: ASTU | C146: FORNEC E/OU ASSENT DE TUBO DE CONCRETO COM JUNTA ELASTICA | D146: 0051 | G146: 92858 | H146: ASSENTAMENTO DE TUBO DE CONCRETO PARA REDES COLETORAS DE ESGOTO SANITÁRIO, DIÂMETRO DE 700 MM, JUNTA ELÁSTICA, INSTALADO EM LOCAL COM ALTO NÍVEL DE INTERFERÊNCIAS (NÃO INCLUI FORNECIMENTO). AF_03/2024 | I146: M | J146: COEFICIENTE DE REPRESENTATIVIDADE | K146: 63.4 | L146: CAIXA REFERENCIAL
A147: ASSENTAMENTO DE TUBOS E PECAS | B147: ASTU | C147: FORNEC E/OU ASSENT DE TUBO DE CONCRETO COM JUNTA ELASTICA | D147: 0051 | G147: 92859 | H147: TUBO DE CONCRETO PARA REDES COLETORAS DE ESGOTO SANITÁRIO, DIÂMETRO DE 800 MM, JUNTA ELÁSTICA, INSTALADO EM LOCAL COM ALTO NÍVEL DE INTERFERÊNCIAS - FORNECIMENTO E ASSENTAMENTO. AF_03/2024 | I147: M | J147: COEFICIENTE DE REPRESENTATIVIDADE | K147: 547.54 | L147: CAIXA REFERENCIAL
A148: ASSENTAMENTO DE TUBOS E PECAS | B148: ASTU | C148: FORNEC E/OU ASSENT DE TUBO DE CONCRETO COM JUNTA ELASTICA | D148: 0051 | G148: 92860 | H148: ASSENTAMENTO DE TUBO DE CONCRETO PARA REDES COLETORAS DE ESGOTO SANITÁRIO, DIÂMETRO DE 800 MM, JUNTA ELÁSTICA, INSTALADO EM LOCAL COM ALTO NÍVEL DE INTERFERÊNCIAS (NÃO INCLUI FORNECIMENTO). AF_03/2024 | I148: M | J148: COEFICIENTE DE REPRESENTATIVIDADE | K148: 75.4 | L148: CAIXA REFERENCIAL
A149: ASSENTAMENTO DE TUBOS E PECAS | B149: ASTU | C149: FORNEC E/OU ASSENT DE TUBO DE CONCRETO COM JUNTA ELASTICA | D149: 0051 | G149: 92861 | H149: TUBO DE CONCRETO PARA REDES COLETORAS DE ESGOTO SANITÁRIO, DIÂMETRO DE 900 MM, JUNTA ELÁSTICA, INSTALADO EM LOCAL COM ALTO NÍVEL DE INTERFERÊNCIAS - FORNECIMENTO E ASSENTAMENTO. AF_03/2024 | I149: M | J149: COEFICIENTE DE REPRESENTATIVIDADE | K149: 802.37 | L149: CAIXA REFERENCIAL
A150: ASSENTAMENTO DE TUBOS E PECAS | B150: ASTU | C150: FORNEC E/OU ASSENT DE TUBO DE CONCRETO COM JUNTA ELASTICA | D150: 0051 | G150: 92862 | H150: ASSENTAMENTO DE TUBO DE CONCRETO PARA REDES COLETORAS DE ESGOTO SANITÁRIO, DIÂMETRO DE 900 MM, JUNTA ELÁSTICA, INSTALADO EM LOCAL COM ALTO NÍVEL DE INTERFERÊNCIAS (NÃO INCLUI FORNECIMENTO). AF_03/2024 | I150: M | J150: COEFICIENTE DE REPRESENTATIVIDADE | K150: 86.48 | L150: CAIXA REFERENCIAL
A151: ASSENTAMENTO DE TUBOS E PECAS | B151: ASTU | C151: FORNEC E/OU ASSENT DE TUBO DE CONCRETO COM JUNTA ELASTICA | D151: 0051 | G151: 92863 | H151: TUBO DE CONCRETO PARA REDES COLETORAS DE ESGOTO SANITÁRIO, DIÂMETRO DE 1000 MM, JUNTA ELÁSTICA, INSTALADO EM LOCAL COM ALTO NÍVEL DE INTERFERÊNCIAS - FORNECIMENTO E ASSENTAMENTO. AF_03/2024 | I151: M | J151: COEFICIENTE DE REPRESENTATIVIDADE | K151: 828.12 | L151: CAIXA REFERENCIAL
A152: ASSENTAMENTO DE TUBOS E PECAS | B152: ASTU | C152: FORNEC E/OU ASSENT DE TUBO DE CONCRETO COM JUNTA ELASTICA | D152: 0051 | G152: 92864 | H152: ASSENTAMENTO DE TUBO DE CONCRETO PARA REDES COLETORAS DE ESGOTO SANITÁRIO, DIÂMETRO DE 1000 MM, JUNTA ELÁSTICA, INSTALADO EM LOCAL COM ALTO NÍVEL DE INTERFERÊNCIAS (NÃO INCLUI FORNECIMENTO). AF_03/2024 | I152: M | J152: COEFICIENTE DE REPRESENTATIVIDADE | K152: 102.11 | L152: CAIXA REFERENCIAL
A153: ASSENTAMENTO DE TUBOS E PECAS | B153: ASTU | C153: FORNEC E/OU ASSENT DE TUBO DE CONCRETO COM JUNTA ARGAMASSADA | D153: 0052 | G153: 92210 | H153: TUBO DE CONCRETO PARA REDES COLETORAS DE ÁGUAS PLUVIAIS, DIÂMETRO DE 400 MM, JUNTA RÍGIDA, INSTALADO EM LOCAL COM BAIXO NÍVEL DE INTERFERÊNCIAS - FORNECIMENTO E ASSENTAMENTO. AF_03/2024 | I153: M | J153: COEFICIENTE DE REPRESENTATIVIDADE | K153: 129.8 | L153: CAIXA REFERENCIAL
A154: ASSENTAMENTO DE TUBOS E PECAS | B154: ASTU | C154: FORNEC E/OU ASSENT DE TUBO DE CONCRETO COM JUNTA ARGAMASSADA | D154: 0052 | G154: 92211 | H154: TUBO DE CONCRETO PARA REDES COLETORAS DE ÁGUAS PLUVIAIS, DIÂMETRO DE 500 MM, JUNTA RÍGIDA, INSTALADO EM LOCAL COM BAIXO NÍVEL DE INTERFERÊNCIAS - FORNECIMENTO E ASSENTAMENTO. AF_03/2024 | I154: M | J154: COEFICIENTE DE REPRESENTATIVIDADE | K154: 158.35 | L154: CAIXA REFERENCIAL
A155: ASSENTAMENTO DE TUBOS E PECAS | B155: ASTU | C155: FORNEC E/OU ASSENT DE TUBO DE CONCRETO COM JUNTA ARGAMASSADA | D155: 0052 | G155: 92212 | H155: TUBO DE CONCRETO PARA REDES COLETORAS DE ÁGUAS PLUVIAIS, DIÂMETRO DE 600 MM, JUNTA RÍGIDA, INSTALADO EM LOCAL COM BAIXO NÍVEL DE INTERFERÊNCIAS - FORNECIMENTO E ASSENTAMENTO. AF_03/2024 | I155: M | J155: COEFICIENTE DE REPRESENTATIVIDADE | K155: 239.32 | L155: CAIXA REFERENCIAL
A156: ASSENTAMENTO DE TUBOS E PECAS | B156: ASTU | C156: FORNEC E/OU ASSENT DE TUBO DE CONCRETO COM JUNTA ARGAMASSADA | D156: 0052 | G156: 92213 | H156: TUBO DE CONCRETO PARA REDES COLETORAS DE ÁGUAS PLUVIAIS, DIÂMETRO DE 700 MM, JUNTA RÍGIDA, INSTALADO EM LOCAL COM BAIXO NÍVEL DE INTERFERÊNCIAS - FORNECIMENTO E ASSENTAMENTO. AF_03/2024 | I156: M | J156: COEFICIENTE DE REPRESENTATIVIDADE | K156: 316.94 | L156: CAIXA REFERENCIAL
A157: ASSENTAMENTO DE TUBOS E PECAS | B157: ASTU | C157: FORNEC E/OU ASSENT DE TUBO DE CONCRETO COM JUNTA ARGAMASSADA | D157: 0052 | G157: 92214 | H157: TUBO DE CONCRETO PARA REDES COLETORAS DE ÁGUAS PLUVIAIS, DIÂMETRO DE 800 MM, JUNTA RÍGIDA, INSTALADO EM LOCAL COM BAIXO NÍVEL DE INTERFERÊNCIAS - FORNECIMENTO E ASSENTAMENTO. AF_03/2024 | I157: M | J157: COEFICIENTE DE REPRESENTATIVIDADE | K157: 383.27 | L157: CAIXA REFERENCIAL
A158: ASSENTAMENTO DE TUBOS E PECAS | B158: ASTU | C158: FORNEC E/OU ASSENT DE TUBO DE CONCRETO COM JUNTA ARGAMASSADA | D158: 0052 | G158: 92215 | H158: TUBO DE CONCRETO PARA REDES COLETORAS DE ÁGUAS PLUVIAIS, DIÂMETRO DE 900 MM, JUNTA RÍGIDA, INSTALADO EM LOCAL COM BAIXO NÍVEL DE INTERFERÊNCIAS - FORNECIMENTO E ASSENTAMENTO. AF_03/2024 | I158: M | J158: COEFICIENTE DE REPRESENTATIVIDADE | K158: 440.06 | L158: CAIXA REFERENCIAL
A159: ASSENTAMENTO DE TUBOS E PECAS | B159: ASTU | C159: FORNEC E/OU ASSENT DE TUBO DE CONCRETO COM JUNTA ARGAMASSADA | D159: 0052 | G159: 92216 | H159: TUBO DE CONCRETO PARA REDES COLETORAS DE ÁGUAS PLUVIAIS, DIÂMETRO DE 1000 MM, JUNTA RÍGIDA, INSTALADO EM LOCAL COM BAIXO NÍVEL DE INTERFERÊNCIAS - FORNECIMENTO E ASSENTAMENTO. AF_03/2024 | I159: M | J159: COEFICIENTE DE REPRESENTATIVIDADE | K159: 458.09 | L159: CAIXA REFERENCIAL
A160: ASSENTAMENTO DE TUBOS E PECAS | B160: ASTU | C160: FORNEC E/OU ASSENT DE TUBO DE CONCRETO COM JUNTA ARGAMASSADA | D160: 0052 | G160: 92219 | H160: TUBO DE CONCRETO PARA REDES COLETORAS DE ÁGUAS PLUVIAIS, DIÂMETRO DE 400 MM, JUNTA RÍGIDA, INSTALADO EM LOCAL COM ALTO NÍVEL DE INTERFERÊNCIAS - FORNECIMENTO E ASSENTAMENTO. AF_03/2024 | I160: M | J160: COEFICIENTE DE REPRESENTATIVIDADE | K160: 133.29 | L160: CAIXA REFERENCIAL
A161: ASSENTAMENTO DE TUBOS E PECAS | B161: ASTU | C161: FORNEC E/OU ASSENT DE TUBO DE CONCRETO COM JUNTA ARGAMASSADA | D161: 0052 | G161: 92220 | H161: TUBO DE CONCRETO PARA REDES COLETORAS DE ÁGUAS PLUVIAIS, DIÂMETRO DE 500 MM, JUNTA RÍGIDA, INSTALADO EM LOCAL COM ALTO NÍVEL DE INTERFERÊNCIAS - FORNECIMENTO E ASSENTAMENTO. AF_03/2024 | I161: M | J161: COEFICIENTE DE REPRESENTATIVIDADE | K161: 162.9 | L161: CAIXA REFERENCIAL
A162: ASSENTAMENTO DE TUBOS E PECAS | B162: ASTU | C162: FORNEC E/OU ASSENT DE TUBO DE CONCRETO COM JUNTA ARGAMASSADA | D162: 0052 | G162: 92221 | H162: TUBO DE CONCRETO PARA REDES COLETORAS DE ÁGUAS PLUVIAIS, DIÂMETRO DE 600 MM, JUNTA RÍGIDA, INSTALADO EM LOCAL COM ALTO NÍVEL DE INTERFERÊNCIAS - FORNECIMENTO E ASSENTAMENTO. AF_03/2024 | I162: M | J162: COEFICIENTE DE REPRESENTATIVIDADE | K162: 244.89 | L162: CAIXA REFERENCIAL
A163: ASSENTAMENTO DE TUBOS E PECAS | B163: ASTU | C163: FORNEC E/OU ASSENT DE TUBO DE CONCRETO COM JUNTA ARGAMASSADA | D163: 0052 | G163: 92222 | H163: TUBO DE CONCRETO PARA REDES COLETORAS DE ÁGUAS PLUVIAIS, DIÂMETRO DE 700 MM, JUNTA RÍGIDA, INSTALADO EM LOCAL COM ALTO NÍVEL DE INTERFERÊNCIAS - FORNECIMENTO E ASSENTAMENTO. AF_03/2024 | I163: M | J163: COEFICIENTE DE REPRESENTATIVIDADE | K163: 323.56 | L163: CAIXA REFERENCIAL
A164: ASSENTAMENTO DE TUBOS E PECAS | B164: ASTU | C164: FORNEC E/OU ASSENT DE TUBO DE CONCRETO COM JUNTA ARGAMASSADA | D164: 0052 | G164: 92223 | H164: TUBO DE CONCRETO PARA REDES COLETORAS DE ÁGUAS PLUVIAIS, DIÂMETRO DE 800 MM, JUNTA RÍGIDA, INSTALADO EM LOCAL COM ALTO NÍVEL DE INTERFERÊNCIAS - FORNECIMENTO E ASSENTAMENTO. AF_03/2024 | I164: M | J164: COEFICIENTE DE REPRESENTATIVIDADE | K164: 390.92 | L164: CAIXA REFERENCIAL
A165: ASSENTAMENTO DE TUBOS E PECAS | B165: ASTU | C165: FORNEC E/OU ASSENT DE TUBO DE CONCRETO COM JUNTA ARGAMASSADA | D165: 0052 | G165: 92224 | H165: TUBO DE CONCRETO PARA REDES COLETORAS DE ÁGUAS PLUVIAIS, DIÂMETRO DE 900 MM, JUNTA RÍGIDA, INSTALADO EM LOCAL COM ALTO NÍVEL DE INTERFERÊNCIAS - FORNECIMENTO E ASSENTAMENTO. AF_03/2024 | I165: M | J165: COEFICIENTE DE REPRESENTATIVIDADE | K165: 448.78 | L165: CAIXA REFERENCIAL
A166: ASSENTAMENTO DE TUBOS E PECAS | B166: ASTU | C166: FORNEC E/OU ASSENT DE TUBO DE CONCRETO COM JUNTA ARGAMASSADA | D166: 0052 | G166: 92226 | H166: TUBO DE CONCRETO PARA REDES COLETORAS DE ÁGUAS PLUVIAIS, DIÂMETRO DE 1000 MM, JUNTA RÍGIDA, INSTALADO EM LOCAL COM ALTO NÍVEL DE INTERFERÊNCIAS - FORNECIMENTO E ASSENTAMENTO. AF_03/2024 | I166: M | J166: COEFICIENTE DE REPRESENTATIVIDADE | K166: 467.86 | L166: CAIXA REFERENCIAL
A167: ASSENTAMENTO DE TUBOS E PECAS | B167: ASTU | C167: FORNEC E/OU ASSENT DE TUBO DE CONCRETO COM JUNTA ARGAMASSADA | D167: 0052 | G167: 92808 | H167: ASSENTAMENTO DE TUBO DE CONCRETO PARA REDES COLETORAS DE ÁGUAS PLUVIAIS, DIÂMETRO DE 300 MM, JUNTA RÍGIDA, INSTALADO EM LOCAL COM BAIXO NÍVEL DE INTERFERÊNCIAS (NÃO INCLUI FORNECIMENTO). AF_03/2024 | I167: M | J167: COEFICIENTE DE REPRESENTATIVIDADE | K167: 24.43 | L167: CAIXA REFERENCIAL
A168: ASSENTAMENTO DE TUBOS E PECAS | B168: ASTU | C168: FORNEC E/OU ASSENT DE TUBO DE CONCRETO COM JUNTA ARGAMASSADA | D168: 0052 | G168: 92809 | H168: ASSENTAMENTO DE TUBO DE CONCRETO PARA REDES COLETORAS DE ÁGUAS PLUVIAIS, DIÂMETRO DE 400 MM, JUNTA RÍGIDA, INSTALADO EM LOCAL COM BAIXO NÍVEL DE INTERFERÊNCIAS (NÃO INCLUI FORNECIMENTO). AF_03/2024 | I168: M | J168: COEFICIENTE DE REPRESENTATIVIDADE | K168: 33.99 | L168: CAIXA REFERENCIAL
A169: ASSENTAMENTO DE TUBOS E PECAS | B169: ASTU | C169: FORNEC E/OU ASSENT DE TUBO DE CONCRETO COM JUNTA ARGAMASSADA | D169: 0052 | G169: 92810 | H169: ASSENTAMENTO DE TUBO DE CONCRETO PARA REDES COLETORAS DE ÁGUAS PLUVIAIS, DIÂMETRO DE 500 MM, JUNTA RÍGIDA, INSTALADO EM LOCAL COM BAIXO NÍVEL DE INTERFERÊNCIAS (NÃO INCLUI FORNECIMENTO). AF_03/2024 | I169: M | J169: COEFICIENTE DE REPRESENTATIVIDADE | K169: 43.85 | L169: CAIXA REFERENCIAL
A170: ASSENTAMENTO DE TUBOS E PECAS | B170: ASTU | C170: FORNEC E/OU ASSENT DE TUBO DE CONCRETO COM JUNTA ARGAMASSADA | D170: 0052 | G170: 92811 | H170: ASSENTAMENTO DE TUBO DE CONCRETO PARA REDES COLETORAS DE ÁGUAS PLUVIAIS, DIÂMETRO DE 600 MM, JUNTA RÍGIDA, INSTALADO EM LOCAL COM BAIXO NÍVEL DE INTERFERÊNCIAS (NÃO INCLUI FORNECIMENTO). AF_03/2024 | I170: M | J170: COEFICIENTE DE REPRESENTATIVIDADE | K170: 53.92 | L170: CAIXA REFERENCIAL
A171: ASSENTAMENTO DE TUBOS E PECAS | B171: ASTU | C171: FORNEC E/OU ASSENT DE TUBO DE CONCRETO COM JUNTA ARGAMASSADA | D171: 0052 | G171: 92812 | H171: ASSENTAMENTO DE TUBO DE CONCRETO PARA REDES COLETORAS DE ÁGUAS PLUVIAIS, DIÂMETRO DE 700 MM, JUNTA RÍGIDA, INSTALADO EM LOCAL COM BAIXO NÍVEL DE INTERFERÊNCIAS (NÃO INCLUI FORNECIMENTO). AF_03/2024 | I171: M | J171: COEFICIENTE DE REPRESENTATIVIDADE | K171: 64.24 | L171: CAIXA REFERENCIAL
A172: ASSENTAMENTO DE TUBOS E PECAS | B172: ASTU | C172: FORNEC E/OU ASSENT DE TUBO DE CONCRETO COM JUNTA ARGAMASSADA | D172: 0052 | G172: 92813 | H172: ASSENTAMENTO DE TUBO DE CONCRETO PARA REDES COLETORAS DE ÁGUAS PLUVIAIS, DIÂMETRO DE 800 MM, JUNTA RÍGIDA, INSTALADO EM LOCAL COM BAIXO NÍVEL DE INTERFERÊNCIAS (NÃO INCLUI FORNECIMENTO). AF_03/2024 | I172: M | J172: COEFICIENTE DE REPRESENTATIVIDADE | K172: 74.8 | L172: CAIXA REFERENCIAL
A173: ASSENTAMENTO DE TUBOS E PECAS | B173: ASTU | C173: FORNEC E/OU ASSENT DE TUBO DE CONCRETO COM JUNTA ARGAMASSADA | D173: 0052 | G173: 92814 | H173: ASSENTAMENTO DE TUBO DE CONCRETO PARA REDES COLETORAS DE ÁGUAS PLUVIAIS, DIÂMETRO DE 900 MM, JUNTA RÍGIDA, INSTALADO EM LOCAL COM BAIXO NÍVEL DE INTERFERÊNCIAS (NÃO INCLUI FORNECIMENTO). AF_03/2024 | I173: M | J173: COEFICIENTE DE REPRESENTATIVIDADE | K173: 85.63 | L173: CAIXA REFERENCIAL
A174: ASSENTAMENTO DE TUBOS E PECAS | B174: ASTU | C174: FORNEC E/OU ASSENT DE TUBO DE CONCRETO COM JUNTA ARGAMASSADA | D174: 0052 | G174: 92815 | H174: ASSENTAMENTO DE TUBO DE CONCRETO PARA REDES COLETORAS DE ÁGUAS PLUVIAIS, DIÂMETRO DE 1000 MM, JUNTA RÍGIDA, INSTALADO EM LOCAL COM BAIXO NÍVEL DE INTERFERÊNCIAS (NÃO INCLUI FORNECIMENTO). AF_03/2024 | I174: M | J174: COEFICIENTE DE REPRESENTATIVIDADE | K174: 96.65 | L174: CAIXA REFERENCIAL
A175: ASSENTAMENTO DE TUBOS E PECAS | B175: ASTU | C175: FORNEC E/OU ASSENT DE TUBO DE CONCRETO COM JUNTA ARGAMASSADA | D175: 0052 | G175: 92816 | H175: TUBO DE CONCRETO PARA REDES COLETORAS DE ÁGUAS PLUVIAIS, DIÂMETRO DE 1200 MM, JUNTA RÍGIDA, INSTALADO EM LOCAL COM BAIXO NÍVEL DE INTERFERÊNCIAS - FORNECIMENTO E ASSENTAMENTO. AF_03/2024 | I175: M | J175: COEFICIENTE DE REPRESENTATIVIDADE | K175: 659.28 | L175: CAIXA REFERENCIAL
A176: ASSENTAMENTO DE TUBOS E PECAS | B176: ASTU | C176: FORNEC E/OU ASSENT DE TUBO DE CONCRETO COM JUNTA ARGAMASSADA | D176: 0052 | G176: 92817 | H176: ASSENTAMENTO DE TUBO DE CONCRETO PARA REDES COLETORAS DE ÁGUAS PLUVIAIS, DIÂMETRO DE 1200 MM, JUNTA RÍGIDA, INSTALADO EM LOCAL COM BAIXO NÍVEL DE INTERFERÊNCIAS (NÃO INCLUI FORNECIMENTO). AF_03/2024 | I176: M | J176: COEFICIENTE DE REPRESENTATIVIDADE | K176: 119.45 | L176: CAIXA REFERENCIAL
A177: ASSENTAMENTO DE TUBOS E PECAS | B177: ASTU | C177: FORNEC E/OU ASSENT DE TUBO DE CONCRETO COM JUNTA ARGAMASSADA | D177: 0052 | G177: 92818 | H177: TUBO DE CONCRETO PARA REDES COLETORAS DE ÁGUAS PLUVIAIS, DIÂMETRO DE 1500 MM, JUNTA RÍGIDA, INSTALADO EM LOCAL COM BAIXO NÍVEL DE INTERFERÊNCIAS - FORNECIMENTO E ASSENTAMENTO. AF_03/2024 | I177: M | J177: COEFICIENTE DE REPRESENTATIVIDADE | K177: 937.52 | L177: CAIXA REFERENCIAL
A178: ASSENTAMENTO DE TUBOS E PECAS | B178: ASTU | C178: FORNEC E/OU ASSENT DE TUBO DE CONCRETO COM JUNTA ARGAMASSADA | D178: 0052 | G178: 92819 | H178: ASSENTAMENTO DE TUBO DE CONCRETO PARA REDES COLETORAS DE ÁGUAS PLUVIAIS, DIÂMETRO DE 1500 MM, JUNTA RÍGIDA, INSTALADO EM LOCAL COM BAIXO NÍVEL DE INTERFERÊNCIAS (NÃO INCLUI FORNECIMENTO). AF_03/2024 | I178: M | J178: COEFICIENTE DE REPRESENTATIVIDADE | K178: 155.43 | L178: CAIXA REFERENCIAL
A179: ASSENTAMENTO DE TUBOS E PECAS | B179: ASTU | C179: FORNEC E/OU ASSENT DE TUBO DE CONCRETO COM JUNTA ARGAMASSADA | D179: 0052 | G179: 92820 | H179: ASSENTAMENTO DE TUBO DE CONCRETO PARA REDES COLETORAS DE ÁGUAS PLUVIAIS, DIÂMETRO DE 300 MM, JUNTA RÍGIDA, INSTALADO EM LOCAL COM ALTO NÍVEL DE INTERFERÊNCIAS (NÃO INCLUI FORNECIMENTO). AF_03/2024 | I179: M | J179: COEFICIENTE DE REPRESENTATIVIDADE | K179: 26.9 | L179: CAIXA REFERENCIAL
A180: ASSENTAMENTO DE TUBOS E PECAS | B180: ASTU | C180: FORNEC E/OU ASSENT DE TUBO DE CONCRETO COM JUNTA ARGAMASSADA | D180: 0052 | G180: 92821 | H180: ASSENTAMENTO DE TUBO DE CONCRETO PARA REDES COLETORAS DE ÁGUAS PLUVIAIS, DIÂMETRO DE 400 MM, JUNTA RÍGIDA, INSTALADO EM LOCAL COM ALTO NÍVEL DE INTERFERÊNCIAS (NÃO INCLUI FORNECIMENTO). AF_03/2024 | I180: M | J180: COEFICIENTE DE REPRESENTATIVIDADE | K180: 37.48 | L180: CAIXA REFERENCIAL
A181: ASSENTAMENTO DE TUBOS E PECAS | B181: ASTU | C181: FORNEC E/OU ASSENT DE TUBO DE CONCRETO COM JUNTA ARGAMASSADA | D181: 0052 | G181: 92822 | H181: ASSENTAMENTO DE TUBO DE CONCRETO PARA REDES COLETORAS DE ÁGUAS PLUVIAIS, DIÂMETRO DE 500 MM, JUNTA RÍGIDA, INSTALADO EM LOCAL COM ALTO NÍVEL DE INTERFERÊNCIAS (NÃO INCLUI FORNECIMENTO). AF_03/2024 | I181: M | J181: COEFICIENTE DE REPRESENTATIVIDADE | K181: 48.4 | L181: CAIXA REFERENCIAL
A182: ASSENTAMENTO DE TUBOS E PECAS | B182: ASTU | C182: FORNEC E/OU ASSENT DE TUBO DE CONCRETO COM JUNTA ARGAMASSADA | D182: 0052 | G182: 92824 | H182: ASSENTAMENTO DE TUBO DE CONCRETO PARA REDES COLETORAS DE ÁGUAS PLUVIAIS, DIÂMETRO DE 600 MM, JUNTA RÍGIDA, INSTALADO EM LOCAL COM ALTO NÍVEL DE INTERFERÊNCIAS (NÃO INCLUI FORNECIMENTO). AF_03/2024 | I182: M | J182: COEFICIENTE DE REPRESENTATIVIDADE | K182: 59.49 | L182: CAIXA REFERENCIAL
A183: ASSENTAMENTO DE TUBOS E PECAS | B183: ASTU | C183: FORNEC E/OU ASSENT DE TUBO DE CONCRETO COM JUNTA ARGAMASSADA | D183: 0052 | G183: 92825 | H183: ASSENTAMENTO DE TUBO DE CONCRETO PARA REDES COLETORAS DE ÁGUAS PLUVIAIS, DIÂMETRO DE 700 MM, JUNTA RÍGIDA, INSTALADO EM LOCAL COM ALTO NÍVEL DE INTERFERÊNCIAS (NÃO INCLUI FORNECIMENTO). AF_03/2024 | I183: M | J183: COEFICIENTE DE REPRESENTATIVIDADE | K183: 70.86 | L183: CAIXA REFERENCIAL
A184: ASSENTAMENTO DE TUBOS E PECAS | B184: ASTU | C184: FORNEC E/OU ASSENT DE TUBO DE CONCRETO COM JUNTA ARGAMASSADA | D184: 0052 | G184: 92826 | H184: ASSENTAMENTO DE TUBO DE CONCRETO PARA REDES COLETORAS DE ÁGUAS PLUVIAIS, DIÂMETRO DE 800 MM, JUNTA RÍGIDA, INSTALADO EM LOCAL COM ALTO NÍVEL DE INTERFERÊNCIAS (NÃO INCLUI FORNECIMENTO). AF_03/2024 | I184: M | J184: COEFICIENTE DE REPRESENTATIVIDADE | K184: 82.45 | L184: CAIXA REFERENCIAL
A185: ASSENTAMENTO DE TUBOS E PECAS | B185: ASTU | C185: FORNEC E/OU ASSENT DE TUBO DE CONCRETO COM JUNTA ARGAMASSADA | D185: 0052 | G185: 92827 | H185: ASSENTAMENTO DE TUBO DE CONCRETO PARA REDES COLETORAS DE ÁGUAS PLUVIAIS, DIÂMETRO DE 900 MM, JUNTA RÍGIDA, INSTALADO EM LOCAL COM ALTO NÍVEL DE INTERFERÊNCIAS (NÃO INCLUI FORNECIMENTO). AF_03/2024 | I185: M | J185: COEFICIENTE DE REPRESENTATIVIDADE | K185: 94.35 | L185: CAIXA REFERENCIAL
A186: ASSENTAMENTO DE TUBOS E PECAS | B186: ASTU | C186: FORNEC E/OU ASSENT DE TUBO DE CONCRETO COM JUNTA ARGAMASSADA | D186: 0052 | G186: 92828 | H186: ASSENTAMENTO DE TUBO DE CONCRETO PARA REDES COLETORAS DE ÁGUAS PLUVIAIS, DIÂMETRO DE 1000 MM, JUNTA RÍGIDA, INSTALADO EM LOCAL COM ALTO NÍVEL DE INTERFERÊNCIAS (NÃO INCLUI FORNECIMENTO). AF_03/2024 | I186: M | J186: COEFICIENTE DE REPRESENTATIVIDADE | K186: 106.42 | L186: CAIXA REFERENCIAL
A187: ASSENTAMENTO DE TUBOS E PECAS | B187: ASTU | C187: FORNEC E/OU ASSENT DE TUBO DE CONCRETO COM JUNTA ARGAMASSADA | D187: 0052 | G187: 92829 | H187: TUBO DE CONCRETO PARA REDES COLETORAS DE ÁGUAS PLUVIAIS, DIÂMETRO DE 1200 MM, JUNTA RÍGIDA, INSTALADO EM LOCAL COM ALTO NÍVEL DE INTERFERÊNCIAS - FORNECIMENTO E ASSENTAMENTO. AF_03/2024 | I187: M | J187: COEFICIENTE DE REPRESENTATIVIDADE | K187: 671.13 | L187: CAIXA REFERENCIAL
A188: ASSENTAMENTO DE TUBOS E PECAS | B188: ASTU | C188: FORNEC E/OU ASSENT DE TUBO DE CONCRETO COM JUNTA ARGAMASSADA | D188: 0052 | G188: 92830 | H188: ASSENTAMENTO DE TUBO DE CONCRETO PARA REDES COLETORAS DE ÁGUAS PLUVIAIS, DIÂMETRO DE 1200 MM, JUNTA RÍGIDA, INSTALADO EM LOCAL COM ALTO NÍVEL DE INTERFERÊNCIAS (NÃO INCLUI FORNECIMENTO). AF_03/2024 | I188: M | J188: COEFICIENTE DE REPRESENTATIVIDADE | K188: 131.3 | L188: CAIXA REFERENCIAL
A189: ASSENTAMENTO DE TUBOS E PECAS | B189: ASTU | C189: FORNEC E/OU ASSENT DE TUBO DE CONCRETO COM JUNTA ARGAMASSADA | D189: 0052 | G189: 92831 | H189: TUBO DE CONCRETO PARA REDES COLETORAS DE ÁGUAS PLUVIAIS, DIÂMETRO DE 1500 MM, JUNTA RÍGIDA, INSTALADO EM LOCAL COM ALTO NÍVEL DE INTERFERÊNCIAS - FORNECIMENTO E ASSENTAMENTO. AF_03/2024 | I189: M | J189: COEFICIENTE DE REPRESENTATIVIDADE | K189: 952.51 | L189: CAIXA REFERENCIAL
A190: ASSENTAMENTO DE TUBOS E PECAS | B190: ASTU | C190: FORNEC E/OU ASSENT DE TUBO DE CONCRETO COM JUNTA ARGAMASSADA | D190: 0052 | G190: 92832 | H190: ASSENTAMENTO DE TUBO DE CONCRETO PARA REDES COLETORAS DE ÁGUAS PLUVIAIS, DIÂMETRO DE 1500 MM, JUNTA RÍGIDA, INSTALADO EM LOCAL COM ALTO NÍVEL DE INTERFERÊNCIAS (NÃO INCLUI FORNECIMENTO). AF_03/2024 | I190: M | J190: COEFICIENTE DE REPRESENTATIVIDADE | K190: 170.42 | L190: CAIXA REFERENCIAL
A191: ASSENTAMENTO DE TUBOS E PECAS | B191: ASTU | C191: FORNEC E/OU ASSENT DE TUBO DE CONCRETO COM JUNTA ARGAMASSADA | D191: 0052 | G191: 95565 | H191: TUBO DE CONCRETO PARA REDES COLETORAS DE ÁGUAS PLUVIAIS, DIÂMETRO DE 300MM, JUNTA RÍGIDA, INSTALADO EM LOCAL COM BAIXO NÍVEL DE INTERFERÊNCIAS - FORNECIMENTO E ASSENTAMENTO. AF_03/2024 | I191: M | J191: COEFICIENTE DE REPRESENTATIVIDADE | K191: 109.33 | L191: CAIXA REFERENCIAL
A192: ASSENTAMENTO DE TUBOS E PECAS | B192: ASTU | C192: FORNEC E/OU ASSENT DE TUBO DE CONCRETO COM JUNTA ARGAMASSADA | D192: 0052 | G192: 95566 | H192: TUBO DE CONCRETO PARA REDES COLETORAS DE ÁGUAS PLUVIAIS, DIÂMETRO DE 300MM, JUNTA RÍGIDA, INSTALADO EM LOCAL COM ALTO NÍVEL DE INTERFERÊNCIAS - FORNECIMENTO E ASSENTAMENTO. AF_03/2024 | I192: M | J192: COEFICIENTE DE REPRESENTATIVIDADE | K192: 111.8 | L192: CAIXA REFERENCIAL
A193: ASSENTAMENTO DE TUBOS E PECAS | B193: ASTU | C193: FORNEC E/OU ASSENT DE TUBO DE CONCRETO COM JUNTA ARGAMASSADA | D193: 0052 | G193: 95567 | H193: TUBO DE CONCRETO (SIMPLES) PARA REDES COLETORAS DE ÁGUAS PLUVIAIS, DIÂMETRO DE 300 MM, JUNTA RÍGIDA, INSTALADO EM LOCAL COM BAIXO NÍVEL DE INTERFERÊNCIAS - FORNECIMENTO E ASSENTAMENTO. AF_03/2024 | I193: M | J193: ATRIBUÍDO SÃO PAULO | K193: 88.29 | L193: CAIXA REFERENCIAL
A194: ASSENTAMENTO DE TUBOS E PECAS | B194: ASTU | C194: FORNEC E/OU ASSENT DE TUBO DE CONCRETO COM JUNTA ARGAMASSADA | D194: 0052 | G194: 95568 | H194: TUBO DE CONCRETO (SIMPLES) PARA REDES COLETORAS DE ÁGUAS PLUVIAIS, DIÂMETRO DE 400 MM, JUNTA RÍGIDA, INSTALADO EM LOCAL COM BAIXO NÍVEL DE INTERFERÊNCIAS - FORNECIMENTO E ASSENTAMENTO. AF_03/2024 | I194: M | J194: ATRIBUÍDO SÃO PAULO | K194: 109.44 | L194: CAIXA REFERENCIAL
A195: ASSENTAMENTO DE TUBOS E PECAS | B195: ASTU | C195: FORNEC E/OU ASSENT DE TUBO DE CONCRETO COM JUNTA ARGAMASSADA | D195: 0052 | G195: 95569 | H195: TUBO DE CONCRETO (SIMPLES) PARA REDES COLETORAS DE ÁGUAS PLUVIAIS, DIÂMETRO DE 500 MM, JUNTA RÍGIDA, INSTALADO EM LOCAL COM BAIXO NÍVEL DE INTERFERÊNCIAS - FORNECIMENTO E ASSENTAMENTO. AF_03/2024 | I195: M | J195: ATRIBUÍDO SÃO PAULO | K195: 156.16 | L195: CAIXA REFERENCIAL
A196: ASSENTAMENTO DE TUBOS E PECAS | B196: ASTU | C196: FORNEC E/OU ASSENT DE TUBO DE CONCRETO COM JUNTA ARGAMASSADA | D196: 0052 | G196: 95570 | H196: TUBO DE CONCRETO (SIMPLES) PARA REDES COLETORAS DE ÁGUAS PLUVIAIS, DIÂMETRO DE 300 MM, JUNTA RÍGIDA, INSTALADO EM LOCAL COM ALTO NÍVEL DE INTERFERÊNCIAS - FORNECIMENTO E ASSENTAMENTO. AF_03/2024 | I196: M | J196: ATRIBUÍDO SÃO PAULO | K196: 90.76 | L196: CAIXA REFERENCIAL
A197: ASSENTAMENTO DE TUBOS E PECAS | B197: ASTU | C197: FORNEC E/OU ASSENT DE TUBO DE CONCRETO COM JUNTA ARGAMASSADA | D197: 0052 | G197: 95571 | H197: TUBO DE CONCRETO (SIMPLES) PARA REDES COLETORAS DE ÁGUAS PLUVIAIS, DIÂMETRO DE 400 MM, JUNTA RÍGIDA, INSTALADO EM LOCAL COM ALTO NÍVEL DE INTERFERÊNCIAS - FORNECIMENTO E ASSENTAMENTO. AF_03/2024 | I197: M | J197: ATRIBUÍDO SÃO PAULO | K197: 112.93 | L197: CAIXA REFERENCIAL
A198: ASSENTAMENTO DE TUBOS E PECAS | B198: ASTU | C198: FORNEC E/OU ASSENT DE TUBO DE CONCRETO COM JUNTA ARGAMASSADA | D198: 0052 | G198: 95572 | H198: TUBO DE CONCRETO (SIMPLES) PARA REDES COLETORAS DE ÁGUAS PLUVIAIS, DIÂMETRO DE 500 MM, JUNTA RÍGIDA, INSTALADO EM LOCAL COM ALTO NÍVEL DE INTERFERÊNCIAS - FORNECIMENTO E ASSENTAMENTO. AF_03/2024 | I198: M | J198: ATRIBUÍDO SÃO PAULO | K198: 160.71 | L198: CAIXA REFERENCIAL
A199: ASSENTAMENTO DE TUBOS E PECAS | B199: ASTU | C199: FORNEC E/OU ASSENT DE TUBO PVC DEFOFO COM JUNTA ELASTICA | D199: 0230 | G199: 97127 | H199: ASSENTAMENTO DE TUBO DE PVC DEFOFO OU PRFV OU RPVC PARA REDE DE ÁGUA, DN 150 MM, JUNTA ELÁSTICA INTEGRADA, INSTALADO EM LOCAL COM NÍVEL ALTO DE INTERFERÊNCIAS (NÃO INCLUI FORNECIMENTO). AF_11/2017 | I199: M | J199: COEFICIENTE DE REPRESENTATIVIDADE | K199: 4.82 | L199: CAIXA REFERENCIAL
A200: ASSENTAMENTO DE TUBOS E PECAS | B200: ASTU | C200: FORNEC E/OU ASSENT DE TUBO PVC DEFOFO COM JUNTA ELASTICA | D200: 0230 | G200: 97128 | H200: ASSENTAMENTO DE TUBO DE PVC DEFOFO OU PRFV OU RPVC PARA REDE DE ÁGUA, DN 200 MM, JUNTA ELÁSTICA INTEGRADA, INSTALADO EM LOCAL COM NÍVEL ALTO DE INTERFERÊNCIAS (NÃO INCLUI FORNECIMENTO). AF_11/2017 | I200: M | J200: COEFICIENTE DE REPRESENTATIVIDADE | K200: 10.61 | L200: CAIXA REFERENCIAL
A201: ASSENTAMENTO DE TUBOS E PECAS | B201: ASTU | C201: FORNEC E/OU ASSENT DE TUBO PVC DEFOFO COM JUNTA ELASTICA | D201: 0230 | G201: 97129 | H201: ASSENTAMENTO DE TUBO DE PVC DEFOFO OU PRFV OU RPVC PARA REDE DE ÁGUA, DN 250 MM, JUNTA ELÁSTICA INTEGRADA, INSTALADO EM LOCAL COM NÍVEL ALTO DE INTERFERÊNCIAS (NÃO INCLUI FORNECIMENTO). AF_11/2017 | I201: M | J201: COEFICIENTE DE REPRESENTATIVIDADE | K201: 13.05 | L201: CAIXA REFERENCIAL
A202: ASSENTAMENTO DE TUBOS E PECAS | B202: ASTU | C202: FORNEC E/OU ASSENT DE TUBO PVC DEFOFO COM JUNTA ELASTICA | D202: 0230 | G202: 97130 | H202: ASSENTAMENTO DE TUBO DE PVC DEFOFO OU PRFV OU RPVC PARA REDE DE ÁGUA, DN 300 MM, JUNTA ELÁSTICA INTEGRADA, INSTALADO EM LOCAL COM NÍVEL ALTO DE INTERFERÊNCIAS (NÃO INCLUI FORNECIMENTO). AF_11/2017 | I202: M | J202: COEFICIENTE DE REPRESENTATIVIDADE | K202: 15.49 | L202: CAIXA REFERENCIAL
... 7352 more rows

Sheet Comp SINAPI BA 05-2023 Desoner (hidden)
A1: PCI.817.01 - CUSTO DE COMPOSIÇÕES - SINTÉTICO DATA DE EMISSÃO: 20/06/2023 16:33:11 DATA DE RT: 20/06/2023
A2: ENCARGOS SOCIAIS DESONERADOS: 85,51%(HORA) 47,56%(MÊS)
A3: ABRANGÊNCIA : NACIONAL LOCALIDADE : SALVADOR DATA DE PREÇO : 05/2023 REFERÊNCIA COLETA : MEDIANO
A5: DESCRICAO DA CLASSE | B5: SIGLA DA CLASSE | C5: DESCRICAO DO TIPO 1 | D5: SIGLA DO TIPO 1 | E5: CODIGO DO AGRUPADOR | F5: DESCRICAO DO AGRUPADOR | G5: CODIGO DA COMPOSICAO | H5: DESCRICAO DA COMPOSICAO | I5: UNIDADE | J5: ORIGEM DE PREÇO | K5: CUSTO TOTAL | L5: VINCULO
A7: ASSENTAMENTO DE TUBOS E PECAS | B7: ASTU | C7: FORNEC E/OU ASSENT DE TUBO DE FERRO FUNDIDO JUNTA ELASTICA | D7: 45 | G7: 97141 | H7: ASSENTAMENTO DE TUBO DE FERRO FUNDIDO PARA REDE DE ÁGUA, DN 80 MM, JUNTA ELÁSTICA, INSTALADO EM LOCAL COM NÍVEL ALTO DE INTERFERÊNCIAS (NÃO INCLUI FORNECIMENTO). AF_11/2017 | I7: M | J7: COEFICIENTE DE REPRESENTATIVIDADE | K7: 10.52 | L7: CAIXA REFERENCIAL
A8: ASSENTAMENTO DE TUBOS E PECAS | B8: ASTU | C8: FORNEC E/OU ASSENT DE TUBO DE FERRO FUNDIDO JUNTA ELASTICA | D8: 45 | G8: 97142 | H8: ASSENTAMENTO DE TUBO DE FERRO FUNDIDO PARA REDE DE ÁGUA, DN 100 MM, JUNTA ELÁSTICA, INSTALADO EM LOCAL COM NÍVEL ALTO DE INTERFERÊNCIAS (NÃO INCLUI FORNECIMENTO). AF_11/2017 | I8: M | J8: COEFICIENTE DE REPRESENTATIVIDADE | K8: 11.78 | L8: CAIXA REFERENCIAL
A9: ASSENTAMENTO DE TUBOS E PECAS | B9: ASTU | C9: FORNEC E/OU ASSENT DE TUBO DE FERRO FUNDIDO JUNTA ELASTICA | D9: 45 | G9: 97143 | H9: ASSENTAMENTO DE TUBO DE FERRO FUNDIDO PARA REDE DE ÁGUA, DN 150 MM, JUNTA ELÁSTICA, INSTALADO EM LOCAL COM NÍVEL ALTO DE INTERFERÊNCIAS (NÃO INCLUI FORNECIMENTO). AF_11/2017 | I9: M | J9: COEFICIENTE DE REPRESENTATIVIDADE | K9: 14.89 | L9: CAIXA REFERENCIAL
A10: ASSENTAMENTO DE TUBOS E PECAS | B10: ASTU | C10: FORNEC E/OU ASSENT DE TUBO DE FERRO FUNDIDO JUNTA ELASTICA | D10: 45 | G10: 97144 | H10: ASSENTAMENTO DE TUBO DE FERRO FUNDIDO PARA REDE DE ÁGUA, DN 200 MM, JUNTA ELÁSTICA, INSTALADO EM LOCAL COM NÍVEL ALTO DE INTERFERÊNCIAS (NÃO INCLUI FORNECIMENTO). AF_11/2017 | I10: M | J10: COEFICIENTE DE REPRESENTATIVIDADE | K10: 17.99 | L10: CAIXA REFERENCIAL
A11: ASSENTAMENTO DE TUBOS E PECAS | B11: ASTU | C11: FORNEC E/OU ASSENT DE TUBO DE FERRO FUNDIDO JUNTA ELASTICA | D11: 45 | G11: 97145 | H11: ASSENTAMENTO DE TUBO DE FERRO FUNDIDO PARA REDE DE ÁGUA, DN 250 MM, JUNTA ELÁSTICA, INSTALADO EM LOCAL COM NÍVEL ALTO DE INTERFERÊNCIAS (NÃO INCLUI FORNECIMENTO). AF_11/2017 | I11: M | J11: COEFICIENTE DE REPRESENTATIVIDADE | K11: 21.12 | L11: CAIXA REFERENCIAL
A12: ASSENTAMENTO DE TUBOS E PECAS | B12: ASTU | C12: FORNEC E/OU ASSENT DE TUBO DE FERRO FUNDIDO JUNTA ELASTICA | D12: 45 | G12: 97146 | H12: ASSENTAMENTO DE TUBO DE FERRO FUNDIDO PARA REDE DE ÁGUA, DN 300 MM, JUNTA ELÁSTICA, INSTALADO EM LOCAL COM NÍVEL ALTO DE INTERFERÊNCIAS (NÃO INCLUI FORNECIMENTO). AF_11/2017 | I12: M | J12: COEFICIENTE DE REPRESENTATIVIDADE | K12: 24.26 | L12: CAIXA REFERENCIAL
A13: ASSENTAMENTO DE TUBOS E PECAS | B13: ASTU | C13: FORNEC E/OU ASSENT DE TUBO DE FERRO FUNDIDO JUNTA ELASTICA | D13: 45 | G13: 97147 | H13: ASSENTAMENTO DE TUBO DE FERRO FUNDIDO PARA REDE DE ÁGUA, DN 350 MM, JUNTA ELÁSTICA, INSTALADO EM LOCAL COM NÍVEL ALTO DE INTERFERÊNCIAS (NÃO INCLUI FORNECIMENTO). AF_11/2017 | I13: M | J13: COEFICIENTE DE REPRESENTATIVIDADE | K13: 27.4 | L13: CAIXA REFERENCIAL
A14: ASSENTAMENTO DE TUBOS E PECAS | B14: ASTU | C14: FORNEC E/OU ASSENT DE TUBO DE FERRO FUNDIDO JUNTA ELASTICA | D14: 45 | G14: 97148 | H14: ASSENTAMENTO DE TUBO DE FERRO FUNDIDO PARA REDE DE ÁGUA, DN 400 MM, JUNTA ELÁSTICA, INSTALADO EM LOCAL COM NÍVEL ALTO DE INTERFERÊNCIAS (NÃO INCLUI FORNECIMENTO). AF_11/2017 | I14: M | J14: COEFICIENTE DE REPRESENTATIVIDADE | K14: 30.51 | L14: CAIXA REFERENCIAL
A15: ASSENTAMENTO DE TUBOS E PECAS | B15: ASTU | C15: FORNEC E/OU ASSENT DE TUBO DE FERRO FUNDIDO JUNTA ELASTICA | D15: 45 | G15: 97149 | H15: ASSENTAMENTO DE TUBO DE FERRO FUNDIDO PARA REDE DE ÁGUA, DN 450 MM, JUNTA ELÁSTICA, INSTALADO EM LOCAL COM NÍVEL ALTO DE INTERFERÊNCIAS (NÃO INCLUI FORNECIMENTO). AF_11/2017 | I15: M | J15: COEFICIENTE DE REPRESENTATIVIDADE | K15: 33.67 | L15: CAIXA REFERENCIAL
A16: ASSENTAMENTO DE TUBOS E PECAS | B16: ASTU | C16: FORNEC E/OU ASSENT DE TUBO DE FERRO FUNDIDO JUNTA ELASTICA | D16: 45 | G16: 97150 | H16: ASSENTAMENTO DE TUBO DE FERRO FUNDIDO PARA REDE DE ÁGUA, DN 500 MM, JUNTA ELÁSTICA, INSTALADO EM LOCAL COM NÍVEL ALTO DE INTERFERÊNCIAS (NÃO INCLUI FORNECIMENTO). AF_11/2017 | I16: M | J16: COEFICIENTE DE REPRESENTATIVIDADE | K16: 41.04 | L16: CAIXA REFERENCIAL
A17: ASSENTAMENTO DE TUBOS E PECAS | B17: ASTU | C17: FORNEC E/OU ASSENT DE TUBO DE FERRO FUNDIDO JUNTA ELASTICA | D17: 45 | G17: 97151 | H17: ASSENTAMENTO DE TUBO DE FERRO FUNDIDO PARA REDE DE ÁGUA, DN 600 MM, JUNTA ELÁSTICA, INSTALADO EM LOCAL COM NÍVEL ALTO DE INTERFERÊNCIAS (NÃO INCLUI FORNECIMENTO). AF_11/2017 | I17: M | J17: COEFICIENTE DE REPRESENTATIVIDADE | K17: 47.93 | L17: CAIXA REFERENCIAL
A18: ASSENTAMENTO DE TUBOS E PECAS | B18: ASTU | C18: FORNEC E/OU ASSENT DE TUBO DE FERRO FUNDIDO JUNTA ELASTICA | D18: 45 | G18: 97152 | H18: ASSENTAMENTO DE TUBO DE FERRO FUNDIDO PARA REDE DE ÁGUA, DN 700 MM, JUNTA ELÁSTICA, INSTALADO EM LOCAL COM NÍVEL ALTO DE INTERFERÊNCIAS (NÃO INCLUI FORNECIMENTO). AF_11/2017 | I18: M | J18: COEFICIENTE DE REPRESENTATIVIDADE | K18: 54.61 | L18: CAIXA REFERENCIAL
A19: ASSENTAMENTO DE TUBOS E PECAS | B19: ASTU | C19: FORNEC E/OU ASSENT DE TUBO DE FERRO FUNDIDO JUNTA ELASTICA | D19: 45 | G19: 97153 | H19: ASSENTAMENTO DE TUBO DE FERRO FUNDIDO PARA REDE DE ÁGUA, DN 800 MM, JUNTA ELÁSTICA, INSTALADO EM LOCAL COM NÍVEL ALTO DE INTERFERÊNCIAS (NÃO INCLUI FORNECIMENTO). AF_11/2017 | I19: M | J19: COEFICIENTE DE REPRESENTATIVIDADE | K19: 61.4 | L19: CAIXA REFERENCIAL
A20: ASSENTAMENTO DE TUBOS E PECAS | B20: ASTU | C20: FORNEC E/OU ASSENT DE TUBO DE FERRO FUNDIDO JUNTA ELASTICA | D20: 45 | G20: 97154 | H20: ASSENTAMENTO DE TUBO DE FERRO FUNDIDO PARA REDE DE ÁGUA, DN 900 MM, JUNTA ELÁSTICA, INSTALADO EM LOCAL COM NÍVEL ALTO DE INTERFERÊNCIAS (NÃO INCLUI FORNECIMENTO). AF_11/2017 | I20: M | J20: COEFICIENTE DE REPRESENTATIVIDADE | K20: 68.25 | L20: CAIXA REFERENCIAL
A21: ASSENTAMENTO DE TUBOS E PECAS | B21: ASTU | C21: FORNEC E/OU ASSENT DE TUBO DE FERRO FUNDIDO JUNTA ELASTICA | D21: 45 | G21: 97155 | H21: ASSENTAMENTO DE TUBO DE FERRO FUNDIDO PARA REDE DE ÁGUA, DN 1000 MM, JUNTA ELÁSTICA, INSTALADO EM LOCAL COM NÍVEL ALTO DE INTERFERÊNCIAS (NÃO INCLUI FORNECIMENTO). AF_11/2017 | I21: M | J21: COEFICIENTE DE REPRESENTATIVIDADE | K21: 75.09 | L21: CAIXA REFERENCIAL
A22: ASSENTAMENTO DE TUBOS E PECAS | B22: ASTU | C22: FORNEC E/OU ASSENT DE TUBO DE FERRO FUNDIDO JUNTA ELASTICA | D22: 45 | G22: 97156 | H22: ASSENTAMENTO DE TUBO DE FERRO FUNDIDO PARA REDE DE ÁGUA, DN 1200 MM, JUNTA ELÁSTICA, INSTALADO EM LOCAL COM NÍVEL ALTO DE INTERFERÊNCIAS (NÃO INCLUI FORNECIMENTO). AF_11/2017 | I22: M | J22: COEFICIENTE DE REPRESENTATIVIDADE | K22: 89.2 | L22: CAIXA REFERENCIAL
A23: ASSENTAMENTO DE TUBOS E PECAS | B23: ASTU | C23: FORNEC E/OU ASSENT DE TUBO DE FERRO FUNDIDO JUNTA ELASTICA | D23: 45 | G23: 97157 | H23: ASSENTAMENTO DE TUBO DE FERRO FUNDIDO PARA REDE DE ÁGUA, DN 80 MM, JUNTA ELÁSTICA, INSTALADO EM LOCAL COM NÍVEL BAIXO DE INTERFERÊNCIAS (NÃO INCLUI FORNECIMENTO). AF_11/2017 | I23: M | J23: COEFICIENTE DE REPRESENTATIVIDADE | K23: 6.3 | L23: CAIXA REFERENCIAL
A24: ASSENTAMENTO DE TUBOS E PECAS | B24: ASTU | C24: FORNEC E/OU ASSENT DE TUBO DE FERRO FUNDIDO JUNTA ELASTICA | D24: 45 | G24: 97158 | H24: ASSENTAMENTO DE TUBO DE FERRO FUNDIDO PARA REDE DE ÁGUA, DN 100 MM, JUNTA ELÁSTICA, INSTALADO EM LOCAL COM NÍVEL BAIXO DE INTERFERÊNCIAS (NÃO INCLUI FORNECIMENTO). AF_11/2017 | I24: M | J24: COEFICIENTE DE REPRESENTATIVIDADE | K24: 7.08 | L24: CAIXA REFERENCIAL
A25: ASSENTAMENTO DE TUBOS E PECAS | B25: ASTU | C25: FORNEC E/OU ASSENT DE TUBO DE FERRO FUNDIDO JUNTA ELASTICA | D25: 45 | G25: 97159 | H25: ASSENTAMENTO DE TUBO DE FERRO FUNDIDO PARA REDE DE ÁGUA, DN 150 MM, JUNTA ELÁSTICA, INSTALADO EM LOCAL COM NÍVEL BAIXO DE INTERFERÊNCIAS (NÃO INCLUI FORNECIMENTO). AF_11/2017 | I25: M | J25: COEFICIENTE DE REPRESENTATIVIDADE | K25: 8.97 | L25: CAIXA REFERENCIAL
A26: ASSENTAMENTO DE TUBOS E PECAS | B26: ASTU | C26: FORNEC E/OU ASSENT DE TUBO DE FERRO FUNDIDO JUNTA ELASTICA | D26: 45 | G26: 97160 | H26: ASSENTAMENTO DE TUBO DE FERRO FUNDIDO PARA REDE DE ÁGUA, DN 200 MM, JUNTA ELÁSTICA, INSTALADO EM LOCAL COM NÍVEL BAIXO DE INTERFERÊNCIAS (NÃO INCLUI FORNECIMENTO). AF_11/2017 | I26: M | J26: COEFICIENTE DE REPRESENTATIVIDADE | K26: 10.82 | L26: CAIXA REFERENCIAL
A27: ASSENTAMENTO DE TUBOS E PECAS | B27: ASTU | C27: FORNEC E/OU ASSENT DE TUBO DE FERRO FUNDIDO JUNTA ELASTICA | D27: 45 | G27: 97161 | H27: ASSENTAMENTO DE TUBO DE FERRO FUNDIDO PARA REDE DE ÁGUA, DN 250 MM, JUNTA ELÁSTICA, INSTALADO EM LOCAL COM NÍVEL BAIXO DE INTERFERÊNCIAS (NÃO INCLUI FORNECIMENTO). AF_11/2017 | I27: M | J27: COEFICIENTE DE REPRESENTATIVIDADE | K27: 12.75 | L27: CAIXA REFERENCIAL
A28: ASSENTAMENTO DE TUBOS E PECAS | B28: ASTU | C28: FORNEC E/OU ASSENT DE TUBO DE FERRO FUNDIDO JUNTA ELASTICA | D28: 45 | G28: 97162 | H28: ASSENTAMENTO DE TUBO DE FERRO FUNDIDO PARA REDE DE ÁGUA, DN 300 MM, JUNTA ELÁSTICA, INSTALADO EM LOCAL COM NÍVEL BAIXO DE INTERFERÊNCIAS (NÃO INCLUI FORNECIMENTO). AF_11/2017 | I28: M | J28: COEFICIENTE DE REPRESENTATIVIDADE | K28: 14.65 | L28: CAIXA REFERENCIAL
A29: ASSENTAMENTO DE TUBOS E PECAS | B29: ASTU | C29: FORNEC E/OU ASSENT DE TUBO DE FERRO FUNDIDO JUNTA ELASTICA | D29: 45 | G29: 97163 | H29: ASSENTAMENTO DE TUBO DE FERRO FUNDIDO PARA REDE DE ÁGUA, DN 350 MM, JUNTA ELÁSTICA, INSTALADO EM LOCAL COM NÍVEL BAIXO DE INTERFERÊNCIAS (NÃO INCLUI FORNECIMENTO). AF_11/2017 | I29: M | J29: COEFICIENTE DE REPRESENTATIVIDADE | K29: 16.56 | L29: CAIXA REFERENCIAL
A30: ASSENTAMENTO DE TUBOS E PECAS | B30: ASTU | C30: FORNEC E/OU ASSENT DE TUBO DE FERRO FUNDIDO JUNTA ELASTICA | D30: 45 | G30: 97164 | H30: ASSENTAMENTO DE TUBO DE FERRO FUNDIDO PARA REDE DE ÁGUA, DN 400 MM, JUNTA ELÁSTICA, INSTALADO EM LOCAL COM NÍVEL BAIXO DE INTERFERÊNCIAS (NÃO INCLUI FORNECIMENTO). AF_11/2017 | I30: M | J30: COEFICIENTE DE REPRESENTATIVIDADE | K30: 18.45 | L30: CAIXA REFERENCIAL
A31: ASSENTAMENTO DE TUBOS E PECAS | B31: ASTU | C31: FORNEC E/OU ASSENT DE TUBO DE FERRO FUNDIDO JUNTA ELASTICA | D31: 45 | G31: 97165 | H31: ASSENTAMENTO DE TUBO DE FERRO FUNDIDO PARA REDE DE ÁGUA, DN 450 MM, JUNTA ELÁSTICA, INSTALADO EM LOCAL COM NÍVEL BAIXO DE INTERFERÊNCIAS (NÃO INCLUI FORNECIMENTO). AF_11/2017 | I31: M | J31: COEFICIENTE DE REPRESENTATIVIDADE | K31: 20.39 | L31: CAIXA REFERENCIAL
A32: ASSENTAMENTO DE TUBOS E PECAS | B32: ASTU | C32: FORNEC E/OU ASSENT DE TUBO DE FERRO FUNDIDO JUNTA ELASTICA | D32: 45 | G32: 97166 | H32: ASSENTAMENTO DE TUBO DE FERRO FUNDIDO PARA REDE DE ÁGUA, DN 500 MM, JUNTA ELÁSTICA, INSTALADO EM LOCAL COM NÍVEL BAIXO DE INTERFERÊNCIAS (NÃO INCLUI FORNECIMENTO). AF_11/2017 | I32: M | J32: COEFICIENTE DE REPRESENTATIVIDADE | K32: 24.88 | L32: CAIXA REFERENCIAL
A33: ASSENTAMENTO DE TUBOS E PECAS | B33: ASTU | C33: FORNEC E/OU ASSENT DE TUBO DE FERRO FUNDIDO JUNTA ELASTICA | D33: 45 | G33: 97167 | H33: ASSENTAMENTO DE TUBO DE FERRO FUNDIDO PARA REDE DE ÁGUA, DN 600 MM, JUNTA ELÁSTICA, INSTALADO EM LOCAL COM NÍVEL BAIXO DE INTERFERÊNCIAS (NÃO INCLUI FORNECIMENTO). AF_11/2017 | I33: M | J33: COEFICIENTE DE REPRESENTATIVIDADE | K33: 29.08 | L33: CAIXA REFERENCIAL
A34: ASSENTAMENTO DE TUBOS E PECAS | B34: ASTU | C34: FORNEC E/OU ASSENT DE TUBO DE FERRO FUNDIDO JUNTA ELASTICA | D34: 45 | G34: 97168 | H34: ASSENTAMENTO DE TUBO DE FERRO FUNDIDO PARA REDE DE ÁGUA, DN 700 MM, JUNTA ELÁSTICA, INSTALADO EM LOCAL COM NÍVEL BAIXO DE INTERFERÊNCIAS (NÃO INCLUI FORNECIMENTO). AF_11/2017 | I34: M | J34: COEFICIENTE DE REPRESENTATIVIDADE | K34: 33.06 | L34: CAIXA REFERENCIAL
A35: ASSENTAMENTO DE TUBOS E PECAS | B35: ASTU | C35: FORNEC E/OU ASSENT DE TUBO DE FERRO FUNDIDO JUNTA ELASTICA | D35: 45 | G35: 97169 | H35: ASSENTAMENTO DE TUBO DE FERRO FUNDIDO PARA REDE DE ÁGUA, DN 800 MM, JUNTA ELÁSTICA, INSTALADO EM LOCAL COM NÍVEL BAIXO DE INTERFERÊNCIAS (NÃO INCLUI FORNECIMENTO). AF_11/2017 | I35: M | J35: COEFICIENTE DE REPRESENTATIVIDADE | K35: 37.17 | L35: CAIXA REFERENCIAL
A36: ASSENTAMENTO DE TUBOS E PECAS | B36: ASTU | C36: FORNEC E/OU ASSENT DE TUBO DE FERRO FUNDIDO JUNTA ELASTICA | D36: 45 | G36: 97170 | H36: ASSENTAMENTO DE TUBO DE FERRO FUNDIDO PARA REDE DE ÁGUA, DN 900 MM, JUNTA ELÁSTICA, INSTALADO EM LOCAL COM NÍVEL BAIXO DE INTERFERÊNCIAS (NÃO INCLUI FORNECIMENTO). AF_11/2017 | I36: M | J36: COEFICIENTE DE REPRESENTATIVIDADE | K36: 41.31 | L36: CAIXA REFERENCIAL
A37: ASSENTAMENTO DE TUBOS E PECAS | B37: ASTU | C37: FORNEC E/OU ASSENT DE TUBO DE FERRO FUNDIDO JUNTA ELASTICA | D37: 45 | G37: 97171 | H37: ASSENTAMENTO DE TUBO DE FERRO FUNDIDO PARA REDE DE ÁGUA, DN 1000 MM, JUNTA ELÁSTICA, INSTALADO EM LOCAL COM NÍVEL BAIXO DE INTERFERÊNCIAS (NÃO INCLUI FORNECIMENTO). AF_11/2017 | I37: M | J37: COEFICIENTE DE REPRESENTATIVIDADE | K37: 45.49 | L37: CAIXA REFERENCIAL
A38: ASSENTAMENTO DE TUBOS E PECAS | B38: ASTU | C38: FORNEC E/OU ASSENT DE TUBO DE FERRO FUNDIDO JUNTA ELASTICA | D38: 45 | G38: 97172 | H38: ASSENTAMENTO DE TUBO DE FERRO FUNDIDO PARA REDE DE ÁGUA, DN 1200 MM, JUNTA ELÁSTICA, INSTALADO EM LOCAL COM NÍVEL BAIXO DE INTERFERÊNCIAS (NÃO INCLUI FORNECIMENTO). AF_11/2017 | I38: M | J38: COEFICIENTE DE REPRESENTATIVIDADE | K38: 54.23 | L38: CAIXA REFERENCIAL
A39: ASSENTAMENTO DE TUBOS E PECAS | B39: ASTU | C39: FORNEC E/OU ASSENT DE TUBO DE ACO COM JUNTA SOLDADA | D39: 46 | G39: 97173 | H39: ASSENTAMENTO DE TUBO DE AÇO CARBONO PARA REDE DE ÁGUA, DN 600 MM (24), JUNTA SOLDADA, INSTALADO EM LOCAL COM NÍVEL ALTO DE INTERFERÊNCIAS (NÃO INCLUI FORNECIMENTO). AF_11/2017 | I39: M | J39: COEFICIENTE DE REPRESENTATIVIDADE | K39: 43.01 | L39: CAIXA REFERENCIAL
A40: ASSENTAMENTO DE TUBOS E PECAS | B40: ASTU | C40: FORNEC E/OU ASSENT DE TUBO DE ACO COM JUNTA SOLDADA | D40: 46 | G40: 97174 | H40: ASSENTAMENTO DE TUBO DE AÇO CARBONO PARA REDE DE ÁGUA, DN 700 MM (28), JUNTA SOLDADA, INSTALADO EM LOCAL COM NÍVEL ALTO DE INTERFERÊNCIAS (NÃO INCLUI FORNECIMENTO). AF_11/2017 | I40: M | J40: COEFICIENTE DE REPRESENTATIVIDADE | K40: 49.69 | L40: CAIXA REFERENCIAL
A41: ASSENTAMENTO DE TUBOS E PECAS | B41: ASTU | C41: FORNEC E/OU ASSENT DE TUBO DE ACO COM JUNTA SOLDADA | D41: 46 | G41: 97175 | H41: ASSENTAMENTO DE TUBO DE AÇO CARBONO PARA REDE DE ÁGUA, DN 800 MM (32), JUNTA SOLDADA, INSTALADO EM LOCAL COM NÍVEL ALTO DE INTERFERÊNCIAS (NÃO INCLUI FORNECIMENTO). AF_11/2017 | I41: M | J41: COEFICIENTE DE REPRESENTATIVIDADE | K41: 56.38 | L41: CAIXA REFERENCIAL
A42: ASSENTAMENTO DE TUBOS E PECAS | B42: ASTU | C42: FORNEC E/OU ASSENT DE TUBO DE ACO COM JUNTA SOLDADA | D42: 46 | G42: 97176 | H42: ASSENTAMENTO DE TUBO DE AÇO CARBONO PARA REDE DE ÁGUA, DN 900 MM (36), JUNTA SOLDADA, INSTALADO EM LOCAL COM NÍVEL ALTO DE INTERFERÊNCIAS (NÃO INCLUI FORNECIMENTO). AF_11/2017 | I42: M | J42: COEFICIENTE DE REPRESENTATIVIDADE | K42: 63.06 | L42: CAIXA REFERENCIAL
A43: ASSENTAMENTO DE TUBOS E PECAS | B43: ASTU | C43: FORNEC E/OU ASSENT DE TUBO DE ACO COM JUNTA SOLDADA | D43: 46 | G43: 97177 | H43: ASSENTAMENTO DE TUBO DE AÇO CARBONO PARA REDE DE ÁGUA, DN 1000 MM (40) OU DN 1100 MM (44), JUNTA SOLDADA, INSTALADO EM LOCAL COM NÍVEL ALTO DE INTERFERÊNCIAS (NÃO INCLUI FORNECIMENTO). AF_11/2017 | I43: M | J43: COEFICIENTE DE REPRESENTATIVIDADE | K43: 76.43 | L43: CAIXA REFERENCIAL
A44: ASSENTAMENTO DE TUBOS E PECAS | B44: ASTU | C44: FORNEC E/OU ASSENT DE TUBO DE ACO COM JUNTA SOLDADA | D44: 46 | G44: 97178 | H44: ASSENTAMENTO DE TUBO DE AÇO CARBONO PARA REDE DE ÁGUA, DN 1200 MM (48) OU DN 1300 MM (52), JUNTA SOLDADA, INSTALADO EM LOCAL COM NÍVEL ALTO DE INTERFERÊNCIAS (NÃO INCLUI FORNECIMENTO). AF_11/2017 | I44: M | J44: COEFICIENTE DE REPRESENTATIVIDADE | K44: 89.81 | L44: CAIXA REFERENCIAL
A45: ASSENTAMENTO DE TUBOS E PECAS | B45: ASTU | C45: FORNEC E/OU ASSENT DE TUBO DE ACO COM JUNTA SOLDADA | D45: 46 | G45: 97179 | H45: ASSENTAMENTO DE TUBO DE AÇO CARBONO PARA REDE DE ÁGUA, DN 1400 MM (56'') OU DN 1500 MM (60), JUNTA SOLDADA, INSTALADO EM LOCAL COM NÍVEL ALTO DE INTERFERÊNCIAS (NÃO INCLUI FORNECIMENTO). AF_11/2017 | I45: M | J45: COEFICIENTE DE REPRESENTATIVIDADE | K45: 103.18 | L45: CAIXA REFERENCIAL
A46: ASSENTAMENTO DE TUBOS E PECAS | B46: ASTU | C46: FORNEC E/OU ASSENT DE TUBO DE ACO COM JUNTA SOLDADA | D46: 46 | G46: 97180 | H46: ASSENTAMENTO DE TUBO DE AÇO CARBONO PARA REDE DE ÁGUA, DN 1600 MM (64) OU DN 1700 MM (68), JUNTA SOLDADA, INSTALADO EM LOCAL COM NÍVEL ALTO DE INTERFERÊNCIAS (NÃO INCLUI FORNECIMENTO). AF_11/2017 | I46: M | J46: COEFICIENTE DE REPRESENTATIVIDADE | K46: 116.55 | L46: CAIXA REFERENCIAL
A47: ASSENTAMENTO DE TUBOS E PECAS | B47: ASTU | C47: FORNEC E/OU ASSENT DE TUBO DE ACO COM JUNTA SOLDADA | D47: 46 | G47: 97181 | H47: ASSENTAMENTO DE TUBO DE AÇO CARBONO PARA REDE DE ÁGUA, DN 1800 MM (72) OU DN 1900 MM (76), JUNTA SOLDADA, INSTALADO EM LOCAL COM NÍVEL ALTO DE INTERFERÊNCIAS (NÃO INCLUI FORNECIMENTO). AF_11/2017 | I47: M | J47: COEFICIENTE DE REPRESENTATIVIDADE | K47: 134.18 | L47: CAIXA REFERENCIAL
A48: ASSENTAMENTO DE TUBOS E PECAS | B48: ASTU | C48: FORNEC E/OU ASSENT DE TUBO DE ACO COM JUNTA SOLDADA | D48: 46 | G48: 97182 | H48: ASSENTAMENTO DE TUBO DE AÇO CARBONO PARA REDE DE ÁGUA, DN 2000 MM (80) OU DN 2100 MM (84), JUNTA SOLDADA, INSTALADO EM LOCAL COM NÍVEL ALTO DE INTERFERÊNCIAS (NÃO INCLUI FORNECIMENTO). AF_11/2017 | I48: M | J48: COEFICIENTE DE REPRESENTATIVIDADE | K48: 147.99 | L48: CAIXA REFERENCIAL
A49: ASSENTAMENTO DE TUBOS E PECAS | B49: ASTU | C49: FORNEC E/OU ASSENT DE TUBO DE ACO COM JUNTA SOLDADA | D49: 46 | G49: 97183 | H49: ASSENTAMENTO DE TUBO DE AÇO CARBONO PARA REDE DE ÁGUA, DN 600 MM (24), JUNTA SOLDADA, INSTALADO EM LOCAL COM NÍVEL BAIXO DE INTERFERÊNCIAS (NÃO INCLUI FORNECIMENTO). AF_11/2017 | I49: M | J49: COEFICIENTE DE REPRESENTATIVIDADE | K49: 34.76 | L49: CAIXA REFERENCIAL
A50: ASSENTAMENTO DE TUBOS E PECAS | B50: ASTU | C50: FORNEC E/OU ASSENT DE TUBO DE ACO COM JUNTA SOLDADA | D50: 46 | G50: 97184 | H50: ASSENTAMENTO DE TUBO DE AÇO CARBONO PARA REDE DE ÁGUA, DN 700 MM (28), JUNTA SOLDADA, INSTALADO EM LOCAL COM NÍVEL BAIXO DE INTERFERÊNCIAS (NÃO INCLUI FORNECIMENTO). AF_11/2017 | I50: M | J50: COEFICIENTE DE REPRESENTATIVIDADE | K50: 40.27 | L50: CAIXA REFERENCIAL
A51: ASSENTAMENTO DE TUBOS E PECAS | B51: ASTU | C51: FORNEC E/OU ASSENT DE TUBO DE ACO COM JUNTA SOLDADA | D51: 46 | G51: 97185 | H51: ASSENTAMENTO DE TUBO DE AÇO CARBONO PARA REDE DE ÁGUA, DN 800 MM (32), JUNTA SOLDADA, INSTALADO EM LOCAL COM NÍVEL BAIXO DE INTERFERÊNCIAS (NÃO INCLUI FORNECIMENTO). AF_11/2017 | I51: M | J51: COEFICIENTE DE REPRESENTATIVIDADE | K51: 45.76 | L51: CAIXA REFERENCIAL
A52: ASSENTAMENTO DE TUBOS E PECAS | B52: ASTU | C52: FORNEC E/OU ASSENT DE TUBO DE ACO COM JUNTA SOLDADA | D52: 46 | G52: 97186 | H52: ASSENTAMENTO DE TUBO DE AÇO CARBONO PARA REDE DE ÁGUA, DN 900 MM (36), JUNTA SOLDADA, INSTALADO EM LOCAL COM NÍVEL BAIXO DE INTERFERÊNCIAS (NÃO INCLUI FORNECIMENTO). AF_11/2017 | I52: M | J52: COEFICIENTE DE REPRESENTATIVIDADE | K52: 51.27 | L52: CAIXA REFERENCIAL
A53: ASSENTAMENTO DE TUBOS E PECAS | B53: ASTU | C53: FORNEC E/OU ASSENT DE TUBO DE ACO COM JUNTA SOLDADA | D53: 46 | G53: 97187 | H53: ASSENTAMENTO DE TUBO DE AÇO CARBONO PARA REDE DE ÁGUA, DN 1000 MM (40 ) OU DN 1100 MM (44 ), JUNTA SOLDADA, INSTALADO EM LOCAL COM NÍVEL BAIXO DE INTERFERÊNCIAS (NÃO INCLUI FORNECIMENTO). AF_11/2017 | I53: M | J53: COEFICIENTE DE REPRESENTATIVIDADE | K53: 62.27 | L53: CAIXA REFERENCIAL
A54: ASSENTAMENTO DE TUBOS E PECAS | B54: ASTU | C54: FORNEC E/OU ASSENT DE TUBO DE ACO COM JUNTA SOLDADA | D54: 46 | G54: 97188 | H54: ASSENTAMENTO DE TUBO DE AÇO CARBONO PARA REDE DE ÁGUA, DN 1200 MM (48) OU DN 1300 MM (52), JUNTA SOLDADA, INSTALADO EM LOCAL COM NÍVEL BAIXO DE INTERFERÊNCIAS (NÃO INCLUI FORNECIMENTO). AF_11/2017 | I54: M | J54: COEFICIENTE DE REPRESENTATIVIDADE | K54: 73.28 | L54: CAIXA REFERENCIAL
A55: ASSENTAMENTO DE TUBOS E PECAS | B55: ASTU | C55: FORNEC E/OU ASSENT DE TUBO DE ACO COM JUNTA SOLDADA | D55: 46 | G55: 97189 | H55: ASSENTAMENTO DE TUBO DE AÇO CARBONO PARA REDE DE ÁGUA, DN 1400 MM (56'') OU DN 1500 MM (60), JUNTA SOLDADA, INSTALADO EM LOCAL COM NÍVEL BAIXO DE INTERFERÊNCIAS (NÃO INCLUI FORNECIMENTO). AF_11/2017 | I55: M | J55: COEFICIENTE DE REPRESENTATIVIDADE | K55: 84.29 | L55: CAIXA REFERENCIAL
A56: ASSENTAMENTO DE TUBOS E PECAS | B56: ASTU | C56: FORNEC E/OU ASSENT DE TUBO DE ACO COM JUNTA SOLDADA | D56: 46 | G56: 97190 | H56: ASSENTAMENTO DE TUBO DE AÇO CARBONO PARA REDE DE ÁGUA, DN 1600 MM (64) OU DN 1700 MM (68), JUNTA SOLDADA, INSTALADO EM LOCAL COM NÍVEL BAIXO DE INTERFERÊNCIAS (NÃO INCLUI FORNECIMENTO). AF_11/2017 | I56: M | J56: COEFICIENTE DE REPRESENTATIVIDADE | K56: 95.29 | L56: CAIXA REFERENCIAL
A57: ASSENTAMENTO DE TUBOS E PECAS | B57: ASTU | C57: FORNEC E/OU ASSENT DE TUBO DE ACO COM JUNTA SOLDADA | D57: 46 | G57: 97191 | H57: ASSENTAMENTO DE TUBO DE AÇO CARBONO PARA REDE DE ÁGUA, DN 1800 MM (72) OU DN 1900 MM (76), JUNTA SOLDADA, INSTALADO EM LOCAL COM NÍVEL BAIXO DE INTERFERÊNCIAS (NÃO INCLUI FORNECIMENTO). AF_11/2017 | I57: M | J57: COEFICIENTE DE REPRESENTATIVIDADE | K57: 109.36 | L57: CAIXA REFERENCIAL
A58: ASSENTAMENTO DE TUBOS E PECAS | B58: ASTU | C58: FORNEC E/OU ASSENT DE TUBO DE ACO COM JUNTA SOLDADA | D58: 46 | G58: 97192 | H58: ASSENTAMENTO DE TUBO DE AÇO CARBONO PARA REDE DE ÁGUA, DN 2000 MM (80) OU DN 2100 MM (84), JUNTA SOLDADA, INSTALADO EM LOCAL COM NÍVEL BAIXO DE INTERFERÊNCIAS (NÃO INCLUI FORNECIMENTO). AF_11/2017 | I58: M | J58: COEFICIENTE DE REPRESENTATIVIDADE | K58: 120.67 | L58: CAIXA REFERENCIAL
A59: ASSENTAMENTO DE TUBOS E PECAS | B59: ASTU | C59: FORNEC E/OU ASSENT DE TUBO DE PVC COM JUNTA ELASTICA | D59: 48 | G59: 90694 | H59: TUBO DE PVC PARA REDE COLETORA DE ESGOTO DE PAREDE MACIÇA, DN 100 MM, JUNTA ELÁSTICA - FORNECIMENTO E ASSENTAMENTO. AF_01/2021 | I59: M | J59: COEFICIENTE DE REPRESENTATIVIDADE | K59: 46.98 | L59: CAIXA REFERENCIAL
A60: ASSENTAMENTO DE TUBOS E PECAS | B60: ASTU | C60: FORNEC E/OU ASSENT DE TUBO DE PVC COM JUNTA ELASTICA | D60: 48 | G60: 90695 | H60: TUBO DE PVC PARA REDE COLETORA DE ESGOTO DE PAREDE MACIÇA, DN 150 MM, JUNTA ELÁSTICA - FORNECIMENTO E ASSENTAMENTO. AF_01/2021 | I60: M | J60: COEFICIENTE DE REPRESENTATIVIDADE | K60: 88.28 | L60: CAIXA REFERENCIAL
A61: ASSENTAMENTO DE TUBOS E PECAS | B61: ASTU | C61: FORNEC E/OU ASSENT DE TUBO DE PVC COM JUNTA ELASTICA | D61: 48 | G61: 90696 | H61: TUBO DE PVC PARA REDE COLETORA DE ESGOTO DE PAREDE MACIÇA, DN 200 MM, JUNTA ELÁSTICA - FORNECIMENTO E ASSENTAMENTO. AF_01/2021 | I61: M | J61: COEFICIENTE DE REPRESENTATIVIDADE | K61: 146.61 | L61: CAIXA REFERENCIAL
A62: ASSENTAMENTO DE TUBOS E PECAS | B62: ASTU | C62: FORNEC E/OU ASSENT DE TUBO DE PVC COM JUNTA ELASTICA | D62: 48 | G62: 90697 | H62: TUBO DE PVC PARA REDE COLETORA DE ESGOTO DE PAREDE MACIÇA, DN 250 MM, JUNTA ELÁSTICA - FORNECIMENTO E ASSENTAMENTO. AF_01/2021 | I62: M | J62: COEFICIENTE DE REPRESENTATIVIDADE | K62: 226.65 | L62: CAIXA REFERENCIAL
A63: ASSENTAMENTO DE TUBOS E PECAS | B63: ASTU | C63: FORNEC E/OU ASSENT DE TUBO DE PVC COM JUNTA ELASTICA | D63: 48 | G63: 90698 | H63: TUBO DE PVC PARA REDE COLETORA DE ESGOTO DE PAREDE MACIÇA, DN 300 MM, JUNTA ELÁSTICA, FORNECIMENTO E ASSENTAMENTO. AF_01/2021 | I63: M | J63: COEFICIENTE DE REPRESENTATIVIDADE | K63: 345.53 | L63: CAIXA REFERENCIAL
A64: ASSENTAMENTO DE TUBOS E PECAS | B64: ASTU | C64: FORNEC E/OU ASSENT DE TUBO DE PVC COM JUNTA ELASTICA | D64: 48 | G64: 90699 | H64: TUBO DE PVC PARA REDE COLETORA DE ESGOTO DE PAREDE MACIÇA, DN 350 MM, JUNTA ELÁSTICA - FORNECIMENTO E ASSENTAMENTO. AF_01/2021 | I64: M | J64: COEFICIENTE DE REPRESENTATIVIDADE | K64: 485.59 | L64: CAIXA REFERENCIAL
A65: ASSENTAMENTO DE TUBOS E PECAS | B65: ASTU | C65: FORNEC E/OU ASSENT DE TUBO DE PVC COM JUNTA ELASTICA | D65: 48 | G65: 90700 | H65: TUBO DE PVC PARA REDE COLETORA DE ESGOTO DE PAREDE MACIÇA, DN 400 MM, JUNTA ELÁSTICA FORNECIMENTO E ASSENTAMENTO. AF_01/2021 | I65: M | J65: COEFICIENTE DE REPRESENTATIVIDADE | K65: 565.57 | L65: CAIXA REFERENCIAL
A66: ASSENTAMENTO DE TUBOS E PECAS | B66: ASTU | C66: FORNEC E/OU ASSENT DE TUBO DE PVC COM JUNTA ELASTICA | D66: 48 | G66: 90701 | H66: TUBO DE PVC CORRUGADO DE DUPLA PAREDE PARA REDE COLETORA DE ESGOTO, DN 150 MM, JUNTA ELÁSTICA - FORNECIMENTO E ASSENTAMENTO. AF_01/2021 | I66: M | J66: COEFICIENTE DE REPRESENTATIVIDADE | K66: 70.3 | L66: CAIXA REFERENCIAL
A67: ASSENTAMENTO DE TUBOS E PECAS | B67: ASTU | C67: FORNEC E/OU ASSENT DE TUBO DE PVC COM JUNTA ELASTICA | D67: 48 | G67: 90702 | H67: TUBO DE PVC CORRUGADO DE DUPLA PAREDE PARA REDE COLETORA DE ESGOTO, DN 200 MM, JUNTA ELÁSTICA - FORNECIMENTO E ASSENTAMENTO. AF_01/2021 | I67: M | J67: COEFICIENTE DE REPRESENTATIVIDADE | K67: 115.35 | L67: CAIXA REFERENCIAL
A68: ASSENTAMENTO DE TUBOS E PECAS | B68: ASTU | C68: FORNEC E/OU ASSENT DE TUBO DE PVC COM JUNTA ELASTICA | D68: 48 | G68: 90703 | H68: TUBO DE PVC CORRUGADO DE DUPLA PAREDE PARA REDE COLETORA DE ESGOTO, DN 250 MM, JUNTA ELÁSTICA - FORNECIMENTO E ASSENTAMENTO. AF_01/2021 | I68: M | J68: COEFICIENTE DE REPRESENTATIVIDADE | K68: 180.34 | L68: CAIXA REFERENCIAL
A69: ASSENTAMENTO DE TUBOS E PECAS | B69: ASTU | C69: FORNEC E/OU ASSENT DE TUBO DE PVC COM JUNTA ELASTICA | D69: 48 | G69: 90704 | H69: TUBO DE PVC CORRUGADO DE DUPLA PAREDE PARA REDE COLETORA DE ESGOTO, DN 300 MM, JUNTA ELÁSTICA - FORNECIMENTO E ASSENTAMENTO. AF_01/2021 | I69: M | J69: COEFICIENTE DE REPRESENTATIVIDADE | K69: 268.28 | L69: CAIXA REFERENCIAL
A70: ASSENTAMENTO DE TUBOS E PECAS | B70: ASTU | C70: FORNEC E/OU ASSENT DE TUBO DE PVC COM JUNTA ELASTICA | D70: 48 | G70: 90705 | H70: TUBO DE PVC CORRUGADO DE DUPLA PAREDE PARA REDE COLETORA DE ESGOTO, DN 350 MM, JUNTA ELÁSTICA - FORNECIMENTO E ASSENTAMENTO. AF_01/2021 | I70: M | J70: COEFICIENTE DE REPRESENTATIVIDADE | K70: 348.08 | L70: CAIXA REFERENCIAL
A71: ASSENTAMENTO DE TUBOS E PECAS | B71: ASTU | C71: FORNEC E/OU ASSENT DE TUBO DE PVC COM JUNTA ELASTICA | D71: 48 | G71: 90706 | H71: TUBO DE PVC CORRUGADO DE DUPLA PAREDE PARA REDE COLETORA DE ESGOTO, DN 400 MM, JUNTA ELÁSTICA - FORNECIMENTO E ASSENTAMENTO. AF_01/2021 | I71: M | J71: COEFICIENTE DE REPRESENTATIVIDADE | K71: 459.5 | L71: CAIXA REFERENCIAL
A72: ASSENTAMENTO DE TUBOS E PECAS | B72: ASTU | C72: FORNEC E/OU ASSENT DE TUBO DE PVC COM JUNTA ELASTICA | D72: 48 | G72: 90708 | H72: TUBO DE PEAD CORRUGADO DE DUPLA PAREDE PARA REDE COLETORA DE ESGOTO, DN 600 MM, JUNTA ELÁSTICA INTEGRADA - FORNECIMENTO E ASSENTAMENTO. AF_01/2021 | I72: M | J72: COEFICIENTE DE REPRESENTATIVIDADE | K72: 824.6 | L72: CAIXA REFERENCIAL
A73: ASSENTAMENTO DE TUBOS E PECAS | B73: ASTU | C73: FORNEC E/OU ASSENT DE TUBO DE PVC COM JUNTA ELASTICA | D73: 48 | G73: 90724 | H73: JUNTA ARGAMASSADA ENTRE TUBO DN 100 MM E O POÇO DE VISITA/ CAIXA DE CONCRETO OU ALVENARIA EM REDES DE ESGOTO. AF_01/2021 | I73: UN | J73: COEFICIENTE DE REPRESENTATIVIDADE | K73: 33.78 | L73: CAIXA REFERENCIAL
A74: ASSENTAMENTO DE TUBOS E PECAS | B74: ASTU | C74: FORNEC E/OU ASSENT DE TUBO DE PVC COM JUNTA ELASTICA | D74: 48 | G74: 90725 | H74: JUNTA ARGAMASSADA ENTRE TUBO DN 150 MM E O POÇO DE VISITA/ CAIXA DE CONCRETO OU ALVENARIA EM REDES DE ESGOTO. AF_01/2021 | I74: UN | J74: COEFICIENTE DE REPRESENTATIVIDADE | K74: 41.5 | L74: CAIXA REFERENCIAL
